Workbook

Sheet INDICE
F1: CPLP - Comunidade dos Países de Língua Portuguesa
F2: Trocas comerciais com Portugal (PT) 2018-2022 Setores agrícola e agroalimentar, do mar e das florestas
C3: Fonte
D4: Estatísticas do Comércio Internacional | F4: CPLP - Síntese
D5: dados: 2021 provisórios; 2022 preliminares | F5: 1. Evolução da balança comercial
F6: 2. Ranking dos parceiros comerciais de Portugal por país
C7: Data | D7: 2023-07-14T16:05:30.160 | F7: 3. Principais produtos transacionados (NC a 2 e 4 dígitos)
F8: 3A Principais produtos transacionados (sem mar nem florestas)
F9: 3B Principais origens e destinos
F10: 3C Principais origens e destinos (sem mar nem florestas)
F11: 4. Evolução da balança comercial por país x produto
F12: 4A Evolução da balança comercial por produto
F13: 5.1. Trocas comerciais por país
F14: 5.1A Trocas comerciais por país (sem mar nem florestas)
F15: 5.2. Trocas comerciais por produto (NC 2 dígitos)
C18: Lista de países membros
D19: Angola; Brasil; Cabo Verde; Guiné Equatorial; Guiné-Bissau; Moçambique; São Tomé e Príncipe; Timor-Leste
C22: Observadores associados
D23: Geórgia; Japão; Maurícia; Namíbia; Senegal; Turquia
C26: Fichas individuais
D27: Angola
D28: Brasil
D29: Cabo Verde
D30: Guiné Equatorial
D31: Guiné-Bissau
D32: Moçambique
D33: São Tomé e Príncipe
D34: Timor-Leste

Sheet Sintese
A1: CPLP - Síntese (2018-2022)
A3: • As trocas comerciais de bens transacionáveis (excluindo serviços) entre Portugal e CPLP representam um total de 2,7 mil milhões de € em exportações e 3,1 mil milhões de € em importações, na média do período 2018-2022, correspondendo a um saldo negativo da balança comercial de cerca de -0,5 mil milhões.
A4: • No que respeita aos produtos dos setores agrícola e agroalimentar, mar e florestas, Portugal exportou para CPLP 0,99 mil milhões de € em média anual, no mesmo período, enquanto as importações ascenderam a 0,76 mil milhões de €, resultando num saldo positivo de 0,2 mil M€. Estes setores representam perto de 37,2% do total de exportações de bens transacionáveis e 24,5% das correspondentes importações. Se nos referirmos apenas ao setor agrícola e agroalimentar, as exportações representam, em média, 0,8 mil milhões de € e as importações 0,6 mil milhões, ou seja, um saldo positivo de 0,2 mil M€.
A5: • As principais exportações agrícolas e agroalimentares (NC 4 dígitos) neste período são Azeite (processos mecânicos ou físicos) (32%), Vinhos de uvas frescas (14%) e Óleo de soja e suas frações (7%). As importações agrícolas e agroalimentares mais relevantes referem-se a Soja, mesmo triturada (39%), Milho (30%) e Açúcares (cana/beterraba); sacarose pura (7%). Se considerarmos também os produtos do mar e da floresta, merecem particular destaque, em termos de exportações, Azeite (processos mecânicos ou físicos) (27%), Vinhos de uvas frescas (12%) e Óleo de soja e suas frações (6%). Nas importações destes setores, destacam-se Soja, mesmo triturada (29%), Milho (22%) e Madeira em bruto (6%).
A6: • Os principais destinos das exportações do setor agrícola e agroalimentar no mesmo período são Brasil (46%), Angola (33%) e Cabo Verde (11%), sendo as principais origens das importações Brasil (97%), Moçambique (2%) e Angola (1%). Incluindo os setores do mar e das florestas, os principais destinos são Brasil (46%), Angola (34%) e Cabo Verde (10%), enquanto as principais origens das importações são Brasil (92%), Moçambique (5%) e Angola (2%).
A8: Trocas PT-CPLP (milhões de euros) produtos agrícolas e agroalimentares, do mar e da floresta | J8: Trocas PT-CPLP (milhões de euros) produtos agrícolas e agroalimentares
B10: 2018 | C10: 2019 | D10: 2020 | E10: 2021 | F10: 2022 | G10: média 2018-2022 | H10: TVMA* 2018-2022 | I10: TVT* 2018-2022 | K10: 2018 | L10: 2019 | M10: 2020 | N10: 2021 | O10: 2022 | P10: média 2018-2022 | Q10: TVMA* 2018-2022 | R10: TVT* 2018-2022
A11: Exportações | B11: 1059.625653 | C11: 1009.962254 | D11: 853.806624 | E11: 865.327238 | F11: 1141.610044 | G11: 986.0663626 | H11: 0.01880561376 | I11: 0.07737108928 | J11: Exportações | K11: 855.612605 | L11: 823.619967 | M11: 722.766065 | N11: 715.171224 | O11: 943.679292 | P11: 812.1698306 | Q11: 0.02479456333 | R11: 0.1029282253
A12: Importações | B12: 467.644136 | C12: 549.321903 | D12: 582.902206 | E12: 831.811629 | F12: 1386.295874 | G12: 763.5951496 | H12: 0.3121549087 | I12: 1.964424799 | J12: Importações | K12: 361.600594 | L12: 411.829206 | M12: 469.391952 | N12: 600.807213 | O12: 1012.594612 | P12: 571.2447154 | Q12: 0.2936048026 | R12: 1.800312358
A13: Saldo | B13: 591.981517 | C13: 460.640351 | D13: 270.904418 | E13: 33.515609 | F13: -244.68583 | G13: 222.471213 | J13: Saldo | K13: 494.012011 | L13: 411.790761 | M13: 253.374113 | N13: 114.364011 | O13: -68.91532 | P13: 240.9251152
A14: *TVMA - Taxa de variação média anual; TVT - Taxa de variação total
E15: Saldo da Balança Comercial PT-CPLP (milhões de euros)
G16: 2018 | H16: 2019 | I16: 2020 | J16: 2021 | K16: 2022 | L16: média 2018-2022
F17: Total de Bens Transacionáveis* | G17: 454.128304 | H17: 296.802374 | I17: -149.776787 | J17: -479.926489 | K17: -2467.0083 | L17: -469.1561796
D18: Agrícola e Agroalimentar (AA) | G18: 494.012011 | H18: 411.790761 | I18: 253.374113 | J18: 114.364011 | K18: -68.91532 | L18: 240.9251152
F19: Mar (M) | G19: 68.349856 | H19: 65.973001 | I19: 46.388352 | J19: 46.369262 | K19: 65.615318 | L19: 58.5391578 | M19: 0
F20: Florestas (F) | G20: 29.61965 | H20: -17.123411 | I20: -28.858047 | J20: -127.217664 | K20: -241.385828 | L20: -76.99306 | M20: 0
F21: AA + M + F | G21: 591.981517 | H21: 460.640351 | I21: 270.904418 | J21: 33.515609 | K21: -244.68583 | L21: 222.471213
G22: *exclui serviços
A23: Evolução das trocas comerciais PT-CPLP (em milhões de euros 2018-2022)
H32: Exportações | J32: Importações | L32: Saldo
A33: Principais produtos agrícolas e agroalimentares (NC 4 dígitos)
A51: Principais origens e destinos em CPLP dos produtos agrícolas e agroalimentares (média 2018-2022)
A65: Principais produtos agrícolas e agroalimentares transacionados (NC 4 dígitos - média 2018-2022)
A87: Fonte: GPP a partir de dados INE/Comércio Internacional (2021 provisórios; 2022 preliminares) | P87: 2023-07-14T16:05:30.160

Sheet 1
A1: Evolução da balança comercial Portugal-CPLP 2018-2022 em milhões de euros
A3: Total de Bens Transacionáveis (BT)(1) | B3: 2018 | C3: 2019 | D3: 2020 | E3: 2021 | F3: 2022 | G3: média quinquénio | H3: var. 18/19 | I3: var. 19/20 | J3: var. 20/21 | K3: var. 21/22 | L3: TVMA* 2018-2022 | M3: TVT* 2018-2022
A4: Exportações | B4: 2931.014916 | C4: 2631.121221 | D4: 2231.271553 | E4: 2312.394319 | F4: 3145.407573 | G4: 2650.241916 | H4: -0.1023173555 | I4: -0.1519693068 | J4: 0.03635719099 | K4: 0.3602384105 | L4: 0.01780533946 | M4: 0.07314621834
A5: Importações | B5: 2476.886612 | C5: 2334.318847 | D5: 2381.04834 | E5: 2792.320808 | F5: 5612.415873 | G5: 3119.398096 | H5: -0.05755926182 | I5: 0.02001847051 | J5: 0.1727274752 | K5: 1.009946657 | L5: 0.226904981 | M5: 1.265915543
A6: Saldo (exp-imp) | B6: 454.128304 | C6: 296.802374 | D6: -149.776787 | E6: -479.926489 | F6: -2467.0083 | G6: -469.1561796
A7: Cobertura (exp/imp) | B7: 1.183346424 | C7: 1.127147315 | D7: 0.9370962847 | E7: 0.8281263071 | F7: 0.5604373668 | G7: 0.8496004148
A8: Exp BT CPLP / Exp BT Mundo | B8: 0.05066577944 | C8: 0.0439231686 | D8: 0.04150632028 | E8: 0.03634781392 | F8: 0.04025199894 | G8: 0.04229942687 | L8: Exportações
A9: Imp BT CPLP / Imp BT Mundo | B9: 0.0328328653 | C9: 0.02918733012 | D9: 0.03494061919 | E9: 0.03358346025 | F9: 0.05137536841 | G9: 0.03749718424 | L9: Importações
A10: Exp BT CPLP / Exp TE Mundo | B10: 0.0328796575 | C10: 0.02820942014 | D10: 0.03003632571 | E10: 0.02586434561 | F10: 0.02626606222 | G10: 0.02844480169
A11: Imp BT CPLP / Imp TE Mundo | B11: 0.02808440479 | C11: 0.02529007675 | D11: 0.03029910565 | E11: 0.02922956901 | F11: 0.04465002695 | G11: 0.03247278955
A12: (1) Todos os produtos transacionados entre PT e CPLP (exclui serviços) | D12: TE - Total da Economia (bens e serviços) Fonte: INE/Contas Nacionais | H12: *TVMA - Taxa de variação média anual; TVT - Taxa de variação total
A24: Agro(1) + Mar + Florestas (AMF) | B24: 2018 | C24: 2019 | D24: 2020 | E24: 2021 | F24: 2022 | G24: média quinquénio | H24: var. 18/19 | I24: var. 19/20 | J24: var. 20/21 | K24: var. 21/22 | L24: TVMA* 2018-2022 | M24: TVT* 2018-2022
A25: Exportações | B25: 1059.625653 | C25: 1009.962254 | D25: 853.806624 | E25: 865.327238 | F25: 1141.610044 | G25: 986.0663626 | H25: -0.04686881528 | I25: -0.154615313 | J25: 0.01349323568 | K25: 0.3192813006 | L25: 0.01880561376 | M25: 0.07737108928
A26: Importações | B26: 467.644136 | C26: 549.321903 | D26: 582.902206 | E26: 831.811629 | F26: 1386.295874 | G26: 763.5951496 | H26: 0.1746579519 | I26: 0.06113046434 | J26: 0.4270174661 | K26: 0.6665983327 | L26: 0.3121549087 | M26: 1.964424799
A27: Saldo (exp-imp) | B27: 591.981517 | C27: 460.640351 | D27: 270.904418 | E27: 33.515609 | F27: -244.68583 | G27: 222.471213
A28: Cobertura (exp/imp) | B28: 2.265880338 | C28: 1.838561777 | D28: 1.46475106 | E28: 1.040292306 | F28: 0.8234966759 | G28: 1.291347075
A29: Exp AMF / Exp BT | B29: 0.3615217539 | C29: 0.3838524223 | D29: 0.3826547346 | E29: 0.3742126639 | F29: 0.3629450294 | G29: 0.3720665485 | L29: Exportações
A30: Imp AMF / Imp BT | B30: 0.1888032071 | C30: 0.2353242804 | D30: 0.24480906 | E30: 0.2978925726 | F30: 0.2470051944 | G30: 0.2447892594 | L30: Importações
A31: Exp AMF CPLP / Exp AMF Mundo | B31: 0.09094945202 | C31: 0.08538866783 | D31: 0.07401596251 | E31: 0.06459319563 | F31: 0.06969011402 | G31: 0.07609502347
A32: Imp AMF CPLP / Imp AMF Mundo | B32: 0.0343084124 | C32: 0.03970992459 | D32: 0.04468262761 | E32: 0.055659637 | F32: 0.07177451663 | G32: 0.05106392084
A33: (1) Produtos agrícolas e agroalimentares | B33: BT - Total de Bens Transacionáveis (exclui serviços) | H33: *TVMA - Taxa de variação média anual; TVT - Taxa de variação total
A45: Agroalimentar (AA)(1) | B45: 2018 | C45: 2019 | D45: 2020 | E45: 2021 | F45: 2022 | G45: média quinquénio | H45: var. 18/19 | I45: var. 19/20 | J45: var. 20/21 | K45: var. 21/22 | L45: TVMA* 2018-2022 | M45: TVT* 2018-2022
A46: Exportações | B46: 855.612605 | C46: 823.619967 | D46: 722.766065 | E46: 715.171224 | F46: 943.679292 | G46: 812.1698306 | H46: -0.03739149916 | I46: -0.1224519876 | J46: -0.01050802102 | K46: 0.3195151879 | L46: 0.02479456333 | M46: 0.1029282253
A47: Importações | B47: 361.600594 | C47: 411.829206 | D47: 469.391952 | E47: 600.807213 | F47: 1012.594612 | G47: 571.2447154 | H47: 0.1389063316 | I47: 0.1397733457 | J47: 0.2799691397 | K47: 0.6853902385 | L47: 0.2936048026 | M47: 1.800312358
A48: Saldo (exp-imp) | B48: 494.012011 | C48: 411.790761 | D48: 253.374113 | E48: 114.364011 | F48: -68.91532 | G48: 240.9251152
A49: Cobertura (exp/imp) | B49: 2.366181415 | C49: 1.999906648 | D49: 1.539792197 | E49: 1.190350596 | F49: 0.931941846 | G49: 1.42175465
A50: Exp AA / Exp AMF | B50: 0.8074668658 | C50: 0.8154957908 | D50: 0.8465219696 | E50: 0.8264748786 | F50: 0.8266213993 | G50: 0.8236462184 | L50: Exportações
A51: Imp AA / Imp AMF | B51: 0.7732388074 | C51: 0.7497046882 | D51: 0.8052670708 | E51: 0.7222875854 | F51: 0.7304318155 | G51: 0.7480989314 | L51: Importações
A52: Exp AA / Exp BT | B52: 0.2919168375 | C52: 0.3130300347 | D52: 0.3239256396 | E52: 0.3092773659 | F52: 0.300018128 | G52: 0.3064512057
A53: Imp AA / Imp BT | B53: 0.1459899667 | C53: 0.1764237163 | D53: 0.1971366747 | E53: 0.215164107 | F53: 0.1804204526 | G53: 0.1831265833
A54: Exp AA CPLP / Exp AA Mundo | B54: 0.140106413 | C54: 0.1309066353 | D54: 0.1092273158 | E54: 0.09597291322 | F54: 0.1064747247 | G54: 0.1149393571
A55: Imp AA CPLP / Imp AA Mundo | B55: 0.03975434265 | C55: 0.04420156411 | D55: 0.05166981941 | E55: 0.05849638475 | F55: 0.07657351169 | G55: 0.05601309553
A56: (1) Produtos agrícolas e agroalimentares | B56: AMF - Agroalimentar, Mar e Florestas; BT - Total de Bens Transacionáveis (exclui serviços) | H56: *TVMA - Taxa de variação média anual; TVT - Taxa de variação total
A67: Mar (M) | B67: 2018 | C67: 2019 | D67: 2020 | E67: 2021 | F67: 2022 | G67: média quinquénio | H67: var. 18/19 | I67: var. 19/20 | J67: var. 20/21 | K67: var. 21/22 | L67: TVMA* 2018-2022 | M67: TVT* 2018-2022
A68: Exportações | B68: 106.049509 | C68: 98.377584 | D68: 74.51551 | E68: 80.484398 | F68: 101.75226 | G68: 92.2358522 | H68: -0.07234286205 | I68: -0.2425560075 | J68: 0.08010262561 | K68: 0.2642482584 | L68: -0.01028796701 | M68: -0.04052115885
A69: Importações | B69: 37.699653 | C69: 32.404583 | D69: 28.127158 | E69: 34.115136 | F69: 36.136942 | G69: 33.6966944 | H69: -0.1404540779 | I69: -0.1320006186 | J69: 0.2128895497 | K69: 0.05926419288 | L69: -0.01052799459
A70: Saldo (exp-imp) | B70: 68.349856 | C70: 65.973001 | D70: 46.388352 | E70: 46.369262 | F70: 65.615318 | G70: 58.5391578
A71: Cobertura (exp/imp) | B71: 2.813010215 | C71: 3.035915753 | D71: 2.649237083 | E71: 2.359199096 | F71: 2.815740745 | G71: 2.737237401
A72: Exp M / Exp AMF | B72: 0.1000820513 | C72: 0.09740718884 | D72: 0.08727445759 | E72: 0.09301036009 | F72: 0.08913048771 | G72: 0.0935391934 | L72: Exportações
A73: Imp M / Imp AMF | B73: 0.08061611404 | C73: 0.05899015281 | D73: 0.04825364823 | E73: 0.04101305489 | F73: 0.02606726506 | G73: 0.0441290053 | L73: Importações
A74: Exp M / Exp BT | B74: 0.03618183873 | C74: 0.03738998539 | D74: 0.03339598441 | E74: 0.03480565461 | F74: 0.03234946748 | G74: 0.03480280484
A75: Imp M / Imp BT | B75: 0.01522058088 | C75: 0.01388181526 | D75: 0.01181293027 | E75: 0.01221748443 | F75: 0.006438749875 | G75: 0.01080230652
A76: Exp M CPLP / Exp M Mundo | B76: 0.09722114044 | C76: 0.09208048197 | D76: 0.08282540886 | E76: 0.07347314476 | F76: 0.07931534532 | G76: 0.0848196905
A77: Imp M CPLP / Imp M Mundo | B77: 0.01710328317 | C77: 0.01486897394 | D77: 0.01461252097 | E77: 0.01630700082 | F77: 0.01386954598 | G77: 0.01530834727
A78: AMF - Agroalimentar, Mar e Florestas; BT - Total de Bens Transacionáveis (exclui serviços) | H78: *TVMA - Taxa de variação média anual; TVT - Taxa de variação total
A90: Florestas (F) | B90: 2018 | C90: 2019 | D90: 2020 | E90: 2021 | F90: 2022 | G90: média quinquénio | H90: var. 18/19 | I90: var. 19/20 | J90: var. 20/21 | K90: var. 21/22 | L90: TVMA* 2018-2022 | M90: TVT* 2018-2022
A91: Exportações | B91: 97.963539 | C91: 87.964703 | D91: 56.525049 | E91: 69.671616 | F91: 96.178492 | G91: 81.6606798 | H91: -0.1020669129 | I91: -0.3574121543 | J91: 0.2325794888 | K91: 0.380454445 | L91: -0.004586848539 | M91: -0.01822154465
A92: Importações | B92: 68.343889 | C92: 105.088114 | D92: 85.383096 | E92: 196.88928 | F92: 337.56432 | G92: 158.6537398 | H92: 0.5376373153 | I92: -0.1875094837 | J92: 1.30595152 | K92: 0.7144880615 | L92: 0.4907822461 | M92: 3.939202684
A93: Saldo (exp-imp) | B93: 29.61965 | C93: -17.123411 | D93: -28.858047 | E93: -127.217664 | F93: -241.385828 | G93: -76.99306
A94: Cobertura (exp/imp) | B94: 1.433391345 | C94: 0.8370566342 | D94: 0.6620168587 | E94: 0.3538619065 | F94: 0.2849190104 | G94: 0.5147100844
A95: Exp F / Exp AMF | B95: 0.09245108282 | C95: 0.08709702036 | D95: 0.06620357281 | E95: 0.08051476128 | F95: 0.08424811301 | G95: 0.08281458824 | L95: Exportações
A96: Imp F / Imp AMF | B96: 0.1461450786 | C96: 0.191305159 | D96: 0.146479281 | E96: 0.2366993597 | F96: 0.2435009195 | G96: 0.2077720634 | L96: Importações
A97: Exp F / Exp BT | B97: 0.03342307761 | C97: 0.03343240224 | D97: 0.02533311059 | E97: 0.0301296433 | F97: 0.03057743385 | G97: 0.03081253802
A98: Imp F / Imp BT | B98: 0.02759265954 | C98: 0.04501874889 | D98: 0.03585945508 | E98: 0.0705109812 | F98: 0.06014599196 | G98: 0.05086036951
A99: Exp F CPLP / Exp F Mundo | B99: 0.02199932041 | C99: 0.01968868704 | D99: 0.01406554898 | E99: 0.01436723476 | F99: 0.01542456714 | G99: 0.01699547436
A100: Imp F CPLP / Imp F Mundo | B100: 0.02932603235 | C100: 0.04496805943 | D100: 0.04193525132 | E100: 0.07626303907 | F100: 0.09685414909 | G100: 0.06211726178
A101: AMF - Agroalimentar, Mar e Florestas; BT - Total de Bens Transacionáveis (exclui serviços) | H101: *TVMA - Taxa de variação média anual; TVT - Taxa de variação total
A111: Fonte: GPP a partir de dados INE/Comércio Internacional (2021 provisórios; 2022 preliminares) | H111: 2023-07-14T16:05:30.160

Sheet 2
A1: Ranking dos parceiros comerciais de Portugal por país (média 2018-2022 em milhares de euros) produtos agrícolas e agroalimentares, do mar e da floresta
A2: Exportações | F2: Importações | K2: Trocas comerciais (total e saldo)
A3: P | B3: País | C3: média quinquénio | D3: % do Total | F3: P | G3: País | H3: média quinquénio | I3: % do Total | K3: P | L3: País | M3: Total (exp+imp) | N3: % do Total | O3: Saldo (exp-imp)
A4: 1 | B4: Espanha | C4: 4146454.758 | D4: 0.3199831006 | F4: 1 | G4: Espanha | H4: 6898685.753 | I4: 0.4613360147 | K4: 1 | L4: Espanha | M4: 11045140.51 | N4: 0.3957120214 | O4: -2752230.994
A5: 2 | B5: França | C5: 1358997.152 | D5: 0.1048741993 | F5: 2 | G5: França | H5: 985555.8696 | I5: 0.06590710658 | K5: 2 | L5: França | M5: 2344553.022 | N5: 0.08399782825 | O5: 373441.2826
A6: 3 | B6: Itália | C6: 876597.9418 | D6: 0.0676473141 | F6: 3 | G6: Alemanha | H6: 880908.072 | I6: 0.05890899134 | K6: 3 | L6: Alemanha | M6: 1516348.182 | N6: 0.05432590048 | O6: -245467.9624
A7: 4 | B7: Alemanha | C7: 635440.1096 | D7: 0.04903709516 | F7: 4 | G7: Países Baixos | H7: 832880.4034 | I7: 0.05569723565 | K7: 4 | L7: Países Baixos | M7: 1421041.707 | N7: 0.05091137463 | O7: -244719.0998
A8: 5 | B8: Países Baixos | C8: 588161.3036 | D8: 0.04538857616 | F8: 5 | G8: Brasil | H8: 705274.2876 | I8: 0.04716382812 | K8: 5 | L8: Itália | M8: 1323412.341 | N8: 0.04741362704 | O8: 429783.5422
A9: 6 | B9: Estados Unidos | C9: 554106.8232 | D9: 0.04276058216 | F9: 6 | G9: Itália | H9: 446814.3996 | I9: 0.02987983245 | K9: 6 | L9: Brasil | M9: 1157990.494 | N9: 0.04148709187 | O9: -252558.0814 | P9: Nota: Nesta listagem, o Reino Unido passa a ser constituído por três componentes: Reino Unido [até 2020] ; Reino Unido (sem Irlanda do Norte) pós-2020 e Reino Unido (Irlanda do Norte) pós-2020. Estas componentes são calculadas igualmente como média do quinquénio, embora a primeira corresponda apenas a 2018-2020 e as duas últimas a 2021-2022.
A10: 7 | B10: Brasil | C10: 452716.2062 | D10: 0.03493623922 | F10: 7 | G10: Suécia | H10: 341935.6152 | I10: 0.02286627042 | K10: 7 | L10: Estados Unidos | M10: 835578.5624 | N10: 0.02993610463 | O10: 272635.084
A11: 8 | B11: Reino Unido | C11: 382822.421 | D11: 0.02954251581 | F11: 8 | G11: Bélgica | H11: 285371.451 | I11: 0.01908365341 | K11: 8 | L11: Reino Unido | M11: 527725.3878 | N11: 0.01890671103 | O11: 237919.4542
A12: 9 | B12: Angola | C12: 331119.6562 | D12: 0.02555259865 | F12: 9 | G12: Estados Unidos | H12: 281471.7392 | I12: 0.01882286787 | K12: 9 | L12: Bélgica | M12: 524506.1098 | N12: 0.01879137461 | O12: -46236.7922
A13: 10 | B13: Reino Unido (sem Irlanda do Norte) pós 2020 | C13: 297911.4506 | D13: 0.02298991192 | F13: 10 | G13: Polónia | H13: 207484.8952 | I13: 0.01387514348 | K13: 10 | L13: Polónia | M13: 458805.1662 | N13: 0.01643752016 | O13: 43835.3758
A14: 11 | B14: Polónia | C14: 251320.271 | D14: 0.01939445725 | F14: 11 | G14: Ucrânia | H14: 195332.8996 | I14: 0.01306250272 | K14: 11 | L14: Suécia | M14: 435895.9016 | N14: 0.01561675455 | O14: -247975.3288
A15: 12 | B15: Bélgica | C15: 239134.6588 | D15: 0.01845409007 | F15: 12 | G15: China, República Popular da | H15: 173708.8634 | I15: 0.01161643792 | K15: 12 | L15: China, República Popular da | M15: 367378.303 | N15: 0.01316198837 | O15: 19960.5762
A16: 13 | B16: Israel | C16: 214334.0624 | D16: 0.01654022095 | F16: 13 | G16: África do Sul | H16: 145344.5192 | I16: 0.009719628296 | K16: 13 | L16: Reino Unido (sem Irlanda do Norte) pós 2020 | M16: 358973.5286 | N16: 0.01286087221 | O16: 236849.3726
A17: 14 | B17: China, República Popular da | C17: 193669.4396 | D17: 0.01494552609 | F17: 14 | G17: Reino Unido | H17: 144902.9668 | I17: 0.009690100349 | K17: 14 | L17: Angola | M17: 346542.8048 | N17: 0.01241551918 | O17: 315696.5076
A18: 15 | B18: Turquia | C18: 167228.7496 | D18: 0.01290509048 | F18: 15 | G18: Dinamarca | H18: 144410.5462 | I18: 0.009657170692 | K18: 15 | L18: Dinamarca | M18: 229157.968 | N18: 0.008209996302 | O18: -59663.1244
A19: 16 | B19: Suíça | C19: 143382.5624 | D19: 0.01106487338 | F19: 16 | G19: Roménia | H19: 138729.3114 | I19: 0.00927724931 | K19: 16 | L19: Turquia | M19: 223208.1582 | N19: 0.007996833666 | O19: 111249.341
A20: 17 | B20: Marrocos | C20: 109031.778 | D20: 0.008414013519 | F20: 17 | G20: Irlanda | H20: 118243.0764 | I20: 0.007907272716 | K20: 17 | L20: Israel | M20: 222677.5138 | N20: 0.007977822376 | O20: 205990.611
A21: 18 | B21: Cabo Verde | C21: 100899.9446 | D21: 0.007786477608 | F21: 18 | G21: Canadá | H21: 108500.262 | I21: 0.007255741203 | K21: 18 | L21: Ucrânia | M21: 209672.7922 | N21: 0.007511904838 | O21: -180993.007
A22: 19 | B22: Canadá | C22: 96471.0096 | D22: 0.007444695426 | F22: 19 | G22: Rússia, Federação da | H22: 105947.3528 | I22: 0.007085020431 | K22: 19 | L22: Canadá | M22: 204971.2716 | N22: 0.007343464408 | O22: -12029.2524
A23: 20 | B23: Suécia | C23: 93960.2864 | D23: 0.007250942198 | F23: 20 | G23: Uruguai | H23: 102111.7952 | I23: 0.006828525075 | K23: 20 | L23: Rússia, Federação da | M23: 185992.9178 | N23: 0.006663530754 | O23: -25901.7878
A24: 21 | B24: Dinamarca | C24: 84747.4218 | D24: 0.0065399828 | F24: 21 | G24: Argentina | H24: 97726.5184 | I24: 0.006535268331 | K24: 21 | L24: África do Sul | M24: 182500.0166 | N24: 0.006538391287 | O24: -108189.0218
A25: 22 | B25: Egito | C25: 83378.3752 | D25: 0.006434333082 | F25: 22 | G25: Índia | H25: 75540.6788 | I25: 0.005051634029 | K25: 22 | L25: Irlanda | M25: 182216.4716 | N25: 0.006528232778 | O25: -54269.6812
A26: 23 | B26: Rússia, Federação da | C26: 80045.565 | D26: 0.006177139164 | F26: 23 | G26: Finlândia | H26: 74014.7114 | I26: 0.004949587966 | K26: 23 | L26: Roménia | M26: 164574.233 | N26: 0.005896167854 | O26: -112884.3898
A27: 24 | B27: Argélia | C27: 78380.8918 | D27: 0.006048675857 | F27: 24 | G27: Vietname | H27: 70006.3292 | I27: 0.004681535306 | K27: 24 | L27: Marrocos | M27: 151640.1714 | N27: 0.005432781837 | O27: 66423.3846
A28: 25 | B28: México | C28: 73464.5916 | D28: 0.005669283563 | F28: 25 | G28: Costa Rica | H28: 69968.8442 | I28: 0.00467902857 | K28: 25 | L28: Suíça | M28: 147879.8298 | N28: 0.005298060837 | O28: 138885.295
A29: 26 | B29: Japão | C29: 66607.632 | D29: 0.005140130028 | F29: 26 | G29: Áustria | H29: 64437.3394 | I29: 0.004309120088 | K29: 26 | L29: Grécia | M29: 116239.3676 | N29: 0.004164484379 | O29: -11103.4736
A30: 27 | B30: Irlanda | C30: 63973.3952 | D30: 0.00493684522 | F30: 27 | G30: Grécia | H30: 63671.4206 | I30: 0.004257900777 | K30: 27 | L30: Argentina | M30: 113791.3158 | N30: 0.004076778521 | O30: -81661.721
A31: 28 | B31: Luxemburgo | C31: 55233.376 | D31: 0.004262375437 | F31: 28 | G31: Reino Unido (sem Irlanda do Norte) pós 2020 | H31: 61062.078 | I31: 0.004083406133 | K31: 28 | L31: Uruguai | M31: 105100.8748 | N31: 0.003765427844 | O31: -99122.7156
A32: 29 | B32: Grécia | C32: 52567.947 | D32: 0.004056683518 | F32: 29 | G32: Turquia | H32: 55979.4086 | I32: 0.003743512633 | K32: 29 | L32: Áustria | M32: 103605.5406 | N32: 0.003711854807 | O32: -25269.1382
A33: 30 | B33: Áustria | C33: 39168.2012 | D33: 0.003022621299 | F33: 30 | G33: Equador | H33: 48766.9652 | I33: 0.003261194694 | K33: 30 | L33: Finlândia | M33: 103235.6284 | N33: 0.003698602038 | O33: -44793.7944
A34: 31 | B34: Moçambique | C34: 37451.371 | D34: 0.002890133021 | F34: 31 | G34: Chile | H34: 47783.2146 | I34: 0.003195408311 | K34: 31 | L34: Cabo Verde | M34: 101736.0812 | N34: 0.003644878063 | O34: 100063.808
A35: 32 | B35: África do Sul | C35: 37155.4974 | D35: 0.00286730037 | F35: 32 | G35: Bulgária | H35: 47595.9378 | I35: 0.003182884545 | K35: 32 | L35: Índia | M35: 100003.3314 | N35: 0.003582799185 | O35: -51078.0262
A36: 33 | B36: Chile | C36: 36026.5554 | D36: 0.002780179593 | F36: 33 | G36: Cuba | H36: 43073.8564 | I36: 0.002880479262 | K36: 33 | L36: Egito | M36: 93743.8836 | N36: 0.003358543211 | O36: 73012.8668
A37: 34 | B37: Austrália | C37: 34889.2258 | D37: 0.002692411542 | F37: 34 | G37: Marrocos | H37: 42608.3934 | I37: 0.002849352342 | K37: 34 | L37: México | M37: 93550.6764 | N37: 0.003351621216 | O37: 53378.5068
A38: 35 | B38: Arábia Saudita | C38: 32824.7102 | D38: 0.002533092282 | F38: 35 | G38: Moçambique | H38: 40008.1492 | I38: 0.002675466135 | K38: 35 | L38: Chile | M38: 83809.77 | N38: 0.003002635727 | O38: -11756.6592
A39: 36 | B39: Guiné-Bissau | C39: 32182.3282 | D39: 0.00248351948 | F39: 36 | G39: Checa, República | H39: 35951.6258 | I39: 0.002404194127 | K39: 36 | L39: Argélia | M39: 83292.5462 | N39: 0.002984105254 | O39: 73469.2374
A40: 37 | B40: Finlândia | C40: 29220.917 | D40: 0.002254986529 | F40: 37 | G40: Colômbia | H40: 29155.8878 | I40: 0.00194974254 | K40: 37 | L40: Japão | M40: 83018.2336 | N40: 0.002974277512 | O40: 50197.0304
A41: 38 | B41: Checa, República | C41: 29120.8636 | D41: 0.00224726538 | F41: 38 | G41: Indonésia | H41: 28536.2748 | I41: 0.001908307142 | K41: 38 | L41: Moçambique | M41: 77459.5202 | N41: 0.002775126608 | O41: -2556.7782
A42: 39 | B42: Emirados Árabes Unidos | C42: 29075.6888 | D42: 0.002243779228 | F42: 39 | G42: Guiana | H42: 28025.2642 | I42: 0.001874134315 | K42: 39 | L42: Vietname | M42: 75952.8202 | N42: 0.002721146371 | O42: -64059.8382
A43: 40 | B43: São Tomé e Príncipe | C43: 26794.0764 | D43: 0.002067706546 | F43: 40 | G43: Hungria | H43: 24241.8222 | I43: 0.001621124087 | K43: 40 | L43: Costa Rica | M43: 73986.1334 | N43: 0.002650686279 | O43: -65951.555
A44: 41 | B44: Jordânia | C44: 26642.1032 | D44: 0.00205597873 | F44: 41 | G44: Namíbia | H44: 22812.3548 | I44: 0.001525531272 | K44: 41 | L44: Checa, República | M44: 65072.4894 | N44: 0.002331338954 | O44: -6830.7622
A45: 42 | B45: Roménia | C45: 25844.9216 | D45: 0.001994459998 | F45: 42 | G45: Costa do Marfim | H45: 22796.1714 | I45: 0.001524449039 | K45: 42 | L45: Luxemburgo | M45: 63920.9884 | N45: 0.00229008436 | O45: 46545.7636
A46: 43 | B46: Tunísia | C46: 24967.3514 | D46: 0.001926737655 | F46: 43 | G46: Uganda | H46: 22685.1304 | I46: 0.001517023391 | K46: 43 | L46: Bulgária | M46: 60579.4162 | N46: 0.002170366526 | O46: -34612.4594
A47: 44 | B47: Índia | C47: 24462.6526 | D47: 0.001887789904 | F47: 44 | G47: México | H47: 20086.0848 | I47: 0.001343217338 | K47: 44 | L47: Equador | M47: 51816.5236 | N47: 0.00185642014 | O47: -45717.4068
A48: 45 | B48: Noruega | C48: 22053.074 | D48: 0.001701842033 | F48: 45 | G48: Peru | H48: 19492.7516 | I48: 0.001303539349 | K48: 45 | L48: Austrália | M48: 48706.4602 | N48: 0.001744996526 | O48: 21071.9914
A49: 46 | B49: Coreia, República da | C49: 18918.1652 | D49: 0.001459920224 | F49: 46 | G49: Paraguai | H49: 18841.0926 | I49: 0.001259960938 | K49: 46 | L49: Cuba | M49: 48370.083 | N49: 0.001732945208 | O49: -37777.6298
A50: 47 | B50: Hungria | C50: 18318.947 | D50: 0.001413678384 | F50: 47 | G50: Senegal | H50: 17576.369 | I50: 0.00117538504 | K50: 47 | L50: Hungria | M50: 42560.7692 | N50: 0.001524816094 | O50: -5922.8752
A51: 48 | B51: Nigéria | C51: 16230.2952 | D51: 0.001252496527 | F51: 48 | G51: Nova Zelânda | H51: 17376.4264 | I51: 0.001162014272 | K51: 48 | L51: Colômbia | M51: 37488.773 | N51: 0.001343102709 | O51: -20823.0026
A52: 49 | B52: Argentina | C52: 16064.7974 | D52: 0.001239725014 | F52: 49 | G52: Japão | H52: 16410.6016 | I52: 0.001097426642 | K52: 49 | L52: Tunísia | M52: 35512.9364 | N52: 0.00127231481 | O52: 14421.7664
A53: 50 | B53: Lituânia | C53: 14413.8814 | D53: 0.001112323354 | F53: 50 | G53: Angola | H53: 15423.1486 | I53: 0.001031392669 | K53: 50 | L53: Noruega | M53: 34929.1028 | N53: 0.001251397921 | O53: 9177.0452
A54: 51 | B54: Ucrânia | C54: 14339.8926 | D54: 0.001106613617 | F54: 51 | G54: Lituânia | H54: 14632.016 | I54: 0.0009784872351 | K54: 51 | L54: Costa do Marfim | M54: 32980.227 | N54: 0.001181575941 | O54: -12612.1158
A55: 52 | B55: Macau | C55: 14162.3014 | D55: 0.001092908853 | F55: 52 | G55: Mauritânia | H55: 14124.4552 | I55: 0.0009445451069 | K55: 52 | L55: Arábia Saudita | M55: 32858.648 | N55: 0.001177220155 | O55: 32790.7724
A56: 53 | B56: Síria, República Árabe da | C56: 13309.7072 | D56: 0.001027113915 | F56: 53 | G56: Austrália | H56: 13817.2344 | I56: 0.0009240003213 | K56: 53 | L56: Guiné-Bissau | M56: 32561.5328 | N56: 0.001166575468 | O56: 31803.1236
A57: 54 | B57: Iraque | C57: 13221.9204 | D57: 0.001020339382 | F57: 54 | G57: Tanzânia, República Unida da | H57: 13710.948 | I57: 0.0009168926278 | K57: 54 | L57: Indonésia | M57: 32138.0738 | N57: 0.001151404288 | O57: -24934.4758
A58: 55 | B58: Bulgária | C58: 12983.4784 | D58: 0.001001938745 | F58: 55 | G58: Eslovénia | H58: 13650.4762 | I58: 0.0009128486953 | K58: 55 | L58: Coreia, República da | M58: 31290.6162 | N58: 0.001121042596 | O58: 6545.7142
A59: 56 | B59: HongKong | C59: 12801.5844 | D59: 0.0009879019327 | F59: 56 | G59: Suazilândia | H59: 13238.574 | I59: 0.0008853035474 | K59: 56 | L59: Emirados Árabes Unidos | M59: 29704.3194 | N59: 0.00106421066 | O59: 28447.0582
A60: 57 | B60: Eslováquia | C60: 12723.6548 | D60: 0.0009818880831 | F60: 57 | G60: Noruega | H60: 12876.0288 | I60: 0.0008610590516 | K60: 57 | L60: Lituânia | M60: 29045.8974 | N60: 0.001040621508 | O60: -218.1346
A61: 58 | B61: Letónia | C61: 11854.8684 | D61: 0.0009148435879 | F61: 58 | G61: Tailândia | H61: 12763.9012 | I61: 0.0008535607393 | K61: 58 | L61: Senegal | M61: 28854.7126 | N61: 0.001033771969 | O61: -6298.0254
A62: 59 | B62: Croácia | C62: 11368.2152 | D62: 0.0008772884212 | F62: 59 | G62: Camarões | H62: 12420.1756 | I62: 0.0008305747672 | K62: 59 | L62: Guiana | M62: 28164.8444 | N62: 0.0010090562 | O62: -27885.684
A63: 60 | B63: Senegal | C63: 11278.3436 | D63: 0.0008703530041 | F63: 60 | G63: Coreia, República da | H63: 12372.451 | I63: 0.0008273832786 | K63: 60 | L63: São Tomé e Príncipe | M63: 27847.803 | N63: 0.0009976976216 | O63: 25740.3498
A64: 61 | B64: Dominicana, República | C64: 11207.4662 | D64: 0.0008648833748 | F64: 61 | G64: Estónia | H64: 12191.4028 | I64: 0.000815276037 | K64: 61 | L64: Jordânia | M64: 26698.3012 | N64: 0.0009565146525 | O64: 26585.9052
A65: 62 | B65: Líbia, Jamahira Árabe da | C65: 11110.442 | D65: 0.0008573959896 | F65: 62 | G65: Moldava, República de | H65: 11911.7076 | I65: 0.0007965719717 | K65: 62 | L65: Peru | M65: 25630.734 | N65: 0.0009182671377 | O65: -13354.7692
A66: 63 | B66: Costa do Marfim | C66: 10184.0556 | D66: 0.0007859064859 | F66: 63 | G66: Sérvia | H66: 11556.9174 | I66: 0.0007728460763 | K66: 63 | L66: Uganda | M66: 23651.9568 | N66: 0.000847373886 | O66: -21718.304
A67: 64 | B67: Malta | C67: 9933.2892 | D67: 0.000766554771 | F67: 64 | G67: Letónia | H67: 10713.2288 | I67: 0.0007164260638 | K67: 64 | L67: Namíbia | M67: 23552.016 | N67: 0.0008437933272 | O67: -22072.6936
A68: 65 | B68: Líbano | C68: 9909.3948 | D68: 0.0007647108333 | F68: 65 | G68: Tunísia | H68: 10545.585 | I68: 0.000705215215 | K68: 65 | L68: Letónia | M68: 22568.0972 | N68: 0.0008085426667 | O68: 1141.6396
A69: 66 | B69: Território Palestiniano Ocupado | C69: 9895.7186 | D69: 0.0007636554371 | F69: 66 | G69: Paquistão | H69: 10439.2814 | I69: 0.0006981063713 | K69: 66 | L69: Tailândia | M69: 22047.6452 | N69: 0.0007898965379 | O69: -3480.1572
A70: 67 | B70: Chipre | C70: 9813.0332 | D70: 0.0007572745811 | F70: 67 | G70: Egito | H70: 10365.5084 | I70: 0.0006931729473 | K70: 67 | L70: Eslovénia | M70: 21973.065 | N70: 0.0007872245681 | O70: -5327.8874
A71: 68 | B71: Tailândia | C71: 9283.744 | D71: 0.000716429182 | F71: 68 | G71: Islândia | H71: 10004.2966 | I71: 0.00066901762 | K71: 68 | L71: Nigéria | M71: 21616.2318 | N71: 0.000774440377 | O71: 10844.3586
A72: 69 | B72: Kuwait | C72: 9136.5242 | D72: 0.0007050681879 | F72: 69 | G72: Maurícias | H72: 9636.258 | I72: 0.0006444057639 | K72: 69 | L72: Nova Zelânda | M72: 21601.4804 | N72: 0.0007739118816 | O72: -13151.3724
A73: 70 | B73: Camarões | C73: 9091.9556 | D73: 0.0007016288163 | F73: 70 | G73: Luxemburgo | H73: 8687.6124 | I73: 0.0005809669588 | K73: 70 | L73: Camarões | M73: 21512.1312 | N73: 0.0007707107858 | O73: -3328.22
A74: 71 | B74: Colômbia | C74: 8332.8852 | D74: 0.0006430511362 | F74: 71 | G74: Israel | H74: 8343.4514 | I74: 0.0005579518702 | K74: 71 | L74: Estónia | M74: 20493.83 | N74: 0.0007342283141 | O74: -3888.9756
A75: 72 | B75: Eslovénia | C75: 8322.5888 | D75: 0.0006422565601 | F75: 72 | G75: Filipinas | H75: 8336.7014 | I75: 0.0005575004772 | K75: 72 | L75: Paraguai | M75: 20050.3854 | N75: 0.0007183411139 | O75: -17631.7998
A76: 73 | B76: Estónia | C76: 8302.4272 | D76: 0.0006407006836 | F76: 73 | G76: Belize | H76: 8129.6594 | I76: 0.0005436549515 | K76: 73 | L76: Croácia | M76: 18458.4608 | N76: 0.0006613075523 | O76: 4277.9696
A77: 74 | B77: Geórgia | C77: 8048.6886 | D77: 0.0006211196032 | F77: 74 | G77: Malásia | H77: 8111.8758 | I77: 0.0005424657083 | K77: 74 | L77: Eslováquia | M77: 18117.5172 | N77: 0.0006490926347 | O77: 7329.7924
A78: 75 | B78: Gibraltar | C78: 7970.9208 | D78: 0.0006151182398 | F78: 75 | G78: Bangladesh | H78: 7928.3318 | I78: 0.000530191565 | K78: 75 | L78: Sérvia | M78: 17501.5482 | N78: 0.0006270244376 | O78: -5612.2866
A79: 76 | B79: Gana | C79: 7307.4466 | D79: 0.0005639177459 | F79: 76 | G79: Croácia | H79: 7090.2456 | I79: 0.000474146202 | K79: 76 | L79: Mauritânia | M79: 16926.9998 | N79: 0.0006064402079 | O79: -11321.9106
A80: 77 | B80: Taiwan | C80: 6604.3022 | D80: 0.0005096558913 | F80: 77 | G80: Quénia | H80: 6720.3804 | I80: 0.0004494121956 | K80: 77 | L80: HongKong | M80: 15599.17 | N80: 0.0005588683175 | O80: 10003.9988
A81: 78 | B81: Belarus | C81: 6189.2796 | D81: 0.0004776284784 | F81: 78 | G81: Gana | H81: 6620.3222 | I81: 0.0004427210007 | K81: 78 | L81: Maurícias | M81: 15492.8062 | N81: 0.0005550576431 | O81: -3779.7098
A82: 79 | B82: Guatemala | C82: 6179.8032 | D82: 0.0004768971819 | F82: 79 | G82: Reino Unido (Irlanda do Norte) pós-2020 | H82: 6509.1378 | I82: 0.000435285763 | K82: 79 | L82: Suazilândia | M82: 15229.7308 | N82: 0.0005456324938 | O82: -11247.4172
A83: 80 | B83: Peru | C83: 6137.9824 | D83: 0.0004736698588 | F83: 80 | G83: Panamá | H83: 6501.636 | I83: 0.0004347840949 | K83: 80 | L83: Moldava, República de | M83: 14880.8148 | N83: 0.0005331319506 | O83: -8942.6004
A84: 81 | B84: Vietname | C84: 5946.491 | D84: 0.0004588924127 | F84: 81 | G84: Honduras | H84: 6221.2504 | I84: 0.0004160338605 | K84: 81 | L84: Síria, República Árabe da | M84: 14259.5412 | N84: 0.0005108737066 | O84: 12359.8732
A85: 82 | B85: Sérvia | C85: 5944.6308 | D85: 0.0004587488605 | F85: 82 | G85: Suriname | H85: 5829.6302 | I85: 0.0003898450314 | K85: 82 | L85: Tanzânia, República Unida da | M85: 14227.4994 | N85: 0.0005097257515 | O85: -13194.3966
A86: 83 | B86: Maurícias | C86: 5856.5482 | D86: 0.0004519515011 | F86: 83 | G86: Eslováquia | H86: 5393.8624 | I86: 0.0003607039185 | K86: 83 | L86: Macau | M86: 14180.6616 | N86: 0.0005080477031 | O86: 14143.9412
A87: 84 | B87: Andorra | C87: 5401.2632 | D87: 0.0004168170273 | F87: 84 | G87: Nigéria | H87: 5385.9366 | I87: 0.0003601738962 | K87: 84 | L87: Gana | M87: 13927.7688 | N87: 0.0004989873638 | O87: 687.1244
A88: 85 | B88: Cuba | C88: 5296.2266 | D88: 0.0004087113228 | F88: 85 | G88: Etiópia | H88: 5332.739 | I88: 0.0003566164116 | K88: 85 | L88: Paquistão | M88: 13694.5862 | N88: 0.0004906331778 | O88: -7183.9766
A89: 86 | B89: Singapura | C89: 4688.1098 | D89: 0.0003617827753 | F89: 86 | G89: Congo | H89: 5207.2118 | I89: 0.0003482220274 | K89: 86 | L89: Dominicana, República | M89: 13458.9994 | N89: 0.000482192857 | O89: 8955.933
A90: 87 | B90: Omã | C90: 4393.4536 | D90: 0.000339044072 | F90: 87 | G90: Guatemala | H90: 5138.5064 | I90: 0.0003436274892 | K90: 87 | L90: Chipre | M90: 13271.6582 | N90: 0.0004754810216 | O90: 6354.4082
A91: 88 | B91: Nova Zelânda | C91: 4225.054 | D91: 0.0003260486266 | F91: 88 | G91: Camboja | H91: 4965.2796 | I91: 0.0003320432883 | K91: 88 | L91: Iraque | M91: 13234.1844 | N91: 0.0004741384554 | O91: 13209.6564
A92: 89 | B92: Panamá | C92: 4203.97 | D92: 0.0003244215683 | F92: 89 | G92: Argélia | H92: 4911.6544 | I92: 0.0003284572088 | K92: 89 | L92: Malta | M92: 12134.198 | N92: 0.0004347294645 | O92: 7732.3804
A93: 90 | B93: Costa Rica | C93: 4017.2892 | D93: 0.0003100153575 | F93: 90 | G93: Macedónia, Antiga República jugoslava da | H93: 4838.0028 | I93: 0.0003235319031 | K93: 90 | L93: Filipinas | M93: 11815.5126 | N93: 0.0004233119869 | O93: -4857.8902
A94: 91 | B94: Catar | C94: 3815.048 | D94: 0.0002944083462 | F94: 91 | G94: Zimbabwe | H94: 4709.1506 | I94: 0.0003149151662 | K94: 91 | L94: Islândia | M94: 11807.758 | N94: 0.0004230341644 | O94: -8200.8352
A95: 92 | B95: Burquina Faso | C95: 3646.8948 | D95: 0.0002814319157 | F95: 92 | G95: Suíça | H95: 4497.2674 | I95: 0.0003007458948 | K95: 92 | L95: Malásia | M95: 11523.7994 | N95: 0.0004128608369 | O95: -4699.9522
A96: 93 | B96: Indonésia | C96: 3601.799 | D96: 0.0002779518599 | F96: 93 | G96: Sri Lanca | H96: 4393.1556 | I96: 0.0002937836233 | K96: 93 | L96: Guatemala | M96: 11318.3096 | N96: 0.0004054987953 | O96: 1041.2968
A97: 94 | B97: Sudão | C97: 3570.9408 | D97: 0.0002755705237 | F97: 94 | G97: Madagáscar | H97: 3797.768 | I97: 0.0002539682509 | K97: 94 | L97: Líbia, Jamahira Árabe da | M97: 11116.443 | N97: 0.0003982665613 | O97: 11104.441
A98: 95 | B98: Filipinas | C98: 3478.8112 | D98: 0.0002684608561 | F98: 95 | G98: Mali | H98: 3762.5872 | I98: 0.0002516156042 | K98: 95 | L98: Panamá | M98: 10705.606 | N98: 0.000383547587 | O98: -2297.666
A99: 96 | B99: Mali | C99: 3441.82 | D99: 0.0002656062346 | F99: 96 | G99: Myanmar | H99: 3487.5904 | I99: 0.0002332257351 | K99: 96 | L99: Líbano | M99: 10450.9178 | N99: 0.0003744229242 | O99: 9367.8718
A100: 97 | B100: Malásia | C100: 3411.9236 | D100: 0.0002632991209 | F100: 97 | G100: Chipre | H100: 3458.625 | I100: 0.0002312887311 | K100: 97 | L100: Kuwait | M100: 10320.1982 | N100: 0.0003697396595 | O100: 7952.8502
A101: 98 | B101: Venezuela | C101: 3292.4432 | D101: 0.0002540787842 | F101: 98 | G101: Nicarágua | H101: 3458.6086 | I101: 0.0002312876344 | K101: 98 | L101: Taiwan | M101: 10028.0104 | N101: 0.0003592715061 | O101: 3180.594
A102: 99 | B102: Paquistão | C102: 3255.3048 | D102: 0.0002512128033 | F102: 99 | G102: Taiwan | H102: 3423.7082 | I102: 0.0002289537389 | K102: 99 | L102: Território Palestiniano Ocupado | M102: 9896.2038 | N102: 0.0003545492976 | O102: 9895.2334
A103: 100 | B103: Irão, República Islâmica do | C103: 3151.3458 | D103: 0.0002431902575 | F103: 100 | G103: Congo, República Democrática do | H103: 3287.5874 | I103: 0.0002198509286 | K103: 100 | L103: Bangladesh | M103: 9893.1502 | N103: 0.0003544398969 | O103: -5963.5134
A104: 101 | B104: Equador | C104: 3049.5584 | D104: 0.0002353352947 | F104: 101 | G104: Malavi | H104: 3258.318 | I104: 0.0002178935952 | K104: 101 | L104: Quénia | M104: 9767.4084 | N104: 0.0003499349708 | O104: -3673.3524
A105: 102 | B105: Quénia | C105: 3047.028 | D105: 0.000235140023 | F105: 102 | G105: Papuásia-Nova Guiné | H105: 3105.1676 | I105: 0.000207651964 | K105: 102 | L105: Reino Unido (Irlanda do Norte) pós-2020 | M105: 8990.4374 | N105: 0.0003220985875 | O105: -4027.8382
A106: 103 | B106: Uruguai | C106: 2989.0796 | D106: 0.0002306681284 | F106: 103 | G106: HongKong | H106: 2797.5856 | I106: 0.0001870830239 | K106: 103 | L106: Geórgia | M106: 8359.3498 | N106: 0.0002994887393 | O106: 7738.0274
A107: 104 | B107: Moldava, República de | C107: 2969.1072 | D107: 0.0002291268525 | F107: 104 | G107: Gabão | H107: 2642.8406 | I107: 0.000176734757 | K107: 104 | L107: Belize | M107: 8131.84 | N107: 0.0002913377916 | O107: -8127.4788
A108: 105 | B108: Mauritânia | C108: 2802.5446 | D108: 0.000216273169 | F108: 105 | G108: Centro-Africana, República | H108: 2579.2684 | I108: 0.0001724834914 | K108: 105 | L108: Gibraltar | M108: 7990.6994 | N108: 0.0002862811758 | O108: 7951.1422
A109: 106 | B109: Timor-Leste | C109: 2726.394 | D109: 0.0002103966054 | F109: 106 | G109: Gâmbia | H109: 2389.373 | I109: 0.0001597846107 | K109: 106 | L109: Congo | M109: 7640.4052 | N109: 0.0002737312561 | O109: -2774.0184
A110: 107 | B110: Guiné | C110: 2671.9054 | D110: 0.0002061917046 | F110: 107 | G110: Dominicana, República | H110: 2251.5332 | I110: 0.0001505668457 | K110: 107 | L110: Honduras | M110: 7590.891 | N110: 0.0002719573209 | O110: -4851.6098
A111: 108 | B111: Arménia | C111: 2588.4812 | D111: 0.0001997538352 | F111: 108 | G111: Malta | H111: 2200.9088 | I111: 0.0001471814387 | K111: 108 | L111: Etiópia | M111: 7364.853 | N111: 0.0002638591031 | O111: -3300.625
A112: 109 | B112: Gabão | C112: 2550.5466 | D112: 0.0001968264112 | F112: 109 | G112: Serra Leoa | H112: 1997.8504 | I112: 0.0001336023084 | K112: 109 | L112: Mali | M112: 7204.4072 | N112: 0.0002581108437 | O112: -320.7672
A113: 110 | B113: Reino Unido (Irlanda do Norte) pós-2020 | C113: 2481.2996 | D113: 0.0001914826004 | F113: 110 | G113: Benim | H113: 1832.152 | I113: 0.0001225215544 | K113: 110 | L113: Belarus | M113: 7048.6518 | N113: 0.0002525306264 | O113: 5329.9074
A114: 111 | B114: Congo | C114: 2433.1934 | D114: 0.0001877702312 | F114: 111 | G114: El Salvador | H114: 1779.4546 | I114: 0.0001189975197 | K114: 111 | L114: Suriname | M114: 6411.9606 | N114: 0.0002297200192 | O114: -5247.2998
A115: 112 | B115: Albânia | C115: 2230.3856 | D115: 0.0001721194952 | F115: 112 | G115: Burquina Faso | H115: 1725.7416 | I115: 0.0001154055686 | K115: 112 | L115: Singapura | M115: 5996.509 | N115: 0.0002148357185 | O115: 3379.7106
A116: 113 | B116: Seychelles | C116: 2209.8298 | D116: 0.0001705331982 | F116: 113 | G116: Laos, República Democrática Popular do | H116: 1570.485 | I116: 0.0001050230895 | K116: 113 | L116: Camboja | M116: 5868.657 | N116: 0.0002102551907 | O116: -4061.9022
A117: 114 | B117: Guiné Equatorial | C117: 2176.386 | D117: 0.0001679523306 | F117: 114 | G117: Singapura | H117: 1308.3992 | I117: 8.749661808e-05 | K117: 114 | L117: Sri Lanca | M117: 5833.9434 | N117: 0.0002090115136 | O117: -2952.3678
A118: 115 | B118: Etiópia | C118: 2032.114 | D118: 0.0001568188191 | F118: 115 | G118: Seychelles | H118: 1264.2444 | I118: 8.454385284e-05 | K118: 115 | L118: Macedónia, Antiga República jugoslava da | M118: 5788.8886 | N118: 0.0002073973443 | O118: -3887.117
A119: 116 | B119: Suazilândia | C119: 1991.1568 | D119: 0.0001536581402 | F119: 116 | G119: Kuwait | H119: 1183.674 | I119: 7.915586612e-05 | K119: 116 | L119: Andorra | M119: 5443.4826 | N119: 0.0001950225532 | O119: 5359.0438
A120: 117 | B120: Bangladesh | C120: 1964.8184 | D120: 0.0001516255984 | F120: 117 | G120: Bolívia | H120: 1171.2708 | I120: 7.832642656e-05 | K120: 117 | L120: Burquina Faso | M120: 5372.6364 | N120: 0.0001924843607 | O120: 1921.1532
A121: 118 | B121: Islândia | C121: 1803.4614 | D121: 0.0001391736325 | F121: 118 | G121: Togo | H121: 1123.3014 | I121: 7.511856747e-05 | K121: 118 | L121: Gabão | M121: 5193.3872 | N121: 0.0001860624358 | O121: -92.294
A122: 119 | B122: Benim | C122: 1771.8166 | D122: 0.0001367315942 | F122: 119 | G122: São Tomé e Príncipe | H122: 1053.7266 | I122: 7.046588983e-05 | K122: 119 | L122: Nicarágua | M122: 5085.0522 | N122: 0.0001821811396 | O122: -1832.165
A123: 120 | B123: Congo, República Democrática do | C123: 1727.2344 | D123: 0.0001332911731 | F123: 120 | G123: Venezuela | H123: 1042.4414 | I123: 6.971121432e-05 | K123: 120 | L123: Congo, República Democrática do | M123: 5014.8218 | N123: 0.0001796650092 | O123: -1560.353
A124: 121 | B124: Jamaica | C124: 1687.498 | D124: 0.0001302247037 | F124: 121 | G124: Iémen | H124: 1024.4982 | I124: 6.851129818e-05 | K124: 121 | L124: Omã | M124: 4887.3662 | N124: 0.0001750986831 | O124: 3899.541
A125: 122 | B125: Nicarágua | C125: 1626.4436 | D125: 0.0001255131182 | F125: 122 | G125: Síria, República Árabe da | H125: 949.834 | I125: 6.351827694e-05 | K125: 122 | L125: Zimbabwe | M125: 4774.1098 | N125: 0.0001710410689 | O125: -4644.1914
A126: 123 | B126: Togo | C126: 1570.864 | D126: 0.0001212240245 | F126: 123 | G126: Belarus | H126: 859.3722 | I126: 5.746882234e-05 | K126: 123 | L126: Venezuela | M126: 4334.8846 | N126: 0.0001553050363 | O126: 2250.0018
A127: 124 | B127: El Salvador | C127: 1565.6294 | D127: 0.000120820069 | F127: 124 | G127: Cabo Verde | H127: 836.1366 | I127: 5.591498738e-05 | K127: 124 | L127: Madagáscar | M127: 4107.7632 | N127: 0.0001471680037 | O127: -3487.7728
A128: 125 | B128: Cazaquistão | C128: 1539.9044 | D128: 0.0001188348634 | F128: 125 | G128: Bósnia-Herzegovina | H128: 758.1446 | I128: 5.069942607e-05 | K128: 125 | L128: Myanmar | M128: 3979.9732 | N128: 0.0001425896971 | O128: -2995.2076
A129: 126 | B129: Sri Lanca | C129: 1440.7878 | D129: 0.000111186007 | F129: 126 | G129: Turquemenistão | H129: 720.6558 | I129: 4.819243645e-05 | K129: 126 | L129: Catar | M129: 3835.8118 | N129: 0.0001374248557 | O129: 3794.2842
A130: 127 | B130: Azerbaijão | C130: 1435.1898 | D130: 0.0001107540077 | F130: 127 | G130: Chade | H130: 675.9004 | I130: 4.519950727e-05 | K130: 127 | L130: Benim | M130: 3603.9686 | N130: 0.0001291186562 | O130: -60.3354
A131: 128 | B131: Bolívia | C131: 1412.2374 | D131: 0.0001089827644 | F131: 128 | G131: Emirados Árabes Unidos | H131: 628.6306 | I131: 4.203843255e-05 | K131: 128 | L131: Sudão | M131: 3591.4234 | N131: 0.0001286692018 | O131: 3550.4582
A132: 129 | B132: Honduras | C132: 1369.6406 | D132: 0.0001056955572 | F132: 129 | G132: Timor-Leste | H132: 614.51 | I132: 4.109414525e-05 | K132: 129 | L132: Seychelles | M132: 3474.0742 | N132: 0.0001244649557 | O132: 945.5854
A133: 130 | B133: São Bartolomeu | C133: 1280.9726 | D133: 9.885302223e-05 | F133: 130 | G133: Faroé, Ilhas | H133: 597.6172 | I133: 3.996447254e-05 | K133: 130 | L133: Irão, República Islâmica do | M133: 3375.8016 | N133: 0.0001209441631 | O133: 2926.89
A134: 131 | B134: Ruanda | C134: 1241.2404 | D134: 9.578687698e-05 | F134: 131 | G134: Líbano | H134: 541.523 | I134: 3.621328346e-05 | K134: 131 | L134: El Salvador | M134: 3345.084 | N134: 0.0001198436498 | O134: -213.8252
A135: 132 | B135: Paraguai | C135: 1209.2928 | D135: 9.332147154e-05 | F135: 132 | G135: Omã | H135: 493.9126 | I135: 3.302943179e-05 | K135: 132 | L135: Timor-Leste | M135: 3340.904 | N135: 0.0001196938938 | O135: 2111.884
A136: 133 | B136: Iémen | C136: 1145.3826 | D136: 8.838950311e-05 | F136: 133 | G136: Gronelândia | H136: 481.3548 | I136: 3.218965366e-05 | K136: 133 | L136: Malavi | M136: 3267.4472 | N136: 0.0001170621718 | O136: -3249.1888
A137: 134 | B137: Montenegro | C137: 1046.3476 | D137: 8.074694381e-05 | F137: 134 | G137: Guiné-Bissau | H137: 379.2046 | I137: 2.535856034e-05 | K137: 134 | L137: Papuásia-Nova Guiné | M137: 3108.0532 | N137: 0.0001113515952 | O137: -3102.282
A138: 135 | B138: Uganda | C138: 966.8264 | D138: 7.461027005e-05 | F138: 135 | G138: Geórgia | H138: 310.6612 | I138: 2.077485554e-05 | K138: 135 | L138: Guiné | M138: 2974.7226 | N138: 0.0001065747866 | O138: 2369.0882
A139: 136 | B139: Macedónia, Antiga República jugoslava da | C139: 950.8858 | D139: 7.338012938e-05 | F139: 136 | G139: Usbequistão | H139: 308.3052 | I139: 2.061730268e-05 | K139: 136 | L139: Gâmbia | M139: 2880.9438 | N139: 0.0001032149925 | O139: -1897.8022
A140: 137 | B140: Bermudas | C140: 907.5284 | D140: 7.003422641e-05 | F140: 137 | G140: Guiné | H140: 302.8172 | I140: 2.02503035e-05 | K140: 137 | L140: Togo | M140: 2694.1654 | N140: 9.652332041e-05 | O140: 447.5626
A141: 138 | B141: Camboja | C141: 903.3774 | D141: 6.971389255e-05 | F141: 138 | G141: Irão, República Islâmica do | H141: 224.4558 | I141: 1.50100393e-05 | K141: 138 | L141: Centro-Africana, República | M141: 2675.6308 | N141: 9.585928504e-05 | O141: -2482.906
A142: 139 | B142: Barbados | C142: 886.8842 | D142: 6.844110759e-05 | F142: 139 | G142: Zâmbia | H142: 199.4064 | I142: 1.333491004e-05 | K142: 139 | L142: Arménia | M142: 2615.4888 | N142: 9.370458973e-05 | O142: 2561.4736
A143: 140 | B143: Trindade e Tobago | C143: 878.7574 | D143: 6.781396011e-05 | F143: 140 | G143: Azerbaijão | H143: 125.9648 | I143: 8.423647765e-06 | K143: 140 | L143: Bolívia | M143: 2583.5082 | N143: 9.255882723e-05 | O143: 240.9666
A144: 141 | B144: Namíbia | C144: 739.6612 | D144: 5.707986654e-05 | F144: 141 | G144: Fiji, Ilhas | H144: 123.8224 | I144: 8.280378987e-06 | K144: 141 | L144: Serra Leoa | M144: 2504.667 | N144: 8.973419946e-05 | O144: -1491.0338
A145: 142 | B145: Turquemenistão | C145: 730.8192 | D145: 5.639752686e-05 | F145: 142 | G145: Maldivas | H145: 106.1904 | I145: 7.101273734e-06 | K145: 142 | L145: Albânia | M145: 2336.138 | N145: 8.369634496e-05 | O145: 2124.6332
A146: 143 | B146: Barém | C146: 714.5288 | D146: 5.514039203e-05 | F146: 143 | G146: Albânia | H146: 105.7524 | I146: 7.071983347e-06 | K146: 143 | L146: Guiné Equatorial | M146: 2182.3724 | N146: 7.818741582e-05 | O146: 2170.3996
A147: 144 | B147: Burundi | C147: 677.1012 | D147: 5.225209343e-05 | F147: 144 | G147: Tajiquistão | H147: 59.4122 | I147: 3.973073793e-06 | K147: 144 | L147: Iémen | M147: 2169.8808 | N147: 7.773988179e-05 | O147: 120.8844
A148: 145 | B148: Aruba | C148: 656.9934 | D148: 5.070036875e-05 | F148: 145 | G148: Jordânia | H148: 56.198 | I148: 3.758130502e-06 | K148: 145 | L148: Jamaica | M148: 1698.6206 | N148: 6.085613765e-05 | O148: 1676.3754
A149: 146 | B149: Niger | C149: 652.165 | D149: 5.032775973e-05 | F149: 146 | G149: Andorra | H149: 42.2194 | I149: 2.823339175e-06 | K149: 146 | L149: Laos, República Democrática Popular do | M149: 1586.3348 | N149: 5.683329694e-05 | O149: -1554.6352
A150: 147 | B150: São Martinho (parte holandesa) | C150: 597.7744 | D150: 4.613042156e-05 | F150: 147 | G150: Libéria | H150: 38.8276 | I150: 2.596519234e-06 | K150: 147 | L150: Azerbaijão | M150: 1561.1546 | N150: 5.593117099e-05 | O150: 1309.225
A151: 148 | B151: Suriname | C151: 582.3304 | D151: 4.493860366e-05 | F151: 148 | G151: Falkland Ilhas (Malvinas) | H151: 38.0622 | I151: 2.545334617e-06 | K151: 148 | L151: Cazaquistão | M151: 1555.7084 | N151: 5.573605108e-05 | O151: 1524.1004
A152: 149 | B152: Bósnia-Herzegovina | C152: 535.6404 | D152: 4.1335523e-05 | F152: 149 | G152: Aruba | H152: 38.029 | I152: 2.543114432e-06 | K152: 149 | L152: Turquemenistão | M152: 1451.475 | N152: 5.200170208e-05 | O152: 10.1634
A153: 150 | B153: Tanzânia, República Unida da | C153: 516.5514 | D153: 3.98624194e-05 | F153: 150 | G153: Arábia Saudita | H153: 33.9378 | I153: 2.269523495e-06 | K153: 150 | L153: Bósnia-Herzegovina | M153: 1293.785 | N153: 4.635217426e-05 | O153: -222.5042
A154: 151 | B154: Ceuta e Melilha | C154: 507.8786 | D154: 3.919313694e-05 | F154: 151 | G154: São Marino | H154: 32.7702 | I154: 2.191442546e-06 | K154: 151 | L154: São Bartolomeu | M154: 1281.3862 | N154: 4.590796495e-05 | O154: 1280.559
A155: 152 | B155: Serra Leoa | C155: 506.8166 | D155: 3.91111821e-05 | F155: 152 | G155: Botswana | H155: 29.9908 | I155: 2.005575648e-06 | K155: 152 | L155: Ruanda | M155: 1241.8804 | N155: 4.449259862e-05 | O155: 1240.6004
A156: 153 | B156: Myanmar | C156: 492.3828 | D156: 3.799732162e-05 | F156: 153 | G156: São Pedro e Miquelon | H156: 28.9156 | I156: 1.933673767e-06 | K156: 153 | L156: Montenegro | M156: 1046.6634 | N156: 3.749859854e-05 | O156: 1046.0318
A157: 154 | B157: Gâmbia | C157: 491.5708 | D157: 3.793465935e-05 | F157: 154 | G157: Arménia | H157: 27.0076 | I157: 1.806080027e-06 | K157: 154 | L157: Bermudas | M157: 908.2538 | N157: 3.253982571e-05 | O157: 906.803
A158: 155 | B158: Curaçau | C158: 479.6396 | D158: 3.701392523e-05 | F158: 155 | G158: Catar | H158: 20.7638 | I158: 1.388538206e-06 | K158: 155 | L158: Barbados | M158: 897.2042 | N158: 3.214395392e-05 | O158: 876.5642
A159: 156 | B159: Kosovo | C159: 471.1818 | D159: 3.636123438e-05 | F159: 156 | G159: Sudão | H159: 20.4826 | I159: 1.369733511e-06 | K159: 156 | L159: Trindade e Tobago | M159: 878.7678 | N159: 3.148343674e-05 | O159: 878.747
A160: 157 | B160: Polinésia Francesa | C160: 366.6458 | D160: 2.829416134e-05 | F160: 157 | G160: Gibraltar | H160: 19.7786 | I160: 1.322654898e-06 | K160: 157 | L160: Barém | M160: 719.082 | N160: 2.576240579e-05 | O160: 709.9756
A161: 158 | B161: Antígua e Barbuda | C161: 363.7054 | D161: 2.806724983e-05 | F161: 158 | G161: Macau | H161: 18.3602 | I161: 1.227802193e-06 | K161: 158 | L161: Aruba | M161: 695.0224 | N161: 2.490042735e-05 | O161: 618.9644
A162: 159 | B162: Haiti | C162: 328.5232 | D162: 2.535222939e-05 | F162: 159 | G162: Quirguizistão | H162: 17.4752 | I162: 1.168619562e-06 | K162: 159 | L162: Burundi | M162: 677.2152 | N162: 2.426245239e-05 | O162: 676.9872
A163: 160 | B163: Comores | C163: 311.607 | D163: 2.404680139e-05 | F163: 160 | G163: Salomão, Ilhas | H163: 16.0532 | I163: 1.073526114e-06 | K163: 160 | L163: Chade | M163: 676.014 | N163: 2.421941724e-05 | O163: -675.7868
A164: 161 | B164: Madagáscar | C164: 309.9952 | D164: 2.392241832e-05 | F164: 161 | G164: Cazaquistão | H164: 15.804 | I164: 1.056861356e-06 | K164: 161 | L164: Niger | M164: 655.4318 | N164: 2.348202291e-05 | O164: 648.8982
A165: 162 | B165: Nova Caledónia | C165: 302.6442 | D165: 2.335513955e-05 | F165: 162 | G165: Santa Helena | H165: 15.7338 | I165: 1.052166869e-06 | K165: 162 | L165: Faroé, Ilhas | M165: 598.4668 | N165: 2.144114934e-05 | O165: -596.7676
A166: 163 | B166: Libéria | C166: 295.8354 | D166: 2.28297025e-05 | F166: 163 | G166: Marshall, Ilhas | H166: 13.4098 | I166: 8.967539487e-07 | K166: 163 | L166: São Martinho (parte holandesa) | M166: 597.7772 | N166: 2.141644318e-05 | O166: 597.7716
A167: 164 | B167: Somália | C167: 292.9902 | D167: 2.26101376e-05 | F167: 164 | G167: Curaçau | H167: 12.9632 | I167: 8.668884538e-07 | K167: 164 | L167: Usbequistão | M167: 531.3872 | N167: 1.903790204e-05 | O167: -85.2232
A168: 165 | B168: Bahamas | C168: 280.4744 | D168: 2.164428973e-05 | F168: 165 | G168: Iraque | H168: 12.264 | I168: 8.201308317e-07 | K168: 165 | L168: Ceuta e Melilha | M168: 507.8786 | N168: 1.819566417e-05 | O168: 507.8786
A169: 166 | B169: Usbequistão | C169: 223.082 | D169: 1.72153018e-05 | F169: 166 | G169: Jamaica | H169: 11.1226 | I169: 7.43801956e-07 | K169: 166 | L169: Curaçau | M169: 492.6028 | N169: 1.764838117e-05 | O169: 466.6764
A170: 167 | B170: São Marino | C170: 219.9688 | D170: 1.697505526e-05 | F170: 167 | G170: Nepal | H170: 10.3458 | I170: 6.918549869e-07 | K170: 167 | L170: Gronelândia | M170: 481.9304 | N170: 1.726602324e-05 | O170: -480.7792
A171: 168 | B171: Bonaire, Santo Eustáquio e Saba | C171: 206.5448 | D171: 1.593912134e-05 | F171: 168 | G171: Barbados | H171: 10.32 | I171: 6.901296627e-07 | K171: 168 | L171: Kosovo | M171: 479.554 | N171: 1.718088444e-05 | O171: 462.8096
A172: 169 | B172: Guiana | C172: 139.5802 | D172: 1.077144399e-05 | F172: 169 | G172: Antígua e Barbuda | H172: 9.2326 | I172: 6.174119306e-07 | K172: 169 | L172: Antígua e Barbuda | M172: 372.938 | N172: 1.336117451e-05 | O172: 354.4728
A173: 170 | B173: Zâmbia | C173: 138.1944 | D173: 1.066450141e-05 | F173: 170 | G173: Kosovo | H173: 8.3722 | I173: 5.598743762e-07 | K173: 170 | L173: Polinésia Francesa | M173: 367.1436 | N173: 1.315357971e-05 | O173: 366.148
A174: 171 | B174: Maldivas | C174: 129.0678 | D174: 9.960199072e-06 | F174: 171 | G174: Jibuti | H174: 7.3022 | I174: 4.883202348e-07 | K174: 171 | L174: Zâmbia | M174: 337.6008 | N174: 1.209515577e-05 | O174: -61.212
A175: 172 | B175: Santa Lúcia | C175: 120.252 | D175: 9.279881263e-06 | F175: 172 | G175: Líbia, Jamahira Árabe da | H175: 6.001 | I175: 4.01305049e-07 | K175: 172 | L175: Libéria | M175: 334.663 | N175: 1.19899038e-05 | O175: 257.0078
A176: 173 | B176: Liechtenstein | C176: 119.4194 | D176: 9.215629282e-06 | F176: 173 | G176: Guiné Equatorial | H176: 5.9864 | I176: 4.003287028e-07 | K176: 173 | L176: Haiti | M176: 328.8008 | N176: 1.177987995e-05 | O176: 328.2456
A177: 174 | B177: Afeganistão | C177: 109.4574 | D177: 8.446858891e-06 | F177: 174 | G177: Barém | H177: 4.5532 | I177: 3.044862772e-07 | K177: 174 | L177: Comores | M177: 311.607 | N177: 1.116388114e-05 | O177: 311.607
A178: 175 | B178: Quirguizistão | C178: 109.2342 | D178: 8.429634483e-06 | F178: 175 | G178: São Cristovão e Nevis | H178: 4.4378 | I178: 2.967691296e-07 | K178: 175 | L178: Nova Caledónia | M178: 303.3498 | N178: 1.08680521e-05 | O178: 301.9386
A179: 176 | B179: Virgens Britânicas, Ilhas | C179: 102.589 | D179: 7.916822497e-06 | F179: 176 | G179: Afeganistão | H179: 4.3662 | I179: 2.919810207e-07 | K179: 176 | L179: Somália | M179: 292.9902 | N179: 1.04969008e-05 | O179: 292.9902
A180: 177 | B180: Botswana | C180: 98.1832 | D180: 7.576825649e-06 | F180: 177 | G180: Niger | H180: 3.2668 | I180: 2.184608122e-07 | K180: 177 | L180: Bahamas | M180: 280.4744 | N180: 1.004849976e-05 | O180: 280.4744
A181: 178 | B181: Jibuti | C181: 96.957 | D181: 7.482199444e-06 | F181: 178 | G181: Liechtenstein | H181: 1.7444 | I181: 1.166533124e-07 | K181: 178 | L181: São Marino | M181: 252.739 | N181: 9.054829179e-06 | O181: 187.1986
A182: 179 | B182: Centro-Africana, República | C182: 96.3624 | D182: 7.436313992e-06 | F182: 179 | G182: Lesoto | H182: 1.7136 | I182: 1.145936231e-07 | K182: 179 | L182: Maldivas | M182: 235.2582 | N182: 8.428548083e-06 | O182: 22.8774
A183: 180 | B183: Nepal | C183: 77.231 | D183: 5.959938378e-06 | F183: 180 | G183: Butão | H183: 1.2178 | I183: 8.143797512e-08 | K183: 180 | L183: Bonaire, Santo Eustáquio e Saba | M183: 206.5448 | N183: 7.399838893e-06 | O183: 206.5448
A184: 181 | B184: Zimbabwe | C184: 64.9592 | D184: 5.012920059e-06 | F184: 181 | G184: Bermudas | H184: 0.7254 | I184: 4.850969548e-08 | K184: 181 | L184: Fiji, Ilhas | M184: 135.9286 | N184: 4.869886538e-06 | O184: -111.7162
A185: 182 | B185: Caimão, Ilhas | C185: 51.6906 | D185: 3.988978399e-06 | F185: 182 | G185: Nova Caledónia | H185: 0.7056 | I185: 4.71856095e-08 | K185: 182 | L185: Botswana | M185: 128.174 | N185: 4.592064047e-06 | O185: 68.1924
A186: 183 | B186: Mongólia | C186: 37.8358 | D186: 2.919799517e-06 | F186: 183 | G186: Ruanda | H186: 0.64 | I186: 4.279873877e-08 | K186: 183 | L186: Quirguizistão | M186: 126.7094 | N186: 4.539592118e-06 | O186: 91.759
A187: 184 | B187: Turcas e Caicos, Ilhas | C187: 19.071 | D187: 1.471714529e-06 | F187: 184 | G187: Polinésia Francesa | H187: 0.4978 | I187: 3.3289394e-08 | K187: 184 | L187: Liechtenstein | M187: 121.1638 | N187: 4.340911026e-06 | O187: 117.675
A188: 185 | B188: Laos, República Democrática Popular do | C188: 15.8498 | D188: 1.223133603e-06 | F188: 185 | G188: Território Palestiniano Ocupado | H188: 0.4852 | I188: 3.244679383e-08 | K188: 185 | L188: Santa Lúcia | M188: 120.2706 | N188: 4.308910529e-06 | O188: 120.2334
A189: 186 | B189: Fiji, Ilhas | C189: 12.1062 | D189: 9.342389195e-07 | F189: 186 | G189: São Bartolomeu | H189: 0.4136 | I189: 2.765868493e-08 | K189: 186 | L189: Afeganistão | M189: 113.8236 | N189: 4.077935161e-06 | O189: 105.0912
A190: 187 | B190: Anguila | C190: 10.0614 | D190: 7.764411181e-07 | F190: 187 | G190: Micronésia, Estados Federados da | H190: 0.3438 | I190: 2.299094748e-08 | K190: 187 | L190: Jibuti | M190: 104.2592 | N190: 3.735273331e-06 | O190: 89.6548
A191: 188 | B191: Malavi | C191: 9.1292 | D191: 7.045029773e-07 | F191: 188 | G191: Montenegro | H191: 0.3158 | I191: 2.111850266e-08 | K191: 188 | L191: Virgens Britânicas, Ilhas | M191: 102.589 | N191: 3.675435412e-06 | O191: 102.589
A192: 189 | B192: Brunei Darussalam | C192: 7.7238 | D192: 5.96047857e-07 | F192: 189 | G192: Haiti | H192: 0.2776 | I192: 1.856395294e-08 | K192: 189 | L192: Nepal | M192: 87.5768 | N192: 3.137596351e-06 | O192: 66.8852
A193: 190 | B193: São Vicente e Granadinas | C193: 7.6034 | D193: 5.867565545e-07 | F193: 190 | G193: Burundi | H193: 0.114 | I193: 7.623525344e-09 | K193: 190 | L193: Tajiquistão | M193: 59.4122 | N193: 2.128548907e-06 | O193: -59.4122
A194: 191 | B194: Guam | C194: 6.6636 | D194: 5.142319195e-07 | F194: 191 | G194: Oceano Indico, Território Britânico do | H194: 0.098 | I194: 6.553556874e-09 | K194: 191 | L194: Caimão, Ilhas | M194: 51.6906 | N194: 1.851908701e-06 | O194: 51.6906
A195: 192 | B195: Territórios Franceses do Sul | C195: 6.3102 | D195: 4.869599403e-07 | F195: 192 | G195: Nauru | H195: 0.0694 | I195: 4.640988236e-09 | K195: 192 | L195: Falkland Ilhas (Malvinas) | M195: 38.0622 | N195: 1.363646763e-06 | O195: -38.0622
A196: 193 | B196: Menores distantes dos Estados Unidos, lhas | C196: 4.5544 | D196: 3.514643517e-07 | F196: 193 | G196: Vanuatu | H196: 0.065 | I196: 4.346746907e-09 | K196: 193 | L196: Mongólia | M196: 37.8488 | N196: 1.356001324e-06 | O196: 37.8228
A197: 194 | B197: Sudão do Sul | C197: 3.771 | D197: 2.910091495e-07 | F197: 194 | G197: São Vicente e Granadinas | H197: 0.0416 | I197: 2.78191802e-09 | K197: 194 | L197: São Pedro e Miquelon | M197: 29.2314 | N197: 1.047267472e-06 | O197: -28.5998
A198: 195 | B198: Melilha | C198: 3.6164 | D198: 2.790786232e-07 | F198: 195 | G198: Santa Sé (Cidade Estado do Vaticano) | H198: 0.021 | I198: 1.404333616e-09 | K198: 195 | L198: Turcas e Caicos, Ilhas | M198: 19.071 | N198: 6.832528707e-07 | O198: 19.071
A199: 196 | B199: Marianas do Norte, Ilhas | C199: 2.9244 | D199: 2.256767851e-07 | F199: 196 | G199: Santa Lúcia | H199: 0.0186 | I199: 1.243838346e-09 | K199: 196 | L199: Salomão, Ilhas | M199: 16.0532 | N199: 5.751347587e-07 | O199: -16.0532
A200: 197 | B200: Papuásia-Nova Guiné | C200: 2.8856 | D200: 2.22682578e-07 | F200: 197 | G200: Mongólia | H200: 0.013 | I200: 8.693493813e-10 | K200: 197 | L200: Santa Helena | M200: 15.7338 | N200: 5.636916793e-07 | O200: -15.7338
... 58 more rows

Sheet 2AA
A1: Ranking dos parceiros comerciais de Portugal por país (média 2018-2022 em milhares de euros) produtos agrícolas e agroalimentares
A2: Exportações | F2: Importações | K2: Trocas comerciais (total e saldo)
A3: P | B3: País | C3: média quinquénio | D3: % do Total | F3: P | G3: País | H3: média quinquénio | I3: % do Total | K3: P | L3: País | M3: Total (exp+imp) | N3: % do Total | O3: Saldo (exp-imp)
A4: 1 | B4: Espanha | C4: 2411545.104 | D4: 0.3412850777 | F4: 1 | G4: Espanha | H4: 4702622.823 | I4: 0.4611131698 | K4: 1 | L4: Espanha | M4: 7114167.927 | N4: 0.4120694865 | O4: -2291077.719
A5: 2 | B5: França | C5: 676548.204 | D5: 0.09574600368 | F5: 2 | G5: França | H5: 801883.8928 | I5: 0.07862829691 | K5: 2 | L5: França | M5: 1478432.097 | N5: 0.08563429499 | O5: -125335.6888
A6: 3 | B6: Itália | C6: 450103.1874 | D6: 0.06369920307 | F6: 3 | G6: Alemanha | H6: 691439.1198 | I6: 0.06779869367 | K6: 3 | L6: Alemanha | M6: 951321.041 | N6: 0.05510277194 | O6: -431557.1986
A7: 4 | B7: Brasil | C7: 371211.2184 | D7: 0.05253430646 | F7: 4 | G7: Países Baixos | H7: 595448.7582 | I7: 0.05838641002 | K7: 4 | L7: Países Baixos | M7: 927730.709 | N7: 0.05373636394 | O7: -263166.8074
A8: 5 | B8: Países Baixos | C8: 332281.9508 | D8: 0.04702498461 | F8: 5 | G8: Brasil | H8: 551854.2014 | I8: 0.05411176904 | K8: 5 | L8: Brasil | M8: 923065.4198 | N8: 0.05346613932 | O8: -180642.983
A9: 6 | B9: Angola | C9: 270815.3222 | D9: 0.0383261454 | F9: 6 | G9: Itália | H9: 325089.427 | I9: 0.03187647017 | K9: 6 | L9: Itália | M9: 775192.6144 | N9: 0.04490099556 | O9: 125013.7604 | P9: Nota: Nesta listagem, o Reino Unido passa a ser constituído por três componentes: Reino Unido [até 2020] ; Reino Unido (sem Irlanda do Norte) pós-2020 e Reino Unido (Irlanda do Norte) pós-2020. Estas componentes são calculadas igualmente como média do quinquénio, embora a primeira corresponda apenas a 2018-2020 e as duas últimas a 2021-2022.
A10: 7 | B10: Alemanha | C10: 259881.9212 | D10: 0.03677883591 | F10: 7 | G10: Bélgica | H10: 256059.544 | I10: 0.02510778185 | K10: 7 | L10: Bélgica | M10: 422577.6918 | N10: 0.02447670258 | O10: -89541.3962
A11: 8 | B11: Reino Unido | C11: 202835.6198 | D11: 0.0287055673 | F11: 8 | G11: Estados Unidos | H11: 216780.4248 | I11: 0.0212562888 | K11: 8 | L11: Estados Unidos | M11: 400397.3552 | N11: 0.02319196486 | O11: -33163.4944
A12: 9 | B12: Estados Unidos | C12: 183616.9304 | D12: 0.02598571275 | F12: 9 | G12: Ucrânia | H12: 191923.2566 | I12: 0.01881893244 | K12: 9 | L12: Polónia | M12: 317924.6778 | N12: 0.01841495169 | O12: -49349.5234
A13: 10 | B13: Israel | C13: 169490.6434 | D13: 0.02398654179 | F13: 10 | G13: Polónia | H13: 183637.1006 | I13: 0.01800643784 | K13: 10 | L13: Reino Unido | M13: 313115.4092 | N13: 0.01813638745 | O13: 92555.8304
A14: 11 | B14: Bélgica | C14: 166518.1478 | D14: 0.02356587025 | F14: 11 | G14: Roménia | H14: 135111.7674 | I14: 0.0132483122 | K14: 11 | L14: Angola | M14: 277936.6246 | N14: 0.01609874877 | O14: 263694.0198
A15: 12 | B15: Reino Unido (sem Irlanda do Norte) pós 2020 | C15: 153199.9856 | D15: 0.02168106618 | F15: 12 | G15: África do Sul | H15: 112523.4846 | I15: 0.0110334302 | K15: 12 | L15: Reino Unido (sem Irlanda do Norte) pós 2020 | M15: 202787.0812 | N15: 0.01174590891 | O15: 103612.89
A16: 13 | B16: Polónia | C16: 134287.5772 | D16: 0.01900455693 | F16: 13 | G16: Reino Unido | H16: 110279.7894 | I16: 0.01081342586 | K16: 13 | L16: Ucrânia | M16: 198678.4348 | N16: 0.01150792636 | O16: -185168.0784
A17: 14 | B17: Suíça | C17: 92003.1512 | D17: 0.0130204086 | F17: 14 | G17: Irlanda | H17: 110243.3216 | I17: 0.01080985003 | K17: 14 | L17: Canadá | M17: 175349.2144 | N17: 0.01015664256 | O17: -30879.5124
A18: 15 | B18: Cabo Verde | C18: 85447.0724 | D18: 0.01209258359 | F18: 15 | G18: Canadá | H18: 103114.3634 | I18: 0.01011082384 | K18: 15 | L18: Israel | M18: 174656.3316 | N18: 0.01011650914 | O18: 164324.9552
A19: 16 | B19: Canadá | C19: 72234.851 | D19: 0.0102227724 | F19: 16 | G19: Argentina | H19: 72786.9924 | I19: 0.007137089672 | K19: 16 | L19: Roménia | M19: 150921.1448 | N19: 0.008741710805 | O19: -119302.39
A20: 17 | B20: China, República Popular da | C20: 72213.8082 | D20: 0.0102197944 | F20: 17 | G20: Dinamarca | H20: 70231.4784 | I20: 0.006886510112 | K20: 17 | L20: Irlanda | M20: 137024.7724 | N20: 0.007936799943 | O20: -83461.8708
A21: 18 | B21: Japão | C21: 54923.5388 | D21: 0.007772852425 | F21: 18 | G21: Costa Rica | H21: 69966.4528 | I21: 0.006860523168 | K21: 18 | L21: África do Sul | M21: 134358.9168 | N21: 0.007782387261 | O21: -90688.0524
A22: 19 | B22: Suécia | C22: 50824.6094 | D22: 0.007192766472 | F22: 19 | G22: Reino Unido (sem Irlanda do Norte) pós 2020 | H22: 49587.0956 | I22: 0.00486223618 | K22: 19 | L22: Dinamarca | M22: 117591.8134 | N22: 0.006811196848 | O22: -22871.1434
A23: 20 | B23: Rússia, Federação da | C23: 48396.534 | D23: 0.006849142005 | F23: 20 | G23: Bulgária | H23: 45248.5012 | I23: 0.004436817623 | K23: 20 | L23: China, República Popular da | M23: 117263.0084 | N23: 0.006792151682 | O23: 27164.608
A24: 21 | B24: Dinamarca | C24: 47360.335 | D24: 0.006702497741 | F24: 21 | G24: China, República Popular da | H24: 45049.2002 | I24: 0.00441727527 | K24: 21 | L24: Suíça | M24: 94990.2382 | N24: 0.005502059985 | O24: 89016.0642
A25: 22 | B25: Luxemburgo | C25: 45455.684 | D25: 0.006432948993 | F25: 22 | G25: Cuba | H25: 35800.4636 | I25: 0.003510395341 | K25: 22 | L25: Cabo Verde | M25: 85573.8106 | N25: 0.004956638155 | O25: 85320.3342
A26: 23 | B26: Marrocos | C26: 40790.7978 | D26: 0.005772768079 | F26: 23 | G26: Grécia | H26: 30696.3508 | I26: 0.003009914286 | K26: 23 | L26: Argentina | M26: 73024.3208 | N26: 0.004229741929 | O26: -72549.664
A27: 24 | B27: Guiné-Bissau | C27: 30105.257 | D27: 0.004260536101 | F27: 24 | G27: Vietname | H27: 28842.503 | I27: 0.00282813623 | K27: 24 | L27: Costa Rica | M27: 71166.176 | N27: 0.004122113773 | O27: -68766.7296
A28: 25 | B28: Irlanda | C28: 26781.4508 | D28: 0.003790146617 | F28: 25 | G28: Colômbia | H28: 28226.344 | I28: 0.002767719088 | K28: 25 | L28: Japão | M28: 68515.1074 | N28: 0.00396855759 | O28: 41331.9702
A29: 26 | B29: São Tomé e Príncipe | C29: 25260.7912 | D29: 0.003574940844 | F29: 26 | G29: Guiana | H29: 28025.2642 | I29: 0.002748002316 | K29: 26 | L29: Suécia | M29: 64540.5576 | N29: 0.003738342235 | O29: 37108.6612
A30: 27 | B30: Arábia Saudita | C30: 25200.9646 | D30: 0.003566474103 | F30: 27 | G30: Chile | H30: 24582.6414 | I30: 0.002410437776 | K30: 27 | L30: Rússia, Federação da | M30: 60555.2322 | N30: 0.003507502731 | O30: 36237.8358
A31: 28 | B31: Moçambique | C31: 25040.048 | D31: 0.003543700972 | F31: 28 | G31: Áustria | H31: 23767.51 | I31: 0.002330510502 | K31: 28 | L31: Luxemburgo | M31: 53698.83 | N31: 0.003110363647 | O31: 37212.538
A32: 29 | B32: Grécia | C32: 22271.2594 | D32: 0.003151858318 | F32: 29 | G32: Uruguai | H32: 22544.114 | I32: 0.00221055106 | K32: 29 | L32: Bulgária | M32: 53404.496 | N32: 0.003093315124 | O32: -37092.5064
A33: 30 | B33: África do Sul | C33: 21835.4322 | D33: 0.003090179472 | F33: 30 | G33: Checa, República | H33: 22169.2118 | I33: 0.002173790225 | K33: 30 | L33: Grécia | M33: 52967.6102 | N33: 0.003068009662 | O33: -8425.0914
A34: 31 | B34: Finlândia | C34: 19884.365 | D34: 0.002814061841 | F34: 31 | G34: Costa do Marfim | H34: 21706.6942 | I34: 0.002128438309 | K34: 31 | L34: Marrocos | M34: 50677.0038 | N34: 0.002935332304 | O34: 30904.5918
A35: 32 | B35: Checa, República | C35: 18235.0968 | D35: 0.002580655207 | F35: 32 | G35: Índia | H35: 20821.1078 | I35: 0.002041602607 | K35: 32 | L35: Checa, República | M35: 40404.3086 | N35: 0.002340313423 | O35: -3934.115
A36: 33 | B36: Jordânia | C36: 17519.4376 | D36: 0.002479374163 | F36: 33 | G36: Paraguai | H36: 18543.3936 | I36: 0.001818262558 | K36: 33 | L36: Cuba | M36: 38670.0018 | N36: 0.002239858258 | O36: -32930.9254
A37: 34 | B37: Noruega | C37: 16995.9884 | D37: 0.002405294934 | F37: 34 | G37: Turquia | H37: 17986.1158 | I37: 0.00176361898 | K37: 34 | L37: Áustria | M37: 38061.8468 | N37: 0.002204632478 | O37: -9473.1732
A38: 35 | B38: Roménia | C38: 15809.3774 | D38: 0.002237364164 | F38: 35 | G38: Hungria | H38: 16799.5642 | I38: 0.001647272297 | K38: 35 | L38: Moçambique | M38: 35153.372 | N38: 0.002036166716 | O38: 14926.724
A39: 36 | B39: Austrália | C39: 14444.1886 | D39: 0.002044160825 | F39: 36 | G39: Uganda | H39: 16711.9112 | I39: 0.001638677529 | K39: 36 | L39: Colômbia | M39: 34587.7746 | N39: 0.002003405973 | O39: -21864.9134
A40: 37 | B40: Áustria | C40: 14294.3368 | D40: 0.002022953598 | F40: 37 | G40: Suécia | H40: 13715.9482 | I40: 0.001344909977 | K40: 37 | L40: Vietname | M40: 30876.7168 | N40: 0.0017884527 | O40: -26808.2892
A41: 38 | B41: Coreia, República da | C41: 13714.1396 | D41: 0.001940843317 | F41: 38 | G41: Japão | H41: 13591.5686 | I41: 0.001332714001 | K41: 38 | L41: Guiné-Bissau | M41: 30466.7032 | N41: 0.001764703739 | O41: 29743.8108
A42: 39 | B42: Iraque | C42: 12402.8826 | D42: 0.001755272479 | F42: 39 | G42: Suazilândia | H42: 13238.5734 | I42: 0.001298101246 | K42: 39 | L42: Chile | M42: 30212.416 | N42: 0.001749974821 | O42: -18952.8668
A43: 40 | B43: Emirados Árabes Unidos | C43: 11850.4352 | D43: 0.001677089386 | F43: 40 | G43: Indonésia | H43: 13223.1014 | I43: 0.001296584147 | K43: 40 | L43: Guiana | M43: 28043.5076 | N43: 0.0016243465 | O43: -28007.0208
A44: 41 | B44: Argélia | C44: 11256.5744 | D44: 0.001593045414 | F44: 41 | G44: México | H44: 13063.4442 | I44: 0.001280929045 | K44: 41 | L44: Hungria | M44: 27998.5132 | N44: 0.001621740318 | O44: -5600.6152
A45: 42 | B45: Macau | C45: 11226.3432 | D45: 0.001588767055 | F45: 42 | G45: Austrália | H45: 12929.8552 | I45: 0.001267830047 | K45: 42 | L45: Turquia | M45: 27952.4328 | N45: 0.001619071232 | O45: -8019.7988
A46: 43 | B46: Hungria | C46: 11198.949 | D46: 0.001584890191 | F46: 43 | G46: Rússia, Federação da | H46: 12158.6982 | I46: 0.001192214659 | K46: 43 | L46: Austrália | M46: 27374.0438 | N46: 0.001585569569 | O46: 1514.3334
A47: 44 | B47: Nigéria | C47: 10950.0114 | D47: 0.00154966021 | F47: 44 | G47: Moldava, República de | H47: 11903.4008 | I47: 0.001167181609 | K47: 44 | L47: Finlândia | M47: 27349.3512 | N47: 0.001584139315 | O47: 12419.3788
A48: 45 | B48: Turquia | C48: 9966.317 | D48: 0.001410446467 | F48: 45 | G48: Peru | H48: 11309.1784 | I48: 0.001108915449 | K48: 45 | L48: Costa do Marfim | M48: 27312.2444 | N48: 0.001581990001 | O48: -16101.144
A49: 46 | B49: Território Palestiniano Ocupado | C49: 9369.3582 | D49: 0.001325964062 | F49: 46 | G49: Lituânia | H49: 10559.9636 | I49: 0.001035451592 | K49: 46 | L49: São Tomé e Príncipe | M49: 26314.2624 | N49: 0.001524184515 | O49: 24207.32
A50: 47 | B50: Eslováquia | C50: 9087.5718 | D50: 0.001286085275 | F50: 47 | G50: Paquistão | H50: 10304.0036 | I50: 0.001010353571 | K50: 47 | L50: Arábia Saudita | M50: 25224.07 | N50: 0.001461037985 | O50: 25177.8592
A51: 48 | B51: Senegal | C51: 8493.732 | D51: 0.001202044275 | F51: 48 | G51: Tailândia | H51: 10199.4388 | I51: 0.001000100525 | K51: 48 | L51: Uruguai | M51: 24295.7548 | N51: 0.001407267766 | O51: -20792.4732
A52: 49 | B52: Bulgária | C52: 8155.9948 | D52: 0.001154247256 | F52: 49 | G52: Moçambique | H52: 10113.324 | I52: 0.0009916565844 | K52: 49 | L52: Índia | M52: 23835.9726 | N52: 0.00138063609 | O52: -17806.243
A53: 50 | B53: Líbia, Jamahira Árabe da | C53: 7994.648 | D53: 0.001131413242 | F53: 50 | G53: Marrocos | H53: 9886.206 | I53: 0.0009693866502 | K53: 50 | L53: Paraguai | M53: 19188.0202 | N53: 0.001111415658 | O53: -17898.767
A54: 51 | B54: Gibraltar | C54: 7555.2434 | D54: 0.001069228117 | F54: 51 | G54: Egito | H54: 9790.4264 | I54: 0.0009599950327 | K54: 51 | L54: México | M54: 18719.0294 | N54: 0.001084250598 | O54: -7407.859
A55: 52 | B55: Kuwait | C55: 7349.7522 | D55: 0.001040146729 | F55: 52 | G55: Letónia | H55: 8952.1544 | I55: 0.0008777987194 | K55: 52 | L55: Noruega | M55: 18005.9244 | N55: 0.001042945865 | O55: 15986.0524
A56: 53 | B56: Ucrânia | C56: 6755.1782 | D56: 0.0009560018236 | F56: 53 | G56: Sérvia | H56: 8809.7352 | I56: 0.0008638338807 | K56: 53 | L56: Jordânia | M56: 17548.9282 | N56: 0.001016475561 | O56: 17489.947
A57: 54 | B57: Colômbia | C57: 6361.4306 | D57: 0.0009002781384 | F57: 54 | G57: Luxemburgo | H57: 8243.146 | I57: 0.0008082772793 | K57: 54 | L57: Uganda | M57: 17197.4672 | N57: 0.0009961181055 | O57: -16226.3552
A58: 55 | B58: Letónia | C58: 5851.9654 | D58: 0.0008281779442 | F58: 55 | G58: Equador | H58: 8207.9326 | I58: 0.0008048244482 | K58: 55 | L58: Lituânia | M58: 15596.9716 | N58: 0.0009034136028 | O58: -5522.9556
A59: 56 | B59: HongKong | C59: 5831.0346 | D59: 0.0008252157894 | F59: 56 | G59: Nova Zelânda | H59: 7880.6232 | I59: 0.0007727302997 | K59: 56 | L59: Suazilândia | M59: 15229.1516 | N59: 0.0008821085956 | O59: -11247.9952
A60: 57 | B60: Maurícias | C60: 5663.2906 | D60: 0.000801476435 | F60: 57 | G60: Finlândia | H60: 7464.9862 | I60: 0.0007319752356 | K60: 57 | L60: Letónia | M60: 14804.1198 | N60: 0.0008574897453 | O60: -3100.189
A61: 58 | B61: México | C61: 5655.5852 | D61: 0.0008003859565 | F61: 58 | G61: Malásia | H61: 7402.4108 | I61: 0.0007258394382 | K61: 58 | L61: Coreia, República da | M61: 14651.7386 | N61: 0.0008486634646 | O61: 12776.5406
A62: 59 | B62: Chile | C62: 5629.7746 | D62: 0.000796733206 | F62: 59 | G62: Angola | H62: 7121.3024 | I62: 0.0006982755041 | K62: 59 | L62: Indonésia | M62: 14360.499 | N62: 0.0008317941759 | O62: -12085.7038
A63: 60 | B63: Costa do Marfim | C63: 5605.5502 | D63: 0.0007933049366 | F63: 60 | G63: Camarões | H63: 6330.7516 | I63: 0.0006207584676 | K63: 60 | L63: Tailândia | M63: 13287.765 | N63: 0.0007696588773 | O63: -7111.1126
A64: 61 | B64: Andorra | C64: 5268.3636 | D64: 0.0007455858395 | F64: 61 | G64: Honduras | H64: 6193.611 | I64: 0.0006073112193 | K64: 61 | L64: Peru | M64: 13096.3328 | N64: 0.0007585706701 | O64: -9522.024
A65: 62 | B65: Lituânia | C65: 5037.008 | D65: 0.0007128440866 | F65: 62 | G65: Etiópia | H65: 5332.6708 | I65: 0.0005228921877 | K65: 62 | L65: Eslováquia | M65: 12663.425 | N65: 0.0007334956231 | O65: 5511.7186
A66: 63 | B66: Estónia | C66: 4869.894 | D66: 0.0006891938905 | F66: 63 | G66: Israel | H66: 5165.6882 | I66: 0.000506518798 | K66: 63 | L66: Iraque | M66: 12415.1466 | N66: 0.0007191147491 | O66: 12390.6186
A67: 64 | B67: Malta | C67: 4732.779 | D67: 0.0006697891929 | F67: 64 | G67: Belize | H67: 5153.7922 | I67: 0.0005053523421 | K67: 64 | L67: Emirados Árabes Unidos | M67: 12305.7766 | N67: 0.0007127797792 | O67: 11395.0938
A68: 65 | B68: Síria, República Árabe da | C68: 4399.3294 | D68: 0.0006225989611 | F68: 65 | G68: Camboja | H68: 4964.372 | I68: 0.0004867788455 | K68: 65 | L68: Moldava, República de | M68: 12104.7888 | N68: 0.0007011380889 | O68: -11702.0128
A69: 66 | B69: Chipre | C69: 4087.2516 | D69: 0.0005784332948 | F69: 66 | G69: Zimbabwe | H69: 4708.9854 | I69: 0.0004617370489 | K69: 66 | L69: Argélia | M69: 11803.7068 | N69: 0.0006836987051 | O69: 10709.442
A70: 67 | B70: Omã | C70: 3805.6814 | D70: 0.0005385851048 | F70: 67 | G70: Guatemala | H70: 4634.8976 | I70: 0.0004544724092 | K70: 67 | L70: Sérvia | M70: 11344.2464 | N70: 0.0006570856685 | O70: -6275.224
A71: 68 | B71: Eslovénia | C71: 3320.9676 | D71: 0.0004699877617 | F71: 68 | G71: Suriname | H71: 4613.819 | I71: 0.0004524055583 | K71: 68 | L71: Egito | M71: 11328.9988 | N71: 0.0006562024914 | O71: -8251.854
A72: 69 | B72: Mali | C72: 3288.1148 | D72: 0.0004653383896 | F72: 69 | G72: Macedónia, Antiga República jugoslava da | H72: 4601.6794 | I72: 0.0004512152163 | K72: 69 | L72: Macau | M72: 11242.8404 | N72: 0.0006512119924 | O72: 11209.846
A73: 70 | B73: Tailândia | C73: 3088.3262 | D73: 0.0004370640406 | F73: 70 | G73: Eslovénia | H73: 4577.0544 | I73: 0.0004488006251 | K73: 70 | L73: Nigéria | M73: 11147.6308 | N73: 0.0006456972265 | O73: 10752.392
A74: 71 | B74: Índia | C74: 3014.8648 | D74: 0.0004266676854 | F74: 71 | G74: Tanzânia, República Unida da | H74: 4539.6584 | I74: 0.0004451337803 | K74: 71 | L74: Paquistão | M74: 10570.8542 | N74: 0.0006122889572 | O74: -10037.153
A75: 72 | B75: Singapura | C75: 2956.254 | D75: 0.0004183730068 | F75: 72 | G75: Filipinas | H75: 4493.245 | I75: 0.0004405827391 | K75: 72 | L75: Nova Zelânda | M75: 10271.0628 | N75: 0.000594924328 | O75: -5490.1836
A76: 73 | B76: Cuba | C76: 2869.5382 | D76: 0.0004061008712 | F76: 73 | G76: Tunísia | H76: 4126.4674 | I76: 0.0004046185574 | K76: 73 | L76: Território Palestiniano Ocupado | M76: 9369.8434 | N76: 0.000542723562 | O76: 9368.873
A77: 74 | B77: Gana | C77: 2746.7854 | D77: 0.0003887287313 | F77: 74 | G77: Estónia | H77: 4043.8982 | I77: 0.0003965222786 | K77: 74 | L77: Senegal | M77: 9057.0902 | N77: 0.0005246081546 | O77: 7930.3738
A78: 75 | B78: Taiwan | C78: 2744.6238 | D78: 0.0003884228188 | F78: 75 | G78: Reino Unido (Irlanda do Norte) pós-2020 | H78: 3995.535 | I78: 0.0003917800509 | K78: 75 | L78: Equador | M78: 9035.3682 | N78: 0.0005233499648 | O78: -7380.497
A79: 76 | B79: Sérvia | C79: 2534.5112 | D79: 0.0003586874036 | F79: 76 | G79: Mali | H79: 3760.9918 | I79: 0.0003687820426 | K79: 76 | L79: Estónia | M79: 8913.7922 | N79: 0.0005163079944 | O79: 825.9958
A80: 77 | B80: Líbano | C80: 2519.7508 | D80: 0.0003565984921 | F80: 77 | G80: Eslováquia | H80: 3575.8532 | I80: 0.0003506283761 | K80: 77 | L80: Malásia | M80: 8903.6532 | N80: 0.0005157207195 | O80: -5901.1684
A81: 78 | B81: Timor-Leste | C81: 2471.9198 | D81: 0.0003498293852 | F81: 78 | G81: Myanmar | H81: 3336.325 | I81: 0.0003271415663 | K81: 78 | L81: Camarões | M81: 8611.8814 | N81: 0.0004988206045 | O81: -4049.6218
A82: 79 | B82: Belarus | C82: 2455.9286 | D82: 0.0003475662893 | F82: 79 | G82: Quénia | H82: 3256.0222 | I82: 0.0003192675181 | K82: 79 | L82: Kuwait | M82: 8533.2046 | N82: 0.0004942634576 | O82: 6166.2998
A83: 80 | B83: Nova Zelânda | C83: 2390.4396 | D83: 0.0003382981987 | F83: 80 | G83: Malavi | H83: 3254.1762 | I83: 0.0003190865096 | K83: 80 | L83: Líbia, Jamahira Árabe da | M83: 8000.598 | N83: 0.0004634136196 | O83: 7988.698
A84: 81 | B84: Filipinas | C84: 2342.9576 | D84: 0.0003315784827 | F84: 81 | G84: Nicarágua | H84: 3164.5064 | I84: 0.0003102939852 | K84: 81 | L84: Eslovénia | M84: 7898.022 | N84: 0.0004574721743 | O84: -1256.0868
A85: 82 | B85: Camarões | C85: 2281.1298 | D85: 0.0003228285301 | F85: 82 | G85: Chipre | H85: 3147.1004 | I85: 0.0003085872492 | K85: 82 | L85: Gibraltar | M85: 7555.2434 | N85: 0.0004376176244 | O85: 7555.2434
A86: 83 | B86: Guiné | C86: 2265.6424 | D86: 0.0003206367326 | F86: 83 | G86: Sri Lanca | H86: 3073.8124 | I86: 0.0003014010335 | K86: 83 | L86: Chipre | M86: 7234.352 | N86: 0.0004190308331 | O86: 940.1512
A87: 84 | B87: Irão, República Islâmica do | C87: 2234.7082 | D87: 0.0003162588834 | F87: 84 | G87: Suíça | H87: 2987.087 | I87: 0.0002928972207 | K87: 84 | L87: Maurícias | M87: 7215.0708 | N87: 0.0004179140203 | O87: 4111.5104
A88: 85 | B88: Congo | C88: 2184.5722 | D88: 0.0003091635698 | F88: 85 | G88: Taiwan | H88: 2718.5488 | I88: 0.0002665658509 | K88: 85 | L88: Mali | M88: 7049.1066 | N88: 0.00040830098 | O88: -472.877
A89: 86 | B89: Seychelles | C89: 2103.9052 | D89: 0.0002977474684 | F89: 86 | G89: Dominicana, República | H89: 2224.7352 | I89: 0.0002181452221 | K89: 86 | L89: HongKong | M89: 7034.5032 | N89: 0.0004074551165 | O89: 4627.566
A90: 87 | B90: Gabão | C90: 2079.6516 | D90: 0.0002943150666 | F90: 87 | G90: Serra Leoa | H90: 1997.841 | I90: 0.0001958972324 | K90: 87 | L90: Honduras | M90: 7007.3132 | N90: 0.0004058802071 | O90: -5379.9088
A91: 88 | B91: Venezuela | C91: 2058.7692 | D91: 0.0002913597616 | F91: 88 | G91: Benim | H91: 1817.538 | I91: 0.000178217718 | K91: 88 | L91: Filipinas | M91: 6836.2026 | N91: 0.0003959690752 | O91: -2150.2874
A92: 89 | B92: Vietname | C92: 2034.2138 | D92: 0.0002878846486 | F92: 89 | G92: Croácia | H92: 1813.6516 | I92: 0.0001778366392 | K92: 89 | L92: Etiópia | M92: 6077.0796 | N92: 0.0003519988698 | O92: -4588.262
A93: 90 | B93: Suazilândia | C93: 1990.5782 | D93: 0.0002817092803 | F93: 90 | G93: Burquina Faso | H93: 1725.737 | I93: 0.00016921622 | K93: 90 | L93: Malta | M93: 5816.0858 | N93: 0.0003368814896 | O93: 3649.4722
A94: 91 | B94: Sudão | C94: 1865.0268 | D94: 0.0002639410788 | F94: 91 | G94: Gana | H94: 1658.4144 | I94: 0.0001626149384 | K94: 91 | L94: Taiwan | M94: 5463.1726 | N94: 0.0003164399197 | O94: 26.075
A95: 92 | B95: Burquina Faso | C95: 1848.8938 | D95: 0.0002616579152 | F95: 92 | G95: Laos, República Democrática Popular do | H95: 1570.3752 | I95: 0.0001539823017 | K95: 92 | L95: Camboja | M95: 5365.8038 | N95: 0.0003108000878 | O95: -4562.9402
A96: 93 | B96: Guiné Equatorial | C96: 1818.2016 | D96: 0.0002573143141 | F96: 93 | G96: Maurícias | H96: 1551.7802 | I96: 0.0001521589789 | K96: 93 | L96: Síria, República Árabe da | M96: 5349.1634 | N96: 0.0003098362363 | O96: 3449.4954
A97: 94 | B97: Peru | C97: 1787.1544 | D97: 0.000252920473 | F97: 94 | G97: Madagáscar | H97: 1535.4896 | I97: 0.0001505616128 | K97: 94 | L97: Reino Unido (Irlanda do Norte) pós-2020 | M97: 5295.453 | N97: 0.0003067252025 | O97: -2695.617
A98: 95 | B98: Croácia | C98: 1771.9842 | D98: 0.0002507735661 | F98: 95 | G98: Panamá | H98: 1513.6692 | I98: 0.0001484220251 | K98: 95 | L98: Andorra | M98: 5273.09 | N98: 0.0003054298845 | O98: 5263.6372
A99: 96 | B99: Uruguai | C99: 1751.6408 | D99: 0.000247894541 | F99: 96 | G99: Congo, República Democrática do | H99: 1226.6902 | I99: 0.0001202824525 | K99: 96 | L99: Belize | M99: 5155.9728 | N99: 0.0002986461784 | O99: -5151.6116
A100: 97 | B100: Dominicana, República | C100: 1708.9932 | D100: 0.0002418589958 | F100: 97 | G100: HongKong | H100: 1203.4686 | I100: 0.0001180054709 | K100: 97 | L100: Guatemala | M100: 5126.7604 | N100: 0.0002969541269 | O100: -4143.0348
A101: 98 | B101: Benim | C101: 1572.4166 | D101: 0.0002225304933 | F101: 98 | G101: Kuwait | H101: 1183.4524 | I101: 0.0001160427931 | K101: 98 | L101: Tanzânia, República Unida da | M101: 4910.6254 | N101: 0.0002844350748 | O101: -4168.6914
A102: 99 | B102: Bangladesh | C102: 1558.9346 | D102: 0.0002206225027 | F102: 99 | G102: Togo | H102: 1123.3014 | I102: 0.0001101447189 | K102: 99 | L102: Macedónia, Antiga República jugoslava da | M102: 4874.3908 | N102: 0.0002823362808 | O102: -4328.968
A103: 100 | B103: Egito | C103: 1538.5724 | D103: 0.000217740817 | F103: 100 | G103: Malta | H103: 1083.3068 | I103: 0.0001062230698 | K103: 100 | L103: Tunísia | M103: 4852.0784 | N103: 0.0002810438937 | O103: -3400.8564
A104: 101 | B104: Catar | C104: 1515.2294 | D104: 0.0002144372845 | F104: 101 | G104: Singapura | H104: 1064.6932 | I104: 0.0001043979232 | K104: 101 | L104: Zimbabwe | M104: 4772.268 | N104: 0.000276421086 | O104: -4645.7028
A105: 102 | B105: Malásia | C105: 1501.2424 | D105: 0.0002124578256 | F105: 102 | G105: São Tomé e Príncipe | H105: 1053.4712 | I105: 0.000103297556 | K105: 102 | L105: Suriname | M105: 4769.9158 | N105: 0.0002762848409 | O105: -4457.7222
A106: 103 | B106: Geórgia | C106: 1344.215 | D106: 0.0001902350987 | F106: 103 | G106: Noruega | H106: 1009.936 | I106: 9.902873519e-05 | K106: 103 | L106: Gana | M106: 4405.1998 | N106: 0.0002551596248 | O106: 1088.371
A107: 104 | B107: Reino Unido (Irlanda do Norte) pós-2020 | C107: 1299.918 | D107: 0.0001839661282 | F107: 104 | G107: Síria, República Árabe da | H107: 949.834 | I107: 9.313546567e-05 | K107: 104 | L107: Omã | M107: 4285.638 | N107: 0.0002482343217 | O107: 3325.7248
A108: 105 | B108: Albânia | C108: 1266.1722 | D108: 0.0001791903776 | F108: 105 | G108: Coreia, República da | H108: 937.599 | I108: 9.193576928e-05 | K108: 105 | L108: Singapura | M108: 4020.9472 | N108: 0.0002329028025 | O108: 1891.5608
A109: 106 | B109: Costa Rica | C109: 1199.7232 | D109: 0.0001697864265 | F109: 106 | G109: El Salvador | H109: 727.8254 | I109: 7.136653095e-05 | K109: 106 | L109: Dominicana, República | M109: 3933.7284 | N109: 0.0002278508827 | O109: -515.742
A110: 107 | B110: Indonésia | C110: 1137.3976 | D110: 0.0001609660245 | F110: 107 | G110: Turquemenistão | H110: 720.6558 | I110: 7.066351965e-05 | K110: 107 | L110: Myanmar | M110: 3786.5344 | N110: 0.0002193250569 | O110: -2886.1156
A111: 108 | B111: Islândia | C111: 1133.5366 | D111: 0.0001604196107 | F111: 108 | G111: Chade | H111: 675.9004 | I111: 6.62750528e-05 | K111: 108 | L111: Quénia | M111: 3706.4946 | N111: 0.0002146889618 | O111: -2805.5498
A112: 109 | B112: Congo, República Democrática do | C112: 1102.9464 | D112: 0.0001560904448 | F112: 109 | G112: Timor-Leste | H112: 614.232 | I112: 6.022819077e-05 | K112: 109 | L112: Croácia | M112: 3585.6358 | N112: 0.0002076885333 | O112: -41.6674
A113: 110 | B113: Togo | C113: 886.836 | D113: 0.0001255062129 | F113: 110 | G113: Senegal | H113: 563.3582 | I113: 5.523978747e-05 | K113: 110 | L113: Nicarágua | M113: 3581.558 | N113: 0.0002074523375 | O113: -2747.4548
A114: 111 | B114: Panamá | C114: 853.2114 | D114: 0.0001207476147 | F114: 111 | G114: Argélia | H114: 547.1324 | I114: 5.364877532e-05 | K114: 111 | L114: Burquina Faso | M114: 3574.6308 | N114: 0.0002070510976 | O114: 123.1568
A115: 112 | B115: Equador | C115: 827.4356 | D115: 0.0001170997891 | F115: 112 | G115: Líbano | H115: 532.1362 | I115: 5.217833094e-05 | K115: 112 | L115: Sri Lanca | M115: 3466.8512 | N115: 0.0002008082475 | O115: -2680.7736
A116: 113 | B116: Ruanda | C116: 825.9096 | D116: 0.0001168838275 | F116: 113 | G116: Omã | H116: 479.9566 | I116: 4.706188812e-05 | K116: 113 | L116: Benim | M116: 3389.9546 | N116: 0.0001963542139 | O116: -245.1214
A117: 114 | B117: Honduras | C117: 813.7022 | D117: 0.00011515622 | F117: 114 | G117: Emirados Árabes Unidos | H117: 455.3414 | I117: 4.464825783e-05 | K117: 114 | L117: Malavi | M117: 3260.7796 | N117: 0.0001888720914 | O117: -3247.5728
A118: 115 | B118: Bermudas | C118: 793.1712 | D118: 0.0001122506455 | F118: 115 | G118: Belarus | H118: 370.9342 | I118: 3.637175491e-05 | K118: 115 | L118: Timor-Leste | M118: 3086.1518 | N118: 0.0001787572349 | O118: 1857.6878
A119: 116 | B119: Etiópia | C119: 744.4088 | D119: 0.0001053497257 | F119: 116 | G119: Guiné-Bissau | H119: 361.4462 | I119: 3.544141413e-05 | K119: 116 | L119: Líbano | M119: 3051.887 | N119: 0.0001767725364 | O119: 1987.6146
A120: 117 | B120: Tunísia | C120: 725.611 | D120: 0.000102689436 | F120: 117 | G120: Usbequistão | H120: 308.2694 | I120: 3.022719141e-05 | K120: 117 | L120: Belarus | M120: 2826.8628 | N120: 0.0001637386008 | O120: 2084.9944
A121: 118 | B121: Burundi | C121: 677.0954 | D121: 9.582344359e-05 | F121: 118 | G121: Guiné | H121: 302.1342 | I121: 2.962560765e-05 | K121: 118 | L121: Guiné | M121: 2567.7766 | N121: 0.0001487317134 | O121: 1963.5082
A122: 119 | B122: Iémen | C122: 670.7886 | D122: 9.493089684e-05 | F122: 119 | G122: Geórgia | H122: 294.5626 | I122: 2.888317845e-05 | K122: 119 | L122: Serra Leoa | M122: 2499.2974 | N122: 0.0001447652356 | O122: -1496.3846
A123: 120 | B123: Paraguai | C123: 644.6266 | D123: 9.122841573e-05 | F123: 120 | G123: Bolívia | H123: 281.6492 | I123: 2.761696191e-05 | K123: 120 | L123: Irão, República Islâmica do | M123: 2440.1832 | N123: 0.0001413412009 | O123: 2029.2332
A124: 121 | B124: Namíbia | C124: 633.8792 | D124: 8.970742935e-05 | F124: 121 | G124: Bangladesh | H124: 280.7044 | I124: 2.752432005e-05 | K124: 121 | L124: Congo | M124: 2383.877 | N124: 0.0001380798122 | O124: 1985.2674
A125: 122 | B125: Azerbaijão | C125: 594.9756 | D125: 8.420174002e-05 | F125: 122 | G125: Irão, República Islâmica do | H125: 205.475 | I125: 2.01477414e-05 | K125: 122 | L125: Panamá | M125: 2366.8806 | N125: 0.0001370953404 | O125: -660.4578
A126: 123 | B126: Arménia | C126: 559.6906 | D126: 7.920815979e-05 | F126: 123 | G126: Congo | H126: 199.3048 | I126: 1.954272574e-05 | K126: 123 | L126: Congo, República Democrática do | M126: 2329.6366 | N126: 0.0001349380795 | O126: -123.7438
A127: 124 | B127: Cazaquistão | C127: 531.8816 | D127: 7.527259304e-05 | F127: 124 | G127: Zâmbia | H127: 199.3012 | I127: 1.954237274e-05 | K127: 124 | L127: Venezuela | M127: 2213.7304 | N127: 0.0001282245174 | O127: 1903.808
A128: 125 | B128: Aruba | C128: 522.985 | D128: 7.401353435e-05 | F128: 125 | G128: Nigéria | H128: 197.6194 | I128: 1.937746474e-05 | K128: 125 | L128: Seychelles | M128: 2103.9052 | N128: 0.0001218631812 | O128: 2103.9052
A129: 126 | B129: Serra Leoa | C129: 501.4564 | D129: 7.096677818e-05 | F129: 126 | G129: Islândia | H129: 194.2478 | I129: 1.90468643e-05 | K129: 126 | L129: Gabão | M129: 2079.9016 | N129: 0.0001204728358 | O129: 2079.4016
A130: 127 | B130: Guatemala | C130: 491.8628 | D130: 6.960907912e-05 | F130: 127 | G130: Venezuela | H130: 154.9612 | I130: 1.519463772e-05 | K130: 127 | L130: Togo | M130: 2010.1374 | N130: 0.0001164319278 | O130: -236.4654
A131: 128 | B131: Uganda | C131: 485.556 | D131: 6.871653237e-05 | F131: 128 | G131: Cabo Verde | H131: 126.7382 | I131: 1.242724652e-05 | K131: 128 | L131: Sudão | M131: 1881.5594 | N131: 0.0001089843849 | O131: 1848.4942
A132: 129 | B132: São Bartolomeu | C132: 472.0258 | D132: 6.680172043e-05 | F132: 129 | G132: Azerbaijão | H132: 124.8946 | I132: 1.224647331e-05 | K132: 129 | L132: Bangladesh | M132: 1839.639 | N132: 0.0001065562559 | O132: 1278.2302
A133: 130 | B133: Mauritânia | C133: 470.2498 | D133: 6.655037855e-05 | F133: 130 | G133: Albânia | H133: 104.056 | I133: 1.020315552e-05 | K133: 130 | L133: Guiné Equatorial | M133: 1818.2016 | N133: 0.0001053145508 | O133: 1818.2016
A134: 131 | B134: Barém | C134: 469.46 | D134: 6.6438605e-05 | F134: 131 | G134: Namíbia | H134: 69.6464 | I134: 6.829140562e-06 | K134: 131 | L134: Madagáscar | M134: 1665.147 | N134: 9.644926522e-05 | O134: -1405.8322
A135: 132 | B135: Gâmbia | C135: 455.249 | D135: 6.442744533e-05 | F135: 132 | G135: Tajiquistão | H135: 59.4122 | I135: 5.825631546e-06 | K135: 132 | L135: Geórgia | M135: 1638.7776 | N135: 9.4921887e-05 | O135: 1049.6524
A136: 133 | B136: Quénia | C136: 450.4724 | D136: 6.375145453e-05 | F136: 133 | G136: Iémen | H136: 45.76 | I136: 4.486972365e-06 | K136: 133 | L136: Laos, República Democrática Popular do | M136: 1584.7624 | N136: 9.179319845e-05 | O136: -1555.988
A137: 134 | B137: Myanmar | C137: 450.2094 | D137: 6.371423442e-05 | F137: 134 | G137: Libéria | H137: 38.8276 | I137: 3.807219585e-06 | K137: 134 | L137: Catar | M137: 1531.2716 | N137: 8.869488439e-05 | O137: 1499.1872
A138: 135 | B138: Kosovo | C138: 418.4652 | D138: 5.922175292e-05 | F138: 135 | G138: Aruba | H138: 38.029 | I138: 3.728913288e-06 | K138: 135 | L138: Albânia | M138: 1370.2282 | N138: 7.936686855e-05 | O138: 1162.1162
A139: 136 | B139: Nicarágua | C139: 417.0516 | D139: 5.902169837e-05 | F139: 136 | G139: São Marino | H139: 32.7702 | I139: 3.213264462e-06 | K139: 136 | L139: Islândia | M139: 1327.7844 | N139: 7.690842295e-05 | O139: 939.2888
A140: 137 | B140: Camboja | C140: 401.4318 | D140: 5.681116345e-05 | F140: 137 | G140: Botswana | H140: 29.9908 | I140: 2.940731879e-06 | K140: 137 | L140: El Salvador | M140: 1020.3732 | N140: 5.910243683e-05 | O140: -435.2776
A141: 138 | B141: Sri Lanca | C141: 393.0388 | D141: 5.56233749e-05 | F141: 138 | G141: Jordânia | H141: 29.4906 | I141: 2.891685035e-06 | K141: 138 | L141: Ruanda | M141: 826.0866 | N141: 4.784889597e-05 | O141: 825.7326
A142: 139 | B142: Bolívia | C142: 391.1324 | D142: 5.535357863e-05 | F142: 139 | G142: Bósnia-Herzegovina | H142: 27.8982 | I142: 2.735543104e-06 | K142: 139 | L142: Bermudas | M142: 793.8604 | N142: 4.5982278e-05 | O142: 792.482
A143: 140 | B143: Tanzânia, República Unida da | C143: 370.967 | D143: 5.249974434e-05 | F143: 140 | G143: Papuásia-Nova Guiné | H143: 25.837 | I143: 2.533433238e-06 | K143: 140 | L143: Turquemenistão | M143: 732.4956 | N143: 4.242788318e-05 | O143: -708.816
A144: 141 | B144: São Martinho (parte holandesa) | C144: 349.244 | D144: 4.942547643e-05 | F144: 141 | G144: Arábia Saudita | H144: 23.1054 | I144: 2.265587659e-06 | K144: 141 | L144: Azerbaijão | M144: 719.8702 | N144: 4.169659006e-05 | O144: 470.081
A145: 142 | B145: Comores | C145: 311.607 | D145: 4.409903802e-05 | F145: 142 | G145: Quirguizistão | H145: 17.4752 | I145: 1.713521404e-06 | K145: 142 | L145: Iémen | M145: 716.5486 | N145: 4.15041951e-05 | O145: 625.0286
A146: 143 | B146: Libéria | C146: 294.774 | D146: 4.171680942e-05 | F146: 143 | G146: Sudão | H146: 16.5326 | I146: 1.621095265e-06 | K146: 143 | L146: Namíbia | M146: 703.5256 | N146: 4.074987204e-05 | O146: 564.2328
A147: 144 | B147: Somália | C147: 292.8146 | D147: 4.143951252e-05 | F147: 144 | G147: Macau | H147: 16.4972 | I147: 1.617624137e-06 | K147: 144 | L147: Burundi | M147: 677.2094 | N147: 3.92255753e-05 | O147: 676.9814
A148: 145 | B148: El Salvador | C148: 292.5478 | D148: 4.140175463e-05 | F148: 145 | G148: Catar | H148: 16.0422 | I148: 1.573009355e-06 | K148: 145 | L148: Chade | M148: 675.9044 | N148: 3.91499866e-05 | O148: -675.8964
A149: 146 | B149: Jamaica | C149: 276.7996 | D149: 3.917304837e-05 | F149: 146 | G149: Arménia | H149: 15.34 | I149: 1.504155509e-06 | K149: 146 | L149: Bolívia | M149: 672.7816 | N149: 3.896910661e-05 | O149: 109.4832
A150: 147 | B150: Macedónia, Antiga República jugoslava da | C150: 272.7114 | D150: 3.859448086e-05 | F150: 147 | G150: Curaçau | H150: 12.9632 | I150: 1.271099654e-06 | K150: 147 | L150: Arménia | M150: 575.0306 | N150: 3.330713676e-05 | O150: 544.3506
A151: 148 | B151: Paquistão | C151: 266.8506 | D151: 3.776505263e-05 | F151: 148 | G151: Iraque | H151: 12.264 | I151: 1.202539971e-06 | K151: 148 | L151: Aruba | M151: 561.014 | N151: 3.249526203e-05 | O151: 484.956
A152: 149 | B152: Antígua e Barbuda | C152: 264.4064 | D152: 3.741914619e-05 | F152: 149 | G152: Jamaica | H152: 11.1226 | I152: 1.090620604e-06 | K152: 149 | L152: Cazaquistão | M152: 537.7376 | N152: 3.114703771e-05 | O152: 526.0256
A153: 150 | B153: Argentina | C153: 237.3284 | D153: 3.358703153e-05 | F153: 150 | G153: Kosovo | H153: 8.3722 | I153: 8.209316004e-07 | K153: 150 | L153: Barém | M153: 473.8044 | N153: 2.744387507e-05 | O153: 465.1156
A154: 151 | B154: Curaçau | C154: 224.0074 | D154: 3.170182585e-05 | F154: 151 | G154: Líbia, Jamahira Árabe da | H154: 5.95 | I154: 5.834240728e-07 | K154: 151 | L154: São Bartolomeu | M154: 472.3088 | N154: 2.735724637e-05 | O154: 471.7428
A155: 152 | B155: Moldava, República de | C155: 201.388 | D155: 2.850069821e-05 | F155: 152 | G155: Cazaquistão | H155: 5.856 | I155: 5.74206953e-07 | K155: 152 | L155: Mauritânia | M155: 471.8238 | N155: 2.732915402e-05 | O155: 468.6758
A156: 153 | B156: Haiti | C156: 195.7344 | D156: 2.77005932e-05 | F156: 153 | G156: Andorra | H156: 4.7264 | I156: 4.634446282e-07 | K156: 153 | L156: Gâmbia | M156: 455.249 | N156: 2.636910227e-05 | O156: 455.249
A157: 154 | B157: Ceuta e Melilha | C157: 191.5534 | D157: 2.710889251e-05 | F157: 154 | G157: São Cristovão e Nevis | H157: 4.4378 | I157: 4.351461093e-07 | K157: 154 | L157: Kosovo | M157: 426.8374 | N157: 2.472343499e-05 | O157: 410.093
A158: 155 | B158: Suriname | C158: 156.0968 | D158: 2.209102722e-05 | F158: 155 | G158: Afeganistão | H158: 4.3662 | I158: 4.281254095e-07 | K158: 155 | L158: São Martinho (parte holandesa) | M158: 349.244 | N158: 2.022904115e-05 | O158: 349.244
A159: 156 | B159: Trindade e Tobago | C159: 142.2682 | D159: 2.013398531e-05 | F159: 156 | G159: Barém | H159: 4.3444 | I159: 4.259878221e-07 | K159: 156 | L159: Usbequistão | M159: 348.6042 | N159: 2.019198241e-05 | O159: -267.9346
A160: 157 | B160: Nova Caledónia | C160: 140.1192 | D160: 1.982985596e-05 | F160: 157 | G160: Nepal | H160: 2.4222 | I160: 2.375075276e-07 | K160: 157 | L160: Zâmbia | M160: 336.5272 | N160: 1.949245392e-05 | O160: -62.0752
A161: 158 | B161: Zâmbia | C161: 137.226 | D161: 1.942040644e-05 | F161: 158 | G161: Lesoto | H161: 1.7136 | I161: 1.68026133e-07 | K161: 158 | L161: Libéria | M161: 333.6016 | N161: 1.932299622e-05 | O161: 255.9464
A162: 159 | B162: Polinésia Francesa | C162: 133.1554 | D162: 1.884432971e-05 | F162: 159 | G162: Liechtenstein | H162: 1.6922 | I162: 1.659277674e-07 | K162: 159 | L162: Comores | M162: 311.607 | N162: 1.804901681e-05 | O162: 311.607
A163: 160 | B163: Madagáscar | C163: 129.6574 | D163: 1.834928808e-05 | F163: 160 | G163: Mauritânia | H163: 1.574 | I163: 1.543377295e-07 | K163: 160 | L163: Somália | M163: 292.8146 | N163: 1.696051641e-05 | O163: 292.8146
A164: 161 | B164: Maldivas | C164: 127.1794 | D164: 1.799859822e-05 | F164: 161 | G164: Fiji, Ilhas | H164: 1.3646 | I164: 1.338051243e-07 | K164: 161 | L164: Jamaica | M164: 287.9222 | N164: 1.667713699e-05 | O164: 265.677
A165: 162 | B165: Niger | C165: 113.05 | D165: 1.59989867e-05 | F165: 162 | G165: Bermudas | H165: 0.6892 | I165: 6.757913798e-08 | K165: 162 | L165: Antígua e Barbuda | M165: 264.426 | N165: 1.531618134e-05 | O165: 264.3868
A166: 163 | B166: Liechtenstein | C166: 106.2456 | D166: 1.503601894e-05 | F166: 163 | G166: Território Palestiniano Ocupado | H166: 0.4852 | I166: 4.757602691e-08 | K166: 163 | L166: Curaçau | M166: 236.9706 | N166: 1.372589942e-05 | O166: 211.0442
A167: 164 | B167: Centro-Africana, República | C167: 83.0308 | D167: 1.17506295e-05 | F167: 164 | G167: Montenegro | H167: 0.3086 | I167: 3.025960821e-08 | K167: 164 | L167: Haiti | M167: 195.7408 | N167: 1.133777158e-05 | O167: 195.728
A168: 165 | B168: Jibuti | C168: 77.3086 | D168: 1.094081613e-05 | F168: 165 | G168: São Bartolomeu | H168: 0.283 | I168: 2.774941388e-08 | K168: 165 | L168: Ceuta e Melilha | M168: 191.5534 | N168: 1.109522744e-05 | O168: 191.5534
A169: 166 | B169: Nepal | C169: 76.6542 | D169: 1.084820457e-05 | F169: 166 | G169: Gabão | H169: 0.25 | I169: 2.45136165e-08 | K169: 166 | L169: Trindade e Tobago | M169: 142.2786 | N169: 8.241114103e-06 | O169: 142.2578
A170: 167 | B170: Zimbabwe | C170: 63.2826 | D170: 8.955837909e-06 | F170: 167 | G170: Ruanda | H170: 0.177 | I170: 1.735564048e-08 | K170: 167 | L170: Nova Caledónia | M170: 140.1192 | N170: 8.116036532e-06 | O170: 140.1192
A171: 168 | B171: Caimão, Ilhas | C171: 51.4562 | D171: 7.282150016e-06 | F171: 168 | G171: Barbados | H171: 0.1378 | I171: 1.351190542e-08 | K171: 168 | L171: Polinésia Francesa | M171: 133.1554 | N171: 7.712676712e-06 | O171: 133.1554
A172: 169 | B172: Bósnia-Herzegovina | C172: 50.6168 | D172: 7.163357009e-06 | F172: 169 | G172: Niger | H172: 0.1252 | I172: 1.227641914e-08 | K172: 169 | L172: Maldivas | M172: 127.183 | N172: 7.366741133e-06 | O172: 127.1758
A173: 170 | B173: Montenegro | C173: 46.101 | D173: 6.524274973e-06 | F173: 170 | G173: Burundi | H173: 0.114 | I173: 1.117820913e-08 | K173: 170 | L173: Niger | M173: 113.1752 | N173: 6.55537612e-06 | O173: 112.9248
A174: 171 | B174: Bahamas | C174: 42.9652 | D174: 6.080492377e-06 | F174: 171 | G174: Oceano Indico, Território Britânico do | H174: 0.098 | I174: 9.609337669e-09 | K174: 171 | L174: Liechtenstein | M174: 107.9378 | N174: 6.252013485e-06 | O174: 104.5534
A175: 172 | B175: Usbequistão | C175: 40.3348 | D175: 5.708234663e-06 | F175: 172 | G175: São Vicente e Granadinas | H175: 0.0416 | I175: 4.079065786e-09 | K175: 172 | L175: Centro-Africana, República | M175: 83.0308 | N175: 4.809340947e-06 | O175: 83.0308
A176: 173 | B176: Mongólia | C176: 30.8452 | D176: 4.365253821e-06 | F176: 173 | G176: Antígua e Barbuda | H176: 0.0196 | I176: 1.921867534e-09 | K176: 173 | L176: Nepal | M176: 79.0764 | N176: 4.580292716e-06 | O176: 74.232
A177: 174 | B177: Afeganistão | C177: 18.9718 | D177: 2.684914426e-06 | F177: 174 | G177: Santa Sé (Cidade Estado do Vaticano) | H177: 0.018 | I177: 1.764980388e-09 | K177: 174 | L177: Bósnia-Herzegovina | M177: 78.515 | N177: 4.547775096e-06 | O177: 22.7186
A178: 175 | B178: Guiana | C178: 18.2434 | D178: 2.581830287e-06 | F178: 175 | G178: Mongólia | H178: 0.0112 | I178: 1.098210019e-09 | K178: 175 | L178: Jibuti | M178: 77.3086 | N178: 4.477897546e-06 | O178: 77.3086
A179: 176 | B179: Turcas e Caicos, Ilhas | C179: 18.0666 | D179: 2.556809315e-06 | F179: 176 | G179: Trindade e Tobago | H179: 0.0104 | I179: 1.019766447e-09 | K179: 176 | L179: Tajiquistão | M179: 59.4122 | N179: 3.441295594e-06 | O179: -59.4122
A180: 177 | B180: Laos, República Democrática Popular do | C180: 14.3872 | D180: 2.036095722e-06 | F180: 177 | G180: Haiti | H180: 0.0064 | I180: 6.275485825e-10 | K180: 177 | L180: Caimão, Ilhas | M180: 51.4562 | N180: 2.980465197e-06 | O180: 51.4562
A181: 178 | B181: Turquemenistão | C181: 11.8398 | D181: 1.675584279e-06 | F181: 178 | G181: Maldivas | H181: 0.0036 | I181: 3.529960776e-10 | K181: 178 | L181: Montenegro | M181: 46.4096 | N181: 2.68815415e-06 | O181: 45.7924
A182: 179 | B182: Barbados | C182: 11.7888 | D182: 1.668366691e-06 | F182: 179 | G182: Anguila | H182: 0 | I182: 0 | K182: 179 | L182: Bahamas | M182: 42.9652 | N182: 2.48864633e-06 | O182: 42.9652
A183: 180 | B183: Virgens Britânicas, Ilhas | C183: 9.9272 | D183: 1.404910577e-06 | F183: 180 | G183: Antárctica | H183: 0 | I183: 0 | K183: 180 | L183: São Marino | M183: 32.7902 | N183: 1.899286187e-06 | O183: -32.7502
A184: 181 | B184: Fiji, Ilhas | C184: 8.1268 | D184: 1.150115569e-06 | F184: 181 | G184: Antilhas Holandesas | H184: 0 | I184: 0 | K184: 181 | L184: Mongólia | M184: 30.8564 | N184: 1.787275902e-06 | O184: 30.834
A185: 182 | B185: Santa Lúcia | C185: 7.138 | D185: 1.010179275e-06 | F185: 182 | G185: Bahamas | H185: 0 | I185: 0 | K185: 182 | L185: Botswana | M185: 30.0852 | N185: 1.742606169e-06 | O185: -29.8964
A186: 183 | B186: Brunei Darussalam | C186: 6.98 | D186: 9.878189044e-07 | F186: 183 | G186: Bonaire, Santo Eustáquio e Saba | H186: 0 | I186: 0 | K186: 183 | L186: Papuásia-Nova Guiné | M186: 28.7226 | N186: 1.663681144e-06 | O186: -22.9514
A187: 184 | B187: Malavi | C187: 6.6034 | D187: 9.345219704e-07 | F187: 184 | G187: Bouvet, Ilha | H187: 0 | I187: 0 | K187: 184 | L187: Afeganistão | M187: 23.338 | N187: 1.351792335e-06 | O187: 14.6056
A188: 185 | B188: Guam | C188: 6.5774 | D188: 9.308424158e-07 | F188: 185 | G188: Brunei Darussalam | H188: 0 | I188: 0 | K188: 185 | L188: Quirguizistão | M188: 22.1318 | N188: 1.281926369e-06 | O188: -12.8186
A189: 186 | B189: São Vicente e Granadinas | C189: 5.6654 | D189: 8.017749601e-07 | F189: 186 | G189: Butão | H189: 0 | I189: 0 | K189: 186 | L189: Turcas e Caicos, Ilhas | M189: 18.0666 | N189: 1.04646034e-06 | O189: 18.0666
A190: 187 | B190: Quirguizistão | C190: 4.6566 | D190: 6.590082393e-07 | F190: 187 | G190: Caimão, Ilhas | H190: 0 | I190: 0 | K190: 187 | L190: Barbados | M190: 11.9266 | N190: 6.908169708e-07 | O190: 11.651
A191: 188 | B191: Menores distantes dos Estados Unidos, lhas | C191: 4.5542 | D191: 6.445164548e-07 | F191: 188 | G191: Centro-Africana, República | H191: 0 | I191: 0 | K191: 188 | L191: Virgens Britânicas, Ilhas | M191: 9.9272 | N191: 5.750069788e-07 | O191: 9.9272
A192: 189 | B192: Sudão do Sul | C192: 3.771 | D192: 5.336769468e-07 | F192: 189 | G192: Ceuta | H192: 0 | I192: 0 | K192: 189 | L192: Fiji, Ilhas | M192: 9.4914 | N192: 5.497644087e-07 | O192: 6.7622
A193: 190 | B193: Bonaire, Santo Eustáquio e Saba | C193: 3.1276 | D193: 4.426221211e-07 | F193: 190 | G193: Ceuta e Melilha | H193: 0 | I193: 0 | K193: 190 | L193: Santa Lúcia | M193: 7.138 | N193: 4.134498967e-07 | O193: 7.138
A194: 191 | B194: Marianas do Norte, Ilhas | C194: 2.9244 | D194: 4.138649863e-07 | F194: 191 | G194: Christmas, Ilha | H194: 0 | I194: 0 | K194: 191 | L194: Brunei Darussalam | M194: 6.98 | N194: 4.042981618e-07 | O194: 6.98
A195: 192 | B195: Papuásia-Nova Guiné | C195: 2.8856 | D195: 4.083739585e-07 | F195: 192 | G195: Cocos (Keeling), Ilhas | H195: 0 | I195: 0 | K195: 192 | L195: Guam | M195: 6.5774 | N195: 3.809786145e-07 | O195: 6.5774
A196: 193 | B196: Belize | C196: 2.1806 | D196: 3.086014188e-07 | F196: 193 | G196: Comores | H196: 0 | I196: 0 | K196: 193 | L196: São Vicente e Granadinas | M196: 5.707 | N196: 3.305629813e-07 | O196: 5.6238
A197: 194 | B197: Melilha | C197: 1.3464 | D197: 1.905443228e-07 | F197: 194 | G197: Cook, Ilhas | H197: 0 | I197: 0 | K197: 194 | L197: Menores distantes dos Estados Unidos, lhas | M197: 4.5542 | N197: 2.6379007e-07 | O197: 4.5542
A198: 195 | B198: Granada | C198: 0.6866 | D198: 9.716854725e-08 | F198: 195 | G198: Coreia, República Popular Democrática da | H198: 0 | I198: 0 | K198: 195 | L198: São Cristovão e Nevis | M198: 4.4378 | N198: 2.570479058e-07 | O198: -4.4378
A199: 196 | B199: Virgens dos Estados Unidos, Ilhas | C199: 0.295 | D199: 4.174879324e-08 | F199: 196 | G199: Domínica | H199: 0 | I199: 0 | K199: 196 | L199: Sudão do Sul | M199: 3.771 | N199: 2.184252676e-07 | O199: 3.771
A200: 197 | B200: Botswana | C200: 0.0944 | D200: 1.335961384e-08 | F200: 197 | G200: Eritreia | H200: 0 | I200: 0 | K200: 197 | L200: Bonaire, Santo Eustáquio e Saba | M200: 3.1276 | N200: 1.81158013e-07 | O200: 3.1276
... 58 more rows

Sheet 3
A1: Principais produtos agrícolas e agroalimentares, do mar e da floresta transacionados entre Portugal e CPLP em 2018-2022 (NC a 2 e 4 dígitos) em milhões de euros
AC4: P | AE4: Cód.NC | AF4: Descritivo | AG4: Média export quinquénio | AH4: % do total | AI4: % acumulada | AN4: P | AO4: NC | AP4: Exportações | AQ4: 2018 | AR4: 2019 | AS4: 2020 | AT4: 2021 | AU4: 2022 | AV4: média quinquénio
AC5: 1 | AD5: º | AE5: 15 | AF5: Gorduras e óleos animais ou vegetais | AG5: 332.6134712 | AH5: 0.3373134748 | AN5: 1º | AO5: 15 | AP5: Gorduras e óleos animais ou vegetais | AQ5: 319.705853 | AR5: 319.006885 | AS5: 321.475162 | AT5: 302.420715 | AU5: 400.458741 | AV5: 332.6134712
AC6: 2 | AD6: º | AE6: 22 | AF6: Bebidas, líquidos alcoólicos e vinagres | AG6: 149.201434 | AH6: 0.1513097289 | AN6: 2º | AO6: 22 | AP6: Bebidas, líquidos alcoólicos e vinagres | AQ6: 137.016244 | AR6: 139.332291 | AS6: 133.984613 | AT6: 149.735253 | AU6: 185.938769 | AV6: 149.201434
AC7: 3 | AD7: º | AE7: 03 | AF7: Peixes e crustáceos | AG7: 77.2491192 | AH7: 0.07834068997 | AI7: 0.5669638937 | AN7: 3º | AO7: 03 | AP7: Peixes e crustáceos | AQ7: 86.710624 | AR7: 84.013238 | AS7: 60.604745 | AT7: 68.819188 | AU7: 86.097801 | AV7: 77.2491192
AC8: 4 | AD8: º | AE8: 48 | AF8: Papel e cartão | AG8: 54.209305 | AH8: 0.05497531105 | AO8: - | AP8: Outros | AQ8: 516.192932 | AR8: 467.60984 | AS8: 337.742104 | AT8: 344.352082 | AU8: 469.114733 | AV8: 427.0023382
AC9: 5 | AD9: º | AE9: 04 | AF9: Leite e laticínios; ovos; mel, etc. | AG9: 53.820067 | AH9: 0.05458057291 | AP9: Total | AQ9: 1059.625653 | AR9: 1009.962254 | AS9: 853.806624 | AT9: 865.327238 | AU9: 1141.610044 | AV9: 986.0663626
AC10: 6 | AD10: º | AE10: 08 | AF10: Frutas | AG10: 45.6320192 | AH10: 0.04627682368
AC11: 7 | AD11: º | AE11: 19a | AF11: Preparações à base de cereais (exc. NC 19022010) (a) | AG11: 39.8831878 | AH11: 0.04044675826
AC12: 8 | AD12: º | AE12: 16a | AF12: Preparações de carnes (exc. NC 1604-05) (a) | AG12: 33.2030364 | AH12: 0.0336722128
AC13: 9 | AD13: º | AE13: 02 | AF13: Carnes e miudezas | AG13: 22.7649028 | AH13: 0.02308658287
AC14: 10 | AD14: º | AE14: 20 | AF14: Preparações de produtos vegetais | AG14: 21.9260902 | AH14: 0.02223591741 | AI14: 0.8422380727
AE15: - | AF15: Outros | AG15: 155.5637298 | AH15: 0.1577619273
AE16: Total | AG16: 986.0663626 | AH16: 1
AC38: P | AE38: Cód.NC | AF38: Descritivo | AG38: Média import quinquénio | AH38: % do total | AI38: % acumulada | AN38: P | AO38: NC | AP38: Importações | AQ38: 2018 | AR38: 2019 | AS38: 2020 | AT38: 2021 | AU38: 2022 | AV38: média quinquénio
AC39: 1 | AD39: º | AE39: 12 | AF39: Sementes e frutos oleaginosos | AG39: 222.4272204 | AH39: 0.2912894621 | AN39: 1º | AO39: 12 | AP39: Sementes e frutos oleaginosos | AQ39: 105.333923 | AR39: 116.84037 | AS39: 228.005808 | AT39: 294.922326 | AU39: 367.033675 | AV39: 222.4272204
AC40: 2 | AD40: º | AE40: 10 | AF40: Cereais | AG40: 170.961487 | AH40: 0.2238902213 | AN40: 2º | AO40: 10 | AP40: Cereais | AQ40: 122.512824 | AR40: 129.794805 | AS40: 118.309422 | AT40: 115.016368 | AU40: 369.174016 | AV40: 170.961487
AC41: 3 | AD41: º | AE41: 44 | AF41: Madeira e suas obras | AG41: 95.3140076 | AH41: 0.1248226991 | AI41: 0.6400023825 | AN41: 3º | AO41: 44 | AP41: Madeira e suas obras | AQ41: 25.84716 | AR41: 43.362016 | AS41: 42.836666 | AT41: 135.470732 | AU41: 229.053464 | AV41: 95.3140076
AC42: 4 | AD42: º | AE42: 08 | AF42: Frutas | AG42: 53.41464 | AH42: 0.06995151819 | AO42: - | AP42: Outros | AQ42: 213.950229 | AR42: 259.324712 | AS42: 193.75031 | AT42: 286.402203 | AU42: 421.034719 | AV42: 274.8924346
AC43: 5 | AD43: º | AE43: 17 | AF43: Açúcares e produtos de confeitaria | AG43: 42.2609244 | AH43: 0.05534467371 | AP43: Total | AQ43: 467.644136 | AR43: 549.321903 | AS43: 582.902206 | AT43: 831.811629 | AU43: 1386.295874 | AV43: 763.5951496
AC44: 6 | AD44: º | AE44: 03 | AF44: Peixes e crustáceos | AG44: 33.3229444 | AH44: 0.04363954435
AC45: 7 | AD45: º | AE45: 13f | AF45: Gomas e resinas (NC 1301) (f) | AG45: 27.168236 | AH45: 0.03557937215
AC46: 8 | AD46: º | AE46: 38f | AF46: Tall oil, essências e colofónias (f) | AG46: 18.4731984 | AH46: 0.02419239883
AC47: 9 | AD47: º | AE47: 09 | AF47: Café, chá, mate e especiarias | AG47: 18.4161672 | AH47: 0.02411771108
AC48: 10 | AD48: º | AE48: 48 | AF48: Papel e cartão | AG48: 15.1747952 | AH48: 0.01987282817 | AI48: 0.912700429
AE49: - | AF49: Outros | AG49: 66.661529 | AH49: 0.08729957103
AE50: Total | AG50: 763.5951496 | AH50: 1
AC62: DESAGREGAÇÃO A 4 DÍGITOS | AN62: DESAGREGAÇÃO A 4 DÍGITOS
AC64: P | AE64: Cód.NC | AF64: Descritivo | AG64: Média export quinquénio | AH64: % do total | AI64: % acumulada | AN64: P | AO64: NC | AP64: Exportações | AQ64: 2018 | AR64: 2019 | AS64: 2020 | AT64: 2021 | AU64: 2022 | AV64: média quinquénio
AC65: 1 | AD65: º | AE65: 1509 | AF65: Azeite (processos mecânicos ou físicos) | AG65: 262.911595 | AH65: 0.2666266744 | AN65: 1º | AO65: 1509 | AP65: Azeite (processos mecânicos ou físicos) | AQ65: 237.997747 | AR65: 250.415619 | AS65: 264.042875 | AT65: 243.687143 | AU65: 318.414591 | AV65: 262.911595
AC66: 2 | AD66: º | AE66: 2204 | AF66: Vinhos de uvas frescas | AG66: 115.2176846 | AH66: 0.1168457712 | AN66: 2º | AO66: 2204 | AP66: Vinhos de uvas frescas | AQ66: 106.027533 | AR66: 106.694934 | AS66: 108.478682 | AT66: 115.011599 | AU66: 139.875675 | AV66: 115.2176846
AC67: 3 | AD67: º | AE67: 1507 | AF67: Óleo de soja e suas frações | AG67: 56.7434166 | AH67: 0.05754523098 | AI67: 0.4410176766 | AN67: 3º | AO67: 1507 | AP67: Óleo de soja e suas frações | AQ67: 64.585988 | AR67: 57.865333 | AS67: 47.868254 | AT67: 48.02447 | AU67: 65.373038 | AV67: 56.7434166
AC68: 4 | AD68: º | AE68: 0303 | AF68: Peixes congelados | AG68: 37.2516626 | AH68: 0.03777804823 | AN68: - | AO68: - | AP68: Outros | AQ68: 651.014385 | AR68: 594.986368 | AS68: 433.416813 | AT68: 458.604026 | AU68: 617.94674 | AV68: 551.1936664
AC69: 5 | AD69: º | AE69: 0808 | AF69: Maçãs, peras e marmelos, frescos | AG69: 33.4781108 | AH69: 0.03395117415 | AP69: Total | AQ69: 1059.625653 | AR69: 1009.962254 | AS69: 853.806624 | AT69: 865.327238 | AU69: 1141.610044 | AV69: 986.0663626
AC70: 6 | AD70: º | AE70: 1601 | AF70: Enchidos e etc., de carne, miudezas ou sangue | AG70: 27.341706 | AH70: 0.02772805872
AC71: 7 | AD71: º | AE71: 0305 | AF71: Peixes secos, salgados ou fumados | AG71: 19.7307482 | AH71: 0.02000955407
AC72: 8 | AD72: º | AE72: 0401 | AF72: Leite e nata, não concentrados | AG72: 19.3326486 | AH72: 0.01960582911
AC73: 9 | AD73: º | AE73: 2203 | AF73: Cervejas de malte | AG73: 17.044171 | AH73: 0.01728501412
AC74: 10 | AD74: º | AE74: 1905 | AF74: Produtos de padaria, pastelaria, etc. | AG74: 16.3110566 | AH74: 0.01654154043 | AI74: 0.6139168954
AE75: - | AF75: Outros | AG75: 380.7035626 | AH75: 0.3860831046
AE76: Total | AG76: 986.0663626 | AH76: 1
AC89: DESAGREGAÇÃO A 4 DÍGITOS | AN89: DESAGREGAÇÃO A 4 DÍGITOS
G91: média 2018-2022 em milhões de euros | I91: Cód. NC | J91: Descritivo | K91: Export | L91: Import | M91: Saldo | AC91: P | AE91: Cód.NC | AF91: Descritivo | AG91: Média import quinquénio | AH91: % do total | AI91: % acumulada | AN91: P | AO91: NC | AP91: Importações | AQ91: 2018 | AR91: 2019 | AS91: 2020 | AT91: 2021 | AU91: 2022 | AV91: média quinquénio
I92: 1509 | J92: Azeite (processos mecânicos ou físicos) | K92: 262.911595 | L92: 0.0290888 | M92: 262.8825062 | AC92: 1 | AD92: º | AE92: 1201 | AF92: Soja, mesmo triturada | AG92: 221.0633966 | AH92: 0.289503406 | AN92: 1º | AO92: 1201 | AP92: Soja, mesmo triturada | AQ92: 103.674458 | AR92: 115.620077 | AS92: 227.319337 | AT92: 293.933283 | AU92: 364.769828 | AV92: 221.0633966
I93: 2204 | J93: Vinhos de uvas frescas | K93: 115.2176846 | L93: 0.331401 | M93: 114.8862836 | AC93: 2 | AD93: º | AE93: 1005 | AF93: Milho | AG93: 168.9433522 | AH93: 0.2212472831 | AN93: 2º | AO93: 1005 | AP93: Milho | AQ93: 122.486187 | AR93: 129.771597 | AS93: 118.29019 | AT93: 114.986015 | AU93: 359.182772 | AV93: 168.9433522
I94: 1507 | J94: Óleo de soja e suas frações | K94: 56.7434166 | L94: 0.0181948 | M94: 56.7252218 | AC94: 3 | AD94: º | AE94: 4403 | AF94: Madeira em bruto | AG94: 45.1563406 | AH94: 0.05913649481 | AI94: 0.5698871838 | AN94: 3º | AO94: 4403 | AP94: Madeira em bruto | AQ94: 1.070392 | AR94: 7.048357 | AS94: 17.950341 | AT94: 68.846307 | AU94: 130.866306 | AV94: 45.1563406
I95: 0303 | J95: Peixes congelados | K95: 37.2516626 | L95: 0.5386042 | M95: 36.7130584 | AC95: 4 | AD95: º | AE95: 1701 | AF95: Açúcares (cana/beterraba); sacarose pura | AG95: 41.9838294 | AH95: 0.05498179162 | AN95: - | AO95: - | AP95: Outros | AQ95: 240.413099 | AR95: 296.881872 | AS95: 219.342338 | AT95: 354.046024 | AU95: 531.476968 | AV95: 328.4320602
I96: 0808 | J96: Maçãs, peras e marmelos, frescos | K96: 33.4781108 | L96: 3.3287232 | M96: 30.1493876 | AC96: 5 | AD96: º | AE96: 0306 | AF96: Crustáceos | AG96: 30.7311814 | AH96: 0.04024538581 | AP96: Total | AQ96: 467.644136 | AR96: 549.321903 | AS96: 582.902206 | AT96: 831.811629 | AU96: 1386.295874 | AV96: 763.5951496
I97: 1601 | J97: Enchidos e etc., de carne, miudezas ou sangue | K97: 27.341706 | L97: 1.6e-06 | M97: 27.3417044 | AC97: 6 | AD97: º | AE97: 4401 | AF97: Lenha, resíduos de madeira, etc. | AG97: 30.1616154 | AH97: 0.03949948532
I98: 0305 | J98: Peixes secos, salgados ou fumados | K98: 19.7307482 | L98: 0.0346492 | M98: 19.696099 | AC98: 7 | AD98: º | AE98: 1301 | AF98: Goma-laca; gomas, resinas, etc. | AG98: 27.168236 | AH98: 0.03557937215
I99: 0401 | J99: Leite e nata, não concentrados | K99: 19.3326486 | L99: 0 | M99: 19.3326486 | AC99: 8 | AD99: º | AE99: 0807 | AF99: Melões, melancias e papaia, frescos | AG99: 22.0224492 | AH99: 0.02884047811
I100: 2203 | J100: Cervejas de malte | K100: 17.044171 | L100: 0.2540672 | M100: 16.7901038 | AC100: 9 | AD100: º | AE100: 0804 | AF100: Tâmaras, figos, ananases, abacates, goiabas, mangas | AG100: 20.7153448 | AH100: 0.02712870139
I101: 0304 | J101: Filetes de peixes | K101: 16.2607446 | L101: 0.1061832 | M101: 16.1545614 | AC101: 10 | AD101: º | AE101: 3806 | AF101: Colofónias e derivados | AG101: 18.4726696 | AH101: 0.02419170631 | AI101: 0.8203541046
I102: - | J102: Outros | K102: 374.8842094 | L102: 132.5358212 | M102: 242.3483882 | AE102: - | AF102: Outros | AG102: 137.1767344 | AH102: 0.1796458954
I103: 3806 | J103: Colofónias e derivados | K103: 0.2710816 | L103: 18.4726696 | M103: -18.201588 | AE103: Total | AG103: 763.5951496 | AH103: 1
I104: 0804 | J104: Tâmaras, figos, ananases, abacates, goiabas, mangas | K104: 0.5579716 | L104: 20.7153448 | M104: -20.1573732
I105: 0807 | J105: Melões, melancias e papaia, frescos | K105: 0.5517714 | L105: 22.0224492 | M105: -21.4706778
I106: 1301 | J106: Goma-laca; gomas, resinas, etc. | K106: 0.0590934 | L106: 27.168236 | M106: -27.1091426
I107: 0306 | J107: Crustáceos | K107: 0.9427912 | L107: 30.7311814 | M107: -29.7883902
I108: 4401 | J108: Lenha, resíduos de madeira, etc. | K108: 0.0350794 | L108: 30.1616154 | M108: -30.126536
I109: 1701 | J109: Açúcares (cana/beterraba); sacarose pura | K109: 2.43456 | L109: 41.9838294 | M109: -39.5492694
I110: 4403 | J110: Madeira em bruto | K110: 0.2419002 | L110: 45.1563406 | M110: -44.9144404
I111: 1005 | J111: Milho | K111: 0.6282186 | L111: 168.9433522 | M111: -168.3151336
I112: 1201 | J112: Soja, mesmo triturada | K112: 0.1471978 | L112: 221.0633966 | M112: -220.9161988
I113: Total | K113: 986.0663626 | L113: 763.5951496 | M113: 222.471213
A116: Fonte: GPP a partir de dados INE/Comércio Internacional (2021 provisórios; 2022 preliminares) | Y116: 2023-07-14T16:05:30.160

Sheet 3A
A1: Principais produtos agrícolas e agroalimentares transacionados entre Portugal e CPLP em 2018-2022 (NC a 2 e 4 dígitos) em milhões de euros
AC4: P | AE4: Cód.NC | AF4: Descritivo | AG4: Média export quinquénio | AH4: % do total | AI4: % acumulada | AN4: P | AO4: NC | AP4: Exportações | AQ4: 2018 | AR4: 2019 | AS4: 2020 | AT4: 2021 | AU4: 2022 | AV4: média quinquénio
AC5: 1 | AD5: º | AE5: 15 | AF5: Gorduras e óleos animais ou vegetais | AG5: 332.6134712 | AH5: 0.4095368464 | AN5: 1º | AO5: 15 | AP5: Gorduras e óleos animais ou vegetais | AQ5: 319.705853 | AR5: 319.006885 | AS5: 321.475162 | AT5: 302.420715 | AU5: 400.458741 | AV5: 332.6134712
AC6: 2 | AD6: º | AE6: 22 | AF6: Bebidas, líquidos alcoólicos e vinagres | AG6: 149.201434 | AH6: 0.1837071858 | AN6: 2º | AO6: 22 | AP6: Bebidas, líquidos alcoólicos e vinagres | AQ6: 137.016244 | AR6: 139.332291 | AS6: 133.984613 | AT6: 149.735253 | AU6: 185.938769 | AV6: 149.201434
AC7: 3 | AD7: º | AE7: 04 | AF7: Leite e laticínios; ovos; mel, etc. | AG7: 53.820067 | AH7: 0.06626701088 | AI7: 0.6595110432 | AN7: 3º | AO7: 04 | AP7: Leite e laticínios; ovos; mel, etc. | AQ7: 65.102794 | AR7: 59.170849 | AS7: 39.925196 | AT7: 44.847613 | AU7: 60.053883 | AV7: 53.820067
AC8: 4 | AD8: º | AE8: 08 | AF8: Frutas | AG8: 45.6320192 | AH8: 0.05618531677 | AO8: - | AP8: Outros | AQ8: 333.787714 | AR8: 306.109942 | AS8: 227.381094 | AT8: 218.167643 | AU8: 297.227899 | AV8: 276.5348584
AC9: 5 | AD9: º | AE9: 19a | AF9: Preparações à base de cereais (exc. NC 19022010) (a) | AG9: 39.8831878 | AH9: 0.04910695559 | AP9: Total | AQ9: 855.612605 | AR9: 823.619967 | AS9: 722.766065 | AT9: 715.171224 | AU9: 943.679292 | AV9: 812.1698306
AC10: 6 | AD10: º | AE10: 16a | AF10: Preparações de carnes (exc. NC 1604-05) (a) | AG10: 33.2030364 | AH10: 0.04088188843
AC11: 7 | AD11: º | AE11: 02 | AF11: Carnes e miudezas | AG11: 22.7649028 | AH11: 0.02802973214
AC12: 8 | AD12: º | AE12: 20 | AF12: Preparações de produtos vegetais | AG12: 21.9260902 | AH12: 0.0269969277
AC13: 9 | AD13: º | AE13: 11 | AF13: Produtos da indústria de moagem e outros | AG13: 20.237718 | AH13: 0.02491808639
AC14: 10 | AD14: º | AE14: 21 | AF14: Preparações alimentícias diversas | AG14: 18.3340832 | AH14: 0.02257419878 | AI14: 0.9082041489
AE15: - | AF15: Outros | AG15: 74.5538208 | AH15: 0.09179585105
AE16: Total | AG16: 812.1698306 | AH16: 1
AC38: P | AE38: Cód.NC | AF38: Descritivo | AG38: Média import quinquénio | AH38: % do total | AI38: % acumulada | AN38: P | AO38: NC | AP38: Importações | AQ38: 2018 | AR38: 2019 | AS38: 2020 | AT38: 2021 | AU38: 2022 | AV38: média quinquénio
AC39: 1 | AD39: º | AE39: 12 | AF39: Sementes e frutos oleaginosos | AG39: 222.4272204 | AH39: 0.3893729157 | AN39: 1º | AO39: 12 | AP39: Sementes e frutos oleaginosos | AQ39: 105.333923 | AR39: 116.84037 | AS39: 228.005808 | AT39: 294.922326 | AU39: 367.033675 | AV39: 222.4272204
AC40: 2 | AD40: º | AE40: 10 | AF40: Cereais | AG40: 170.961487 | AH40: 0.2992788947 | AN40: 2º | AO40: 10 | AP40: Cereais | AQ40: 122.512824 | AR40: 129.794805 | AS40: 118.309422 | AT40: 115.016368 | AU40: 369.174016 | AV40: 170.961487
AC41: 3 | AD41: º | AE41: 08 | AF41: Frutas | AG41: 53.41464 | AH41: 0.09350570528 | AI41: 0.7821575156 | AN41: 3º | AO41: 08 | AP41: Frutas | AQ41: 55.484017 | AR41: 56.75199 | AS41: 41.200165 | AT41: 51.95217 | AU41: 61.684858 | AV41: 53.41464
AC42: 4 | AD42: º | AE42: 17 | AF42: Açúcares e produtos de confeitaria | AG42: 42.2609244 | AH42: 0.07398042076 | AO42: - | AP42: Outros | AQ42: 78.26983 | AR42: 108.442041 | AS42: 81.876557 | AT42: 138.916349 | AU42: 214.702063 | AV42: 124.441368
AC43: 5 | AD43: º | AE43: 09 | AF43: Café, chá, mate e especiarias | AG43: 18.4161672 | AH43: 0.03223866533 | AP43: Total | AQ43: 361.600594 | AR43: 411.829206 | AS43: 469.391952 | AT43: 600.807213 | AU43: 1012.594612 | AV43: 571.2447154
AC44: 6 | AD44: º | AE44: 52 | AF44: Algodão (NC 5201-5203) | AG44: 12.7487196 | AH44: 0.02231743989
AC45: 7 | AD45: º | AE45: 24 | AF45: Tabaco | AG45: 11.9991114 | AH45: 0.02100520333
AC46: 8 | AD46: º | AE46: 05a | AF46: Outros produtos de origem animal (exc. NC 0508, 051191) (a) | AG46: 8.9490994 | AH46: 0.01566596444
AC47: 9 | AD47: º | AE47: 02 | AF47: Carnes e miudezas | AG47: 5.9858416 | AH47: 0.01047859427
AC48: 10 | AD48: º | AE48: 23a | AF48: Resíduos indústrias alimentares; alimentos p/ animais (exc. NC 230120) (a) | AG48: 4.091465 | AH48: 0.007162368228 | AI48: 0.9650061719
AE49: - | AF49: Outros | AG49: 19.9900394 | AH49: 0.03499382815
AE50: Total | AG50: 571.2447154 | AH50: 1
AC62: DESAGREGAÇÃO A 4 DÍGITOS | AN62: DESAGREGAÇÃO A 4 DÍGITOS
AC64: P | AE64: Cód.NC | AF64: Descritivo | AG64: Média export quinquénio | AH64: % do total | AI64: % acumulada | AN64: P | AO64: NC | AP64: Exportações | AQ64: 2018 | AR64: 2019 | AS64: 2020 | AT64: 2021 | AU64: 2022 | AV64: média quinquénio
AC65: 1 | AD65: º | AE65: 1509 | AF65: Azeite (processos mecânicos ou físicos) | AG65: 262.911595 | AH65: 0.3237150471 | AN65: 1º | AO65: 1509 | AP65: Azeite (processos mecânicos ou físicos) | AQ65: 237.997747 | AR65: 250.415619 | AS65: 264.042875 | AT65: 243.687143 | AU65: 318.414591 | AV65: 262.911595
AC66: 2 | AD66: º | AE66: 2204 | AF66: Vinhos de uvas frescas | AG66: 115.2176846 | AH66: 0.1418640292 | AN66: 2º | AO66: 2204 | AP66: Vinhos de uvas frescas | AQ66: 106.027533 | AR66: 106.694934 | AS66: 108.478682 | AT66: 115.011599 | AU66: 139.875675 | AV66: 115.2176846
AC67: 3 | AD67: º | AE67: 1507 | AF67: Óleo de soja e suas frações | AG67: 56.7434166 | AH67: 0.06986644229 | AI67: 0.5354455187 | AN67: 3º | AO67: 1507 | AP67: Óleo de soja e suas frações | AQ67: 64.585988 | AR67: 57.865333 | AS67: 47.868254 | AT67: 48.02447 | AU67: 65.373038 | AV67: 56.7434166
AC68: 4 | AD68: º | AE68: 0808 | AF68: Maçãs, peras e marmelos, frescos | AG68: 33.4781108 | AH68: 0.04122057917 | AN68: - | AO68: - | AP68: Outros | AQ68: 447.001337 | AR68: 408.644081 | AS68: 302.376254 | AT68: 308.448012 | AU68: 420.015988 | AV68: 377.2971344
AC69: 5 | AD69: º | AE69: 1601 | AF69: Enchidos e etc., de carne, miudezas ou sangue | AG69: 27.341706 | AH69: 0.03366501065 | AP69: Total | AQ69: 855.612605 | AR69: 823.619967 | AS69: 722.766065 | AT69: 715.171224 | AU69: 943.679292 | AV69: 812.1698306
AC70: 6 | AD70: º | AE70: 0401 | AF70: Leite e nata, não concentrados | AG70: 19.3326486 | AH70: 0.02380370197
AC71: 7 | AD71: º | AE71: 2203 | AF71: Cervejas de malte | AG71: 17.044171 | AH71: 0.02098596914
AC72: 8 | AD72: º | AE72: 1905 | AF72: Produtos de padaria, pastelaria, etc. | AG72: 16.3110566 | AH72: 0.02008330768
AC73: 9 | AD73: º | AE73: 1901 | AF73: Extratos de malte; preparações de farinhas, etc., sem cacau | AG73: 13.9576816 | AH73: 0.01718566865
AC74: 10 | AD74: º | AE74: 1101 | AF74: Farinhas de trigo ou trigo/centeio | AG74: 12.1003938 | AH74: 0.0148988467 | AI74: 0.7072886027
AE75: - | AF75: Outros | AG75: 237.731366 | AH75: 0.2927113973
AE76: Total | AG76: 812.1698306 | AH76: 1
AC89: DESAGREGAÇÃO A 4 DÍGITOS | AN89: DESAGREGAÇÃO A 4 DÍGITOS
G91: média 2018-2022 em milhões de euros | I91: Cód. NC | J91: Descritivo | K91: Export | L91: Import | M91: Saldo | AC91: P | AE91: Cód.NC | AF91: Descritivo | AG91: Média import quinquénio | AH91: % do total | AI91: % acumulada | AN91: P | AO91: NC | AP91: Importações | AQ91: 2018 | AR91: 2019 | AS91: 2020 | AT91: 2021 | AU91: 2022 | AV91: média quinquénio
I92: 1509 | J92: Azeite (processos mecânicos ou físicos) | K92: 262.911595 | L92: 0.0290888 | M92: 262.8825062 | AC92: 1 | AD92: º | AE92: 1201 | AF92: Soja, mesmo triturada | AG92: 221.0633966 | AH92: 0.3869854559 | AN92: 1º | AO92: 1201 | AP92: Soja, mesmo triturada | AQ92: 103.674458 | AR92: 115.620077 | AS92: 227.319337 | AT92: 293.933283 | AU92: 364.769828 | AV92: 221.0633966
I93: 2204 | J93: Vinhos de uvas frescas | K93: 115.2176846 | L93: 0.331401 | M93: 114.8862836 | AC93: 2 | AD93: º | AE93: 1005 | AF93: Milho | AG93: 168.9433522 | AH93: 0.2957460221 | AN93: 2º | AO93: 1005 | AP93: Milho | AQ93: 122.486187 | AR93: 129.771597 | AS93: 118.29019 | AT93: 114.986015 | AU93: 359.182772 | AV93: 168.9433522
I94: 1507 | J94: Óleo de soja e suas frações | K94: 56.7434166 | L94: 0.0181948 | M94: 56.7252218 | AC94: 3 | AD94: º | AE94: 1701 | AF94: Açúcares (cana/beterraba); sacarose pura | AG94: 41.9838294 | AH94: 0.07349534844 | AI94: 0.7562268264 | AN94: 3º | AO94: 1701 | AP94: Açúcares (cana/beterraba); sacarose pura | AQ94: 12.008115 | AR94: 23.233598 | AS94: 20.600679 | AT94: 63.404101 | AU94: 90.672654 | AV94: 41.9838294
I95: 0808 | J95: Maçãs, peras e marmelos, frescos | K95: 33.4781108 | L95: 3.3287232 | M95: 30.1493876 | AC95: 4 | AD95: º | AE95: 0807 | AF95: Melões, melancias e papaia, frescos | AG95: 22.0224492 | AH95: 0.03855169003 | AN95: - | AO95: - | AP95: Outros | AQ95: 123.431834 | AR95: 143.203934 | AS95: 103.181746 | AT95: 128.483814 | AU95: 197.969358 | AV95: 139.2541372
I96: 1601 | J96: Enchidos e etc., de carne, miudezas ou sangue | K96: 27.341706 | L96: 1.6e-06 | M96: 27.3417044 | AC96: 5 | AD96: º | AE96: 0804 | AF96: Tâmaras, figos, ananases, abacates, goiabas, mangas | AG96: 20.7153448 | AH96: 0.03626352112 | AP96: Total | AQ96: 361.600594 | AR96: 411.829206 | AS96: 469.391952 | AT96: 600.807213 | AU96: 1012.594612 | AV96: 571.2447154
I97: 0401 | J97: Leite e nata, não concentrados | K97: 19.3326486 | L97: 0 | M97: 19.3326486 | AC97: 6 | AD97: º | AE97: 0901 | AF97: Café | AG97: 18.298383 | AH97: 0.03203247664
I98: 2203 | J98: Cervejas de malte | K98: 17.044171 | L98: 0.2540672 | M98: 16.7901038 | AC98: 7 | AD98: º | AE98: 5201 | AF98: Algodão não cardado nem penteado | AG98: 12.7041168 | AH98: 0.02223935987
I99: 1905 | J99: Produtos de padaria, pastelaria, etc. | K99: 16.3110566 | L99: 1.344501 | M99: 14.9665556 | AC99: 8 | AD99: º | AE99: 2401 | AF99: Tabaco não manufaturado | AG99: 11.9986084 | AH99: 0.0210043228
I100: 1901 | J100: Extratos de malte; preparações de farinhas, etc., sem cacau | K100: 13.9576816 | L100: 0.8022908 | M100: 13.1553908 | AC100: 9 | AD100: º | AE100: 0504 | AF100: Tripas de animais (excepto peixes) | AG100: 8.9476346 | AH100: 0.01566340022
I101: 1101 | J101: Farinhas de trigo ou trigo/centeio | K101: 12.1003938 | L101: 5.34e-05 | M101: 12.1003404 | AC101: 10 | AD101: º | AE101: 0202 | AF101: Carnes de bovino, congeladas | AG101: 3.9940434 | AH101: 0.006991825556 | AI101: 0.9289734226
I102: - | J102: Outros | K102: 220.1994036 | L102: 35.3060898 | M102: 184.8933138 | AE102: - | AF102: Outros | AG102: 40.573557 | AH102: 0.07102657741
I103: 0504 | J103: Tripas de animais (excepto peixes) | K103: 6.8742838 | L103: 8.9476346 | M103: -2.0733508 | AE103: Total | AG103: 571.2447154 | AH103: 1
I104: 0803 | J104: Bananas, frescas ou secas | K104: 0.0344398 | L104: 3.1531888 | M104: -3.118749
I105: 2401 | J105: Tabaco não manufaturado | K105: 0 | L105: 11.9986084 | M105: -11.9986084
I106: 0901 | J106: Café | K106: 6.25452 | L106: 18.298383 | M106: -12.043863
I107: 5201 | J107: Algodão não cardado nem penteado | K107: 0.0489994 | L107: 12.7041168 | M107: -12.6551174
I108: 0804 | J108: Tâmaras, figos, ananases, abacates, goiabas, mangas | K108: 0.5579716 | L108: 20.7153448 | M108: -20.1573732
I109: 0807 | J109: Melões, melancias e papaia, frescos | K109: 0.5517714 | L109: 22.0224492 | M109: -21.4706778
I110: 1701 | J110: Açúcares (cana/beterraba); sacarose pura | K110: 2.43456 | L110: 41.9838294 | M110: -39.5492694
I111: 1005 | J111: Milho | K111: 0.6282186 | L111: 168.9433522 | M111: -168.3151336
I112: 1201 | J112: Soja, mesmo triturada | K112: 0.1471978 | L112: 221.0633966 | M112: -220.9161988
I113: Total | K113: 812.1698306 | L113: 571.2447154 | M113: 240.9251152
A116: Fonte: GPP a partir de dados INE/Comércio Internacional (2021 provisórios; 2022 preliminares) | Y116: 2023-07-14T16:05:30.160

Sheet 3B
A1: Principais origens e destinos em CPLP para os produtos agrícolas, agroalimentares, do mar e da floresta (2018-2022) em milhões de euros
AC4: P | AE4: País | AF4: Média export quinquénio | AG4: % do total | AH4: % acumulada | AM4: P | AN4: Exportações | AO4: 2018 | AP4: 2019 | AQ4: 2020 | AR4: 2021 | AS4: 2022 | AT4: média quinquénio
AC5: 1 | AD5: º | AE5: Brasil | AF5: 452.7162062 | AG5: 0.4591133248 | AM5: 1º | AN5: Brasil | AO5: 426.935687 | AP5: 464.506214 | AQ5: 435.785123 | AR5: 416.153721 | AS5: 520.200286 | AT5: 452.7162062
AC6: 2 | AD6: º | AE6: Angola | AF6: 331.1196562 | AG6: 0.3357985515 | AM6: 2º | AN6: Angola | AO6: 456.113723 | AP6: 355.161704 | AQ6: 239.847484 | AR6: 240.275672 | AS6: 364.199698 | AT6: 331.1196562
AC7: 3 | AD7: º | AE7: Cabo Verde | AF7: 100.8999446 | AG7: 0.102325714 | AH7: 0.8972375902 | AM7: 3º | AN7: Cabo Verde | AO7: 87.033133 | AP7: 94.949115 | AQ7: 91.426216 | AR7: 103.626034 | AS7: 127.465225 | AT7: 100.8999446
AC8: 4 | AD8: º | AE8: Moçambique | AF8: 37.451371 | AG8: 0.03798057861 | AN8: Outros | AO8: 89.54311 | AP8: 95.345221 | AQ8: 86.747801 | AR8: 105.271811 | AS8: 129.744835 | AT8: 101.3305556
AC9: 5 | AD9: º | AE9: Guiné-Bissau | AF9: 32.1823282 | AG9: 0.03263708146 | AN9: Total | AO9: 1059.625653 | AP9: 1009.962254 | AQ9: 853.806624 | AR9: 865.327238 | AS9: 1141.610044 | AT9: 986.0663626
AC10: 6 | AD10: º | AE10: São Tomé e Príncipe | AF10: 26.7940764 | AG10: 0.02717269082
AC11: 7 | AD11: º | AE11: Timor-Leste | AF11: 2.726394 | AG11: 0.002764919384
AC12: 8 | AD12: º | AE12: Guiné Equatorial | AF12: 2.176386 | AG12: 0.002207139481
AC13: 9 | AD13: º | AF13: 0 | AG13: 0
AC14: 10 | AD14: º | AF14: 0 | AG14: 0 | AH14: 1
AF15: 0 | AG15: 0
AE16: Total | AF16: 986.0663626 | AG16: 1
AC38: P | AE38: País | AF38: Média import quinquénio | AG38: % do total | AH38: % acumulada | AM38: P | AN38: Importações | AO38: 2018 | AP38: 2019 | AQ38: 2020 | AR38: 2021 | AS38: 2022 | AT38: média quinquénio
AC39: 1 | AD39: º | AE39: Brasil | AF39: 705.2742876 | AG39: 0.9236233205 | AM39: 1º | AN39: Brasil | AO39: 416.915329 | AP39: 497.096898 | AQ39: 534.293365 | AR39: 769.956032 | AS39: 1308.109814 | AT39: 705.2742876
AC40: 2 | AD40: º | AE40: Moçambique | AF40: 40.0081492 | AG40: 0.05239445172 | AM40: 2º | AN40: Moçambique | AO40: 37.766394 | AP40: 38.473791 | AQ40: 32.949023 | AR40: 38.152298 | AS40: 52.69924 | AT40: 40.0081492
AC41: 3 | AD41: º | AE41: Angola | AF41: 15.4231486 | AG41: 0.02019807041 | AH41: 0.9962158426 | AM41: 3º | AN41: Angola | AO41: 9.24767 | AP41: 11.02357 | AQ41: 13.854575 | AR41: 20.961996 | AS41: 22.027932 | AT41: 15.4231486
AC42: 4 | AD42: º | AE42: São Tomé e Príncipe | AF42: 1.0537266 | AG42: 0.001379954549 | AN42: Outros | AO42: 3.714743 | AP42: 2.727644 | AQ42: 1.805243 | AR42: 2.741303 | AS42: 3.458888 | AT42: 2.8895642
AC43: 5 | AD43: º | AE43: Cabo Verde | AF43: 0.8361366 | AG43: 0.001094999884 | AN43: Total | AO43: 467.644136 | AP43: 549.321903 | AQ43: 582.902206 | AR43: 831.811629 | AS43: 1386.295874 | AT43: 763.5951496
AC44: 6 | AD44: º | AE44: Timor-Leste | AF44: 0.61451 | AG44: 0.0008047589096
AC45: 7 | AD45: º | AE45: Guiné-Bissau | AF45: 0.3792046 | AG45: 0.0004966042545
AC46: 8 | AD46: º | AE46: Guiné Equatorial | AF46: 0.0059864 | AG46: 7.839756451e-06
AC47: 9 | AD47: º | AF47: 0 | AG47: 0
AC48: 10 | AD48: º | AF48: 0 | AG48: 0 | AH48: 1
AF49: 0 | AG49: 0
AE50: Total | AF50: 763.5951496 | AG50: 1
A57: Fonte: GPP a partir de dados INE/Comércio Internacional (2021 provisórios; 2022 preliminares) | Y57: 2023-07-14T16:05:30.160

Sheet 3C
A1: Principais origens e destinos em CPLP para os produtos agrícolas e agroalimentares (2018-2022) em milhões de euros
AC4: P | AE4: País | AF4: Média export quinquénio | AG4: % do total | AH4: % acumulada | AM4: P | AN4: Exportações | AO4: 2018 | AP4: 2019 | AQ4: 2020 | AR4: 2021 | AS4: 2022 | AT4: média quinquénio
AC5: 1 | AD5: º | AE5: Brasil | AF5: 371.2112184 | AG5: 0.4570610781 | AM5: 1º | AN5: Brasil | AO5: 337.656974 | AP5: 375.214421 | AQ5: 369.120801 | AR5: 342.679632 | AS5: 431.384264 | AT5: 371.2112184
AC6: 2 | AD6: º | AE6: Angola | AF6: 270.8153222 | AG6: 0.333446666 | AM6: 2º | AN6: Angola | AO6: 372.008146 | AP6: 293.451069 | AQ6: 203.104681 | AR6: 194.451632 | AS6: 291.061083 | AT6: 270.8153222
AC7: 3 | AD7: º | AE7: Cabo Verde | AF7: 85.4470724 | AG7: 0.1052083803 | AH7: 0.8957161244 | AM7: 3º | AN7: Cabo Verde | AO7: 73.020172 | AP7: 77.618992 | AQ7: 78.36773 | AR7: 88.687079 | AS7: 109.541389 | AT7: 85.4470724
AC8: 4 | AD8: º | AE8: Guiné-Bissau | AF8: 30.105257 | AG8: 0.03706768691 | AN8: Outros | AO8: 72.927313 | AP8: 77.335485 | AQ8: 72.172853 | AR8: 89.352881 | AS8: 111.692556 | AT8: 84.6962176
AC9: 5 | AD9: º | AE9: São Tomé e Príncipe | AF9: 25.2607912 | AG9: 0.03110284358 | AN9: Total | AO9: 855.612605 | AP9: 823.619967 | AQ9: 722.766065 | AR9: 715.171224 | AS9: 943.679292 | AT9: 812.1698306
AC10: 6 | AD10: º | AE10: Moçambique | AF10: 25.040048 | AG10: 0.03083104919
AC11: 7 | AD11: º | AE11: Timor-Leste | AF11: 2.4719198 | AG11: 0.003043599635
AC12: 8 | AD12: º | AE12: Guiné Equatorial | AF12: 1.8182016 | AG12: 0.002238696306
AC13: 9 | AD13: º | AF13: 0 | AG13: 0
AC14: 10 | AD14: º | AF14: 0 | AG14: 0 | AH14: 1
AF15: 0 | AG15: 0
AE16: Total | AF16: 812.1698306 | AG16: 1
AC38: P | AE38: País | AF38: Média import quinquénio | AG38: % do total | AH38: % acumulada | AM38: P | AN38: Importações | AO38: 2018 | AP38: 2019 | AQ38: 2020 | AR38: 2021 | AS38: 2022 | AT38: média quinquénio
AC39: 1 | AD39: º | AE39: Brasil | AF39: 551.8542014 | AG39: 0.966055679 | AM39: 1º | AN39: Brasil | AO39: 348.455984 | AP39: 393.52888 | AQ39: 450.47978 | AR39: 580.857037 | AS39: 985.949326 | AT39: 551.8542014
AC40: 2 | AD40: º | AE40: Moçambique | AF40: 10.113324 | AG40: 0.01770401323 | AM40: 2º | AN40: Moçambique | AO40: 8.965762 | AP40: 12.771002 | AQ40: 11.022732 | AR40: 4.752734 | AS40: 13.05439 | AT40: 10.113324
AC41: 3 | AD41: º | AE41: Angola | AF41: 7.1213024 | AG41: 0.0124662902 | AH41: 0.9962259824 | AM41: 3º | AN41: Angola | AO41: 2.770573 | AP41: 3.667618 | AQ41: 6.085309 | AR41: 12.503947 | AS41: 10.579065 | AT41: 7.1213024
AC42: 4 | AD42: º | AE42: São Tomé e Príncipe | AF42: 1.0534712 | AG42: 0.001844167957 | AN42: Outros | AO42: 1.408275 | AP42: 1.861706 | AQ42: 1.804131 | AR42: 2.693495 | AS42: 3.011831 | AT42: 2.1558876
AC43: 5 | AD43: º | AE43: Timor-Leste | AF43: 0.614232 | AG43: 0.00107525196 | AN43: Total | AO43: 361.600594 | AP43: 411.829206 | AQ43: 469.391952 | AR43: 600.807213 | AS43: 1012.594612 | AT43: 571.2447154
AC44: 6 | AD44: º | AE44: Guiné-Bissau | AF44: 0.3614462 | AG44: 0.0006327344311
AC45: 7 | AD45: º | AE45: Cabo Verde | AF45: 0.1267382 | AG45: 0.0002218632341
AC46: 8 | AD46: º | AF46: 0 | AG46: 0
AC47: 9 | AD47: º | AF47: 0 | AG47: 0
AC48: 10 | AD48: º | AF48: 0 | AG48: 0 | AH48: 1
AF49: 0 | AG49: 0
AE50: Total | AF50: 571.2447154 | AG50: 1
A57: Fonte: GPP a partir de dados INE/Comércio Internacional (2021 provisórios; 2022 preliminares) | Y57: 2023-07-14T16:05:30.160

Sheet 4
A1: Evolução da balança comercial Portugal-CPLP por país e por produto 2018-2022 em euros (NC 2 dígitos) produtos agrícolas, agroalimentares, do mar e da floresta
A2: =+aux!A55 -> Evolução da balança comercial Portugal-Brasil
A4: Selecione o país:
A19: =+aux!A56 -> Evolução da balança comercial Portugal-Brasil para Gorduras e óleos animais ou vegetais
I21: Selecione o produto:
A38: Fonte: GPP a partir de dados INE/Comércio Internacional (2021 provisórios; 2022 preliminares) | N38: 2023-07-14T16:05:30.160

Sheet 4A
A1: Evolução da balança comercial Portugal-CPLP 2018-2022 por produto em euros (NC 2 dígitos)
A3: =+aux!A31 -> Evolução da balança comercial Portugal-CPLP para Gorduras e óleos animais ou vegetais
A5: Selecione o produto:
Q7: Para obter uma maior desagregação deste produto, clique no botão respetivo:
A20: =+aux!A43 -> Evolução da balança comercial Portugal-CPLP para Sementes e frutos oleaginosos
A22: Selecione o produto:
A38: Fonte: GPP a partir de dados INE/Comércio Internacional (2021 provisórios; 2022 preliminares) | N38: 2023-07-14T16:05:30.160

Sheet 5.1
A1: ="Trocas comerciais Portugal-"& aux!B54 &" ("& aux!B53 &") por país em milhares de euros" -> Trocas comerciais Portugal-CPLP (2018-2022) por país em milhares de euros | C1: Produtos agrícolas, agroalimentares, do mar e da floresta
A2: Cód. País | B2: País | C2: Importações | J2: Exportações | Q2: Saldo quinquénio (exp-imp) | R2: Evolução das importações | S2: =+"Variação das Importações " & INDEX(J3:N3,1,aux!$AL$1) & "-"& '5.2'!O3 &"" -> Variação das Importações 2018-2022 | W2: Evolução das exportações | X2: ="Variação das Exportações " & INDEX(J3:M3,1,aux!$AL$1) & "-"& '5.2'!O3 &"" -> Variação das Exportações 2018-2022
C3: ='5.2'!C3 -> 2018 | D3: ='5.2'!D3 -> 2019 | E3: ='5.2'!E3 -> 2020 | F3: ='5.2'!F3 -> 2021 | G3: ='5.2'!G3 -> 2022 | H3: média quinquénio | I3: % Total | J3: ='5.2'!K3 -> 2018 | K3: ='5.2'!L3 -> 2019 | L3: ='5.2'!M3 -> 2020 | M3: ='5.2'!N3 -> 2021 | N3: ='5.2'!O3 -> 2022 | O3: média quinquénio | P3: % Total | S3: variação total em valor | T3: % no total de variação | U3: taxa de variação média anual | V3: taxa de variação total | X3: variação total em valor | Y3: % no total de variação | Z3: taxa de variação média anual | AA3: taxa de variação total | BS3: filtro
A4: 0660 | B4: Afeganistão | C4: =+SUMIF(AUX_2d_pais!$A$2:$A$27000,'5.1'!$A4&'5.1'!C$3&1,AUX_2d_pais!$J$2:$J$27000)/1000 -> 0 | D4: =+SUMIF(AUX_2d_pais!$A$2:$A$27000,'5.1'!$A4&'5.1'!D$3&1,AUX_2d_pais!$J$2:$J$27000)/1000 -> 0 | E4: =+SUMIF(AUX_2d_pais!$A$2:$A$27000,'5.1'!$A4&'5.1'!E$3&1,AUX_2d_pais!$J$2:$J$27000)/1000 -> 0 | F4: =+SUMIF(AUX_2d_pais!$A$2:$A$27000,'5.1'!$A4&'5.1'!F$3&1,AUX_2d_pais!$J$2:$J$27000)/1000 -> 0 | G4: =+SUMIF(AUX_2d_pais!$A$2:$A$27000,'5.1'!$A4&'5.1'!G$3&1,AUX_2d_pais!$J$2:$J$27000)/1000 -> 0 | H4: =SUM(C4:G4)/5 -> 0 | I4: =H4/$H$254 -> 0 | J4: =+SUMIF(AUX_2d_pais!$A$2:$A$27000,'5.1'!$A4&'5.1'!J$3&2,AUX_2d_pais!$J$2:$J$27000)/1000 -> 0 | K4: =+SUMIF(AUX_2d_pais!$A$2:$A$27000,'5.1'!$A4&'5.1'!K$3&2,AUX_2d_pais!$J$2:$J$27000)/1000 -> 0 | L4: =+SUMIF(AUX_2d_pais!$A$2:$A$27000,'5.1'!$A4&'5.1'!L$3&2,AUX_2d_pais!$J$2:$J$27000)/1000 -> 0 | M4: =+SUMIF(AUX_2d_pais!$A$2:$A$27000,'5.1'!$A4&'5.1'!M$3&2,AUX_2d_pais!$J$2:$J$27000)/1000 -> 0 | N4: =+SUMIF(AUX_2d_pais!$A$2:$A$27000,'5.1'!$A4&'5.1'!N$3&2,AUX_2d_pais!$J$2:$J$27000)/1000 -> 0 | O4: =SUM(J4:N4)/5 -> 0 | P4: =O4/$O$254 -> 0 | Q4: =O4-H4 -> 0 | S4: =G4-INDEX($C4:$G4,1,aux!$AL$1) -> 0 | T4: =S4/$S$254 -> 0 | U4: =+IF(INDEX($C4:$G4,1,aux!$AL$1)>0,(G4/INDEX($C4:$G4,1,aux!$AL$1))^(1/($G$3-INDEX($C$3:$G$3,1,aux!$AL$1)))-1,"n.d.") -> n.d. | V4: =IF(INDEX($C4:$G4,1,aux!$AL$1)>0,(G4-INDEX($C4:$G4,1,aux!$AL$1))/INDEX($C4:$G4,1,aux!$AL$1),"n.d.") -> n.d. | X4: =N4-INDEX($J4:$N4,1,aux!$AL$1) -> 0 | Y4: =X4/$X$254 -> 0 | Z4: =+IF(INDEX($J4:$N4,1,aux!$AL$1)>0,(N4/INDEX($J4:$N4,1,aux!$AL$1))^(1/($N$3-INDEX($J$3:$N$3,1,aux!$AL$1)))-1,"n.d.") -> n.d. | AA4: =IF(INDEX($J4:$N4,1,aux!$AL$1)>0,(N4-INDEX($J4:$N4,1,aux!$AL$1))/INDEX($J4:$N4,1,aux!$AL$1),"n.d.") -> n.d. | AC4: =SUM(A4:Q4) -> 0 | BS4: =+MATCH('5.1'!A4,AUX_2d_pais!$G$2:$G$20001,0) -> 
A5: 0388 | B5: África do Sul | C5: =+SUMIF(AUX_2d_pais!$A$2:$A$27000,'5.1'!$A5&'5.1'!C$3&1,AUX_2d_pais!$J$2:$J$27000)/1000 -> 0 | D5: =+SUMIF(AUX_2d_pais!$A$2:$A$27000,'5.1'!$A5&'5.1'!D$3&1,AUX_2d_pais!$J$2:$J$27000)/1000 -> 0 | E5: =+SUMIF(AUX_2d_pais!$A$2:$A$27000,'5.1'!$A5&'5.1'!E$3&1,AUX_2d_pais!$J$2:$J$27000)/1000 -> 0 | F5: =+SUMIF(AUX_2d_pais!$A$2:$A$27000,'5.1'!$A5&'5.1'!F$3&1,AUX_2d_pais!$J$2:$J$27000)/1000 -> 0 | G5: =+SUMIF(AUX_2d_pais!$A$2:$A$27000,'5.1'!$A5&'5.1'!G$3&1,AUX_2d_pais!$J$2:$J$27000)/1000 -> 0 | H5: 0 | I5: 0 | J5: =+SUMIF(AUX_2d_pais!$A$2:$A$27000,'5.1'!$A5&'5.1'!J$3&2,AUX_2d_pais!$J$2:$J$27000)/1000 -> 0 | K5: =+SUMIF(AUX_2d_pais!$A$2:$A$27000,'5.1'!$A5&'5.1'!K$3&2,AUX_2d_pais!$J$2:$J$27000)/1000 -> 0 | L5: =+SUMIF(AUX_2d_pais!$A$2:$A$27000,'5.1'!$A5&'5.1'!L$3&2,AUX_2d_pais!$J$2:$J$27000)/1000 -> 0 | M5: =+SUMIF(AUX_2d_pais!$A$2:$A$27000,'5.1'!$A5&'5.1'!M$3&2,AUX_2d_pais!$J$2:$J$27000)/1000 -> 0 | N5: =+SUMIF(AUX_2d_pais!$A$2:$A$27000,'5.1'!$A5&'5.1'!N$3&2,AUX_2d_pais!$J$2:$J$27000)/1000 -> 0 | O5: 0 | P5: 0 | Q5: =O5-H5 -> 0 | S5: =G5-INDEX($C5:$G5,1,aux!$AL$1) -> 0 | T5: 0 | U5: =+IF(INDEX($C5:$G5,1,aux!$AL$1)>0,(G5/INDEX($C5:$G5,1,aux!$AL$1))^(1/($G$3-INDEX($C$3:$G$3,1,aux!$AL$1)))-1,"n.d.") -> n.d. | V5: =IF(INDEX($C5:$G5,1,aux!$AL$1)>0,(G5-INDEX($C5:$G5,1,aux!$AL$1))/INDEX($C5:$G5,1,aux!$AL$1),"n.d.") -> n.d. | X5: =N5-INDEX($J5:$N5,1,aux!$AL$1) -> 0 | Y5: 0 | Z5: =+IF(INDEX($J5:$N5,1,aux!$AL$1)>0,(N5/INDEX($J5:$N5,1,aux!$AL$1))^(1/($N$3-INDEX($J$3:$N$3,1,aux!$AL$1)))-1,"n.d.") -> n.d. | AA5: =IF(INDEX($J5:$N5,1,aux!$AL$1)>0,(N5-INDEX($J5:$N5,1,aux!$AL$1))/INDEX($J5:$N5,1,aux!$AL$1),"n.d.") -> n.d. | AC5: 0 | BS5: =+MATCH('5.1'!A5,AUX_2d_pais!$G$2:$G$20001,0) -> 
A6: 0070 | B6: Albânia | C6: =+SUMIF(AUX_2d_pais!$A$2:$A$27000,'5.1'!$A6&'5.1'!C$3&1,AUX_2d_pais!$J$2:$J$27000)/1000 -> 0 | D6: =+SUMIF(AUX_2d_pais!$A$2:$A$27000,'5.1'!$A6&'5.1'!D$3&1,AUX_2d_pais!$J$2:$J$27000)/1000 -> 0 | E6: =+SUMIF(AUX_2d_pais!$A$2:$A$27000,'5.1'!$A6&'5.1'!E$3&1,AUX_2d_pais!$J$2:$J$27000)/1000 -> 0 | F6: =+SUMIF(AUX_2d_pais!$A$2:$A$27000,'5.1'!$A6&'5.1'!F$3&1,AUX_2d_pais!$J$2:$J$27000)/1000 -> 0 | G6: =+SUMIF(AUX_2d_pais!$A$2:$A$27000,'5.1'!$A6&'5.1'!G$3&1,AUX_2d_pais!$J$2:$J$27000)/1000 -> 0 | H6: 0 | I6: 0 | J6: =+SUMIF(AUX_2d_pais!$A$2:$A$27000,'5.1'!$A6&'5.1'!J$3&2,AUX_2d_pais!$J$2:$J$27000)/1000 -> 0 | K6: =+SUMIF(AUX_2d_pais!$A$2:$A$27000,'5.1'!$A6&'5.1'!K$3&2,AUX_2d_pais!$J$2:$J$27000)/1000 -> 0 | L6: =+SUMIF(AUX_2d_pais!$A$2:$A$27000,'5.1'!$A6&'5.1'!L$3&2,AUX_2d_pais!$J$2:$J$27000)/1000 -> 0 | M6: =+SUMIF(AUX_2d_pais!$A$2:$A$27000,'5.1'!$A6&'5.1'!M$3&2,AUX_2d_pais!$J$2:$J$27000)/1000 -> 0 | N6: =+SUMIF(AUX_2d_pais!$A$2:$A$27000,'5.1'!$A6&'5.1'!N$3&2,AUX_2d_pais!$J$2:$J$27000)/1000 -> 0 | O6: 0 | P6: 0 | Q6: 0 | S6: =G6-INDEX($C6:$G6,1,aux!$AL$1) -> 0 | T6: 0 | U6: =+IF(INDEX($C6:$G6,1,aux!$AL$1)>0,(G6/INDEX($C6:$G6,1,aux!$AL$1))^(1/($G$3-INDEX($C$3:$G$3,1,aux!$AL$1)))-1,"n.d.") -> n.d. | V6: =IF(INDEX($C6:$G6,1,aux!$AL$1)>0,(G6-INDEX($C6:$G6,1,aux!$AL$1))/INDEX($C6:$G6,1,aux!$AL$1),"n.d.") -> n.d. | X6: =N6-INDEX($J6:$N6,1,aux!$AL$1) -> 0 | Y6: 0 | Z6: =+IF(INDEX($J6:$N6,1,aux!$AL$1)>0,(N6/INDEX($J6:$N6,1,aux!$AL$1))^(1/($N$3-INDEX($J$3:$N$3,1,aux!$AL$1)))-1,"n.d.") -> n.d. | AA6: =IF(INDEX($J6:$N6,1,aux!$AL$1)>0,(N6-INDEX($J6:$N6,1,aux!$AL$1))/INDEX($J6:$N6,1,aux!$AL$1),"n.d.") -> n.d. | AC6: 0 | BS6: =+MATCH('5.1'!A6,AUX_2d_pais!$G$2:$G$20001,0) -> 
A7: 0004 | B7: Alemanha | C7: =+SUMIF(AUX_2d_pais!$A$2:$A$27000,'5.1'!$A7&'5.1'!C$3&1,AUX_2d_pais!$J$2:$J$27000)/1000 -> 0 | D7: =+SUMIF(AUX_2d_pais!$A$2:$A$27000,'5.1'!$A7&'5.1'!D$3&1,AUX_2d_pais!$J$2:$J$27000)/1000 -> 0 | E7: =+SUMIF(AUX_2d_pais!$A$2:$A$27000,'5.1'!$A7&'5.1'!E$3&1,AUX_2d_pais!$J$2:$J$27000)/1000 -> 0 | F7: =+SUMIF(AUX_2d_pais!$A$2:$A$27000,'5.1'!$A7&'5.1'!F$3&1,AUX_2d_pais!$J$2:$J$27000)/1000 -> 0 | G7: =+SUMIF(AUX_2d_pais!$A$2:$A$27000,'5.1'!$A7&'5.1'!G$3&1,AUX_2d_pais!$J$2:$J$27000)/1000 -> 0 | H7: 0 | I7: 0 | J7: =+SUMIF(AUX_2d_pais!$A$2:$A$27000,'5.1'!$A7&'5.1'!J$3&2,AUX_2d_pais!$J$2:$J$27000)/1000 -> 0 | K7: =+SUMIF(AUX_2d_pais!$A$2:$A$27000,'5.1'!$A7&'5.1'!K$3&2,AUX_2d_pais!$J$2:$J$27000)/1000 -> 0 | L7: =+SUMIF(AUX_2d_pais!$A$2:$A$27000,'5.1'!$A7&'5.1'!L$3&2,AUX_2d_pais!$J$2:$J$27000)/1000 -> 0 | M7: =+SUMIF(AUX_2d_pais!$A$2:$A$27000,'5.1'!$A7&'5.1'!M$3&2,AUX_2d_pais!$J$2:$J$27000)/1000 -> 0 | N7: =+SUMIF(AUX_2d_pais!$A$2:$A$27000,'5.1'!$A7&'5.1'!N$3&2,AUX_2d_pais!$J$2:$J$27000)/1000 -> 0 | O7: 0 | P7: 0 | Q7: 0 | S7: =G7-INDEX($C7:$G7,1,aux!$AL$1) -> 0 | T7: 0 | U7: =+IF(INDEX($C7:$G7,1,aux!$AL$1)>0,(G7/INDEX($C7:$G7,1,aux!$AL$1))^(1/($G$3-INDEX($C$3:$G$3,1,aux!$AL$1)))-1,"n.d.") -> n.d. | V7: =IF(INDEX($C7:$G7,1,aux!$AL$1)>0,(G7-INDEX($C7:$G7,1,aux!$AL$1))/INDEX($C7:$G7,1,aux!$AL$1),"n.d.") -> n.d. | X7: =N7-INDEX($J7:$N7,1,aux!$AL$1) -> 0 | Y7: 0 | Z7: =+IF(INDEX($J7:$N7,1,aux!$AL$1)>0,(N7/INDEX($J7:$N7,1,aux!$AL$1))^(1/($N$3-INDEX($J$3:$N$3,1,aux!$AL$1)))-1,"n.d.") -> n.d. | AA7: =IF(INDEX($J7:$N7,1,aux!$AL$1)>0,(N7-INDEX($J7:$N7,1,aux!$AL$1))/INDEX($J7:$N7,1,aux!$AL$1),"n.d.") -> n.d. | AC7: 0 | BS7: =+MATCH('5.1'!A7,AUX_2d_pais!$G$2:$G$20001,0) -> 
A8: 0043 | B8: Andorra | C8: =+SUMIF(AUX_2d_pais!$A$2:$A$27000,'5.1'!$A8&'5.1'!C$3&1,AUX_2d_pais!$J$2:$J$27000)/1000 -> 0 | D8: =+SUMIF(AUX_2d_pais!$A$2:$A$27000,'5.1'!$A8&'5.1'!D$3&1,AUX_2d_pais!$J$2:$J$27000)/1000 -> 0 | E8: =+SUMIF(AUX_2d_pais!$A$2:$A$27000,'5.1'!$A8&'5.1'!E$3&1,AUX_2d_pais!$J$2:$J$27000)/1000 -> 0 | F8: =+SUMIF(AUX_2d_pais!$A$2:$A$27000,'5.1'!$A8&'5.1'!F$3&1,AUX_2d_pais!$J$2:$J$27000)/1000 -> 0 | G8: =+SUMIF(AUX_2d_pais!$A$2:$A$27000,'5.1'!$A8&'5.1'!G$3&1,AUX_2d_pais!$J$2:$J$27000)/1000 -> 0 | H8: 0 | I8: 0 | J8: =+SUMIF(AUX_2d_pais!$A$2:$A$27000,'5.1'!$A8&'5.1'!J$3&2,AUX_2d_pais!$J$2:$J$27000)/1000 -> 0 | K8: =+SUMIF(AUX_2d_pais!$A$2:$A$27000,'5.1'!$A8&'5.1'!K$3&2,AUX_2d_pais!$J$2:$J$27000)/1000 -> 0 | L8: =+SUMIF(AUX_2d_pais!$A$2:$A$27000,'5.1'!$A8&'5.1'!L$3&2,AUX_2d_pais!$J$2:$J$27000)/1000 -> 0 | M8: =+SUMIF(AUX_2d_pais!$A$2:$A$27000,'5.1'!$A8&'5.1'!M$3&2,AUX_2d_pais!$J$2:$J$27000)/1000 -> 0 | N8: =+SUMIF(AUX_2d_pais!$A$2:$A$27000,'5.1'!$A8&'5.1'!N$3&2,AUX_2d_pais!$J$2:$J$27000)/1000 -> 0 | O8: 0 | P8: 0 | Q8: 0 | S8: =G8-INDEX($C8:$G8,1,aux!$AL$1) -> 0 | T8: 0 | U8: =+IF(INDEX($C8:$G8,1,aux!$AL$1)>0,(G8/INDEX($C8:$G8,1,aux!$AL$1))^(1/($G$3-INDEX($C$3:$G$3,1,aux!$AL$1)))-1,"n.d.") -> n.d. | V8: =IF(INDEX($C8:$G8,1,aux!$AL$1)>0,(G8-INDEX($C8:$G8,1,aux!$AL$1))/INDEX($C8:$G8,1,aux!$AL$1),"n.d.") -> n.d. | X8: =N8-INDEX($J8:$N8,1,aux!$AL$1) -> 0 | Y8: 0 | Z8: =+IF(INDEX($J8:$N8,1,aux!$AL$1)>0,(N8/INDEX($J8:$N8,1,aux!$AL$1))^(1/($N$3-INDEX($J$3:$N$3,1,aux!$AL$1)))-1,"n.d.") -> n.d. | AA8: =IF(INDEX($J8:$N8,1,aux!$AL$1)>0,(N8-INDEX($J8:$N8,1,aux!$AL$1))/INDEX($J8:$N8,1,aux!$AL$1),"n.d.") -> n.d. | AC8: 0 | BS8: =+MATCH('5.1'!A8,AUX_2d_pais!$G$2:$G$20001,0) -> 
A9: 0330 | B9: Angola | C9: =+SUMIF(AUX_2d_pais!$A$2:$A$27000,'5.1'!$A9&'5.1'!C$3&1,AUX_2d_pais!$J$2:$J$27000)/1000 -> 9247.67 | D9: =+SUMIF(AUX_2d_pais!$A$2:$A$27000,'5.1'!$A9&'5.1'!D$3&1,AUX_2d_pais!$J$2:$J$27000)/1000 -> 11023.57 | E9: =+SUMIF(AUX_2d_pais!$A$2:$A$27000,'5.1'!$A9&'5.1'!E$3&1,AUX_2d_pais!$J$2:$J$27000)/1000 -> 13854.575 | F9: =+SUMIF(AUX_2d_pais!$A$2:$A$27000,'5.1'!$A9&'5.1'!F$3&1,AUX_2d_pais!$J$2:$J$27000)/1000 -> 20961.996 | G9: =+SUMIF(AUX_2d_pais!$A$2:$A$27000,'5.1'!$A9&'5.1'!G$3&1,AUX_2d_pais!$J$2:$J$27000)/1000 -> 22027.932 | H9: 15423.1486 | I9: 0.02019807041 | J9: =+SUMIF(AUX_2d_pais!$A$2:$A$27000,'5.1'!$A9&'5.1'!J$3&2,AUX_2d_pais!$J$2:$J$27000)/1000 -> 456113.723 | K9: =+SUMIF(AUX_2d_pais!$A$2:$A$27000,'5.1'!$A9&'5.1'!K$3&2,AUX_2d_pais!$J$2:$J$27000)/1000 -> 355161.704 | L9: =+SUMIF(AUX_2d_pais!$A$2:$A$27000,'5.1'!$A9&'5.1'!L$3&2,AUX_2d_pais!$J$2:$J$27000)/1000 -> 239847.484 | M9: =+SUMIF(AUX_2d_pais!$A$2:$A$27000,'5.1'!$A9&'5.1'!M$3&2,AUX_2d_pais!$J$2:$J$27000)/1000 -> 240275.672 | N9: =+SUMIF(AUX_2d_pais!$A$2:$A$27000,'5.1'!$A9&'5.1'!N$3&2,AUX_2d_pais!$J$2:$J$27000)/1000 -> 364199.698 | O9: 331119.6562 | P9: 0.3357985515 | Q9: 315696.5076 | S9: =G9-INDEX($C9:$G9,1,aux!$AL$1) -> 12780.262 | T9: 0.01391197716 | U9: =+IF(INDEX($C9:$G9,1,aux!$AL$1)>0,(G9/INDEX($C9:$G9,1,aux!$AL$1))^(1/($G$3-INDEX($C$3:$G$3,1,aux!$AL$1)))-1,"n.d.") -> 0.2423253604 | V9: =IF(INDEX($C9:$G9,1,aux!$AL$1)>0,(G9-INDEX($C9:$G9,1,aux!$AL$1))/INDEX($C9:$G9,1,aux!$AL$1),"n.d.") -> 1.38199806 | X9: =N9-INDEX($J9:$N9,1,aux!$AL$1) -> -91914.025 | Y9: -1.121116152 | Z9: =+IF(INDEX($J9:$N9,1,aux!$AL$1)>0,(N9/INDEX($J9:$N9,1,aux!$AL$1))^(1/($N$3-INDEX($J$3:$N$3,1,aux!$AL$1)))-1,"n.d.") -> -0.05470663284 | AA9: =IF(INDEX($J9:$N9,1,aux!$AL$1)>0,(N9-INDEX($J9:$N9,1,aux!$AL$1))/INDEX($J9:$N9,1,aux!$AL$1),"n.d.") -> -0.2015155878 | BS9: =+MATCH('5.1'!A9,AUX_2d_pais!$G$2:$G$20001,0) -> 16
A10: 0446 | B10: Anguila | C10: =+SUMIF(AUX_2d_pais!$A$2:$A$27000,'5.1'!$A10&'5.1'!C$3&1,AUX_2d_pais!$J$2:$J$27000)/1000 -> 0 | D10: =+SUMIF(AUX_2d_pais!$A$2:$A$27000,'5.1'!$A10&'5.1'!D$3&1,AUX_2d_pais!$J$2:$J$27000)/1000 -> 0 | E10: =+SUMIF(AUX_2d_pais!$A$2:$A$27000,'5.1'!$A10&'5.1'!E$3&1,AUX_2d_pais!$J$2:$J$27000)/1000 -> 0 | F10: =+SUMIF(AUX_2d_pais!$A$2:$A$27000,'5.1'!$A10&'5.1'!F$3&1,AUX_2d_pais!$J$2:$J$27000)/1000 -> 0 | G10: =+SUMIF(AUX_2d_pais!$A$2:$A$27000,'5.1'!$A10&'5.1'!G$3&1,AUX_2d_pais!$J$2:$J$27000)/1000 -> 0 | H10: 0 | I10: 0 | J10: =+SUMIF(AUX_2d_pais!$A$2:$A$27000,'5.1'!$A10&'5.1'!J$3&2,AUX_2d_pais!$J$2:$J$27000)/1000 -> 0 | K10: =+SUMIF(AUX_2d_pais!$A$2:$A$27000,'5.1'!$A10&'5.1'!K$3&2,AUX_2d_pais!$J$2:$J$27000)/1000 -> 0 | L10: =+SUMIF(AUX_2d_pais!$A$2:$A$27000,'5.1'!$A10&'5.1'!L$3&2,AUX_2d_pais!$J$2:$J$27000)/1000 -> 0 | M10: =+SUMIF(AUX_2d_pais!$A$2:$A$27000,'5.1'!$A10&'5.1'!M$3&2,AUX_2d_pais!$J$2:$J$27000)/1000 -> 0 | N10: =+SUMIF(AUX_2d_pais!$A$2:$A$27000,'5.1'!$A10&'5.1'!N$3&2,AUX_2d_pais!$J$2:$J$27000)/1000 -> 0 | O10: 0 | P10: 0 | Q10: 0 | S10: =G10-INDEX($C10:$G10,1,aux!$AL$1) -> 0 | T10: 0 | U10: =+IF(INDEX($C10:$G10,1,aux!$AL$1)>0,(G10/INDEX($C10:$G10,1,aux!$AL$1))^(1/($G$3-INDEX($C$3:$G$3,1,aux!$AL$1)))-1,"n.d.") -> n.d. | V10: =IF(INDEX($C10:$G10,1,aux!$AL$1)>0,(G10-INDEX($C10:$G10,1,aux!$AL$1))/INDEX($C10:$G10,1,aux!$AL$1),"n.d.") -> n.d. | X10: =N10-INDEX($J10:$N10,1,aux!$AL$1) -> 0 | Y10: 0 | Z10: =+IF(INDEX($J10:$N10,1,aux!$AL$1)>0,(N10/INDEX($J10:$N10,1,aux!$AL$1))^(1/($N$3-INDEX($J$3:$N$3,1,aux!$AL$1)))-1,"n.d.") -> n.d. | AA10: =IF(INDEX($J10:$N10,1,aux!$AL$1)>0,(N10-INDEX($J10:$N10,1,aux!$AL$1))/INDEX($J10:$N10,1,aux!$AL$1),"n.d.") -> n.d. | AC10: 0 | BS10: =+MATCH('5.1'!A10,AUX_2d_pais!$G$2:$G$20001,0) -> 
A11: 0891 | B11: Antárctica | C11: =+SUMIF(AUX_2d_pais!$A$2:$A$27000,'5.1'!$A11&'5.1'!C$3&1,AUX_2d_pais!$J$2:$J$27000)/1000 -> 0 | D11: =+SUMIF(AUX_2d_pais!$A$2:$A$27000,'5.1'!$A11&'5.1'!D$3&1,AUX_2d_pais!$J$2:$J$27000)/1000 -> 0 | E11: =+SUMIF(AUX_2d_pais!$A$2:$A$27000,'5.1'!$A11&'5.1'!E$3&1,AUX_2d_pais!$J$2:$J$27000)/1000 -> 0 | F11: =+SUMIF(AUX_2d_pais!$A$2:$A$27000,'5.1'!$A11&'5.1'!F$3&1,AUX_2d_pais!$J$2:$J$27000)/1000 -> 0 | G11: =+SUMIF(AUX_2d_pais!$A$2:$A$27000,'5.1'!$A11&'5.1'!G$3&1,AUX_2d_pais!$J$2:$J$27000)/1000 -> 0 | H11: 0 | I11: 0 | J11: =+SUMIF(AUX_2d_pais!$A$2:$A$27000,'5.1'!$A11&'5.1'!J$3&2,AUX_2d_pais!$J$2:$J$27000)/1000 -> 0 | K11: =+SUMIF(AUX_2d_pais!$A$2:$A$27000,'5.1'!$A11&'5.1'!K$3&2,AUX_2d_pais!$J$2:$J$27000)/1000 -> 0 | L11: =+SUMIF(AUX_2d_pais!$A$2:$A$27000,'5.1'!$A11&'5.1'!L$3&2,AUX_2d_pais!$J$2:$J$27000)/1000 -> 0 | M11: =+SUMIF(AUX_2d_pais!$A$2:$A$27000,'5.1'!$A11&'5.1'!M$3&2,AUX_2d_pais!$J$2:$J$27000)/1000 -> 0 | N11: =+SUMIF(AUX_2d_pais!$A$2:$A$27000,'5.1'!$A11&'5.1'!N$3&2,AUX_2d_pais!$J$2:$J$27000)/1000 -> 0 | O11: 0 | P11: 0 | Q11: 0 | S11: =G11-INDEX($C11:$G11,1,aux!$AL$1) -> 0 | T11: 0 | U11: =+IF(INDEX($C11:$G11,1,aux!$AL$1)>0,(G11/INDEX($C11:$G11,1,aux!$AL$1))^(1/($G$3-INDEX($C$3:$G$3,1,aux!$AL$1)))-1,"n.d.") -> n.d. | V11: =IF(INDEX($C11:$G11,1,aux!$AL$1)>0,(G11-INDEX($C11:$G11,1,aux!$AL$1))/INDEX($C11:$G11,1,aux!$AL$1),"n.d.") -> n.d. | X11: =N11-INDEX($J11:$N11,1,aux!$AL$1) -> 0 | Y11: 0 | Z11: =+IF(INDEX($J11:$N11,1,aux!$AL$1)>0,(N11/INDEX($J11:$N11,1,aux!$AL$1))^(1/($N$3-INDEX($J$3:$N$3,1,aux!$AL$1)))-1,"n.d.") -> n.d. | AA11: =IF(INDEX($J11:$N11,1,aux!$AL$1)>0,(N11-INDEX($J11:$N11,1,aux!$AL$1))/INDEX($J11:$N11,1,aux!$AL$1),"n.d.") -> n.d. | AC11: 0 | BS11: =+MATCH('5.1'!A11,AUX_2d_pais!$G$2:$G$20001,0) -> 
A12: 0459 | B12: Antígua e Barbuda | C12: =+SUMIF(AUX_2d_pais!$A$2:$A$27000,'5.1'!$A12&'5.1'!C$3&1,AUX_2d_pais!$J$2:$J$27000)/1000 -> 0 | D12: =+SUMIF(AUX_2d_pais!$A$2:$A$27000,'5.1'!$A12&'5.1'!D$3&1,AUX_2d_pais!$J$2:$J$27000)/1000 -> 0 | E12: =+SUMIF(AUX_2d_pais!$A$2:$A$27000,'5.1'!$A12&'5.1'!E$3&1,AUX_2d_pais!$J$2:$J$27000)/1000 -> 0 | F12: =+SUMIF(AUX_2d_pais!$A$2:$A$27000,'5.1'!$A12&'5.1'!F$3&1,AUX_2d_pais!$J$2:$J$27000)/1000 -> 0 | G12: =+SUMIF(AUX_2d_pais!$A$2:$A$27000,'5.1'!$A12&'5.1'!G$3&1,AUX_2d_pais!$J$2:$J$27000)/1000 -> 0 | H12: 0 | I12: 0 | J12: =+SUMIF(AUX_2d_pais!$A$2:$A$27000,'5.1'!$A12&'5.1'!J$3&2,AUX_2d_pais!$J$2:$J$27000)/1000 -> 0 | K12: =+SUMIF(AUX_2d_pais!$A$2:$A$27000,'5.1'!$A12&'5.1'!K$3&2,AUX_2d_pais!$J$2:$J$27000)/1000 -> 0 | L12: =+SUMIF(AUX_2d_pais!$A$2:$A$27000,'5.1'!$A12&'5.1'!L$3&2,AUX_2d_pais!$J$2:$J$27000)/1000 -> 0 | M12: =+SUMIF(AUX_2d_pais!$A$2:$A$27000,'5.1'!$A12&'5.1'!M$3&2,AUX_2d_pais!$J$2:$J$27000)/1000 -> 0 | N12: =+SUMIF(AUX_2d_pais!$A$2:$A$27000,'5.1'!$A12&'5.1'!N$3&2,AUX_2d_pais!$J$2:$J$27000)/1000 -> 0 | O12: 0 | P12: 0 | Q12: 0 | S12: =G12-INDEX($C12:$G12,1,aux!$AL$1) -> 0 | T12: 0 | U12: =+IF(INDEX($C12:$G12,1,aux!$AL$1)>0,(G12/INDEX($C12:$G12,1,aux!$AL$1))^(1/($G$3-INDEX($C$3:$G$3,1,aux!$AL$1)))-1,"n.d.") -> n.d. | V12: =IF(INDEX($C12:$G12,1,aux!$AL$1)>0,(G12-INDEX($C12:$G12,1,aux!$AL$1))/INDEX($C12:$G12,1,aux!$AL$1),"n.d.") -> n.d. | X12: =N12-INDEX($J12:$N12,1,aux!$AL$1) -> 0 | Y12: 0 | Z12: =+IF(INDEX($J12:$N12,1,aux!$AL$1)>0,(N12/INDEX($J12:$N12,1,aux!$AL$1))^(1/($N$3-INDEX($J$3:$N$3,1,aux!$AL$1)))-1,"n.d.") -> n.d. | AA12: =IF(INDEX($J12:$N12,1,aux!$AL$1)>0,(N12-INDEX($J12:$N12,1,aux!$AL$1))/INDEX($J12:$N12,1,aux!$AL$1),"n.d.") -> n.d. | AC12: 0 | BS12: =+MATCH('5.1'!A12,AUX_2d_pais!$G$2:$G$20001,0) -> 
A13: 0478 | B13: Antilhas Holandesas | C13: =+SUMIF(AUX_2d_pais!$A$2:$A$27000,'5.1'!$A13&'5.1'!C$3&1,AUX_2d_pais!$J$2:$J$27000)/1000 -> 0 | D13: =+SUMIF(AUX_2d_pais!$A$2:$A$27000,'5.1'!$A13&'5.1'!D$3&1,AUX_2d_pais!$J$2:$J$27000)/1000 -> 0 | E13: =+SUMIF(AUX_2d_pais!$A$2:$A$27000,'5.1'!$A13&'5.1'!E$3&1,AUX_2d_pais!$J$2:$J$27000)/1000 -> 0 | F13: =+SUMIF(AUX_2d_pais!$A$2:$A$27000,'5.1'!$A13&'5.1'!F$3&1,AUX_2d_pais!$J$2:$J$27000)/1000 -> 0 | G13: =+SUMIF(AUX_2d_pais!$A$2:$A$27000,'5.1'!$A13&'5.1'!G$3&1,AUX_2d_pais!$J$2:$J$27000)/1000 -> 0 | H13: 0 | I13: 0 | J13: =+SUMIF(AUX_2d_pais!$A$2:$A$27000,'5.1'!$A13&'5.1'!J$3&2,AUX_2d_pais!$J$2:$J$27000)/1000 -> 0 | K13: =+SUMIF(AUX_2d_pais!$A$2:$A$27000,'5.1'!$A13&'5.1'!K$3&2,AUX_2d_pais!$J$2:$J$27000)/1000 -> 0 | L13: =+SUMIF(AUX_2d_pais!$A$2:$A$27000,'5.1'!$A13&'5.1'!L$3&2,AUX_2d_pais!$J$2:$J$27000)/1000 -> 0 | M13: =+SUMIF(AUX_2d_pais!$A$2:$A$27000,'5.1'!$A13&'5.1'!M$3&2,AUX_2d_pais!$J$2:$J$27000)/1000 -> 0 | N13: =+SUMIF(AUX_2d_pais!$A$2:$A$27000,'5.1'!$A13&'5.1'!N$3&2,AUX_2d_pais!$J$2:$J$27000)/1000 -> 0 | O13: 0 | P13: 0 | Q13: 0 | S13: =G13-INDEX($C13:$G13,1,aux!$AL$1) -> 0 | T13: 0 | U13: =+IF(INDEX($C13:$G13,1,aux!$AL$1)>0,(G13/INDEX($C13:$G13,1,aux!$AL$1))^(1/($G$3-INDEX($C$3:$G$3,1,aux!$AL$1)))-1,"n.d.") -> n.d. | V13: =IF(INDEX($C13:$G13,1,aux!$AL$1)>0,(G13-INDEX($C13:$G13,1,aux!$AL$1))/INDEX($C13:$G13,1,aux!$AL$1),"n.d.") -> n.d. | X13: =N13-INDEX($J13:$N13,1,aux!$AL$1) -> 0 | Y13: 0 | Z13: =+IF(INDEX($J13:$N13,1,aux!$AL$1)>0,(N13/INDEX($J13:$N13,1,aux!$AL$1))^(1/($N$3-INDEX($J$3:$N$3,1,aux!$AL$1)))-1,"n.d.") -> n.d. | AA13: =IF(INDEX($J13:$N13,1,aux!$AL$1)>0,(N13-INDEX($J13:$N13,1,aux!$AL$1))/INDEX($J13:$N13,1,aux!$AL$1),"n.d.") -> n.d. | AC13: 0 | BS13: =+MATCH('5.1'!A13,AUX_2d_pais!$G$2:$G$20001,0) -> 
A14: 0632 | B14: Arábia Saudita | C14: =+SUMIF(AUX_2d_pais!$A$2:$A$27000,'5.1'!$A14&'5.1'!C$3&1,AUX_2d_pais!$J$2:$J$27000)/1000 -> 0 | D14: =+SUMIF(AUX_2d_pais!$A$2:$A$27000,'5.1'!$A14&'5.1'!D$3&1,AUX_2d_pais!$J$2:$J$27000)/1000 -> 0 | E14: =+SUMIF(AUX_2d_pais!$A$2:$A$27000,'5.1'!$A14&'5.1'!E$3&1,AUX_2d_pais!$J$2:$J$27000)/1000 -> 0 | F14: =+SUMIF(AUX_2d_pais!$A$2:$A$27000,'5.1'!$A14&'5.1'!F$3&1,AUX_2d_pais!$J$2:$J$27000)/1000 -> 0 | G14: =+SUMIF(AUX_2d_pais!$A$2:$A$27000,'5.1'!$A14&'5.1'!G$3&1,AUX_2d_pais!$J$2:$J$27000)/1000 -> 0 | H14: 0 | I14: 0 | J14: =+SUMIF(AUX_2d_pais!$A$2:$A$27000,'5.1'!$A14&'5.1'!J$3&2,AUX_2d_pais!$J$2:$J$27000)/1000 -> 0 | K14: =+SUMIF(AUX_2d_pais!$A$2:$A$27000,'5.1'!$A14&'5.1'!K$3&2,AUX_2d_pais!$J$2:$J$27000)/1000 -> 0 | L14: =+SUMIF(AUX_2d_pais!$A$2:$A$27000,'5.1'!$A14&'5.1'!L$3&2,AUX_2d_pais!$J$2:$J$27000)/1000 -> 0 | M14: =+SUMIF(AUX_2d_pais!$A$2:$A$27000,'5.1'!$A14&'5.1'!M$3&2,AUX_2d_pais!$J$2:$J$27000)/1000 -> 0 | N14: =+SUMIF(AUX_2d_pais!$A$2:$A$27000,'5.1'!$A14&'5.1'!N$3&2,AUX_2d_pais!$J$2:$J$27000)/1000 -> 0 | O14: 0 | P14: 0 | Q14: 0 | S14: =G14-INDEX($C14:$G14,1,aux!$AL$1) -> 0 | T14: 0 | U14: =+IF(INDEX($C14:$G14,1,aux!$AL$1)>0,(G14/INDEX($C14:$G14,1,aux!$AL$1))^(1/($G$3-INDEX($C$3:$G$3,1,aux!$AL$1)))-1,"n.d.") -> n.d. | V14: =IF(INDEX($C14:$G14,1,aux!$AL$1)>0,(G14-INDEX($C14:$G14,1,aux!$AL$1))/INDEX($C14:$G14,1,aux!$AL$1),"n.d.") -> n.d. | X14: =N14-INDEX($J14:$N14,1,aux!$AL$1) -> 0 | Y14: 0 | Z14: =+IF(INDEX($J14:$N14,1,aux!$AL$1)>0,(N14/INDEX($J14:$N14,1,aux!$AL$1))^(1/($N$3-INDEX($J$3:$N$3,1,aux!$AL$1)))-1,"n.d.") -> n.d. | AA14: =IF(INDEX($J14:$N14,1,aux!$AL$1)>0,(N14-INDEX($J14:$N14,1,aux!$AL$1))/INDEX($J14:$N14,1,aux!$AL$1),"n.d.") -> n.d. | AC14: 0 | BS14: =+MATCH('5.1'!A14,AUX_2d_pais!$G$2:$G$20001,0) -> 
A15: 0208 | B15: Argélia | C15: =+SUMIF(AUX_2d_pais!$A$2:$A$27000,'5.1'!$A15&'5.1'!C$3&1,AUX_2d_pais!$J$2:$J$27000)/1000 -> 0 | D15: =+SUMIF(AUX_2d_pais!$A$2:$A$27000,'5.1'!$A15&'5.1'!D$3&1,AUX_2d_pais!$J$2:$J$27000)/1000 -> 0 | E15: =+SUMIF(AUX_2d_pais!$A$2:$A$27000,'5.1'!$A15&'5.1'!E$3&1,AUX_2d_pais!$J$2:$J$27000)/1000 -> 0 | F15: =+SUMIF(AUX_2d_pais!$A$2:$A$27000,'5.1'!$A15&'5.1'!F$3&1,AUX_2d_pais!$J$2:$J$27000)/1000 -> 0 | G15: =+SUMIF(AUX_2d_pais!$A$2:$A$27000,'5.1'!$A15&'5.1'!G$3&1,AUX_2d_pais!$J$2:$J$27000)/1000 -> 0 | H15: 0 | I15: 0 | J15: =+SUMIF(AUX_2d_pais!$A$2:$A$27000,'5.1'!$A15&'5.1'!J$3&2,AUX_2d_pais!$J$2:$J$27000)/1000 -> 0 | K15: =+SUMIF(AUX_2d_pais!$A$2:$A$27000,'5.1'!$A15&'5.1'!K$3&2,AUX_2d_pais!$J$2:$J$27000)/1000 -> 0 | L15: =+SUMIF(AUX_2d_pais!$A$2:$A$27000,'5.1'!$A15&'5.1'!L$3&2,AUX_2d_pais!$J$2:$J$27000)/1000 -> 0 | M15: =+SUMIF(AUX_2d_pais!$A$2:$A$27000,'5.1'!$A15&'5.1'!M$3&2,AUX_2d_pais!$J$2:$J$27000)/1000 -> 0 | N15: =+SUMIF(AUX_2d_pais!$A$2:$A$27000,'5.1'!$A15&'5.1'!N$3&2,AUX_2d_pais!$J$2:$J$27000)/1000 -> 0 | O15: 0 | P15: 0 | Q15: 0 | S15: =G15-INDEX($C15:$G15,1,aux!$AL$1) -> 0 | T15: 0 | U15: =+IF(INDEX($C15:$G15,1,aux!$AL$1)>0,(G15/INDEX($C15:$G15,1,aux!$AL$1))^(1/($G$3-INDEX($C$3:$G$3,1,aux!$AL$1)))-1,"n.d.") -> n.d. | V15: =IF(INDEX($C15:$G15,1,aux!$AL$1)>0,(G15-INDEX($C15:$G15,1,aux!$AL$1))/INDEX($C15:$G15,1,aux!$AL$1),"n.d.") -> n.d. | X15: =N15-INDEX($J15:$N15,1,aux!$AL$1) -> 0 | Y15: 0 | Z15: =+IF(INDEX($J15:$N15,1,aux!$AL$1)>0,(N15/INDEX($J15:$N15,1,aux!$AL$1))^(1/($N$3-INDEX($J$3:$N$3,1,aux!$AL$1)))-1,"n.d.") -> n.d. | AA15: =IF(INDEX($J15:$N15,1,aux!$AL$1)>0,(N15-INDEX($J15:$N15,1,aux!$AL$1))/INDEX($J15:$N15,1,aux!$AL$1),"n.d.") -> n.d. | AC15: 0 | BS15: =+MATCH('5.1'!A15,AUX_2d_pais!$G$2:$G$20001,0) -> 
A16: 0528 | B16: Argentina | C16: =+SUMIF(AUX_2d_pais!$A$2:$A$27000,'5.1'!$A16&'5.1'!C$3&1,AUX_2d_pais!$J$2:$J$27000)/1000 -> 0 | D16: =+SUMIF(AUX_2d_pais!$A$2:$A$27000,'5.1'!$A16&'5.1'!D$3&1,AUX_2d_pais!$J$2:$J$27000)/1000 -> 0 | E16: =+SUMIF(AUX_2d_pais!$A$2:$A$27000,'5.1'!$A16&'5.1'!E$3&1,AUX_2d_pais!$J$2:$J$27000)/1000 -> 0 | F16: =+SUMIF(AUX_2d_pais!$A$2:$A$27000,'5.1'!$A16&'5.1'!F$3&1,AUX_2d_pais!$J$2:$J$27000)/1000 -> 0 | G16: =+SUMIF(AUX_2d_pais!$A$2:$A$27000,'5.1'!$A16&'5.1'!G$3&1,AUX_2d_pais!$J$2:$J$27000)/1000 -> 0 | H16: 0 | I16: 0 | J16: =+SUMIF(AUX_2d_pais!$A$2:$A$27000,'5.1'!$A16&'5.1'!J$3&2,AUX_2d_pais!$J$2:$J$27000)/1000 -> 0 | K16: =+SUMIF(AUX_2d_pais!$A$2:$A$27000,'5.1'!$A16&'5.1'!K$3&2,AUX_2d_pais!$J$2:$J$27000)/1000 -> 0 | L16: =+SUMIF(AUX_2d_pais!$A$2:$A$27000,'5.1'!$A16&'5.1'!L$3&2,AUX_2d_pais!$J$2:$J$27000)/1000 -> 0 | M16: =+SUMIF(AUX_2d_pais!$A$2:$A$27000,'5.1'!$A16&'5.1'!M$3&2,AUX_2d_pais!$J$2:$J$27000)/1000 -> 0 | N16: =+SUMIF(AUX_2d_pais!$A$2:$A$27000,'5.1'!$A16&'5.1'!N$3&2,AUX_2d_pais!$J$2:$J$27000)/1000 -> 0 | O16: 0 | P16: 0 | Q16: 0 | S16: =G16-INDEX($C16:$G16,1,aux!$AL$1) -> 0 | T16: 0 | U16: =+IF(INDEX($C16:$G16,1,aux!$AL$1)>0,(G16/INDEX($C16:$G16,1,aux!$AL$1))^(1/($G$3-INDEX($C$3:$G$3,1,aux!$AL$1)))-1,"n.d.") -> n.d. | V16: =IF(INDEX($C16:$G16,1,aux!$AL$1)>0,(G16-INDEX($C16:$G16,1,aux!$AL$1))/INDEX($C16:$G16,1,aux!$AL$1),"n.d.") -> n.d. | X16: =N16-INDEX($J16:$N16,1,aux!$AL$1) -> 0 | Y16: 0 | Z16: =+IF(INDEX($J16:$N16,1,aux!$AL$1)>0,(N16/INDEX($J16:$N16,1,aux!$AL$1))^(1/($N$3-INDEX($J$3:$N$3,1,aux!$AL$1)))-1,"n.d.") -> n.d. | AA16: =IF(INDEX($J16:$N16,1,aux!$AL$1)>0,(N16-INDEX($J16:$N16,1,aux!$AL$1))/INDEX($J16:$N16,1,aux!$AL$1),"n.d.") -> n.d. | AC16: 0 | BS16: =+MATCH('5.1'!A16,AUX_2d_pais!$G$2:$G$20001,0) -> 
A17: 0077 | B17: Arménia | C17: =+SUMIF(AUX_2d_pais!$A$2:$A$27000,'5.1'!$A17&'5.1'!C$3&1,AUX_2d_pais!$J$2:$J$27000)/1000 -> 0 | D17: =+SUMIF(AUX_2d_pais!$A$2:$A$27000,'5.1'!$A17&'5.1'!D$3&1,AUX_2d_pais!$J$2:$J$27000)/1000 -> 0 | E17: =+SUMIF(AUX_2d_pais!$A$2:$A$27000,'5.1'!$A17&'5.1'!E$3&1,AUX_2d_pais!$J$2:$J$27000)/1000 -> 0 | F17: =+SUMIF(AUX_2d_pais!$A$2:$A$27000,'5.1'!$A17&'5.1'!F$3&1,AUX_2d_pais!$J$2:$J$27000)/1000 -> 0 | G17: =+SUMIF(AUX_2d_pais!$A$2:$A$27000,'5.1'!$A17&'5.1'!G$3&1,AUX_2d_pais!$J$2:$J$27000)/1000 -> 0 | H17: 0 | I17: 0 | J17: =+SUMIF(AUX_2d_pais!$A$2:$A$27000,'5.1'!$A17&'5.1'!J$3&2,AUX_2d_pais!$J$2:$J$27000)/1000 -> 0 | K17: =+SUMIF(AUX_2d_pais!$A$2:$A$27000,'5.1'!$A17&'5.1'!K$3&2,AUX_2d_pais!$J$2:$J$27000)/1000 -> 0 | L17: =+SUMIF(AUX_2d_pais!$A$2:$A$27000,'5.1'!$A17&'5.1'!L$3&2,AUX_2d_pais!$J$2:$J$27000)/1000 -> 0 | M17: =+SUMIF(AUX_2d_pais!$A$2:$A$27000,'5.1'!$A17&'5.1'!M$3&2,AUX_2d_pais!$J$2:$J$27000)/1000 -> 0 | N17: =+SUMIF(AUX_2d_pais!$A$2:$A$27000,'5.1'!$A17&'5.1'!N$3&2,AUX_2d_pais!$J$2:$J$27000)/1000 -> 0 | O17: 0 | P17: 0 | Q17: 0 | S17: =G17-INDEX($C17:$G17,1,aux!$AL$1) -> 0 | T17: 0 | U17: =+IF(INDEX($C17:$G17,1,aux!$AL$1)>0,(G17/INDEX($C17:$G17,1,aux!$AL$1))^(1/($G$3-INDEX($C$3:$G$3,1,aux!$AL$1)))-1,"n.d.") -> n.d. | V17: =IF(INDEX($C17:$G17,1,aux!$AL$1)>0,(G17-INDEX($C17:$G17,1,aux!$AL$1))/INDEX($C17:$G17,1,aux!$AL$1),"n.d.") -> n.d. | X17: =N17-INDEX($J17:$N17,1,aux!$AL$1) -> 0 | Y17: 0 | Z17: =+IF(INDEX($J17:$N17,1,aux!$AL$1)>0,(N17/INDEX($J17:$N17,1,aux!$AL$1))^(1/($N$3-INDEX($J$3:$N$3,1,aux!$AL$1)))-1,"n.d.") -> n.d. | AA17: =IF(INDEX($J17:$N17,1,aux!$AL$1)>0,(N17-INDEX($J17:$N17,1,aux!$AL$1))/INDEX($J17:$N17,1,aux!$AL$1),"n.d.") -> n.d. | AC17: 0 | BS17: =+MATCH('5.1'!A17,AUX_2d_pais!$G$2:$G$20001,0) -> 
A18: 0474 | B18: Aruba | C18: =+SUMIF(AUX_2d_pais!$A$2:$A$27000,'5.1'!$A18&'5.1'!C$3&1,AUX_2d_pais!$J$2:$J$27000)/1000 -> 0 | D18: =+SUMIF(AUX_2d_pais!$A$2:$A$27000,'5.1'!$A18&'5.1'!D$3&1,AUX_2d_pais!$J$2:$J$27000)/1000 -> 0 | E18: =+SUMIF(AUX_2d_pais!$A$2:$A$27000,'5.1'!$A18&'5.1'!E$3&1,AUX_2d_pais!$J$2:$J$27000)/1000 -> 0 | F18: =+SUMIF(AUX_2d_pais!$A$2:$A$27000,'5.1'!$A18&'5.1'!F$3&1,AUX_2d_pais!$J$2:$J$27000)/1000 -> 0 | G18: =+SUMIF(AUX_2d_pais!$A$2:$A$27000,'5.1'!$A18&'5.1'!G$3&1,AUX_2d_pais!$J$2:$J$27000)/1000 -> 0 | H18: 0 | I18: 0 | J18: =+SUMIF(AUX_2d_pais!$A$2:$A$27000,'5.1'!$A18&'5.1'!J$3&2,AUX_2d_pais!$J$2:$J$27000)/1000 -> 0 | K18: =+SUMIF(AUX_2d_pais!$A$2:$A$27000,'5.1'!$A18&'5.1'!K$3&2,AUX_2d_pais!$J$2:$J$27000)/1000 -> 0 | L18: =+SUMIF(AUX_2d_pais!$A$2:$A$27000,'5.1'!$A18&'5.1'!L$3&2,AUX_2d_pais!$J$2:$J$27000)/1000 -> 0 | M18: =+SUMIF(AUX_2d_pais!$A$2:$A$27000,'5.1'!$A18&'5.1'!M$3&2,AUX_2d_pais!$J$2:$J$27000)/1000 -> 0 | N18: =+SUMIF(AUX_2d_pais!$A$2:$A$27000,'5.1'!$A18&'5.1'!N$3&2,AUX_2d_pais!$J$2:$J$27000)/1000 -> 0 | O18: 0 | P18: 0 | Q18: 0 | S18: =G18-INDEX($C18:$G18,1,aux!$AL$1) -> 0 | T18: 0 | U18: =+IF(INDEX($C18:$G18,1,aux!$AL$1)>0,(G18/INDEX($C18:$G18,1,aux!$AL$1))^(1/($G$3-INDEX($C$3:$G$3,1,aux!$AL$1)))-1,"n.d.") -> n.d. | V18: =IF(INDEX($C18:$G18,1,aux!$AL$1)>0,(G18-INDEX($C18:$G18,1,aux!$AL$1))/INDEX($C18:$G18,1,aux!$AL$1),"n.d.") -> n.d. | X18: =N18-INDEX($J18:$N18,1,aux!$AL$1) -> 0 | Y18: 0 | Z18: =+IF(INDEX($J18:$N18,1,aux!$AL$1)>0,(N18/INDEX($J18:$N18,1,aux!$AL$1))^(1/($N$3-INDEX($J$3:$N$3,1,aux!$AL$1)))-1,"n.d.") -> n.d. | AA18: =IF(INDEX($J18:$N18,1,aux!$AL$1)>0,(N18-INDEX($J18:$N18,1,aux!$AL$1))/INDEX($J18:$N18,1,aux!$AL$1),"n.d.") -> n.d. | AC18: 0 | BS18: =+MATCH('5.1'!A18,AUX_2d_pais!$G$2:$G$20001,0) -> 
A19: 0800 | B19: Austrália | C19: =+SUMIF(AUX_2d_pais!$A$2:$A$27000,'5.1'!$A19&'5.1'!C$3&1,AUX_2d_pais!$J$2:$J$27000)/1000 -> 0 | D19: =+SUMIF(AUX_2d_pais!$A$2:$A$27000,'5.1'!$A19&'5.1'!D$3&1,AUX_2d_pais!$J$2:$J$27000)/1000 -> 0 | E19: =+SUMIF(AUX_2d_pais!$A$2:$A$27000,'5.1'!$A19&'5.1'!E$3&1,AUX_2d_pais!$J$2:$J$27000)/1000 -> 0 | F19: =+SUMIF(AUX_2d_pais!$A$2:$A$27000,'5.1'!$A19&'5.1'!F$3&1,AUX_2d_pais!$J$2:$J$27000)/1000 -> 0 | G19: =+SUMIF(AUX_2d_pais!$A$2:$A$27000,'5.1'!$A19&'5.1'!G$3&1,AUX_2d_pais!$J$2:$J$27000)/1000 -> 0 | H19: 0 | I19: 0 | J19: =+SUMIF(AUX_2d_pais!$A$2:$A$27000,'5.1'!$A19&'5.1'!J$3&2,AUX_2d_pais!$J$2:$J$27000)/1000 -> 0 | K19: =+SUMIF(AUX_2d_pais!$A$2:$A$27000,'5.1'!$A19&'5.1'!K$3&2,AUX_2d_pais!$J$2:$J$27000)/1000 -> 0 | L19: =+SUMIF(AUX_2d_pais!$A$2:$A$27000,'5.1'!$A19&'5.1'!L$3&2,AUX_2d_pais!$J$2:$J$27000)/1000 -> 0 | M19: =+SUMIF(AUX_2d_pais!$A$2:$A$27000,'5.1'!$A19&'5.1'!M$3&2,AUX_2d_pais!$J$2:$J$27000)/1000 -> 0 | N19: =+SUMIF(AUX_2d_pais!$A$2:$A$27000,'5.1'!$A19&'5.1'!N$3&2,AUX_2d_pais!$J$2:$J$27000)/1000 -> 0 | O19: 0 | P19: 0 | Q19: 0 | S19: =G19-INDEX($C19:$G19,1,aux!$AL$1) -> 0 | T19: 0 | U19: =+IF(INDEX($C19:$G19,1,aux!$AL$1)>0,(G19/INDEX($C19:$G19,1,aux!$AL$1))^(1/($G$3-INDEX($C$3:$G$3,1,aux!$AL$1)))-1,"n.d.") -> n.d. | V19: =IF(INDEX($C19:$G19,1,aux!$AL$1)>0,(G19-INDEX($C19:$G19,1,aux!$AL$1))/INDEX($C19:$G19,1,aux!$AL$1),"n.d.") -> n.d. | X19: =N19-INDEX($J19:$N19,1,aux!$AL$1) -> 0 | Y19: 0 | Z19: =+IF(INDEX($J19:$N19,1,aux!$AL$1)>0,(N19/INDEX($J19:$N19,1,aux!$AL$1))^(1/($N$3-INDEX($J$3:$N$3,1,aux!$AL$1)))-1,"n.d.") -> n.d. | AA19: =IF(INDEX($J19:$N19,1,aux!$AL$1)>0,(N19-INDEX($J19:$N19,1,aux!$AL$1))/INDEX($J19:$N19,1,aux!$AL$1),"n.d.") -> n.d. | AC19: 0 | BS19: =+MATCH('5.1'!A19,AUX_2d_pais!$G$2:$G$20001,0) -> 
A20: 0038 | B20: Áustria | C20: =+SUMIF(AUX_2d_pais!$A$2:$A$27000,'5.1'!$A20&'5.1'!C$3&1,AUX_2d_pais!$J$2:$J$27000)/1000 -> 0 | D20: =+SUMIF(AUX_2d_pais!$A$2:$A$27000,'5.1'!$A20&'5.1'!D$3&1,AUX_2d_pais!$J$2:$J$27000)/1000 -> 0 | E20: =+SUMIF(AUX_2d_pais!$A$2:$A$27000,'5.1'!$A20&'5.1'!E$3&1,AUX_2d_pais!$J$2:$J$27000)/1000 -> 0 | F20: =+SUMIF(AUX_2d_pais!$A$2:$A$27000,'5.1'!$A20&'5.1'!F$3&1,AUX_2d_pais!$J$2:$J$27000)/1000 -> 0 | G20: =+SUMIF(AUX_2d_pais!$A$2:$A$27000,'5.1'!$A20&'5.1'!G$3&1,AUX_2d_pais!$J$2:$J$27000)/1000 -> 0 | H20: 0 | I20: 0 | J20: =+SUMIF(AUX_2d_pais!$A$2:$A$27000,'5.1'!$A20&'5.1'!J$3&2,AUX_2d_pais!$J$2:$J$27000)/1000 -> 0 | K20: =+SUMIF(AUX_2d_pais!$A$2:$A$27000,'5.1'!$A20&'5.1'!K$3&2,AUX_2d_pais!$J$2:$J$27000)/1000 -> 0 | L20: =+SUMIF(AUX_2d_pais!$A$2:$A$27000,'5.1'!$A20&'5.1'!L$3&2,AUX_2d_pais!$J$2:$J$27000)/1000 -> 0 | M20: =+SUMIF(AUX_2d_pais!$A$2:$A$27000,'5.1'!$A20&'5.1'!M$3&2,AUX_2d_pais!$J$2:$J$27000)/1000 -> 0 | N20: =+SUMIF(AUX_2d_pais!$A$2:$A$27000,'5.1'!$A20&'5.1'!N$3&2,AUX_2d_pais!$J$2:$J$27000)/1000 -> 0 | O20: 0 | P20: 0 | Q20: 0 | S20: =G20-INDEX($C20:$G20,1,aux!$AL$1) -> 0 | T20: 0 | U20: =+IF(INDEX($C20:$G20,1,aux!$AL$1)>0,(G20/INDEX($C20:$G20,1,aux!$AL$1))^(1/($G$3-INDEX($C$3:$G$3,1,aux!$AL$1)))-1,"n.d.") -> n.d. | V20: =IF(INDEX($C20:$G20,1,aux!$AL$1)>0,(G20-INDEX($C20:$G20,1,aux!$AL$1))/INDEX($C20:$G20,1,aux!$AL$1),"n.d.") -> n.d. | X20: =N20-INDEX($J20:$N20,1,aux!$AL$1) -> 0 | Y20: 0 | Z20: =+IF(INDEX($J20:$N20,1,aux!$AL$1)>0,(N20/INDEX($J20:$N20,1,aux!$AL$1))^(1/($N$3-INDEX($J$3:$N$3,1,aux!$AL$1)))-1,"n.d.") -> n.d. | AA20: =IF(INDEX($J20:$N20,1,aux!$AL$1)>0,(N20-INDEX($J20:$N20,1,aux!$AL$1))/INDEX($J20:$N20,1,aux!$AL$1),"n.d.") -> n.d. | AC20: 0 | BS20: =+MATCH('5.1'!A20,AUX_2d_pais!$G$2:$G$20001,0) -> 
A21: 0078 | B21: Azerbaijão | C21: =+SUMIF(AUX_2d_pais!$A$2:$A$27000,'5.1'!$A21&'5.1'!C$3&1,AUX_2d_pais!$J$2:$J$27000)/1000 -> 0 | D21: =+SUMIF(AUX_2d_pais!$A$2:$A$27000,'5.1'!$A21&'5.1'!D$3&1,AUX_2d_pais!$J$2:$J$27000)/1000 -> 0 | E21: =+SUMIF(AUX_2d_pais!$A$2:$A$27000,'5.1'!$A21&'5.1'!E$3&1,AUX_2d_pais!$J$2:$J$27000)/1000 -> 0 | F21: =+SUMIF(AUX_2d_pais!$A$2:$A$27000,'5.1'!$A21&'5.1'!F$3&1,AUX_2d_pais!$J$2:$J$27000)/1000 -> 0 | G21: =+SUMIF(AUX_2d_pais!$A$2:$A$27000,'5.1'!$A21&'5.1'!G$3&1,AUX_2d_pais!$J$2:$J$27000)/1000 -> 0 | H21: 0 | I21: 0 | J21: =+SUMIF(AUX_2d_pais!$A$2:$A$27000,'5.1'!$A21&'5.1'!J$3&2,AUX_2d_pais!$J$2:$J$27000)/1000 -> 0 | K21: =+SUMIF(AUX_2d_pais!$A$2:$A$27000,'5.1'!$A21&'5.1'!K$3&2,AUX_2d_pais!$J$2:$J$27000)/1000 -> 0 | L21: =+SUMIF(AUX_2d_pais!$A$2:$A$27000,'5.1'!$A21&'5.1'!L$3&2,AUX_2d_pais!$J$2:$J$27000)/1000 -> 0 | M21: =+SUMIF(AUX_2d_pais!$A$2:$A$27000,'5.1'!$A21&'5.1'!M$3&2,AUX_2d_pais!$J$2:$J$27000)/1000 -> 0 | N21: =+SUMIF(AUX_2d_pais!$A$2:$A$27000,'5.1'!$A21&'5.1'!N$3&2,AUX_2d_pais!$J$2:$J$27000)/1000 -> 0 | O21: 0 | P21: 0 | Q21: 0 | S21: =G21-INDEX($C21:$G21,1,aux!$AL$1) -> 0 | T21: 0 | U21: =+IF(INDEX($C21:$G21,1,aux!$AL$1)>0,(G21/INDEX($C21:$G21,1,aux!$AL$1))^(1/($G$3-INDEX($C$3:$G$3,1,aux!$AL$1)))-1,"n.d.") -> n.d. | V21: =IF(INDEX($C21:$G21,1,aux!$AL$1)>0,(G21-INDEX($C21:$G21,1,aux!$AL$1))/INDEX($C21:$G21,1,aux!$AL$1),"n.d.") -> n.d. | X21: =N21-INDEX($J21:$N21,1,aux!$AL$1) -> 0 | Y21: 0 | Z21: =+IF(INDEX($J21:$N21,1,aux!$AL$1)>0,(N21/INDEX($J21:$N21,1,aux!$AL$1))^(1/($N$3-INDEX($J$3:$N$3,1,aux!$AL$1)))-1,"n.d.") -> n.d. | AA21: =IF(INDEX($J21:$N21,1,aux!$AL$1)>0,(N21-INDEX($J21:$N21,1,aux!$AL$1))/INDEX($J21:$N21,1,aux!$AL$1),"n.d.") -> n.d. | AC21: 0 | BS21: =+MATCH('5.1'!A21,AUX_2d_pais!$G$2:$G$20001,0) -> 
A22: 0453 | B22: Bahamas | C22: =+SUMIF(AUX_2d_pais!$A$2:$A$27000,'5.1'!$A22&'5.1'!C$3&1,AUX_2d_pais!$J$2:$J$27000)/1000 -> 0 | D22: =+SUMIF(AUX_2d_pais!$A$2:$A$27000,'5.1'!$A22&'5.1'!D$3&1,AUX_2d_pais!$J$2:$J$27000)/1000 -> 0 | E22: =+SUMIF(AUX_2d_pais!$A$2:$A$27000,'5.1'!$A22&'5.1'!E$3&1,AUX_2d_pais!$J$2:$J$27000)/1000 -> 0 | F22: =+SUMIF(AUX_2d_pais!$A$2:$A$27000,'5.1'!$A22&'5.1'!F$3&1,AUX_2d_pais!$J$2:$J$27000)/1000 -> 0 | G22: =+SUMIF(AUX_2d_pais!$A$2:$A$27000,'5.1'!$A22&'5.1'!G$3&1,AUX_2d_pais!$J$2:$J$27000)/1000 -> 0 | H22: 0 | I22: 0 | J22: =+SUMIF(AUX_2d_pais!$A$2:$A$27000,'5.1'!$A22&'5.1'!J$3&2,AUX_2d_pais!$J$2:$J$27000)/1000 -> 0 | K22: =+SUMIF(AUX_2d_pais!$A$2:$A$27000,'5.1'!$A22&'5.1'!K$3&2,AUX_2d_pais!$J$2:$J$27000)/1000 -> 0 | L22: =+SUMIF(AUX_2d_pais!$A$2:$A$27000,'5.1'!$A22&'5.1'!L$3&2,AUX_2d_pais!$J$2:$J$27000)/1000 -> 0 | M22: =+SUMIF(AUX_2d_pais!$A$2:$A$27000,'5.1'!$A22&'5.1'!M$3&2,AUX_2d_pais!$J$2:$J$27000)/1000 -> 0 | N22: =+SUMIF(AUX_2d_pais!$A$2:$A$27000,'5.1'!$A22&'5.1'!N$3&2,AUX_2d_pais!$J$2:$J$27000)/1000 -> 0 | O22: 0 | P22: 0 | Q22: 0 | S22: =G22-INDEX($C22:$G22,1,aux!$AL$1) -> 0 | T22: 0 | U22: =+IF(INDEX($C22:$G22,1,aux!$AL$1)>0,(G22/INDEX($C22:$G22,1,aux!$AL$1))^(1/($G$3-INDEX($C$3:$G$3,1,aux!$AL$1)))-1,"n.d.") -> n.d. | V22: =IF(INDEX($C22:$G22,1,aux!$AL$1)>0,(G22-INDEX($C22:$G22,1,aux!$AL$1))/INDEX($C22:$G22,1,aux!$AL$1),"n.d.") -> n.d. | X22: =N22-INDEX($J22:$N22,1,aux!$AL$1) -> 0 | Y22: 0 | Z22: =+IF(INDEX($J22:$N22,1,aux!$AL$1)>0,(N22/INDEX($J22:$N22,1,aux!$AL$1))^(1/($N$3-INDEX($J$3:$N$3,1,aux!$AL$1)))-1,"n.d.") -> n.d. | AA22: =IF(INDEX($J22:$N22,1,aux!$AL$1)>0,(N22-INDEX($J22:$N22,1,aux!$AL$1))/INDEX($J22:$N22,1,aux!$AL$1),"n.d.") -> n.d. | AC22: 0 | BS22: =+MATCH('5.1'!A22,AUX_2d_pais!$G$2:$G$20001,0) -> 
A23: 0666 | B23: Bangladesh | C23: =+SUMIF(AUX_2d_pais!$A$2:$A$27000,'5.1'!$A23&'5.1'!C$3&1,AUX_2d_pais!$J$2:$J$27000)/1000 -> 0 | D23: =+SUMIF(AUX_2d_pais!$A$2:$A$27000,'5.1'!$A23&'5.1'!D$3&1,AUX_2d_pais!$J$2:$J$27000)/1000 -> 0 | E23: =+SUMIF(AUX_2d_pais!$A$2:$A$27000,'5.1'!$A23&'5.1'!E$3&1,AUX_2d_pais!$J$2:$J$27000)/1000 -> 0 | F23: =+SUMIF(AUX_2d_pais!$A$2:$A$27000,'5.1'!$A23&'5.1'!F$3&1,AUX_2d_pais!$J$2:$J$27000)/1000 -> 0 | G23: =+SUMIF(AUX_2d_pais!$A$2:$A$27000,'5.1'!$A23&'5.1'!G$3&1,AUX_2d_pais!$J$2:$J$27000)/1000 -> 0 | H23: 0 | I23: 0 | J23: =+SUMIF(AUX_2d_pais!$A$2:$A$27000,'5.1'!$A23&'5.1'!J$3&2,AUX_2d_pais!$J$2:$J$27000)/1000 -> 0 | K23: =+SUMIF(AUX_2d_pais!$A$2:$A$27000,'5.1'!$A23&'5.1'!K$3&2,AUX_2d_pais!$J$2:$J$27000)/1000 -> 0 | L23: =+SUMIF(AUX_2d_pais!$A$2:$A$27000,'5.1'!$A23&'5.1'!L$3&2,AUX_2d_pais!$J$2:$J$27000)/1000 -> 0 | M23: =+SUMIF(AUX_2d_pais!$A$2:$A$27000,'5.1'!$A23&'5.1'!M$3&2,AUX_2d_pais!$J$2:$J$27000)/1000 -> 0 | N23: =+SUMIF(AUX_2d_pais!$A$2:$A$27000,'5.1'!$A23&'5.1'!N$3&2,AUX_2d_pais!$J$2:$J$27000)/1000 -> 0 | O23: 0 | P23: 0 | Q23: 0 | S23: =G23-INDEX($C23:$G23,1,aux!$AL$1) -> 0 | T23: 0 | U23: =+IF(INDEX($C23:$G23,1,aux!$AL$1)>0,(G23/INDEX($C23:$G23,1,aux!$AL$1))^(1/($G$3-INDEX($C$3:$G$3,1,aux!$AL$1)))-1,"n.d.") -> n.d. | V23: =IF(INDEX($C23:$G23,1,aux!$AL$1)>0,(G23-INDEX($C23:$G23,1,aux!$AL$1))/INDEX($C23:$G23,1,aux!$AL$1),"n.d.") -> n.d. | X23: =N23-INDEX($J23:$N23,1,aux!$AL$1) -> 0 | Y23: 0 | Z23: =+IF(INDEX($J23:$N23,1,aux!$AL$1)>0,(N23/INDEX($J23:$N23,1,aux!$AL$1))^(1/($N$3-INDEX($J$3:$N$3,1,aux!$AL$1)))-1,"n.d.") -> n.d. | AA23: =IF(INDEX($J23:$N23,1,aux!$AL$1)>0,(N23-INDEX($J23:$N23,1,aux!$AL$1))/INDEX($J23:$N23,1,aux!$AL$1),"n.d.") -> n.d. | AC23: 0 | BS23: =+MATCH('5.1'!A23,AUX_2d_pais!$G$2:$G$20001,0) -> 
A24: 0469 | B24: Barbados | C24: =+SUMIF(AUX_2d_pais!$A$2:$A$27000,'5.1'!$A24&'5.1'!C$3&1,AUX_2d_pais!$J$2:$J$27000)/1000 -> 0 | D24: =+SUMIF(AUX_2d_pais!$A$2:$A$27000,'5.1'!$A24&'5.1'!D$3&1,AUX_2d_pais!$J$2:$J$27000)/1000 -> 0 | E24: =+SUMIF(AUX_2d_pais!$A$2:$A$27000,'5.1'!$A24&'5.1'!E$3&1,AUX_2d_pais!$J$2:$J$27000)/1000 -> 0 | F24: =+SUMIF(AUX_2d_pais!$A$2:$A$27000,'5.1'!$A24&'5.1'!F$3&1,AUX_2d_pais!$J$2:$J$27000)/1000 -> 0 | G24: =+SUMIF(AUX_2d_pais!$A$2:$A$27000,'5.1'!$A24&'5.1'!G$3&1,AUX_2d_pais!$J$2:$J$27000)/1000 -> 0 | H24: 0 | I24: 0 | J24: =+SUMIF(AUX_2d_pais!$A$2:$A$27000,'5.1'!$A24&'5.1'!J$3&2,AUX_2d_pais!$J$2:$J$27000)/1000 -> 0 | K24: =+SUMIF(AUX_2d_pais!$A$2:$A$27000,'5.1'!$A24&'5.1'!K$3&2,AUX_2d_pais!$J$2:$J$27000)/1000 -> 0 | L24: =+SUMIF(AUX_2d_pais!$A$2:$A$27000,'5.1'!$A24&'5.1'!L$3&2,AUX_2d_pais!$J$2:$J$27000)/1000 -> 0 | M24: =+SUMIF(AUX_2d_pais!$A$2:$A$27000,'5.1'!$A24&'5.1'!M$3&2,AUX_2d_pais!$J$2:$J$27000)/1000 -> 0 | N24: =+SUMIF(AUX_2d_pais!$A$2:$A$27000,'5.1'!$A24&'5.1'!N$3&2,AUX_2d_pais!$J$2:$J$27000)/1000 -> 0 | O24: 0 | P24: 0 | Q24: 0 | S24: =G24-INDEX($C24:$G24,1,aux!$AL$1) -> 0 | T24: 0 | U24: =+IF(INDEX($C24:$G24,1,aux!$AL$1)>0,(G24/INDEX($C24:$G24,1,aux!$AL$1))^(1/($G$3-INDEX($C$3:$G$3,1,aux!$AL$1)))-1,"n.d.") -> n.d. | V24: =IF(INDEX($C24:$G24,1,aux!$AL$1)>0,(G24-INDEX($C24:$G24,1,aux!$AL$1))/INDEX($C24:$G24,1,aux!$AL$1),"n.d.") -> n.d. | X24: =N24-INDEX($J24:$N24,1,aux!$AL$1) -> 0 | Y24: 0 | Z24: =+IF(INDEX($J24:$N24,1,aux!$AL$1)>0,(N24/INDEX($J24:$N24,1,aux!$AL$1))^(1/($N$3-INDEX($J$3:$N$3,1,aux!$AL$1)))-1,"n.d.") -> n.d. | AA24: =IF(INDEX($J24:$N24,1,aux!$AL$1)>0,(N24-INDEX($J24:$N24,1,aux!$AL$1))/INDEX($J24:$N24,1,aux!$AL$1),"n.d.") -> n.d. | AC24: 0 | BS24: =+MATCH('5.1'!A24,AUX_2d_pais!$G$2:$G$20001,0) -> 
A25: 0640 | B25: Barém | C25: =+SUMIF(AUX_2d_pais!$A$2:$A$27000,'5.1'!$A25&'5.1'!C$3&1,AUX_2d_pais!$J$2:$J$27000)/1000 -> 0 | D25: =+SUMIF(AUX_2d_pais!$A$2:$A$27000,'5.1'!$A25&'5.1'!D$3&1,AUX_2d_pais!$J$2:$J$27000)/1000 -> 0 | E25: =+SUMIF(AUX_2d_pais!$A$2:$A$27000,'5.1'!$A25&'5.1'!E$3&1,AUX_2d_pais!$J$2:$J$27000)/1000 -> 0 | F25: =+SUMIF(AUX_2d_pais!$A$2:$A$27000,'5.1'!$A25&'5.1'!F$3&1,AUX_2d_pais!$J$2:$J$27000)/1000 -> 0 | G25: =+SUMIF(AUX_2d_pais!$A$2:$A$27000,'5.1'!$A25&'5.1'!G$3&1,AUX_2d_pais!$J$2:$J$27000)/1000 -> 0 | H25: 0 | I25: 0 | J25: =+SUMIF(AUX_2d_pais!$A$2:$A$27000,'5.1'!$A25&'5.1'!J$3&2,AUX_2d_pais!$J$2:$J$27000)/1000 -> 0 | K25: =+SUMIF(AUX_2d_pais!$A$2:$A$27000,'5.1'!$A25&'5.1'!K$3&2,AUX_2d_pais!$J$2:$J$27000)/1000 -> 0 | L25: =+SUMIF(AUX_2d_pais!$A$2:$A$27000,'5.1'!$A25&'5.1'!L$3&2,AUX_2d_pais!$J$2:$J$27000)/1000 -> 0 | M25: =+SUMIF(AUX_2d_pais!$A$2:$A$27000,'5.1'!$A25&'5.1'!M$3&2,AUX_2d_pais!$J$2:$J$27000)/1000 -> 0 | N25: =+SUMIF(AUX_2d_pais!$A$2:$A$27000,'5.1'!$A25&'5.1'!N$3&2,AUX_2d_pais!$J$2:$J$27000)/1000 -> 0 | O25: 0 | P25: 0 | Q25: 0 | S25: =G25-INDEX($C25:$G25,1,aux!$AL$1) -> 0 | T25: 0 | U25: =+IF(INDEX($C25:$G25,1,aux!$AL$1)>0,(G25/INDEX($C25:$G25,1,aux!$AL$1))^(1/($G$3-INDEX($C$3:$G$3,1,aux!$AL$1)))-1,"n.d.") -> n.d. | V25: =IF(INDEX($C25:$G25,1,aux!$AL$1)>0,(G25-INDEX($C25:$G25,1,aux!$AL$1))/INDEX($C25:$G25,1,aux!$AL$1),"n.d.") -> n.d. | X25: =N25-INDEX($J25:$N25,1,aux!$AL$1) -> 0 | Y25: 0 | Z25: =+IF(INDEX($J25:$N25,1,aux!$AL$1)>0,(N25/INDEX($J25:$N25,1,aux!$AL$1))^(1/($N$3-INDEX($J$3:$N$3,1,aux!$AL$1)))-1,"n.d.") -> n.d. | AA25: =IF(INDEX($J25:$N25,1,aux!$AL$1)>0,(N25-INDEX($J25:$N25,1,aux!$AL$1))/INDEX($J25:$N25,1,aux!$AL$1),"n.d.") -> n.d. | AC25: 0 | BS25: =+MATCH('5.1'!A25,AUX_2d_pais!$G$2:$G$20001,0) -> 
A26: 0073 | B26: Belarus | C26: =+SUMIF(AUX_2d_pais!$A$2:$A$27000,'5.1'!$A26&'5.1'!C$3&1,AUX_2d_pais!$J$2:$J$27000)/1000 -> 0 | D26: =+SUMIF(AUX_2d_pais!$A$2:$A$27000,'5.1'!$A26&'5.1'!D$3&1,AUX_2d_pais!$J$2:$J$27000)/1000 -> 0 | E26: =+SUMIF(AUX_2d_pais!$A$2:$A$27000,'5.1'!$A26&'5.1'!E$3&1,AUX_2d_pais!$J$2:$J$27000)/1000 -> 0 | F26: =+SUMIF(AUX_2d_pais!$A$2:$A$27000,'5.1'!$A26&'5.1'!F$3&1,AUX_2d_pais!$J$2:$J$27000)/1000 -> 0 | G26: =+SUMIF(AUX_2d_pais!$A$2:$A$27000,'5.1'!$A26&'5.1'!G$3&1,AUX_2d_pais!$J$2:$J$27000)/1000 -> 0 | H26: 0 | I26: 0 | J26: =+SUMIF(AUX_2d_pais!$A$2:$A$27000,'5.1'!$A26&'5.1'!J$3&2,AUX_2d_pais!$J$2:$J$27000)/1000 -> 0 | K26: =+SUMIF(AUX_2d_pais!$A$2:$A$27000,'5.1'!$A26&'5.1'!K$3&2,AUX_2d_pais!$J$2:$J$27000)/1000 -> 0 | L26: =+SUMIF(AUX_2d_pais!$A$2:$A$27000,'5.1'!$A26&'5.1'!L$3&2,AUX_2d_pais!$J$2:$J$27000)/1000 -> 0 | M26: =+SUMIF(AUX_2d_pais!$A$2:$A$27000,'5.1'!$A26&'5.1'!M$3&2,AUX_2d_pais!$J$2:$J$27000)/1000 -> 0 | N26: =+SUMIF(AUX_2d_pais!$A$2:$A$27000,'5.1'!$A26&'5.1'!N$3&2,AUX_2d_pais!$J$2:$J$27000)/1000 -> 0 | O26: 0 | P26: 0 | Q26: 0 | S26: =G26-INDEX($C26:$G26,1,aux!$AL$1) -> 0 | T26: 0 | U26: =+IF(INDEX($C26:$G26,1,aux!$AL$1)>0,(G26/INDEX($C26:$G26,1,aux!$AL$1))^(1/($G$3-INDEX($C$3:$G$3,1,aux!$AL$1)))-1,"n.d.") -> n.d. | V26: =IF(INDEX($C26:$G26,1,aux!$AL$1)>0,(G26-INDEX($C26:$G26,1,aux!$AL$1))/INDEX($C26:$G26,1,aux!$AL$1),"n.d.") -> n.d. | X26: =N26-INDEX($J26:$N26,1,aux!$AL$1) -> 0 | Y26: 0 | Z26: =+IF(INDEX($J26:$N26,1,aux!$AL$1)>0,(N26/INDEX($J26:$N26,1,aux!$AL$1))^(1/($N$3-INDEX($J$3:$N$3,1,aux!$AL$1)))-1,"n.d.") -> n.d. | AA26: =IF(INDEX($J26:$N26,1,aux!$AL$1)>0,(N26-INDEX($J26:$N26,1,aux!$AL$1))/INDEX($J26:$N26,1,aux!$AL$1),"n.d.") -> n.d. | AC26: 0 | BS26: =+MATCH('5.1'!A26,AUX_2d_pais!$G$2:$G$20001,0) -> 
A27: 0017 | B27: Bélgica | C27: =+SUMIF(AUX_2d_pais!$A$2:$A$27000,'5.1'!$A27&'5.1'!C$3&1,AUX_2d_pais!$J$2:$J$27000)/1000 -> 0 | D27: =+SUMIF(AUX_2d_pais!$A$2:$A$27000,'5.1'!$A27&'5.1'!D$3&1,AUX_2d_pais!$J$2:$J$27000)/1000 -> 0 | E27: =+SUMIF(AUX_2d_pais!$A$2:$A$27000,'5.1'!$A27&'5.1'!E$3&1,AUX_2d_pais!$J$2:$J$27000)/1000 -> 0 | F27: =+SUMIF(AUX_2d_pais!$A$2:$A$27000,'5.1'!$A27&'5.1'!F$3&1,AUX_2d_pais!$J$2:$J$27000)/1000 -> 0 | G27: =+SUMIF(AUX_2d_pais!$A$2:$A$27000,'5.1'!$A27&'5.1'!G$3&1,AUX_2d_pais!$J$2:$J$27000)/1000 -> 0 | H27: 0 | I27: 0 | J27: =+SUMIF(AUX_2d_pais!$A$2:$A$27000,'5.1'!$A27&'5.1'!J$3&2,AUX_2d_pais!$J$2:$J$27000)/1000 -> 0 | K27: =+SUMIF(AUX_2d_pais!$A$2:$A$27000,'5.1'!$A27&'5.1'!K$3&2,AUX_2d_pais!$J$2:$J$27000)/1000 -> 0 | L27: =+SUMIF(AUX_2d_pais!$A$2:$A$27000,'5.1'!$A27&'5.1'!L$3&2,AUX_2d_pais!$J$2:$J$27000)/1000 -> 0 | M27: =+SUMIF(AUX_2d_pais!$A$2:$A$27000,'5.1'!$A27&'5.1'!M$3&2,AUX_2d_pais!$J$2:$J$27000)/1000 -> 0 | N27: =+SUMIF(AUX_2d_pais!$A$2:$A$27000,'5.1'!$A27&'5.1'!N$3&2,AUX_2d_pais!$J$2:$J$27000)/1000 -> 0 | O27: 0 | P27: 0 | Q27: 0 | S27: =G27-INDEX($C27:$G27,1,aux!$AL$1) -> 0 | T27: 0 | U27: =+IF(INDEX($C27:$G27,1,aux!$AL$1)>0,(G27/INDEX($C27:$G27,1,aux!$AL$1))^(1/($G$3-INDEX($C$3:$G$3,1,aux!$AL$1)))-1,"n.d.") -> n.d. | V27: =IF(INDEX($C27:$G27,1,aux!$AL$1)>0,(G27-INDEX($C27:$G27,1,aux!$AL$1))/INDEX($C27:$G27,1,aux!$AL$1),"n.d.") -> n.d. | X27: =N27-INDEX($J27:$N27,1,aux!$AL$1) -> 0 | Y27: 0 | Z27: =+IF(INDEX($J27:$N27,1,aux!$AL$1)>0,(N27/INDEX($J27:$N27,1,aux!$AL$1))^(1/($N$3-INDEX($J$3:$N$3,1,aux!$AL$1)))-1,"n.d.") -> n.d. | AA27: =IF(INDEX($J27:$N27,1,aux!$AL$1)>0,(N27-INDEX($J27:$N27,1,aux!$AL$1))/INDEX($J27:$N27,1,aux!$AL$1),"n.d.") -> n.d. | AC27: 0 | BS27: =+MATCH('5.1'!A27,AUX_2d_pais!$G$2:$G$20001,0) -> 
A28: 0421 | B28: Belize | C28: =+SUMIF(AUX_2d_pais!$A$2:$A$27000,'5.1'!$A28&'5.1'!C$3&1,AUX_2d_pais!$J$2:$J$27000)/1000 -> 0 | D28: =+SUMIF(AUX_2d_pais!$A$2:$A$27000,'5.1'!$A28&'5.1'!D$3&1,AUX_2d_pais!$J$2:$J$27000)/1000 -> 0 | E28: =+SUMIF(AUX_2d_pais!$A$2:$A$27000,'5.1'!$A28&'5.1'!E$3&1,AUX_2d_pais!$J$2:$J$27000)/1000 -> 0 | F28: =+SUMIF(AUX_2d_pais!$A$2:$A$27000,'5.1'!$A28&'5.1'!F$3&1,AUX_2d_pais!$J$2:$J$27000)/1000 -> 0 | G28: =+SUMIF(AUX_2d_pais!$A$2:$A$27000,'5.1'!$A28&'5.1'!G$3&1,AUX_2d_pais!$J$2:$J$27000)/1000 -> 0 | H28: 0 | I28: 0 | J28: =+SUMIF(AUX_2d_pais!$A$2:$A$27000,'5.1'!$A28&'5.1'!J$3&2,AUX_2d_pais!$J$2:$J$27000)/1000 -> 0 | K28: =+SUMIF(AUX_2d_pais!$A$2:$A$27000,'5.1'!$A28&'5.1'!K$3&2,AUX_2d_pais!$J$2:$J$27000)/1000 -> 0 | L28: =+SUMIF(AUX_2d_pais!$A$2:$A$27000,'5.1'!$A28&'5.1'!L$3&2,AUX_2d_pais!$J$2:$J$27000)/1000 -> 0 | M28: =+SUMIF(AUX_2d_pais!$A$2:$A$27000,'5.1'!$A28&'5.1'!M$3&2,AUX_2d_pais!$J$2:$J$27000)/1000 -> 0 | N28: =+SUMIF(AUX_2d_pais!$A$2:$A$27000,'5.1'!$A28&'5.1'!N$3&2,AUX_2d_pais!$J$2:$J$27000)/1000 -> 0 | O28: 0 | P28: 0 | Q28: 0 | S28: =G28-INDEX($C28:$G28,1,aux!$AL$1) -> 0 | T28: 0 | U28: =+IF(INDEX($C28:$G28,1,aux!$AL$1)>0,(G28/INDEX($C28:$G28,1,aux!$AL$1))^(1/($G$3-INDEX($C$3:$G$3,1,aux!$AL$1)))-1,"n.d.") -> n.d. | V28: =IF(INDEX($C28:$G28,1,aux!$AL$1)>0,(G28-INDEX($C28:$G28,1,aux!$AL$1))/INDEX($C28:$G28,1,aux!$AL$1),"n.d.") -> n.d. | X28: =N28-INDEX($J28:$N28,1,aux!$AL$1) -> 0 | Y28: 0 | Z28: =+IF(INDEX($J28:$N28,1,aux!$AL$1)>0,(N28/INDEX($J28:$N28,1,aux!$AL$1))^(1/($N$3-INDEX($J$3:$N$3,1,aux!$AL$1)))-1,"n.d.") -> n.d. | AA28: =IF(INDEX($J28:$N28,1,aux!$AL$1)>0,(N28-INDEX($J28:$N28,1,aux!$AL$1))/INDEX($J28:$N28,1,aux!$AL$1),"n.d.") -> n.d. | AC28: 0 | BS28: =+MATCH('5.1'!A28,AUX_2d_pais!$G$2:$G$20001,0) -> 
A29: 0284 | B29: Benim | C29: =+SUMIF(AUX_2d_pais!$A$2:$A$27000,'5.1'!$A29&'5.1'!C$3&1,AUX_2d_pais!$J$2:$J$27000)/1000 -> 0 | D29: =+SUMIF(AUX_2d_pais!$A$2:$A$27000,'5.1'!$A29&'5.1'!D$3&1,AUX_2d_pais!$J$2:$J$27000)/1000 -> 0 | E29: =+SUMIF(AUX_2d_pais!$A$2:$A$27000,'5.1'!$A29&'5.1'!E$3&1,AUX_2d_pais!$J$2:$J$27000)/1000 -> 0 | F29: =+SUMIF(AUX_2d_pais!$A$2:$A$27000,'5.1'!$A29&'5.1'!F$3&1,AUX_2d_pais!$J$2:$J$27000)/1000 -> 0 | G29: =+SUMIF(AUX_2d_pais!$A$2:$A$27000,'5.1'!$A29&'5.1'!G$3&1,AUX_2d_pais!$J$2:$J$27000)/1000 -> 0 | H29: 0 | I29: 0 | J29: =+SUMIF(AUX_2d_pais!$A$2:$A$27000,'5.1'!$A29&'5.1'!J$3&2,AUX_2d_pais!$J$2:$J$27000)/1000 -> 0 | K29: =+SUMIF(AUX_2d_pais!$A$2:$A$27000,'5.1'!$A29&'5.1'!K$3&2,AUX_2d_pais!$J$2:$J$27000)/1000 -> 0 | L29: =+SUMIF(AUX_2d_pais!$A$2:$A$27000,'5.1'!$A29&'5.1'!L$3&2,AUX_2d_pais!$J$2:$J$27000)/1000 -> 0 | M29: =+SUMIF(AUX_2d_pais!$A$2:$A$27000,'5.1'!$A29&'5.1'!M$3&2,AUX_2d_pais!$J$2:$J$27000)/1000 -> 0 | N29: =+SUMIF(AUX_2d_pais!$A$2:$A$27000,'5.1'!$A29&'5.1'!N$3&2,AUX_2d_pais!$J$2:$J$27000)/1000 -> 0 | O29: 0 | P29: 0 | Q29: 0 | S29: =G29-INDEX($C29:$G29,1,aux!$AL$1) -> 0 | T29: 0 | U29: =+IF(INDEX($C29:$G29,1,aux!$AL$1)>0,(G29/INDEX($C29:$G29,1,aux!$AL$1))^(1/($G$3-INDEX($C$3:$G$3,1,aux!$AL$1)))-1,"n.d.") -> n.d. | V29: =IF(INDEX($C29:$G29,1,aux!$AL$1)>0,(G29-INDEX($C29:$G29,1,aux!$AL$1))/INDEX($C29:$G29,1,aux!$AL$1),"n.d.") -> n.d. | X29: =N29-INDEX($J29:$N29,1,aux!$AL$1) -> 0 | Y29: 0 | Z29: =+IF(INDEX($J29:$N29,1,aux!$AL$1)>0,(N29/INDEX($J29:$N29,1,aux!$AL$1))^(1/($N$3-INDEX($J$3:$N$3,1,aux!$AL$1)))-1,"n.d.") -> n.d. | AA29: =IF(INDEX($J29:$N29,1,aux!$AL$1)>0,(N29-INDEX($J29:$N29,1,aux!$AL$1))/INDEX($J29:$N29,1,aux!$AL$1),"n.d.") -> n.d. | AC29: 0 | BS29: =+MATCH('5.1'!A29,AUX_2d_pais!$G$2:$G$20001,0) -> 
A30: 0413 | B30: Bermudas | C30: =+SUMIF(AUX_2d_pais!$A$2:$A$27000,'5.1'!$A30&'5.1'!C$3&1,AUX_2d_pais!$J$2:$J$27000)/1000 -> 0 | D30: =+SUMIF(AUX_2d_pais!$A$2:$A$27000,'5.1'!$A30&'5.1'!D$3&1,AUX_2d_pais!$J$2:$J$27000)/1000 -> 0 | E30: =+SUMIF(AUX_2d_pais!$A$2:$A$27000,'5.1'!$A30&'5.1'!E$3&1,AUX_2d_pais!$J$2:$J$27000)/1000 -> 0 | F30: =+SUMIF(AUX_2d_pais!$A$2:$A$27000,'5.1'!$A30&'5.1'!F$3&1,AUX_2d_pais!$J$2:$J$27000)/1000 -> 0 | G30: =+SUMIF(AUX_2d_pais!$A$2:$A$27000,'5.1'!$A30&'5.1'!G$3&1,AUX_2d_pais!$J$2:$J$27000)/1000 -> 0 | H30: 0 | I30: 0 | J30: =+SUMIF(AUX_2d_pais!$A$2:$A$27000,'5.1'!$A30&'5.1'!J$3&2,AUX_2d_pais!$J$2:$J$27000)/1000 -> 0 | K30: =+SUMIF(AUX_2d_pais!$A$2:$A$27000,'5.1'!$A30&'5.1'!K$3&2,AUX_2d_pais!$J$2:$J$27000)/1000 -> 0 | L30: =+SUMIF(AUX_2d_pais!$A$2:$A$27000,'5.1'!$A30&'5.1'!L$3&2,AUX_2d_pais!$J$2:$J$27000)/1000 -> 0 | M30: =+SUMIF(AUX_2d_pais!$A$2:$A$27000,'5.1'!$A30&'5.1'!M$3&2,AUX_2d_pais!$J$2:$J$27000)/1000 -> 0 | N30: =+SUMIF(AUX_2d_pais!$A$2:$A$27000,'5.1'!$A30&'5.1'!N$3&2,AUX_2d_pais!$J$2:$J$27000)/1000 -> 0 | O30: 0 | P30: 0 | Q30: 0 | S30: =G30-INDEX($C30:$G30,1,aux!$AL$1) -> 0 | T30: 0 | U30: =+IF(INDEX($C30:$G30,1,aux!$AL$1)>0,(G30/INDEX($C30:$G30,1,aux!$AL$1))^(1/($G$3-INDEX($C$3:$G$3,1,aux!$AL$1)))-1,"n.d.") -> n.d. | V30: =IF(INDEX($C30:$G30,1,aux!$AL$1)>0,(G30-INDEX($C30:$G30,1,aux!$AL$1))/INDEX($C30:$G30,1,aux!$AL$1),"n.d.") -> n.d. | X30: =N30-INDEX($J30:$N30,1,aux!$AL$1) -> 0 | Y30: 0 | Z30: =+IF(INDEX($J30:$N30,1,aux!$AL$1)>0,(N30/INDEX($J30:$N30,1,aux!$AL$1))^(1/($N$3-INDEX($J$3:$N$3,1,aux!$AL$1)))-1,"n.d.") -> n.d. | AA30: =IF(INDEX($J30:$N30,1,aux!$AL$1)>0,(N30-INDEX($J30:$N30,1,aux!$AL$1))/INDEX($J30:$N30,1,aux!$AL$1),"n.d.") -> n.d. | AC30: 0 | BS30: =+MATCH('5.1'!A30,AUX_2d_pais!$G$2:$G$20001,0) -> 
A31: 0516 | B31: Bolívia | C31: =+SUMIF(AUX_2d_pais!$A$2:$A$27000,'5.1'!$A31&'5.1'!C$3&1,AUX_2d_pais!$J$2:$J$27000)/1000 -> 0 | D31: =+SUMIF(AUX_2d_pais!$A$2:$A$27000,'5.1'!$A31&'5.1'!D$3&1,AUX_2d_pais!$J$2:$J$27000)/1000 -> 0 | E31: =+SUMIF(AUX_2d_pais!$A$2:$A$27000,'5.1'!$A31&'5.1'!E$3&1,AUX_2d_pais!$J$2:$J$27000)/1000 -> 0 | F31: =+SUMIF(AUX_2d_pais!$A$2:$A$27000,'5.1'!$A31&'5.1'!F$3&1,AUX_2d_pais!$J$2:$J$27000)/1000 -> 0 | G31: =+SUMIF(AUX_2d_pais!$A$2:$A$27000,'5.1'!$A31&'5.1'!G$3&1,AUX_2d_pais!$J$2:$J$27000)/1000 -> 0 | H31: =SUM(C31:G31)/5 -> 0 | I31: 0 | J31: =+SUMIF(AUX_2d_pais!$A$2:$A$27000,'5.1'!$A31&'5.1'!J$3&2,AUX_2d_pais!$J$2:$J$27000)/1000 -> 0 | K31: =+SUMIF(AUX_2d_pais!$A$2:$A$27000,'5.1'!$A31&'5.1'!K$3&2,AUX_2d_pais!$J$2:$J$27000)/1000 -> 0 | L31: =+SUMIF(AUX_2d_pais!$A$2:$A$27000,'5.1'!$A31&'5.1'!L$3&2,AUX_2d_pais!$J$2:$J$27000)/1000 -> 0 | M31: =+SUMIF(AUX_2d_pais!$A$2:$A$27000,'5.1'!$A31&'5.1'!M$3&2,AUX_2d_pais!$J$2:$J$27000)/1000 -> 0 | N31: =+SUMIF(AUX_2d_pais!$A$2:$A$27000,'5.1'!$A31&'5.1'!N$3&2,AUX_2d_pais!$J$2:$J$27000)/1000 -> 0 | O31: =SUM(J31:N31)/5 -> 0 | P31: 0 | Q31: =O31-H31 -> 0 | S31: =G31-INDEX($C31:$G31,1,aux!$AL$1) -> 0 | T31: 0 | U31: =+IF(INDEX($C31:$G31,1,aux!$AL$1)>0,(G31/INDEX($C31:$G31,1,aux!$AL$1))^(1/($G$3-INDEX($C$3:$G$3,1,aux!$AL$1)))-1,"n.d.") -> n.d. | V31: =IF(INDEX($C31:$G31,1,aux!$AL$1)>0,(G31-INDEX($C31:$G31,1,aux!$AL$1))/INDEX($C31:$G31,1,aux!$AL$1),"n.d.") -> n.d. | X31: =N31-INDEX($J31:$N31,1,aux!$AL$1) -> 0 | Y31: 0 | Z31: =+IF(INDEX($J31:$N31,1,aux!$AL$1)>0,(N31/INDEX($J31:$N31,1,aux!$AL$1))^(1/($N$3-INDEX($J$3:$N$3,1,aux!$AL$1)))-1,"n.d.") -> n.d. | AA31: =IF(INDEX($J31:$N31,1,aux!$AL$1)>0,(N31-INDEX($J31:$N31,1,aux!$AL$1))/INDEX($J31:$N31,1,aux!$AL$1),"n.d.") -> n.d. | AC31: 0 | BS31: =+MATCH('5.1'!A31,AUX_2d_pais!$G$2:$G$20001,0) -> 
A32: 0477 | B32: Bonaire, Santo Eustáquio e Saba | C32: =+SUMIF(AUX_2d_pais!$A$2:$A$27000,'5.1'!$A32&'5.1'!C$3&1,AUX_2d_pais!$J$2:$J$27000)/1000 -> 0 | D32: =+SUMIF(AUX_2d_pais!$A$2:$A$27000,'5.1'!$A32&'5.1'!D$3&1,AUX_2d_pais!$J$2:$J$27000)/1000 -> 0 | E32: =+SUMIF(AUX_2d_pais!$A$2:$A$27000,'5.1'!$A32&'5.1'!E$3&1,AUX_2d_pais!$J$2:$J$27000)/1000 -> 0 | F32: =+SUMIF(AUX_2d_pais!$A$2:$A$27000,'5.1'!$A32&'5.1'!F$3&1,AUX_2d_pais!$J$2:$J$27000)/1000 -> 0 | G32: =+SUMIF(AUX_2d_pais!$A$2:$A$27000,'5.1'!$A32&'5.1'!G$3&1,AUX_2d_pais!$J$2:$J$27000)/1000 -> 0 | H32: =SUM(C32:G32)/5 -> 0 | I32: 0 | J32: =+SUMIF(AUX_2d_pais!$A$2:$A$27000,'5.1'!$A32&'5.1'!J$3&2,AUX_2d_pais!$J$2:$J$27000)/1000 -> 0 | K32: =+SUMIF(AUX_2d_pais!$A$2:$A$27000,'5.1'!$A32&'5.1'!K$3&2,AUX_2d_pais!$J$2:$J$27000)/1000 -> 0 | L32: =+SUMIF(AUX_2d_pais!$A$2:$A$27000,'5.1'!$A32&'5.1'!L$3&2,AUX_2d_pais!$J$2:$J$27000)/1000 -> 0 | M32: =+SUMIF(AUX_2d_pais!$A$2:$A$27000,'5.1'!$A32&'5.1'!M$3&2,AUX_2d_pais!$J$2:$J$27000)/1000 -> 0 | N32: =+SUMIF(AUX_2d_pais!$A$2:$A$27000,'5.1'!$A32&'5.1'!N$3&2,AUX_2d_pais!$J$2:$J$27000)/1000 -> 0 | O32: =SUM(J32:N32)/5 -> 0 | P32: 0 | Q32: =O32-H32 -> 0 | S32: =G32-INDEX($C32:$G32,1,aux!$AL$1) -> 0 | T32: 0 | U32: =+IF(INDEX($C32:$G32,1,aux!$AL$1)>0,(G32/INDEX($C32:$G32,1,aux!$AL$1))^(1/($G$3-INDEX($C$3:$G$3,1,aux!$AL$1)))-1,"n.d.") -> n.d. | V32: =IF(INDEX($C32:$G32,1,aux!$AL$1)>0,(G32-INDEX($C32:$G32,1,aux!$AL$1))/INDEX($C32:$G32,1,aux!$AL$1),"n.d.") -> n.d. | X32: =N32-INDEX($J32:$N32,1,aux!$AL$1) -> 0 | Y32: 0 | Z32: =+IF(INDEX($J32:$N32,1,aux!$AL$1)>0,(N32/INDEX($J32:$N32,1,aux!$AL$1))^(1/($N$3-INDEX($J$3:$N$3,1,aux!$AL$1)))-1,"n.d.") -> n.d. | AA32: =IF(INDEX($J32:$N32,1,aux!$AL$1)>0,(N32-INDEX($J32:$N32,1,aux!$AL$1))/INDEX($J32:$N32,1,aux!$AL$1),"n.d.") -> n.d. | AC32: 0 | BS32: =+MATCH('5.1'!A32,AUX_2d_pais!$G$2:$G$20001,0) -> 
A33: 0093 | B33: Bósnia-Herzegovina | C33: =+SUMIF(AUX_2d_pais!$A$2:$A$27000,'5.1'!$A33&'5.1'!C$3&1,AUX_2d_pais!$J$2:$J$27000)/1000 -> 0 | D33: =+SUMIF(AUX_2d_pais!$A$2:$A$27000,'5.1'!$A33&'5.1'!D$3&1,AUX_2d_pais!$J$2:$J$27000)/1000 -> 0 | E33: =+SUMIF(AUX_2d_pais!$A$2:$A$27000,'5.1'!$A33&'5.1'!E$3&1,AUX_2d_pais!$J$2:$J$27000)/1000 -> 0 | F33: =+SUMIF(AUX_2d_pais!$A$2:$A$27000,'5.1'!$A33&'5.1'!F$3&1,AUX_2d_pais!$J$2:$J$27000)/1000 -> 0 | G33: =+SUMIF(AUX_2d_pais!$A$2:$A$27000,'5.1'!$A33&'5.1'!G$3&1,AUX_2d_pais!$J$2:$J$27000)/1000 -> 0 | H33: =SUM(C33:G33)/5 -> 0 | I33: 0 | J33: =+SUMIF(AUX_2d_pais!$A$2:$A$27000,'5.1'!$A33&'5.1'!J$3&2,AUX_2d_pais!$J$2:$J$27000)/1000 -> 0 | K33: =+SUMIF(AUX_2d_pais!$A$2:$A$27000,'5.1'!$A33&'5.1'!K$3&2,AUX_2d_pais!$J$2:$J$27000)/1000 -> 0 | L33: =+SUMIF(AUX_2d_pais!$A$2:$A$27000,'5.1'!$A33&'5.1'!L$3&2,AUX_2d_pais!$J$2:$J$27000)/1000 -> 0 | M33: =+SUMIF(AUX_2d_pais!$A$2:$A$27000,'5.1'!$A33&'5.1'!M$3&2,AUX_2d_pais!$J$2:$J$27000)/1000 -> 0 | N33: =+SUMIF(AUX_2d_pais!$A$2:$A$27000,'5.1'!$A33&'5.1'!N$3&2,AUX_2d_pais!$J$2:$J$27000)/1000 -> 0 | O33: =SUM(J33:N33)/5 -> 0 | P33: 0 | Q33: =O33-H33 -> 0 | S33: =G33-INDEX($C33:$G33,1,aux!$AL$1) -> 0 | T33: 0 | U33: =+IF(INDEX($C33:$G33,1,aux!$AL$1)>0,(G33/INDEX($C33:$G33,1,aux!$AL$1))^(1/($G$3-INDEX($C$3:$G$3,1,aux!$AL$1)))-1,"n.d.") -> n.d. | V33: =IF(INDEX($C33:$G33,1,aux!$AL$1)>0,(G33-INDEX($C33:$G33,1,aux!$AL$1))/INDEX($C33:$G33,1,aux!$AL$1),"n.d.") -> n.d. | X33: =N33-INDEX($J33:$N33,1,aux!$AL$1) -> 0 | Y33: 0 | Z33: =+IF(INDEX($J33:$N33,1,aux!$AL$1)>0,(N33/INDEX($J33:$N33,1,aux!$AL$1))^(1/($N$3-INDEX($J$3:$N$3,1,aux!$AL$1)))-1,"n.d.") -> n.d. | AA33: =IF(INDEX($J33:$N33,1,aux!$AL$1)>0,(N33-INDEX($J33:$N33,1,aux!$AL$1))/INDEX($J33:$N33,1,aux!$AL$1),"n.d.") -> n.d. | AC33: 0 | BS33: =+MATCH('5.1'!A33,AUX_2d_pais!$G$2:$G$20001,0) -> 
A34: 0391 | B34: Botswana | C34: =+SUMIF(AUX_2d_pais!$A$2:$A$27000,'5.1'!$A34&'5.1'!C$3&1,AUX_2d_pais!$J$2:$J$27000)/1000 -> 0 | D34: =+SUMIF(AUX_2d_pais!$A$2:$A$27000,'5.1'!$A34&'5.1'!D$3&1,AUX_2d_pais!$J$2:$J$27000)/1000 -> 0 | E34: =+SUMIF(AUX_2d_pais!$A$2:$A$27000,'5.1'!$A34&'5.1'!E$3&1,AUX_2d_pais!$J$2:$J$27000)/1000 -> 0 | F34: =+SUMIF(AUX_2d_pais!$A$2:$A$27000,'5.1'!$A34&'5.1'!F$3&1,AUX_2d_pais!$J$2:$J$27000)/1000 -> 0 | G34: =+SUMIF(AUX_2d_pais!$A$2:$A$27000,'5.1'!$A34&'5.1'!G$3&1,AUX_2d_pais!$J$2:$J$27000)/1000 -> 0 | H34: =SUM(C34:G34)/5 -> 0 | I34: 0 | J34: =+SUMIF(AUX_2d_pais!$A$2:$A$27000,'5.1'!$A34&'5.1'!J$3&2,AUX_2d_pais!$J$2:$J$27000)/1000 -> 0 | K34: =+SUMIF(AUX_2d_pais!$A$2:$A$27000,'5.1'!$A34&'5.1'!K$3&2,AUX_2d_pais!$J$2:$J$27000)/1000 -> 0 | L34: =+SUMIF(AUX_2d_pais!$A$2:$A$27000,'5.1'!$A34&'5.1'!L$3&2,AUX_2d_pais!$J$2:$J$27000)/1000 -> 0 | M34: =+SUMIF(AUX_2d_pais!$A$2:$A$27000,'5.1'!$A34&'5.1'!M$3&2,AUX_2d_pais!$J$2:$J$27000)/1000 -> 0 | N34: =+SUMIF(AUX_2d_pais!$A$2:$A$27000,'5.1'!$A34&'5.1'!N$3&2,AUX_2d_pais!$J$2:$J$27000)/1000 -> 0 | O34: =SUM(J34:N34)/5 -> 0 | P34: 0 | Q34: =O34-H34 -> 0 | S34: =G34-INDEX($C34:$G34,1,aux!$AL$1) -> 0 | T34: 0 | U34: =+IF(INDEX($C34:$G34,1,aux!$AL$1)>0,(G34/INDEX($C34:$G34,1,aux!$AL$1))^(1/($G$3-INDEX($C$3:$G$3,1,aux!$AL$1)))-1,"n.d.") -> n.d. | V34: =IF(INDEX($C34:$G34,1,aux!$AL$1)>0,(G34-INDEX($C34:$G34,1,aux!$AL$1))/INDEX($C34:$G34,1,aux!$AL$1),"n.d.") -> n.d. | X34: =N34-INDEX($J34:$N34,1,aux!$AL$1) -> 0 | Y34: 0 | Z34: =+IF(INDEX($J34:$N34,1,aux!$AL$1)>0,(N34/INDEX($J34:$N34,1,aux!$AL$1))^(1/($N$3-INDEX($J$3:$N$3,1,aux!$AL$1)))-1,"n.d.") -> n.d. | AA34: =IF(INDEX($J34:$N34,1,aux!$AL$1)>0,(N34-INDEX($J34:$N34,1,aux!$AL$1))/INDEX($J34:$N34,1,aux!$AL$1),"n.d.") -> n.d. | AC34: 0 | BS34: =+MATCH('5.1'!A34,AUX_2d_pais!$G$2:$G$20001,0) -> 
A35: 0892 | B35: Bouvet, Ilha | C35: =+SUMIF(AUX_2d_pais!$A$2:$A$27000,'5.1'!$A35&'5.1'!C$3&1,AUX_2d_pais!$J$2:$J$27000)/1000 -> 0 | D35: =+SUMIF(AUX_2d_pais!$A$2:$A$27000,'5.1'!$A35&'5.1'!D$3&1,AUX_2d_pais!$J$2:$J$27000)/1000 -> 0 | E35: =+SUMIF(AUX_2d_pais!$A$2:$A$27000,'5.1'!$A35&'5.1'!E$3&1,AUX_2d_pais!$J$2:$J$27000)/1000 -> 0 | F35: =+SUMIF(AUX_2d_pais!$A$2:$A$27000,'5.1'!$A35&'5.1'!F$3&1,AUX_2d_pais!$J$2:$J$27000)/1000 -> 0 | G35: =+SUMIF(AUX_2d_pais!$A$2:$A$27000,'5.1'!$A35&'5.1'!G$3&1,AUX_2d_pais!$J$2:$J$27000)/1000 -> 0 | H35: =SUM(C35:G35)/5 -> 0 | I35: 0 | J35: =+SUMIF(AUX_2d_pais!$A$2:$A$27000,'5.1'!$A35&'5.1'!J$3&2,AUX_2d_pais!$J$2:$J$27000)/1000 -> 0 | K35: =+SUMIF(AUX_2d_pais!$A$2:$A$27000,'5.1'!$A35&'5.1'!K$3&2,AUX_2d_pais!$J$2:$J$27000)/1000 -> 0 | L35: =+SUMIF(AUX_2d_pais!$A$2:$A$27000,'5.1'!$A35&'5.1'!L$3&2,AUX_2d_pais!$J$2:$J$27000)/1000 -> 0 | M35: =+SUMIF(AUX_2d_pais!$A$2:$A$27000,'5.1'!$A35&'5.1'!M$3&2,AUX_2d_pais!$J$2:$J$27000)/1000 -> 0 | N35: =+SUMIF(AUX_2d_pais!$A$2:$A$27000,'5.1'!$A35&'5.1'!N$3&2,AUX_2d_pais!$J$2:$J$27000)/1000 -> 0 | O35: =SUM(J35:N35)/5 -> 0 | P35: 0 | Q35: 0 | S35: =G35-INDEX($C35:$G35,1,aux!$AL$1) -> 0 | T35: 0 | U35: =+IF(INDEX($C35:$G35,1,aux!$AL$1)>0,(G35/INDEX($C35:$G35,1,aux!$AL$1))^(1/($G$3-INDEX($C$3:$G$3,1,aux!$AL$1)))-1,"n.d.") -> n.d. | V35: =IF(INDEX($C35:$G35,1,aux!$AL$1)>0,(G35-INDEX($C35:$G35,1,aux!$AL$1))/INDEX($C35:$G35,1,aux!$AL$1),"n.d.") -> n.d. | X35: =N35-INDEX($J35:$N35,1,aux!$AL$1) -> 0 | Y35: 0 | Z35: =+IF(INDEX($J35:$N35,1,aux!$AL$1)>0,(N35/INDEX($J35:$N35,1,aux!$AL$1))^(1/($N$3-INDEX($J$3:$N$3,1,aux!$AL$1)))-1,"n.d.") -> n.d. | AA35: =IF(INDEX($J35:$N35,1,aux!$AL$1)>0,(N35-INDEX($J35:$N35,1,aux!$AL$1))/INDEX($J35:$N35,1,aux!$AL$1),"n.d.") -> n.d. | AC35: 0 | BS35: =+MATCH('5.1'!A35,AUX_2d_pais!$G$2:$G$20001,0) -> 
A36: 0508 | B36: Brasil | C36: =+SUMIF(AUX_2d_pais!$A$2:$A$27000,'5.1'!$A36&'5.1'!C$3&1,AUX_2d_pais!$J$2:$J$27000)/1000 -> 416915.329 | D36: =+SUMIF(AUX_2d_pais!$A$2:$A$27000,'5.1'!$A36&'5.1'!D$3&1,AUX_2d_pais!$J$2:$J$27000)/1000 -> 497096.898 | E36: =+SUMIF(AUX_2d_pais!$A$2:$A$27000,'5.1'!$A36&'5.1'!E$3&1,AUX_2d_pais!$J$2:$J$27000)/1000 -> 534293.365 | F36: =+SUMIF(AUX_2d_pais!$A$2:$A$27000,'5.1'!$A36&'5.1'!F$3&1,AUX_2d_pais!$J$2:$J$27000)/1000 -> 769956.032 | G36: =+SUMIF(AUX_2d_pais!$A$2:$A$27000,'5.1'!$A36&'5.1'!G$3&1,AUX_2d_pais!$J$2:$J$27000)/1000 -> 1308109.814 | H36: 705274.2876 | I36: =H36/$H$254 -> 0.9236233205 | J36: =+SUMIF(AUX_2d_pais!$A$2:$A$27000,'5.1'!$A36&'5.1'!J$3&2,AUX_2d_pais!$J$2:$J$27000)/1000 -> 426935.687 | K36: =+SUMIF(AUX_2d_pais!$A$2:$A$27000,'5.1'!$A36&'5.1'!K$3&2,AUX_2d_pais!$J$2:$J$27000)/1000 -> 464506.214 | L36: =+SUMIF(AUX_2d_pais!$A$2:$A$27000,'5.1'!$A36&'5.1'!L$3&2,AUX_2d_pais!$J$2:$J$27000)/1000 -> 435785.123 | M36: =+SUMIF(AUX_2d_pais!$A$2:$A$27000,'5.1'!$A36&'5.1'!M$3&2,AUX_2d_pais!$J$2:$J$27000)/1000 -> 416153.721 | N36: =+SUMIF(AUX_2d_pais!$A$2:$A$27000,'5.1'!$A36&'5.1'!N$3&2,AUX_2d_pais!$J$2:$J$27000)/1000 -> 520200.286 | O36: 452716.2062 | P36: =O36/$O$254 -> 0.4591133248 | Q36: -252558.0814 | S36: =G36-INDEX($C36:$G36,1,aux!$AL$1) -> 891194.485 | T36: =S36/$S$254 -> 0.9701113579 | U36: =+IF(INDEX($C36:$G36,1,aux!$AL$1)>0,(G36/INDEX($C36:$G36,1,aux!$AL$1))^(1/($G$3-INDEX($C$3:$G$3,1,aux!$AL$1)))-1,"n.d.") -> 0.3309112164 | V36: =IF(INDEX($C36:$G36,1,aux!$AL$1)>0,(G36-INDEX($C36:$G36,1,aux!$AL$1))/INDEX($C36:$G36,1,aux!$AL$1),"n.d.") -> 2.137591072 | X36: =N36-INDEX($J36:$N36,1,aux!$AL$1) -> 93264.599 | Y36: =X36/$X$254 -> 1.137589703 | Z36: =+IF(INDEX($J36:$N36,1,aux!$AL$1)>0,(N36/INDEX($J36:$N36,1,aux!$AL$1))^(1/($N$3-INDEX($J$3:$N$3,1,aux!$AL$1)))-1,"n.d.") -> 0.05063540547 | AA36: =IF(INDEX($J36:$N36,1,aux!$AL$1)>0,(N36-INDEX($J36:$N36,1,aux!$AL$1))/INDEX($J36:$N36,1,aux!$AL$1),"n.d.") -> 0.2184511669 | BS36: =+MATCH('5.1'!A36,AUX_2d_pais!$G$2:$G$20001,0) -> 26
A37: 0703 | B37: Brunei Darussalam | C37: =+SUMIF(AUX_2d_pais!$A$2:$A$27000,'5.1'!$A37&'5.1'!C$3&1,AUX_2d_pais!$J$2:$J$27000)/1000 -> 0 | D37: =+SUMIF(AUX_2d_pais!$A$2:$A$27000,'5.1'!$A37&'5.1'!D$3&1,AUX_2d_pais!$J$2:$J$27000)/1000 -> 0 | E37: =+SUMIF(AUX_2d_pais!$A$2:$A$27000,'5.1'!$A37&'5.1'!E$3&1,AUX_2d_pais!$J$2:$J$27000)/1000 -> 0 | F37: =+SUMIF(AUX_2d_pais!$A$2:$A$27000,'5.1'!$A37&'5.1'!F$3&1,AUX_2d_pais!$J$2:$J$27000)/1000 -> 0 | G37: =+SUMIF(AUX_2d_pais!$A$2:$A$27000,'5.1'!$A37&'5.1'!G$3&1,AUX_2d_pais!$J$2:$J$27000)/1000 -> 0 | H37: 0 | I37: 0 | J37: =+SUMIF(AUX_2d_pais!$A$2:$A$27000,'5.1'!$A37&'5.1'!J$3&2,AUX_2d_pais!$J$2:$J$27000)/1000 -> 0 | K37: =+SUMIF(AUX_2d_pais!$A$2:$A$27000,'5.1'!$A37&'5.1'!K$3&2,AUX_2d_pais!$J$2:$J$27000)/1000 -> 0 | L37: =+SUMIF(AUX_2d_pais!$A$2:$A$27000,'5.1'!$A37&'5.1'!L$3&2,AUX_2d_pais!$J$2:$J$27000)/1000 -> 0 | M37: =+SUMIF(AUX_2d_pais!$A$2:$A$27000,'5.1'!$A37&'5.1'!M$3&2,AUX_2d_pais!$J$2:$J$27000)/1000 -> 0 | N37: =+SUMIF(AUX_2d_pais!$A$2:$A$27000,'5.1'!$A37&'5.1'!N$3&2,AUX_2d_pais!$J$2:$J$27000)/1000 -> 0 | O37: 0 | P37: 0 | Q37: 0 | S37: =G37-INDEX($C37:$G37,1,aux!$AL$1) -> 0 | T37: 0 | U37: =+IF(INDEX($C37:$G37,1,aux!$AL$1)>0,(G37/INDEX($C37:$G37,1,aux!$AL$1))^(1/($G$3-INDEX($C$3:$G$3,1,aux!$AL$1)))-1,"n.d.") -> n.d. | V37: =IF(INDEX($C37:$G37,1,aux!$AL$1)>0,(G37-INDEX($C37:$G37,1,aux!$AL$1))/INDEX($C37:$G37,1,aux!$AL$1),"n.d.") -> n.d. | X37: =N37-INDEX($J37:$N37,1,aux!$AL$1) -> 0 | Y37: 0 | Z37: =+IF(INDEX($J37:$N37,1,aux!$AL$1)>0,(N37/INDEX($J37:$N37,1,aux!$AL$1))^(1/($N$3-INDEX($J$3:$N$3,1,aux!$AL$1)))-1,"n.d.") -> n.d. | AA37: =IF(INDEX($J37:$N37,1,aux!$AL$1)>0,(N37-INDEX($J37:$N37,1,aux!$AL$1))/INDEX($J37:$N37,1,aux!$AL$1),"n.d.") -> n.d. | AC37: 0 | BS37: =+MATCH('5.1'!A37,AUX_2d_pais!$G$2:$G$20001,0) -> 
A38: 0068 | B38: Bulgária | C38: =+SUMIF(AUX_2d_pais!$A$2:$A$27000,'5.1'!$A38&'5.1'!C$3&1,AUX_2d_pais!$J$2:$J$27000)/1000 -> 0 | D38: =+SUMIF(AUX_2d_pais!$A$2:$A$27000,'5.1'!$A38&'5.1'!D$3&1,AUX_2d_pais!$J$2:$J$27000)/1000 -> 0 | E38: =+SUMIF(AUX_2d_pais!$A$2:$A$27000,'5.1'!$A38&'5.1'!E$3&1,AUX_2d_pais!$J$2:$J$27000)/1000 -> 0 | F38: =+SUMIF(AUX_2d_pais!$A$2:$A$27000,'5.1'!$A38&'5.1'!F$3&1,AUX_2d_pais!$J$2:$J$27000)/1000 -> 0 | G38: =+SUMIF(AUX_2d_pais!$A$2:$A$27000,'5.1'!$A38&'5.1'!G$3&1,AUX_2d_pais!$J$2:$J$27000)/1000 -> 0 | H38: 0 | I38: 0 | J38: =+SUMIF(AUX_2d_pais!$A$2:$A$27000,'5.1'!$A38&'5.1'!J$3&2,AUX_2d_pais!$J$2:$J$27000)/1000 -> 0 | K38: =+SUMIF(AUX_2d_pais!$A$2:$A$27000,'5.1'!$A38&'5.1'!K$3&2,AUX_2d_pais!$J$2:$J$27000)/1000 -> 0 | L38: =+SUMIF(AUX_2d_pais!$A$2:$A$27000,'5.1'!$A38&'5.1'!L$3&2,AUX_2d_pais!$J$2:$J$27000)/1000 -> 0 | M38: =+SUMIF(AUX_2d_pais!$A$2:$A$27000,'5.1'!$A38&'5.1'!M$3&2,AUX_2d_pais!$J$2:$J$27000)/1000 -> 0 | N38: =+SUMIF(AUX_2d_pais!$A$2:$A$27000,'5.1'!$A38&'5.1'!N$3&2,AUX_2d_pais!$J$2:$J$27000)/1000 -> 0 | O38: 0 | P38: 0 | Q38: 0 | S38: =G38-INDEX($C38:$G38,1,aux!$AL$1) -> 0 | T38: 0 | U38: =+IF(INDEX($C38:$G38,1,aux!$AL$1)>0,(G38/INDEX($C38:$G38,1,aux!$AL$1))^(1/($G$3-INDEX($C$3:$G$3,1,aux!$AL$1)))-1,"n.d.") -> n.d. | V38: =IF(INDEX($C38:$G38,1,aux!$AL$1)>0,(G38-INDEX($C38:$G38,1,aux!$AL$1))/INDEX($C38:$G38,1,aux!$AL$1),"n.d.") -> n.d. | X38: =N38-INDEX($J38:$N38,1,aux!$AL$1) -> 0 | Y38: 0 | Z38: =+IF(INDEX($J38:$N38,1,aux!$AL$1)>0,(N38/INDEX($J38:$N38,1,aux!$AL$1))^(1/($N$3-INDEX($J$3:$N$3,1,aux!$AL$1)))-1,"n.d.") -> n.d. | AA38: =IF(INDEX($J38:$N38,1,aux!$AL$1)>0,(N38-INDEX($J38:$N38,1,aux!$AL$1))/INDEX($J38:$N38,1,aux!$AL$1),"n.d.") -> n.d. | AC38: 0 | BS38: =+MATCH('5.1'!A38,AUX_2d_pais!$G$2:$G$20001,0) -> 
A39: 0236 | B39: Burquina Faso | C39: =+SUMIF(AUX_2d_pais!$A$2:$A$27000,'5.1'!$A39&'5.1'!C$3&1,AUX_2d_pais!$J$2:$J$27000)/1000 -> 0 | D39: =+SUMIF(AUX_2d_pais!$A$2:$A$27000,'5.1'!$A39&'5.1'!D$3&1,AUX_2d_pais!$J$2:$J$27000)/1000 -> 0 | E39: =+SUMIF(AUX_2d_pais!$A$2:$A$27000,'5.1'!$A39&'5.1'!E$3&1,AUX_2d_pais!$J$2:$J$27000)/1000 -> 0 | F39: =+SUMIF(AUX_2d_pais!$A$2:$A$27000,'5.1'!$A39&'5.1'!F$3&1,AUX_2d_pais!$J$2:$J$27000)/1000 -> 0 | G39: =+SUMIF(AUX_2d_pais!$A$2:$A$27000,'5.1'!$A39&'5.1'!G$3&1,AUX_2d_pais!$J$2:$J$27000)/1000 -> 0 | H39: =SUM(C39:G39)/5 -> 0 | I39: 0 | J39: =+SUMIF(AUX_2d_pais!$A$2:$A$27000,'5.1'!$A39&'5.1'!J$3&2,AUX_2d_pais!$J$2:$J$27000)/1000 -> 0 | K39: =+SUMIF(AUX_2d_pais!$A$2:$A$27000,'5.1'!$A39&'5.1'!K$3&2,AUX_2d_pais!$J$2:$J$27000)/1000 -> 0 | L39: =+SUMIF(AUX_2d_pais!$A$2:$A$27000,'5.1'!$A39&'5.1'!L$3&2,AUX_2d_pais!$J$2:$J$27000)/1000 -> 0 | M39: =+SUMIF(AUX_2d_pais!$A$2:$A$27000,'5.1'!$A39&'5.1'!M$3&2,AUX_2d_pais!$J$2:$J$27000)/1000 -> 0 | N39: =+SUMIF(AUX_2d_pais!$A$2:$A$27000,'5.1'!$A39&'5.1'!N$3&2,AUX_2d_pais!$J$2:$J$27000)/1000 -> 0 | O39: =SUM(J39:N39)/5 -> 0 | P39: 0 | Q39: =O39-H39 -> 0 | S39: =G39-INDEX($C39:$G39,1,aux!$AL$1) -> 0 | T39: 0 | U39: =+IF(INDEX($C39:$G39,1,aux!$AL$1)>0,(G39/INDEX($C39:$G39,1,aux!$AL$1))^(1/($G$3-INDEX($C$3:$G$3,1,aux!$AL$1)))-1,"n.d.") -> n.d. | V39: =IF(INDEX($C39:$G39,1,aux!$AL$1)>0,(G39-INDEX($C39:$G39,1,aux!$AL$1))/INDEX($C39:$G39,1,aux!$AL$1),"n.d.") -> n.d. | X39: =N39-INDEX($J39:$N39,1,aux!$AL$1) -> 0 | Y39: 0 | Z39: =+IF(INDEX($J39:$N39,1,aux!$AL$1)>0,(N39/INDEX($J39:$N39,1,aux!$AL$1))^(1/($N$3-INDEX($J$3:$N$3,1,aux!$AL$1)))-1,"n.d.") -> n.d. | AA39: =IF(INDEX($J39:$N39,1,aux!$AL$1)>0,(N39-INDEX($J39:$N39,1,aux!$AL$1))/INDEX($J39:$N39,1,aux!$AL$1),"n.d.") -> n.d. | AC39: 0 | BS39: =+MATCH('5.1'!A39,AUX_2d_pais!$G$2:$G$20001,0) -> 
A40: 0328 | B40: Burundi | C40: =+SUMIF(AUX_2d_pais!$A$2:$A$27000,'5.1'!$A40&'5.1'!C$3&1,AUX_2d_pais!$J$2:$J$27000)/1000 -> 0 | D40: =+SUMIF(AUX_2d_pais!$A$2:$A$27000,'5.1'!$A40&'5.1'!D$3&1,AUX_2d_pais!$J$2:$J$27000)/1000 -> 0 | E40: =+SUMIF(AUX_2d_pais!$A$2:$A$27000,'5.1'!$A40&'5.1'!E$3&1,AUX_2d_pais!$J$2:$J$27000)/1000 -> 0 | F40: =+SUMIF(AUX_2d_pais!$A$2:$A$27000,'5.1'!$A40&'5.1'!F$3&1,AUX_2d_pais!$J$2:$J$27000)/1000 -> 0 | G40: =+SUMIF(AUX_2d_pais!$A$2:$A$27000,'5.1'!$A40&'5.1'!G$3&1,AUX_2d_pais!$J$2:$J$27000)/1000 -> 0 | H40: 0 | I40: 0 | J40: =+SUMIF(AUX_2d_pais!$A$2:$A$27000,'5.1'!$A40&'5.1'!J$3&2,AUX_2d_pais!$J$2:$J$27000)/1000 -> 0 | K40: =+SUMIF(AUX_2d_pais!$A$2:$A$27000,'5.1'!$A40&'5.1'!K$3&2,AUX_2d_pais!$J$2:$J$27000)/1000 -> 0 | L40: =+SUMIF(AUX_2d_pais!$A$2:$A$27000,'5.1'!$A40&'5.1'!L$3&2,AUX_2d_pais!$J$2:$J$27000)/1000 -> 0 | M40: =+SUMIF(AUX_2d_pais!$A$2:$A$27000,'5.1'!$A40&'5.1'!M$3&2,AUX_2d_pais!$J$2:$J$27000)/1000 -> 0 | N40: =+SUMIF(AUX_2d_pais!$A$2:$A$27000,'5.1'!$A40&'5.1'!N$3&2,AUX_2d_pais!$J$2:$J$27000)/1000 -> 0 | O40: 0 | P40: 0 | Q40: 0 | S40: =G40-INDEX($C40:$G40,1,aux!$AL$1) -> 0 | T40: 0 | U40: =+IF(INDEX($C40:$G40,1,aux!$AL$1)>0,(G40/INDEX($C40:$G40,1,aux!$AL$1))^(1/($G$3-INDEX($C$3:$G$3,1,aux!$AL$1)))-1,"n.d.") -> n.d. | V40: =IF(INDEX($C40:$G40,1,aux!$AL$1)>0,(G40-INDEX($C40:$G40,1,aux!$AL$1))/INDEX($C40:$G40,1,aux!$AL$1),"n.d.") -> n.d. | X40: =N40-INDEX($J40:$N40,1,aux!$AL$1) -> 0 | Y40: 0 | Z40: =+IF(INDEX($J40:$N40,1,aux!$AL$1)>0,(N40/INDEX($J40:$N40,1,aux!$AL$1))^(1/($N$3-INDEX($J$3:$N$3,1,aux!$AL$1)))-1,"n.d.") -> n.d. | AA40: =IF(INDEX($J40:$N40,1,aux!$AL$1)>0,(N40-INDEX($J40:$N40,1,aux!$AL$1))/INDEX($J40:$N40,1,aux!$AL$1),"n.d.") -> n.d. | AC40: 0 | BS40: =+MATCH('5.1'!A40,AUX_2d_pais!$G$2:$G$20001,0) -> 
A41: 0675 | B41: Butão | C41: =+SUMIF(AUX_2d_pais!$A$2:$A$27000,'5.1'!$A41&'5.1'!C$3&1,AUX_2d_pais!$J$2:$J$27000)/1000 -> 0 | D41: =+SUMIF(AUX_2d_pais!$A$2:$A$27000,'5.1'!$A41&'5.1'!D$3&1,AUX_2d_pais!$J$2:$J$27000)/1000 -> 0 | E41: =+SUMIF(AUX_2d_pais!$A$2:$A$27000,'5.1'!$A41&'5.1'!E$3&1,AUX_2d_pais!$J$2:$J$27000)/1000 -> 0 | F41: =+SUMIF(AUX_2d_pais!$A$2:$A$27000,'5.1'!$A41&'5.1'!F$3&1,AUX_2d_pais!$J$2:$J$27000)/1000 -> 0 | G41: =+SUMIF(AUX_2d_pais!$A$2:$A$27000,'5.1'!$A41&'5.1'!G$3&1,AUX_2d_pais!$J$2:$J$27000)/1000 -> 0 | H41: 0 | I41: 0 | J41: =+SUMIF(AUX_2d_pais!$A$2:$A$27000,'5.1'!$A41&'5.1'!J$3&2,AUX_2d_pais!$J$2:$J$27000)/1000 -> 0 | K41: =+SUMIF(AUX_2d_pais!$A$2:$A$27000,'5.1'!$A41&'5.1'!K$3&2,AUX_2d_pais!$J$2:$J$27000)/1000 -> 0 | L41: =+SUMIF(AUX_2d_pais!$A$2:$A$27000,'5.1'!$A41&'5.1'!L$3&2,AUX_2d_pais!$J$2:$J$27000)/1000 -> 0 | M41: =+SUMIF(AUX_2d_pais!$A$2:$A$27000,'5.1'!$A41&'5.1'!M$3&2,AUX_2d_pais!$J$2:$J$27000)/1000 -> 0 | N41: =+SUMIF(AUX_2d_pais!$A$2:$A$27000,'5.1'!$A41&'5.1'!N$3&2,AUX_2d_pais!$J$2:$J$27000)/1000 -> 0 | O41: 0 | P41: 0 | Q41: 0 | S41: =G41-INDEX($C41:$G41,1,aux!$AL$1) -> 0 | T41: 0 | U41: =+IF(INDEX($C41:$G41,1,aux!$AL$1)>0,(G41/INDEX($C41:$G41,1,aux!$AL$1))^(1/($G$3-INDEX($C$3:$G$3,1,aux!$AL$1)))-1,"n.d.") -> n.d. | V41: =IF(INDEX($C41:$G41,1,aux!$AL$1)>0,(G41-INDEX($C41:$G41,1,aux!$AL$1))/INDEX($C41:$G41,1,aux!$AL$1),"n.d.") -> n.d. | X41: =N41-INDEX($J41:$N41,1,aux!$AL$1) -> 0 | Y41: 0 | Z41: =+IF(INDEX($J41:$N41,1,aux!$AL$1)>0,(N41/INDEX($J41:$N41,1,aux!$AL$1))^(1/($N$3-INDEX($J$3:$N$3,1,aux!$AL$1)))-1,"n.d.") -> n.d. | AA41: =IF(INDEX($J41:$N41,1,aux!$AL$1)>0,(N41-INDEX($J41:$N41,1,aux!$AL$1))/INDEX($J41:$N41,1,aux!$AL$1),"n.d.") -> n.d. | AC41: 0 | BS41: =+MATCH('5.1'!A41,AUX_2d_pais!$G$2:$G$20001,0) -> 
A42: 0247 | B42: Cabo Verde | C42: =+SUMIF(AUX_2d_pais!$A$2:$A$27000,'5.1'!$A42&'5.1'!C$3&1,AUX_2d_pais!$J$2:$J$27000)/1000 -> 2432.119 | D42: =+SUMIF(AUX_2d_pais!$A$2:$A$27000,'5.1'!$A42&'5.1'!D$3&1,AUX_2d_pais!$J$2:$J$27000)/1000 -> 966.521 | E42: =+SUMIF(AUX_2d_pais!$A$2:$A$27000,'5.1'!$A42&'5.1'!E$3&1,AUX_2d_pais!$J$2:$J$27000)/1000 -> 136.471 | F42: =+SUMIF(AUX_2d_pais!$A$2:$A$27000,'5.1'!$A42&'5.1'!F$3&1,AUX_2d_pais!$J$2:$J$27000)/1000 -> 202.53 | G42: =+SUMIF(AUX_2d_pais!$A$2:$A$27000,'5.1'!$A42&'5.1'!G$3&1,AUX_2d_pais!$J$2:$J$27000)/1000 -> 443.042 | H42: 836.1366 | I42: 0.001094999884 | J42: =+SUMIF(AUX_2d_pais!$A$2:$A$27000,'5.1'!$A42&'5.1'!J$3&2,AUX_2d_pais!$J$2:$J$27000)/1000 -> 87033.133 | K42: =+SUMIF(AUX_2d_pais!$A$2:$A$27000,'5.1'!$A42&'5.1'!K$3&2,AUX_2d_pais!$J$2:$J$27000)/1000 -> 94949.115 | L42: =+SUMIF(AUX_2d_pais!$A$2:$A$27000,'5.1'!$A42&'5.1'!L$3&2,AUX_2d_pais!$J$2:$J$27000)/1000 -> 91426.216 | M42: =+SUMIF(AUX_2d_pais!$A$2:$A$27000,'5.1'!$A42&'5.1'!M$3&2,AUX_2d_pais!$J$2:$J$27000)/1000 -> 103626.034 | N42: =+SUMIF(AUX_2d_pais!$A$2:$A$27000,'5.1'!$A42&'5.1'!N$3&2,AUX_2d_pais!$J$2:$J$27000)/1000 -> 127465.225 | O42: 100899.9446 | P42: 0.102325714 | Q42: 100063.808 | S42: =G42-INDEX($C42:$G42,1,aux!$AL$1) -> -1989.077 | T42: -0.002165213342 | U42: =+IF(INDEX($C42:$G42,1,aux!$AL$1)>0,(G42/INDEX($C42:$G42,1,aux!$AL$1))^(1/($G$3-INDEX($C$3:$G$3,1,aux!$AL$1)))-1,"n.d.") -> -0.3466964478 | V42: =IF(INDEX($C42:$G42,1,aux!$AL$1)>0,(G42-INDEX($C42:$G42,1,aux!$AL$1))/INDEX($C42:$G42,1,aux!$AL$1),"n.d.") -> -0.8178370384 | X42: =N42-INDEX($J42:$N42,1,aux!$AL$1) -> 40432.092 | Y42: 0.493168169 | Z42: =+IF(INDEX($J42:$N42,1,aux!$AL$1)>0,(N42/INDEX($J42:$N42,1,aux!$AL$1))^(1/($N$3-INDEX($J$3:$N$3,1,aux!$AL$1)))-1,"n.d.") -> 0.1000863473 | AA42: =IF(INDEX($J42:$N42,1,aux!$AL$1)>0,(N42-INDEX($J42:$N42,1,aux!$AL$1))/INDEX($J42:$N42,1,aux!$AL$1),"n.d.") -> 0.4645597671 | BS42: =+MATCH('5.1'!A42,AUX_2d_pais!$G$2:$G$20001,0) -> 1
A43: 0463 | B43: Caimão, Ilhas | C43: =+SUMIF(AUX_2d_pais!$A$2:$A$27000,'5.1'!$A43&'5.1'!C$3&1,AUX_2d_pais!$J$2:$J$27000)/1000 -> 0 | D43: =+SUMIF(AUX_2d_pais!$A$2:$A$27000,'5.1'!$A43&'5.1'!D$3&1,AUX_2d_pais!$J$2:$J$27000)/1000 -> 0 | E43: =+SUMIF(AUX_2d_pais!$A$2:$A$27000,'5.1'!$A43&'5.1'!E$3&1,AUX_2d_pais!$J$2:$J$27000)/1000 -> 0 | F43: =+SUMIF(AUX_2d_pais!$A$2:$A$27000,'5.1'!$A43&'5.1'!F$3&1,AUX_2d_pais!$J$2:$J$27000)/1000 -> 0 | G43: =+SUMIF(AUX_2d_pais!$A$2:$A$27000,'5.1'!$A43&'5.1'!G$3&1,AUX_2d_pais!$J$2:$J$27000)/1000 -> 0 | H43: 0 | I43: 0 | J43: =+SUMIF(AUX_2d_pais!$A$2:$A$27000,'5.1'!$A43&'5.1'!J$3&2,AUX_2d_pais!$J$2:$J$27000)/1000 -> 0 | K43: =+SUMIF(AUX_2d_pais!$A$2:$A$27000,'5.1'!$A43&'5.1'!K$3&2,AUX_2d_pais!$J$2:$J$27000)/1000 -> 0 | L43: =+SUMIF(AUX_2d_pais!$A$2:$A$27000,'5.1'!$A43&'5.1'!L$3&2,AUX_2d_pais!$J$2:$J$27000)/1000 -> 0 | M43: =+SUMIF(AUX_2d_pais!$A$2:$A$27000,'5.1'!$A43&'5.1'!M$3&2,AUX_2d_pais!$J$2:$J$27000)/1000 -> 0 | N43: =+SUMIF(AUX_2d_pais!$A$2:$A$27000,'5.1'!$A43&'5.1'!N$3&2,AUX_2d_pais!$J$2:$J$27000)/1000 -> 0 | O43: 0 | P43: 0 | Q43: 0 | S43: =G43-INDEX($C43:$G43,1,aux!$AL$1) -> 0 | T43: 0 | U43: =+IF(INDEX($C43:$G43,1,aux!$AL$1)>0,(G43/INDEX($C43:$G43,1,aux!$AL$1))^(1/($G$3-INDEX($C$3:$G$3,1,aux!$AL$1)))-1,"n.d.") -> n.d. | V43: =IF(INDEX($C43:$G43,1,aux!$AL$1)>0,(G43-INDEX($C43:$G43,1,aux!$AL$1))/INDEX($C43:$G43,1,aux!$AL$1),"n.d.") -> n.d. | X43: =N43-INDEX($J43:$N43,1,aux!$AL$1) -> 0 | Y43: 0 | Z43: =+IF(INDEX($J43:$N43,1,aux!$AL$1)>0,(N43/INDEX($J43:$N43,1,aux!$AL$1))^(1/($N$3-INDEX($J$3:$N$3,1,aux!$AL$1)))-1,"n.d.") -> n.d. | AA43: =IF(INDEX($J43:$N43,1,aux!$AL$1)>0,(N43-INDEX($J43:$N43,1,aux!$AL$1))/INDEX($J43:$N43,1,aux!$AL$1),"n.d.") -> n.d. | AC43: 0 | BS43: =+MATCH('5.1'!A43,AUX_2d_pais!$G$2:$G$20001,0) -> 
A44: 0302 | B44: Camarões | C44: =+SUMIF(AUX_2d_pais!$A$2:$A$27000,'5.1'!$A44&'5.1'!C$3&1,AUX_2d_pais!$J$2:$J$27000)/1000 -> 0 | D44: =+SUMIF(AUX_2d_pais!$A$2:$A$27000,'5.1'!$A44&'5.1'!D$3&1,AUX_2d_pais!$J$2:$J$27000)/1000 -> 0 | E44: =+SUMIF(AUX_2d_pais!$A$2:$A$27000,'5.1'!$A44&'5.1'!E$3&1,AUX_2d_pais!$J$2:$J$27000)/1000 -> 0 | F44: =+SUMIF(AUX_2d_pais!$A$2:$A$27000,'5.1'!$A44&'5.1'!F$3&1,AUX_2d_pais!$J$2:$J$27000)/1000 -> 0 | G44: =+SUMIF(AUX_2d_pais!$A$2:$A$27000,'5.1'!$A44&'5.1'!G$3&1,AUX_2d_pais!$J$2:$J$27000)/1000 -> 0 | H44: 0 | I44: 0 | J44: =+SUMIF(AUX_2d_pais!$A$2:$A$27000,'5.1'!$A44&'5.1'!J$3&2,AUX_2d_pais!$J$2:$J$27000)/1000 -> 0 | K44: =+SUMIF(AUX_2d_pais!$A$2:$A$27000,'5.1'!$A44&'5.1'!K$3&2,AUX_2d_pais!$J$2:$J$27000)/1000 -> 0 | L44: =+SUMIF(AUX_2d_pais!$A$2:$A$27000,'5.1'!$A44&'5.1'!L$3&2,AUX_2d_pais!$J$2:$J$27000)/1000 -> 0 | M44: =+SUMIF(AUX_2d_pais!$A$2:$A$27000,'5.1'!$A44&'5.1'!M$3&2,AUX_2d_pais!$J$2:$J$27000)/1000 -> 0 | N44: =+SUMIF(AUX_2d_pais!$A$2:$A$27000,'5.1'!$A44&'5.1'!N$3&2,AUX_2d_pais!$J$2:$J$27000)/1000 -> 0 | O44: 0 | P44: 0 | Q44: 0 | S44: =G44-INDEX($C44:$G44,1,aux!$AL$1) -> 0 | T44: 0 | U44: =+IF(INDEX($C44:$G44,1,aux!$AL$1)>0,(G44/INDEX($C44:$G44,1,aux!$AL$1))^(1/($G$3-INDEX($C$3:$G$3,1,aux!$AL$1)))-1,"n.d.") -> n.d. | V44: =IF(INDEX($C44:$G44,1,aux!$AL$1)>0,(G44-INDEX($C44:$G44,1,aux!$AL$1))/INDEX($C44:$G44,1,aux!$AL$1),"n.d.") -> n.d. | X44: =N44-INDEX($J44:$N44,1,aux!$AL$1) -> 0 | Y44: 0 | Z44: =+IF(INDEX($J44:$N44,1,aux!$AL$1)>0,(N44/INDEX($J44:$N44,1,aux!$AL$1))^(1/($N$3-INDEX($J$3:$N$3,1,aux!$AL$1)))-1,"n.d.") -> n.d. | AA44: =IF(INDEX($J44:$N44,1,aux!$AL$1)>0,(N44-INDEX($J44:$N44,1,aux!$AL$1))/INDEX($J44:$N44,1,aux!$AL$1),"n.d.") -> n.d. | AC44: 0 | BS44: =+MATCH('5.1'!A44,AUX_2d_pais!$G$2:$G$20001,0) -> 
A45: 0696 | B45: Camboja | C45: =+SUMIF(AUX_2d_pais!$A$2:$A$27000,'5.1'!$A45&'5.1'!C$3&1,AUX_2d_pais!$J$2:$J$27000)/1000 -> 0 | D45: =+SUMIF(AUX_2d_pais!$A$2:$A$27000,'5.1'!$A45&'5.1'!D$3&1,AUX_2d_pais!$J$2:$J$27000)/1000 -> 0 | E45: =+SUMIF(AUX_2d_pais!$A$2:$A$27000,'5.1'!$A45&'5.1'!E$3&1,AUX_2d_pais!$J$2:$J$27000)/1000 -> 0 | F45: =+SUMIF(AUX_2d_pais!$A$2:$A$27000,'5.1'!$A45&'5.1'!F$3&1,AUX_2d_pais!$J$2:$J$27000)/1000 -> 0 | G45: =+SUMIF(AUX_2d_pais!$A$2:$A$27000,'5.1'!$A45&'5.1'!G$3&1,AUX_2d_pais!$J$2:$J$27000)/1000 -> 0 | H45: 0 | I45: 0 | J45: =+SUMIF(AUX_2d_pais!$A$2:$A$27000,'5.1'!$A45&'5.1'!J$3&2,AUX_2d_pais!$J$2:$J$27000)/1000 -> 0 | K45: =+SUMIF(AUX_2d_pais!$A$2:$A$27000,'5.1'!$A45&'5.1'!K$3&2,AUX_2d_pais!$J$2:$J$27000)/1000 -> 0 | L45: =+SUMIF(AUX_2d_pais!$A$2:$A$27000,'5.1'!$A45&'5.1'!L$3&2,AUX_2d_pais!$J$2:$J$27000)/1000 -> 0 | M45: =+SUMIF(AUX_2d_pais!$A$2:$A$27000,'5.1'!$A45&'5.1'!M$3&2,AUX_2d_pais!$J$2:$J$27000)/1000 -> 0 | N45: =+SUMIF(AUX_2d_pais!$A$2:$A$27000,'5.1'!$A45&'5.1'!N$3&2,AUX_2d_pais!$J$2:$J$27000)/1000 -> 0 | O45: 0 | P45: 0 | Q45: 0 | S45: =G45-INDEX($C45:$G45,1,aux!$AL$1) -> 0 | T45: 0 | U45: =+IF(INDEX($C45:$G45,1,aux!$AL$1)>0,(G45/INDEX($C45:$G45,1,aux!$AL$1))^(1/($G$3-INDEX($C$3:$G$3,1,aux!$AL$1)))-1,"n.d.") -> n.d. | V45: =IF(INDEX($C45:$G45,1,aux!$AL$1)>0,(G45-INDEX($C45:$G45,1,aux!$AL$1))/INDEX($C45:$G45,1,aux!$AL$1),"n.d.") -> n.d. | X45: =N45-INDEX($J45:$N45,1,aux!$AL$1) -> 0 | Y45: 0 | Z45: =+IF(INDEX($J45:$N45,1,aux!$AL$1)>0,(N45/INDEX($J45:$N45,1,aux!$AL$1))^(1/($N$3-INDEX($J$3:$N$3,1,aux!$AL$1)))-1,"n.d.") -> n.d. | AA45: =IF(INDEX($J45:$N45,1,aux!$AL$1)>0,(N45-INDEX($J45:$N45,1,aux!$AL$1))/INDEX($J45:$N45,1,aux!$AL$1),"n.d.") -> n.d. | AC45: 0 | BS45: =+MATCH('5.1'!A45,AUX_2d_pais!$G$2:$G$20001,0) -> 
A46: 0404 | B46: Canadá | C46: =+SUMIF(AUX_2d_pais!$A$2:$A$27000,'5.1'!$A46&'5.1'!C$3&1,AUX_2d_pais!$J$2:$J$27000)/1000 -> 0 | D46: =+SUMIF(AUX_2d_pais!$A$2:$A$27000,'5.1'!$A46&'5.1'!D$3&1,AUX_2d_pais!$J$2:$J$27000)/1000 -> 0 | E46: =+SUMIF(AUX_2d_pais!$A$2:$A$27000,'5.1'!$A46&'5.1'!E$3&1,AUX_2d_pais!$J$2:$J$27000)/1000 -> 0 | F46: =+SUMIF(AUX_2d_pais!$A$2:$A$27000,'5.1'!$A46&'5.1'!F$3&1,AUX_2d_pais!$J$2:$J$27000)/1000 -> 0 | G46: =+SUMIF(AUX_2d_pais!$A$2:$A$27000,'5.1'!$A46&'5.1'!G$3&1,AUX_2d_pais!$J$2:$J$27000)/1000 -> 0 | H46: 0 | I46: 0 | J46: =+SUMIF(AUX_2d_pais!$A$2:$A$27000,'5.1'!$A46&'5.1'!J$3&2,AUX_2d_pais!$J$2:$J$27000)/1000 -> 0 | K46: =+SUMIF(AUX_2d_pais!$A$2:$A$27000,'5.1'!$A46&'5.1'!K$3&2,AUX_2d_pais!$J$2:$J$27000)/1000 -> 0 | L46: =+SUMIF(AUX_2d_pais!$A$2:$A$27000,'5.1'!$A46&'5.1'!L$3&2,AUX_2d_pais!$J$2:$J$27000)/1000 -> 0 | M46: =+SUMIF(AUX_2d_pais!$A$2:$A$27000,'5.1'!$A46&'5.1'!M$3&2,AUX_2d_pais!$J$2:$J$27000)/1000 -> 0 | N46: =+SUMIF(AUX_2d_pais!$A$2:$A$27000,'5.1'!$A46&'5.1'!N$3&2,AUX_2d_pais!$J$2:$J$27000)/1000 -> 0 | O46: 0 | P46: 0 | Q46: 0 | S46: =G46-INDEX($C46:$G46,1,aux!$AL$1) -> 0 | T46: 0 | U46: =+IF(INDEX($C46:$G46,1,aux!$AL$1)>0,(G46/INDEX($C46:$G46,1,aux!$AL$1))^(1/($G$3-INDEX($C$3:$G$3,1,aux!$AL$1)))-1,"n.d.") -> n.d. | V46: =IF(INDEX($C46:$G46,1,aux!$AL$1)>0,(G46-INDEX($C46:$G46,1,aux!$AL$1))/INDEX($C46:$G46,1,aux!$AL$1),"n.d.") -> n.d. | X46: =N46-INDEX($J46:$N46,1,aux!$AL$1) -> 0 | Y46: 0 | Z46: =+IF(INDEX($J46:$N46,1,aux!$AL$1)>0,(N46/INDEX($J46:$N46,1,aux!$AL$1))^(1/($N$3-INDEX($J$3:$N$3,1,aux!$AL$1)))-1,"n.d.") -> n.d. | AA46: =IF(INDEX($J46:$N46,1,aux!$AL$1)>0,(N46-INDEX($J46:$N46,1,aux!$AL$1))/INDEX($J46:$N46,1,aux!$AL$1),"n.d.") -> n.d. | AC46: 0 | BS46: =+MATCH('5.1'!A46,AUX_2d_pais!$G$2:$G$20001,0) -> 
A47: 0644 | B47: Catar | C47: =+SUMIF(AUX_2d_pais!$A$2:$A$27000,'5.1'!$A47&'5.1'!C$3&1,AUX_2d_pais!$J$2:$J$27000)/1000 -> 0 | D47: =+SUMIF(AUX_2d_pais!$A$2:$A$27000,'5.1'!$A47&'5.1'!D$3&1,AUX_2d_pais!$J$2:$J$27000)/1000 -> 0 | E47: =+SUMIF(AUX_2d_pais!$A$2:$A$27000,'5.1'!$A47&'5.1'!E$3&1,AUX_2d_pais!$J$2:$J$27000)/1000 -> 0 | F47: =+SUMIF(AUX_2d_pais!$A$2:$A$27000,'5.1'!$A47&'5.1'!F$3&1,AUX_2d_pais!$J$2:$J$27000)/1000 -> 0 | G47: =+SUMIF(AUX_2d_pais!$A$2:$A$27000,'5.1'!$A47&'5.1'!G$3&1,AUX_2d_pais!$J$2:$J$27000)/1000 -> 0 | H47: 0 | I47: 0 | J47: =+SUMIF(AUX_2d_pais!$A$2:$A$27000,'5.1'!$A47&'5.1'!J$3&2,AUX_2d_pais!$J$2:$J$27000)/1000 -> 0 | K47: =+SUMIF(AUX_2d_pais!$A$2:$A$27000,'5.1'!$A47&'5.1'!K$3&2,AUX_2d_pais!$J$2:$J$27000)/1000 -> 0 | L47: =+SUMIF(AUX_2d_pais!$A$2:$A$27000,'5.1'!$A47&'5.1'!L$3&2,AUX_2d_pais!$J$2:$J$27000)/1000 -> 0 | M47: =+SUMIF(AUX_2d_pais!$A$2:$A$27000,'5.1'!$A47&'5.1'!M$3&2,AUX_2d_pais!$J$2:$J$27000)/1000 -> 0 | N47: =+SUMIF(AUX_2d_pais!$A$2:$A$27000,'5.1'!$A47&'5.1'!N$3&2,AUX_2d_pais!$J$2:$J$27000)/1000 -> 0 | O47: 0 | P47: 0 | Q47: 0 | S47: =G47-INDEX($C47:$G47,1,aux!$AL$1) -> 0 | T47: 0 | U47: =+IF(INDEX($C47:$G47,1,aux!$AL$1)>0,(G47/INDEX($C47:$G47,1,aux!$AL$1))^(1/($G$3-INDEX($C$3:$G$3,1,aux!$AL$1)))-1,"n.d.") -> n.d. | V47: =IF(INDEX($C47:$G47,1,aux!$AL$1)>0,(G47-INDEX($C47:$G47,1,aux!$AL$1))/INDEX($C47:$G47,1,aux!$AL$1),"n.d.") -> n.d. | X47: =N47-INDEX($J47:$N47,1,aux!$AL$1) -> 0 | Y47: 0 | Z47: =+IF(INDEX($J47:$N47,1,aux!$AL$1)>0,(N47/INDEX($J47:$N47,1,aux!$AL$1))^(1/($N$3-INDEX($J$3:$N$3,1,aux!$AL$1)))-1,"n.d.") -> n.d. | AA47: =IF(INDEX($J47:$N47,1,aux!$AL$1)>0,(N47-INDEX($J47:$N47,1,aux!$AL$1))/INDEX($J47:$N47,1,aux!$AL$1),"n.d.") -> n.d. | AC47: 0 | BS47: =+MATCH('5.1'!A47,AUX_2d_pais!$G$2:$G$20001,0) -> 
A48: 0079 | B48: Cazaquistão | C48: =+SUMIF(AUX_2d_pais!$A$2:$A$27000,'5.1'!$A48&'5.1'!C$3&1,AUX_2d_pais!$J$2:$J$27000)/1000 -> 0 | D48: =+SUMIF(AUX_2d_pais!$A$2:$A$27000,'5.1'!$A48&'5.1'!D$3&1,AUX_2d_pais!$J$2:$J$27000)/1000 -> 0 | E48: =+SUMIF(AUX_2d_pais!$A$2:$A$27000,'5.1'!$A48&'5.1'!E$3&1,AUX_2d_pais!$J$2:$J$27000)/1000 -> 0 | F48: =+SUMIF(AUX_2d_pais!$A$2:$A$27000,'5.1'!$A48&'5.1'!F$3&1,AUX_2d_pais!$J$2:$J$27000)/1000 -> 0 | G48: =+SUMIF(AUX_2d_pais!$A$2:$A$27000,'5.1'!$A48&'5.1'!G$3&1,AUX_2d_pais!$J$2:$J$27000)/1000 -> 0 | H48: 0 | I48: 0 | J48: =+SUMIF(AUX_2d_pais!$A$2:$A$27000,'5.1'!$A48&'5.1'!J$3&2,AUX_2d_pais!$J$2:$J$27000)/1000 -> 0 | K48: =+SUMIF(AUX_2d_pais!$A$2:$A$27000,'5.1'!$A48&'5.1'!K$3&2,AUX_2d_pais!$J$2:$J$27000)/1000 -> 0 | L48: =+SUMIF(AUX_2d_pais!$A$2:$A$27000,'5.1'!$A48&'5.1'!L$3&2,AUX_2d_pais!$J$2:$J$27000)/1000 -> 0 | M48: =+SUMIF(AUX_2d_pais!$A$2:$A$27000,'5.1'!$A48&'5.1'!M$3&2,AUX_2d_pais!$J$2:$J$27000)/1000 -> 0 | N48: =+SUMIF(AUX_2d_pais!$A$2:$A$27000,'5.1'!$A48&'5.1'!N$3&2,AUX_2d_pais!$J$2:$J$27000)/1000 -> 0 | O48: 0 | P48: 0 | Q48: 0 | S48: =G48-INDEX($C48:$G48,1,aux!$AL$1) -> 0 | T48: 0 | U48: =+IF(INDEX($C48:$G48,1,aux!$AL$1)>0,(G48/INDEX($C48:$G48,1,aux!$AL$1))^(1/($G$3-INDEX($C$3:$G$3,1,aux!$AL$1)))-1,"n.d.") -> n.d. | V48: =IF(INDEX($C48:$G48,1,aux!$AL$1)>0,(G48-INDEX($C48:$G48,1,aux!$AL$1))/INDEX($C48:$G48,1,aux!$AL$1),"n.d.") -> n.d. | X48: =N48-INDEX($J48:$N48,1,aux!$AL$1) -> 0 | Y48: 0 | Z48: =+IF(INDEX($J48:$N48,1,aux!$AL$1)>0,(N48/INDEX($J48:$N48,1,aux!$AL$1))^(1/($N$3-INDEX($J$3:$N$3,1,aux!$AL$1)))-1,"n.d.") -> n.d. | AA48: =IF(INDEX($J48:$N48,1,aux!$AL$1)>0,(N48-INDEX($J48:$N48,1,aux!$AL$1))/INDEX($J48:$N48,1,aux!$AL$1),"n.d.") -> n.d. | AC48: 0 | BS48: =+MATCH('5.1'!A48,AUX_2d_pais!$G$2:$G$20001,0) -> 
A49: 0306 | B49: Centro-Africana, República | C49: =+SUMIF(AUX_2d_pais!$A$2:$A$27000,'5.1'!$A49&'5.1'!C$3&1,AUX_2d_pais!$J$2:$J$27000)/1000 -> 0 | D49: =+SUMIF(AUX_2d_pais!$A$2:$A$27000,'5.1'!$A49&'5.1'!D$3&1,AUX_2d_pais!$J$2:$J$27000)/1000 -> 0 | E49: =+SUMIF(AUX_2d_pais!$A$2:$A$27000,'5.1'!$A49&'5.1'!E$3&1,AUX_2d_pais!$J$2:$J$27000)/1000 -> 0 | F49: =+SUMIF(AUX_2d_pais!$A$2:$A$27000,'5.1'!$A49&'5.1'!F$3&1,AUX_2d_pais!$J$2:$J$27000)/1000 -> 0 | G49: =+SUMIF(AUX_2d_pais!$A$2:$A$27000,'5.1'!$A49&'5.1'!G$3&1,AUX_2d_pais!$J$2:$J$27000)/1000 -> 0 | H49: 0 | I49: 0 | J49: =+SUMIF(AUX_2d_pais!$A$2:$A$27000,'5.1'!$A49&'5.1'!J$3&2,AUX_2d_pais!$J$2:$J$27000)/1000 -> 0 | K49: =+SUMIF(AUX_2d_pais!$A$2:$A$27000,'5.1'!$A49&'5.1'!K$3&2,AUX_2d_pais!$J$2:$J$27000)/1000 -> 0 | L49: =+SUMIF(AUX_2d_pais!$A$2:$A$27000,'5.1'!$A49&'5.1'!L$3&2,AUX_2d_pais!$J$2:$J$27000)/1000 -> 0 | M49: =+SUMIF(AUX_2d_pais!$A$2:$A$27000,'5.1'!$A49&'5.1'!M$3&2,AUX_2d_pais!$J$2:$J$27000)/1000 -> 0 | N49: =+SUMIF(AUX_2d_pais!$A$2:$A$27000,'5.1'!$A49&'5.1'!N$3&2,AUX_2d_pais!$J$2:$J$27000)/1000 -> 0 | O49: 0 | P49: 0 | Q49: 0 | S49: =G49-INDEX($C49:$G49,1,aux!$AL$1) -> 0 | T49: 0 | U49: =+IF(INDEX($C49:$G49,1,aux!$AL$1)>0,(G49/INDEX($C49:$G49,1,aux!$AL$1))^(1/($G$3-INDEX($C$3:$G$3,1,aux!$AL$1)))-1,"n.d.") -> n.d. | V49: =IF(INDEX($C49:$G49,1,aux!$AL$1)>0,(G49-INDEX($C49:$G49,1,aux!$AL$1))/INDEX($C49:$G49,1,aux!$AL$1),"n.d.") -> n.d. | X49: =N49-INDEX($J49:$N49,1,aux!$AL$1) -> 0 | Y49: 0 | Z49: =+IF(INDEX($J49:$N49,1,aux!$AL$1)>0,(N49/INDEX($J49:$N49,1,aux!$AL$1))^(1/($N$3-INDEX($J$3:$N$3,1,aux!$AL$1)))-1,"n.d.") -> n.d. | AA49: =IF(INDEX($J49:$N49,1,aux!$AL$1)>0,(N49-INDEX($J49:$N49,1,aux!$AL$1))/INDEX($J49:$N49,1,aux!$AL$1),"n.d.") -> n.d. | AC49: 0 | BS49: =+MATCH('5.1'!A49,AUX_2d_pais!$G$2:$G$20001,0) -> 
A50: 0021 | B50: Ceuta | C50: =+SUMIF(AUX_2d_pais!$A$2:$A$27000,'5.1'!$A50&'5.1'!C$3&1,AUX_2d_pais!$J$2:$J$27000)/1000 -> 0 | D50: =+SUMIF(AUX_2d_pais!$A$2:$A$27000,'5.1'!$A50&'5.1'!D$3&1,AUX_2d_pais!$J$2:$J$27000)/1000 -> 0 | E50: =+SUMIF(AUX_2d_pais!$A$2:$A$27000,'5.1'!$A50&'5.1'!E$3&1,AUX_2d_pais!$J$2:$J$27000)/1000 -> 0 | F50: =+SUMIF(AUX_2d_pais!$A$2:$A$27000,'5.1'!$A50&'5.1'!F$3&1,AUX_2d_pais!$J$2:$J$27000)/1000 -> 0 | G50: =+SUMIF(AUX_2d_pais!$A$2:$A$27000,'5.1'!$A50&'5.1'!G$3&1,AUX_2d_pais!$J$2:$J$27000)/1000 -> 0 | H50: 0 | I50: 0 | J50: =+SUMIF(AUX_2d_pais!$A$2:$A$27000,'5.1'!$A50&'5.1'!J$3&2,AUX_2d_pais!$J$2:$J$27000)/1000 -> 0 | K50: =+SUMIF(AUX_2d_pais!$A$2:$A$27000,'5.1'!$A50&'5.1'!K$3&2,AUX_2d_pais!$J$2:$J$27000)/1000 -> 0 | L50: =+SUMIF(AUX_2d_pais!$A$2:$A$27000,'5.1'!$A50&'5.1'!L$3&2,AUX_2d_pais!$J$2:$J$27000)/1000 -> 0 | M50: =+SUMIF(AUX_2d_pais!$A$2:$A$27000,'5.1'!$A50&'5.1'!M$3&2,AUX_2d_pais!$J$2:$J$27000)/1000 -> 0 | N50: =+SUMIF(AUX_2d_pais!$A$2:$A$27000,'5.1'!$A50&'5.1'!N$3&2,AUX_2d_pais!$J$2:$J$27000)/1000 -> 0 | O50: 0 | P50: 0 | Q50: 0 | S50: =G50-INDEX($C50:$G50,1,aux!$AL$1) -> 0 | T50: 0 | U50: =+IF(INDEX($C50:$G50,1,aux!$AL$1)>0,(G50/INDEX($C50:$G50,1,aux!$AL$1))^(1/($G$3-INDEX($C$3:$G$3,1,aux!$AL$1)))-1,"n.d.") -> n.d. | V50: =IF(INDEX($C50:$G50,1,aux!$AL$1)>0,(G50-INDEX($C50:$G50,1,aux!$AL$1))/INDEX($C50:$G50,1,aux!$AL$1),"n.d.") -> n.d. | X50: =N50-INDEX($J50:$N50,1,aux!$AL$1) -> 0 | Y50: 0 | Z50: =+IF(INDEX($J50:$N50,1,aux!$AL$1)>0,(N50/INDEX($J50:$N50,1,aux!$AL$1))^(1/($N$3-INDEX($J$3:$N$3,1,aux!$AL$1)))-1,"n.d.") -> n.d. | AA50: =IF(INDEX($J50:$N50,1,aux!$AL$1)>0,(N50-INDEX($J50:$N50,1,aux!$AL$1))/INDEX($J50:$N50,1,aux!$AL$1),"n.d.") -> n.d. | AC50: 0 | BS50: =+MATCH('5.1'!A50,AUX_2d_pais!$G$2:$G$20001,0) -> 
A51: 0022 | B51: Ceuta e Melilha | C51: =+SUMIF(AUX_2d_pais!$A$2:$A$27000,'5.1'!$A51&'5.1'!C$3&1,AUX_2d_pais!$J$2:$J$27000)/1000 -> 0 | D51: =+SUMIF(AUX_2d_pais!$A$2:$A$27000,'5.1'!$A51&'5.1'!D$3&1,AUX_2d_pais!$J$2:$J$27000)/1000 -> 0 | E51: =+SUMIF(AUX_2d_pais!$A$2:$A$27000,'5.1'!$A51&'5.1'!E$3&1,AUX_2d_pais!$J$2:$J$27000)/1000 -> 0 | F51: =+SUMIF(AUX_2d_pais!$A$2:$A$27000,'5.1'!$A51&'5.1'!F$3&1,AUX_2d_pais!$J$2:$J$27000)/1000 -> 0 | G51: =+SUMIF(AUX_2d_pais!$A$2:$A$27000,'5.1'!$A51&'5.1'!G$3&1,AUX_2d_pais!$J$2:$J$27000)/1000 -> 0 | H51: 0 | I51: 0 | J51: =+SUMIF(AUX_2d_pais!$A$2:$A$27000,'5.1'!$A51&'5.1'!J$3&2,AUX_2d_pais!$J$2:$J$27000)/1000 -> 0 | K51: =+SUMIF(AUX_2d_pais!$A$2:$A$27000,'5.1'!$A51&'5.1'!K$3&2,AUX_2d_pais!$J$2:$J$27000)/1000 -> 0 | L51: =+SUMIF(AUX_2d_pais!$A$2:$A$27000,'5.1'!$A51&'5.1'!L$3&2,AUX_2d_pais!$J$2:$J$27000)/1000 -> 0 | M51: =+SUMIF(AUX_2d_pais!$A$2:$A$27000,'5.1'!$A51&'5.1'!M$3&2,AUX_2d_pais!$J$2:$J$27000)/1000 -> 0 | N51: =+SUMIF(AUX_2d_pais!$A$2:$A$27000,'5.1'!$A51&'5.1'!N$3&2,AUX_2d_pais!$J$2:$J$27000)/1000 -> 0 | O51: 0 | P51: 0 | Q51: 0 | S51: =G51-INDEX($C51:$G51,1,aux!$AL$1) -> 0 | T51: 0 | U51: =+IF(INDEX($C51:$G51,1,aux!$AL$1)>0,(G51/INDEX($C51:$G51,1,aux!$AL$1))^(1/($G$3-INDEX($C$3:$G$3,1,aux!$AL$1)))-1,"n.d.") -> n.d. | V51: =IF(INDEX($C51:$G51,1,aux!$AL$1)>0,(G51-INDEX($C51:$G51,1,aux!$AL$1))/INDEX($C51:$G51,1,aux!$AL$1),"n.d.") -> n.d. | X51: =N51-INDEX($J51:$N51,1,aux!$AL$1) -> 0 | Y51: 0 | Z51: =+IF(INDEX($J51:$N51,1,aux!$AL$1)>0,(N51/INDEX($J51:$N51,1,aux!$AL$1))^(1/($N$3-INDEX($J$3:$N$3,1,aux!$AL$1)))-1,"n.d.") -> n.d. | AA51: =IF(INDEX($J51:$N51,1,aux!$AL$1)>0,(N51-INDEX($J51:$N51,1,aux!$AL$1))/INDEX($J51:$N51,1,aux!$AL$1),"n.d.") -> n.d. | AC51: 0 | BS51: =+MATCH('5.1'!A51,AUX_2d_pais!$G$2:$G$20001,0) -> 
A52: 0244 | B52: Chade | C52: =+SUMIF(AUX_2d_pais!$A$2:$A$27000,'5.1'!$A52&'5.1'!C$3&1,AUX_2d_pais!$J$2:$J$27000)/1000 -> 0 | D52: =+SUMIF(AUX_2d_pais!$A$2:$A$27000,'5.1'!$A52&'5.1'!D$3&1,AUX_2d_pais!$J$2:$J$27000)/1000 -> 0 | E52: =+SUMIF(AUX_2d_pais!$A$2:$A$27000,'5.1'!$A52&'5.1'!E$3&1,AUX_2d_pais!$J$2:$J$27000)/1000 -> 0 | F52: =+SUMIF(AUX_2d_pais!$A$2:$A$27000,'5.1'!$A52&'5.1'!F$3&1,AUX_2d_pais!$J$2:$J$27000)/1000 -> 0 | G52: =+SUMIF(AUX_2d_pais!$A$2:$A$27000,'5.1'!$A52&'5.1'!G$3&1,AUX_2d_pais!$J$2:$J$27000)/1000 -> 0 | H52: 0 | I52: 0 | J52: =+SUMIF(AUX_2d_pais!$A$2:$A$27000,'5.1'!$A52&'5.1'!J$3&2,AUX_2d_pais!$J$2:$J$27000)/1000 -> 0 | K52: =+SUMIF(AUX_2d_pais!$A$2:$A$27000,'5.1'!$A52&'5.1'!K$3&2,AUX_2d_pais!$J$2:$J$27000)/1000 -> 0 | L52: =+SUMIF(AUX_2d_pais!$A$2:$A$27000,'5.1'!$A52&'5.1'!L$3&2,AUX_2d_pais!$J$2:$J$27000)/1000 -> 0 | M52: =+SUMIF(AUX_2d_pais!$A$2:$A$27000,'5.1'!$A52&'5.1'!M$3&2,AUX_2d_pais!$J$2:$J$27000)/1000 -> 0 | N52: =+SUMIF(AUX_2d_pais!$A$2:$A$27000,'5.1'!$A52&'5.1'!N$3&2,AUX_2d_pais!$J$2:$J$27000)/1000 -> 0 | O52: 0 | P52: 0 | Q52: 0 | S52: =G52-INDEX($C52:$G52,1,aux!$AL$1) -> 0 | T52: 0 | U52: =+IF(INDEX($C52:$G52,1,aux!$AL$1)>0,(G52/INDEX($C52:$G52,1,aux!$AL$1))^(1/($G$3-INDEX($C$3:$G$3,1,aux!$AL$1)))-1,"n.d.") -> n.d. | V52: =IF(INDEX($C52:$G52,1,aux!$AL$1)>0,(G52-INDEX($C52:$G52,1,aux!$AL$1))/INDEX($C52:$G52,1,aux!$AL$1),"n.d.") -> n.d. | X52: =N52-INDEX($J52:$N52,1,aux!$AL$1) -> 0 | Y52: 0 | Z52: =+IF(INDEX($J52:$N52,1,aux!$AL$1)>0,(N52/INDEX($J52:$N52,1,aux!$AL$1))^(1/($N$3-INDEX($J$3:$N$3,1,aux!$AL$1)))-1,"n.d.") -> n.d. | AA52: =IF(INDEX($J52:$N52,1,aux!$AL$1)>0,(N52-INDEX($J52:$N52,1,aux!$AL$1))/INDEX($J52:$N52,1,aux!$AL$1),"n.d.") -> n.d. | AC52: 0 | BS52: =+MATCH('5.1'!A52,AUX_2d_pais!$G$2:$G$20001,0) -> 
A53: 0061 | B53: Checa, República | C53: =+SUMIF(AUX_2d_pais!$A$2:$A$27000,'5.1'!$A53&'5.1'!C$3&1,AUX_2d_pais!$J$2:$J$27000)/1000 -> 0 | D53: =+SUMIF(AUX_2d_pais!$A$2:$A$27000,'5.1'!$A53&'5.1'!D$3&1,AUX_2d_pais!$J$2:$J$27000)/1000 -> 0 | E53: =+SUMIF(AUX_2d_pais!$A$2:$A$27000,'5.1'!$A53&'5.1'!E$3&1,AUX_2d_pais!$J$2:$J$27000)/1000 -> 0 | F53: =+SUMIF(AUX_2d_pais!$A$2:$A$27000,'5.1'!$A53&'5.1'!F$3&1,AUX_2d_pais!$J$2:$J$27000)/1000 -> 0 | G53: =+SUMIF(AUX_2d_pais!$A$2:$A$27000,'5.1'!$A53&'5.1'!G$3&1,AUX_2d_pais!$J$2:$J$27000)/1000 -> 0 | H53: 0 | I53: 0 | J53: =+SUMIF(AUX_2d_pais!$A$2:$A$27000,'5.1'!$A53&'5.1'!J$3&2,AUX_2d_pais!$J$2:$J$27000)/1000 -> 0 | K53: =+SUMIF(AUX_2d_pais!$A$2:$A$27000,'5.1'!$A53&'5.1'!K$3&2,AUX_2d_pais!$J$2:$J$27000)/1000 -> 0 | L53: =+SUMIF(AUX_2d_pais!$A$2:$A$27000,'5.1'!$A53&'5.1'!L$3&2,AUX_2d_pais!$J$2:$J$27000)/1000 -> 0 | M53: =+SUMIF(AUX_2d_pais!$A$2:$A$27000,'5.1'!$A53&'5.1'!M$3&2,AUX_2d_pais!$J$2:$J$27000)/1000 -> 0 | N53: =+SUMIF(AUX_2d_pais!$A$2:$A$27000,'5.1'!$A53&'5.1'!N$3&2,AUX_2d_pais!$J$2:$J$27000)/1000 -> 0 | O53: 0 | P53: 0 | Q53: 0 | S53: =G53-INDEX($C53:$G53,1,aux!$AL$1) -> 0 | T53: 0 | U53: =+IF(INDEX($C53:$G53,1,aux!$AL$1)>0,(G53/INDEX($C53:$G53,1,aux!$AL$1))^(1/($G$3-INDEX($C$3:$G$3,1,aux!$AL$1)))-1,"n.d.") -> n.d. | V53: =IF(INDEX($C53:$G53,1,aux!$AL$1)>0,(G53-INDEX($C53:$G53,1,aux!$AL$1))/INDEX($C53:$G53,1,aux!$AL$1),"n.d.") -> n.d. | X53: =N53-INDEX($J53:$N53,1,aux!$AL$1) -> 0 | Y53: 0 | Z53: =+IF(INDEX($J53:$N53,1,aux!$AL$1)>0,(N53/INDEX($J53:$N53,1,aux!$AL$1))^(1/($N$3-INDEX($J$3:$N$3,1,aux!$AL$1)))-1,"n.d.") -> n.d. | AA53: =IF(INDEX($J53:$N53,1,aux!$AL$1)>0,(N53-INDEX($J53:$N53,1,aux!$AL$1))/INDEX($J53:$N53,1,aux!$AL$1),"n.d.") -> n.d. | AC53: 0 | BS53: =+MATCH('5.1'!A53,AUX_2d_pais!$G$2:$G$20001,0) -> 
A54: 0512 | B54: Chile | C54: =+SUMIF(AUX_2d_pais!$A$2:$A$27000,'5.1'!$A54&'5.1'!C$3&1,AUX_2d_pais!$J$2:$J$27000)/1000 -> 0 | D54: =+SUMIF(AUX_2d_pais!$A$2:$A$27000,'5.1'!$A54&'5.1'!D$3&1,AUX_2d_pais!$J$2:$J$27000)/1000 -> 0 | E54: =+SUMIF(AUX_2d_pais!$A$2:$A$27000,'5.1'!$A54&'5.1'!E$3&1,AUX_2d_pais!$J$2:$J$27000)/1000 -> 0 | F54: =+SUMIF(AUX_2d_pais!$A$2:$A$27000,'5.1'!$A54&'5.1'!F$3&1,AUX_2d_pais!$J$2:$J$27000)/1000 -> 0 | G54: =+SUMIF(AUX_2d_pais!$A$2:$A$27000,'5.1'!$A54&'5.1'!G$3&1,AUX_2d_pais!$J$2:$J$27000)/1000 -> 0 | H54: 0 | I54: 0 | J54: =+SUMIF(AUX_2d_pais!$A$2:$A$27000,'5.1'!$A54&'5.1'!J$3&2,AUX_2d_pais!$J$2:$J$27000)/1000 -> 0 | K54: =+SUMIF(AUX_2d_pais!$A$2:$A$27000,'5.1'!$A54&'5.1'!K$3&2,AUX_2d_pais!$J$2:$J$27000)/1000 -> 0 | L54: =+SUMIF(AUX_2d_pais!$A$2:$A$27000,'5.1'!$A54&'5.1'!L$3&2,AUX_2d_pais!$J$2:$J$27000)/1000 -> 0 | M54: =+SUMIF(AUX_2d_pais!$A$2:$A$27000,'5.1'!$A54&'5.1'!M$3&2,AUX_2d_pais!$J$2:$J$27000)/1000 -> 0 | N54: =+SUMIF(AUX_2d_pais!$A$2:$A$27000,'5.1'!$A54&'5.1'!N$3&2,AUX_2d_pais!$J$2:$J$27000)/1000 -> 0 | O54: 0 | P54: 0 | Q54: 0 | S54: =G54-INDEX($C54:$G54,1,aux!$AL$1) -> 0 | T54: 0 | U54: =+IF(INDEX($C54:$G54,1,aux!$AL$1)>0,(G54/INDEX($C54:$G54,1,aux!$AL$1))^(1/($G$3-INDEX($C$3:$G$3,1,aux!$AL$1)))-1,"n.d.") -> n.d. | V54: =IF(INDEX($C54:$G54,1,aux!$AL$1)>0,(G54-INDEX($C54:$G54,1,aux!$AL$1))/INDEX($C54:$G54,1,aux!$AL$1),"n.d.") -> n.d. | X54: =N54-INDEX($J54:$N54,1,aux!$AL$1) -> 0 | Y54: 0 | Z54: =+IF(INDEX($J54:$N54,1,aux!$AL$1)>0,(N54/INDEX($J54:$N54,1,aux!$AL$1))^(1/($N$3-INDEX($J$3:$N$3,1,aux!$AL$1)))-1,"n.d.") -> n.d. | AA54: =IF(INDEX($J54:$N54,1,aux!$AL$1)>0,(N54-INDEX($J54:$N54,1,aux!$AL$1))/INDEX($J54:$N54,1,aux!$AL$1),"n.d.") -> n.d. | AC54: 0 | BS54: =+MATCH('5.1'!A54,AUX_2d_pais!$G$2:$G$20001,0) -> 
A55: 0720 | B55: China, República Popular da | C55: =+SUMIF(AUX_2d_pais!$A$2:$A$27000,'5.1'!$A55&'5.1'!C$3&1,AUX_2d_pais!$J$2:$J$27000)/1000 -> 0 | D55: =+SUMIF(AUX_2d_pais!$A$2:$A$27000,'5.1'!$A55&'5.1'!D$3&1,AUX_2d_pais!$J$2:$J$27000)/1000 -> 0 | E55: =+SUMIF(AUX_2d_pais!$A$2:$A$27000,'5.1'!$A55&'5.1'!E$3&1,AUX_2d_pais!$J$2:$J$27000)/1000 -> 0 | F55: =+SUMIF(AUX_2d_pais!$A$2:$A$27000,'5.1'!$A55&'5.1'!F$3&1,AUX_2d_pais!$J$2:$J$27000)/1000 -> 0 | G55: =+SUMIF(AUX_2d_pais!$A$2:$A$27000,'5.1'!$A55&'5.1'!G$3&1,AUX_2d_pais!$J$2:$J$27000)/1000 -> 0 | H55: 0 | I55: 0 | J55: =+SUMIF(AUX_2d_pais!$A$2:$A$27000,'5.1'!$A55&'5.1'!J$3&2,AUX_2d_pais!$J$2:$J$27000)/1000 -> 0 | K55: =+SUMIF(AUX_2d_pais!$A$2:$A$27000,'5.1'!$A55&'5.1'!K$3&2,AUX_2d_pais!$J$2:$J$27000)/1000 -> 0 | L55: =+SUMIF(AUX_2d_pais!$A$2:$A$27000,'5.1'!$A55&'5.1'!L$3&2,AUX_2d_pais!$J$2:$J$27000)/1000 -> 0 | M55: =+SUMIF(AUX_2d_pais!$A$2:$A$27000,'5.1'!$A55&'5.1'!M$3&2,AUX_2d_pais!$J$2:$J$27000)/1000 -> 0 | N55: =+SUMIF(AUX_2d_pais!$A$2:$A$27000,'5.1'!$A55&'5.1'!N$3&2,AUX_2d_pais!$J$2:$J$27000)/1000 -> 0 | O55: 0 | P55: 0 | Q55: 0 | S55: =G55-INDEX($C55:$G55,1,aux!$AL$1) -> 0 | T55: 0 | U55: =+IF(INDEX($C55:$G55,1,aux!$AL$1)>0,(G55/INDEX($C55:$G55,1,aux!$AL$1))^(1/($G$3-INDEX($C$3:$G$3,1,aux!$AL$1)))-1,"n.d.") -> n.d. | V55: =IF(INDEX($C55:$G55,1,aux!$AL$1)>0,(G55-INDEX($C55:$G55,1,aux!$AL$1))/INDEX($C55:$G55,1,aux!$AL$1),"n.d.") -> n.d. | X55: =N55-INDEX($J55:$N55,1,aux!$AL$1) -> 0 | Y55: 0 | Z55: =+IF(INDEX($J55:$N55,1,aux!$AL$1)>0,(N55/INDEX($J55:$N55,1,aux!$AL$1))^(1/($N$3-INDEX($J$3:$N$3,1,aux!$AL$1)))-1,"n.d.") -> n.d. | AA55: =IF(INDEX($J55:$N55,1,aux!$AL$1)>0,(N55-INDEX($J55:$N55,1,aux!$AL$1))/INDEX($J55:$N55,1,aux!$AL$1),"n.d.") -> n.d. | AC55: 0 | BS55: =+MATCH('5.1'!A55,AUX_2d_pais!$G$2:$G$20001,0) -> 
A56: 0600 | B56: Chipre | C56: =+SUMIF(AUX_2d_pais!$A$2:$A$27000,'5.1'!$A56&'5.1'!C$3&1,AUX_2d_pais!$J$2:$J$27000)/1000 -> 0 | D56: =+SUMIF(AUX_2d_pais!$A$2:$A$27000,'5.1'!$A56&'5.1'!D$3&1,AUX_2d_pais!$J$2:$J$27000)/1000 -> 0 | E56: =+SUMIF(AUX_2d_pais!$A$2:$A$27000,'5.1'!$A56&'5.1'!E$3&1,AUX_2d_pais!$J$2:$J$27000)/1000 -> 0 | F56: =+SUMIF(AUX_2d_pais!$A$2:$A$27000,'5.1'!$A56&'5.1'!F$3&1,AUX_2d_pais!$J$2:$J$27000)/1000 -> 0 | G56: =+SUMIF(AUX_2d_pais!$A$2:$A$27000,'5.1'!$A56&'5.1'!G$3&1,AUX_2d_pais!$J$2:$J$27000)/1000 -> 0 | H56: 0 | I56: 0 | J56: =+SUMIF(AUX_2d_pais!$A$2:$A$27000,'5.1'!$A56&'5.1'!J$3&2,AUX_2d_pais!$J$2:$J$27000)/1000 -> 0 | K56: =+SUMIF(AUX_2d_pais!$A$2:$A$27000,'5.1'!$A56&'5.1'!K$3&2,AUX_2d_pais!$J$2:$J$27000)/1000 -> 0 | L56: =+SUMIF(AUX_2d_pais!$A$2:$A$27000,'5.1'!$A56&'5.1'!L$3&2,AUX_2d_pais!$J$2:$J$27000)/1000 -> 0 | M56: =+SUMIF(AUX_2d_pais!$A$2:$A$27000,'5.1'!$A56&'5.1'!M$3&2,AUX_2d_pais!$J$2:$J$27000)/1000 -> 0 | N56: =+SUMIF(AUX_2d_pais!$A$2:$A$27000,'5.1'!$A56&'5.1'!N$3&2,AUX_2d_pais!$J$2:$J$27000)/1000 -> 0 | O56: 0 | P56: 0 | Q56: 0 | S56: =G56-INDEX($C56:$G56,1,aux!$AL$1) -> 0 | T56: 0 | U56: =+IF(INDEX($C56:$G56,1,aux!$AL$1)>0,(G56/INDEX($C56:$G56,1,aux!$AL$1))^(1/($G$3-INDEX($C$3:$G$3,1,aux!$AL$1)))-1,"n.d.") -> n.d. | V56: =IF(INDEX($C56:$G56,1,aux!$AL$1)>0,(G56-INDEX($C56:$G56,1,aux!$AL$1))/INDEX($C56:$G56,1,aux!$AL$1),"n.d.") -> n.d. | X56: =N56-INDEX($J56:$N56,1,aux!$AL$1) -> 0 | Y56: 0 | Z56: =+IF(INDEX($J56:$N56,1,aux!$AL$1)>0,(N56/INDEX($J56:$N56,1,aux!$AL$1))^(1/($N$3-INDEX($J$3:$N$3,1,aux!$AL$1)))-1,"n.d.") -> n.d. | AA56: =IF(INDEX($J56:$N56,1,aux!$AL$1)>0,(N56-INDEX($J56:$N56,1,aux!$AL$1))/INDEX($J56:$N56,1,aux!$AL$1),"n.d.") -> n.d. | AC56: 0 | BS56: =+MATCH('5.1'!A56,AUX_2d_pais!$G$2:$G$20001,0) -> 
A57: 0834 | B57: Christmas, Ilha | C57: =+SUMIF(AUX_2d_pais!$A$2:$A$27000,'5.1'!$A57&'5.1'!C$3&1,AUX_2d_pais!$J$2:$J$27000)/1000 -> 0 | D57: =+SUMIF(AUX_2d_pais!$A$2:$A$27000,'5.1'!$A57&'5.1'!D$3&1,AUX_2d_pais!$J$2:$J$27000)/1000 -> 0 | E57: =+SUMIF(AUX_2d_pais!$A$2:$A$27000,'5.1'!$A57&'5.1'!E$3&1,AUX_2d_pais!$J$2:$J$27000)/1000 -> 0 | F57: =+SUMIF(AUX_2d_pais!$A$2:$A$27000,'5.1'!$A57&'5.1'!F$3&1,AUX_2d_pais!$J$2:$J$27000)/1000 -> 0 | G57: =+SUMIF(AUX_2d_pais!$A$2:$A$27000,'5.1'!$A57&'5.1'!G$3&1,AUX_2d_pais!$J$2:$J$27000)/1000 -> 0 | H57: 0 | I57: 0 | J57: =+SUMIF(AUX_2d_pais!$A$2:$A$27000,'5.1'!$A57&'5.1'!J$3&2,AUX_2d_pais!$J$2:$J$27000)/1000 -> 0 | K57: =+SUMIF(AUX_2d_pais!$A$2:$A$27000,'5.1'!$A57&'5.1'!K$3&2,AUX_2d_pais!$J$2:$J$27000)/1000 -> 0 | L57: =+SUMIF(AUX_2d_pais!$A$2:$A$27000,'5.1'!$A57&'5.1'!L$3&2,AUX_2d_pais!$J$2:$J$27000)/1000 -> 0 | M57: =+SUMIF(AUX_2d_pais!$A$2:$A$27000,'5.1'!$A57&'5.1'!M$3&2,AUX_2d_pais!$J$2:$J$27000)/1000 -> 0 | N57: =+SUMIF(AUX_2d_pais!$A$2:$A$27000,'5.1'!$A57&'5.1'!N$3&2,AUX_2d_pais!$J$2:$J$27000)/1000 -> 0 | O57: 0 | P57: 0 | Q57: 0 | S57: =G57-INDEX($C57:$G57,1,aux!$AL$1) -> 0 | T57: 0 | U57: =+IF(INDEX($C57:$G57,1,aux!$AL$1)>0,(G57/INDEX($C57:$G57,1,aux!$AL$1))^(1/($G$3-INDEX($C$3:$G$3,1,aux!$AL$1)))-1,"n.d.") -> n.d. | V57: =IF(INDEX($C57:$G57,1,aux!$AL$1)>0,(G57-INDEX($C57:$G57,1,aux!$AL$1))/INDEX($C57:$G57,1,aux!$AL$1),"n.d.") -> n.d. | X57: =N57-INDEX($J57:$N57,1,aux!$AL$1) -> 0 | Y57: 0 | Z57: =+IF(INDEX($J57:$N57,1,aux!$AL$1)>0,(N57/INDEX($J57:$N57,1,aux!$AL$1))^(1/($N$3-INDEX($J$3:$N$3,1,aux!$AL$1)))-1,"n.d.") -> n.d. | AA57: =IF(INDEX($J57:$N57,1,aux!$AL$1)>0,(N57-INDEX($J57:$N57,1,aux!$AL$1))/INDEX($J57:$N57,1,aux!$AL$1),"n.d.") -> n.d. | AC57: 0 | BS57: =+MATCH('5.1'!A57,AUX_2d_pais!$G$2:$G$20001,0) -> 
A58: 0833 | B58: Cocos (Keeling), Ilhas | C58: =+SUMIF(AUX_2d_pais!$A$2:$A$27000,'5.1'!$A58&'5.1'!C$3&1,AUX_2d_pais!$J$2:$J$27000)/1000 -> 0 | D58: =+SUMIF(AUX_2d_pais!$A$2:$A$27000,'5.1'!$A58&'5.1'!D$3&1,AUX_2d_pais!$J$2:$J$27000)/1000 -> 0 | E58: =+SUMIF(AUX_2d_pais!$A$2:$A$27000,'5.1'!$A58&'5.1'!E$3&1,AUX_2d_pais!$J$2:$J$27000)/1000 -> 0 | F58: =+SUMIF(AUX_2d_pais!$A$2:$A$27000,'5.1'!$A58&'5.1'!F$3&1,AUX_2d_pais!$J$2:$J$27000)/1000 -> 0 | G58: =+SUMIF(AUX_2d_pais!$A$2:$A$27000,'5.1'!$A58&'5.1'!G$3&1,AUX_2d_pais!$J$2:$J$27000)/1000 -> 0 | H58: 0 | I58: 0 | J58: =+SUMIF(AUX_2d_pais!$A$2:$A$27000,'5.1'!$A58&'5.1'!J$3&2,AUX_2d_pais!$J$2:$J$27000)/1000 -> 0 | K58: =+SUMIF(AUX_2d_pais!$A$2:$A$27000,'5.1'!$A58&'5.1'!K$3&2,AUX_2d_pais!$J$2:$J$27000)/1000 -> 0 | L58: =+SUMIF(AUX_2d_pais!$A$2:$A$27000,'5.1'!$A58&'5.1'!L$3&2,AUX_2d_pais!$J$2:$J$27000)/1000 -> 0 | M58: =+SUMIF(AUX_2d_pais!$A$2:$A$27000,'5.1'!$A58&'5.1'!M$3&2,AUX_2d_pais!$J$2:$J$27000)/1000 -> 0 | N58: =+SUMIF(AUX_2d_pais!$A$2:$A$27000,'5.1'!$A58&'5.1'!N$3&2,AUX_2d_pais!$J$2:$J$27000)/1000 -> 0 | O58: 0 | P58: 0 | Q58: 0 | S58: =G58-INDEX($C58:$G58,1,aux!$AL$1) -> 0 | T58: 0 | U58: =+IF(INDEX($C58:$G58,1,aux!$AL$1)>0,(G58/INDEX($C58:$G58,1,aux!$AL$1))^(1/($G$3-INDEX($C$3:$G$3,1,aux!$AL$1)))-1,"n.d.") -> n.d. | V58: =IF(INDEX($C58:$G58,1,aux!$AL$1)>0,(G58-INDEX($C58:$G58,1,aux!$AL$1))/INDEX($C58:$G58,1,aux!$AL$1),"n.d.") -> n.d. | X58: =N58-INDEX($J58:$N58,1,aux!$AL$1) -> 0 | Y58: 0 | Z58: =+IF(INDEX($J58:$N58,1,aux!$AL$1)>0,(N58/INDEX($J58:$N58,1,aux!$AL$1))^(1/($N$3-INDEX($J$3:$N$3,1,aux!$AL$1)))-1,"n.d.") -> n.d. | AA58: =IF(INDEX($J58:$N58,1,aux!$AL$1)>0,(N58-INDEX($J58:$N58,1,aux!$AL$1))/INDEX($J58:$N58,1,aux!$AL$1),"n.d.") -> n.d. | AC58: 0 | BS58: =+MATCH('5.1'!A58,AUX_2d_pais!$G$2:$G$20001,0) -> 
A59: 0480 | B59: Colômbia | C59: =+SUMIF(AUX_2d_pais!$A$2:$A$27000,'5.1'!$A59&'5.1'!C$3&1,AUX_2d_pais!$J$2:$J$27000)/1000 -> 0 | D59: =+SUMIF(AUX_2d_pais!$A$2:$A$27000,'5.1'!$A59&'5.1'!D$3&1,AUX_2d_pais!$J$2:$J$27000)/1000 -> 0 | E59: =+SUMIF(AUX_2d_pais!$A$2:$A$27000,'5.1'!$A59&'5.1'!E$3&1,AUX_2d_pais!$J$2:$J$27000)/1000 -> 0 | F59: =+SUMIF(AUX_2d_pais!$A$2:$A$27000,'5.1'!$A59&'5.1'!F$3&1,AUX_2d_pais!$J$2:$J$27000)/1000 -> 0 | G59: =+SUMIF(AUX_2d_pais!$A$2:$A$27000,'5.1'!$A59&'5.1'!G$3&1,AUX_2d_pais!$J$2:$J$27000)/1000 -> 0 | H59: 0 | I59: 0 | J59: =+SUMIF(AUX_2d_pais!$A$2:$A$27000,'5.1'!$A59&'5.1'!J$3&2,AUX_2d_pais!$J$2:$J$27000)/1000 -> 0 | K59: =+SUMIF(AUX_2d_pais!$A$2:$A$27000,'5.1'!$A59&'5.1'!K$3&2,AUX_2d_pais!$J$2:$J$27000)/1000 -> 0 | L59: =+SUMIF(AUX_2d_pais!$A$2:$A$27000,'5.1'!$A59&'5.1'!L$3&2,AUX_2d_pais!$J$2:$J$27000)/1000 -> 0 | M59: =+SUMIF(AUX_2d_pais!$A$2:$A$27000,'5.1'!$A59&'5.1'!M$3&2,AUX_2d_pais!$J$2:$J$27000)/1000 -> 0 | N59: =+SUMIF(AUX_2d_pais!$A$2:$A$27000,'5.1'!$A59&'5.1'!N$3&2,AUX_2d_pais!$J$2:$J$27000)/1000 -> 0 | O59: 0 | P59: 0 | Q59: 0 | S59: =G59-INDEX($C59:$G59,1,aux!$AL$1) -> 0 | T59: 0 | U59: =+IF(INDEX($C59:$G59,1,aux!$AL$1)>0,(G59/INDEX($C59:$G59,1,aux!$AL$1))^(1/($G$3-INDEX($C$3:$G$3,1,aux!$AL$1)))-1,"n.d.") -> n.d. | V59: =IF(INDEX($C59:$G59,1,aux!$AL$1)>0,(G59-INDEX($C59:$G59,1,aux!$AL$1))/INDEX($C59:$G59,1,aux!$AL$1),"n.d.") -> n.d. | X59: =N59-INDEX($J59:$N59,1,aux!$AL$1) -> 0 | Y59: 0 | Z59: =+IF(INDEX($J59:$N59,1,aux!$AL$1)>0,(N59/INDEX($J59:$N59,1,aux!$AL$1))^(1/($N$3-INDEX($J$3:$N$3,1,aux!$AL$1)))-1,"n.d.") -> n.d. | AA59: =IF(INDEX($J59:$N59,1,aux!$AL$1)>0,(N59-INDEX($J59:$N59,1,aux!$AL$1))/INDEX($J59:$N59,1,aux!$AL$1),"n.d.") -> n.d. | AC59: 0 | BS59: =+MATCH('5.1'!A59,AUX_2d_pais!$G$2:$G$20001,0) -> 
A60: 0375 | B60: Comores | C60: =+SUMIF(AUX_2d_pais!$A$2:$A$27000,'5.1'!$A60&'5.1'!C$3&1,AUX_2d_pais!$J$2:$J$27000)/1000 -> 0 | D60: =+SUMIF(AUX_2d_pais!$A$2:$A$27000,'5.1'!$A60&'5.1'!D$3&1,AUX_2d_pais!$J$2:$J$27000)/1000 -> 0 | E60: =+SUMIF(AUX_2d_pais!$A$2:$A$27000,'5.1'!$A60&'5.1'!E$3&1,AUX_2d_pais!$J$2:$J$27000)/1000 -> 0 | F60: =+SUMIF(AUX_2d_pais!$A$2:$A$27000,'5.1'!$A60&'5.1'!F$3&1,AUX_2d_pais!$J$2:$J$27000)/1000 -> 0 | G60: =+SUMIF(AUX_2d_pais!$A$2:$A$27000,'5.1'!$A60&'5.1'!G$3&1,AUX_2d_pais!$J$2:$J$27000)/1000 -> 0 | H60: 0 | I60: 0 | J60: =+SUMIF(AUX_2d_pais!$A$2:$A$27000,'5.1'!$A60&'5.1'!J$3&2,AUX_2d_pais!$J$2:$J$27000)/1000 -> 0 | K60: =+SUMIF(AUX_2d_pais!$A$2:$A$27000,'5.1'!$A60&'5.1'!K$3&2,AUX_2d_pais!$J$2:$J$27000)/1000 -> 0 | L60: =+SUMIF(AUX_2d_pais!$A$2:$A$27000,'5.1'!$A60&'5.1'!L$3&2,AUX_2d_pais!$J$2:$J$27000)/1000 -> 0 | M60: =+SUMIF(AUX_2d_pais!$A$2:$A$27000,'5.1'!$A60&'5.1'!M$3&2,AUX_2d_pais!$J$2:$J$27000)/1000 -> 0 | N60: =+SUMIF(AUX_2d_pais!$A$2:$A$27000,'5.1'!$A60&'5.1'!N$3&2,AUX_2d_pais!$J$2:$J$27000)/1000 -> 0 | O60: 0 | P60: 0 | Q60: 0 | S60: =G60-INDEX($C60:$G60,1,aux!$AL$1) -> 0 | T60: 0 | U60: =+IF(INDEX($C60:$G60,1,aux!$AL$1)>0,(G60/INDEX($C60:$G60,1,aux!$AL$1))^(1/($G$3-INDEX($C$3:$G$3,1,aux!$AL$1)))-1,"n.d.") -> n.d. | V60: =IF(INDEX($C60:$G60,1,aux!$AL$1)>0,(G60-INDEX($C60:$G60,1,aux!$AL$1))/INDEX($C60:$G60,1,aux!$AL$1),"n.d.") -> n.d. | X60: =N60-INDEX($J60:$N60,1,aux!$AL$1) -> 0 | Y60: 0 | Z60: =+IF(INDEX($J60:$N60,1,aux!$AL$1)>0,(N60/INDEX($J60:$N60,1,aux!$AL$1))^(1/($N$3-INDEX($J$3:$N$3,1,aux!$AL$1)))-1,"n.d.") -> n.d. | AA60: =IF(INDEX($J60:$N60,1,aux!$AL$1)>0,(N60-INDEX($J60:$N60,1,aux!$AL$1))/INDEX($J60:$N60,1,aux!$AL$1),"n.d.") -> n.d. | AC60: 0 | BS60: =+MATCH('5.1'!A60,AUX_2d_pais!$G$2:$G$20001,0) -> 
A61: 0318 | B61: Congo | C61: =+SUMIF(AUX_2d_pais!$A$2:$A$27000,'5.1'!$A61&'5.1'!C$3&1,AUX_2d_pais!$J$2:$J$27000)/1000 -> 0 | D61: =+SUMIF(AUX_2d_pais!$A$2:$A$27000,'5.1'!$A61&'5.1'!D$3&1,AUX_2d_pais!$J$2:$J$27000)/1000 -> 0 | E61: =+SUMIF(AUX_2d_pais!$A$2:$A$27000,'5.1'!$A61&'5.1'!E$3&1,AUX_2d_pais!$J$2:$J$27000)/1000 -> 0 | F61: =+SUMIF(AUX_2d_pais!$A$2:$A$27000,'5.1'!$A61&'5.1'!F$3&1,AUX_2d_pais!$J$2:$J$27000)/1000 -> 0 | G61: =+SUMIF(AUX_2d_pais!$A$2:$A$27000,'5.1'!$A61&'5.1'!G$3&1,AUX_2d_pais!$J$2:$J$27000)/1000 -> 0 | H61: 0 | I61: 0 | J61: =+SUMIF(AUX_2d_pais!$A$2:$A$27000,'5.1'!$A61&'5.1'!J$3&2,AUX_2d_pais!$J$2:$J$27000)/1000 -> 0 | K61: =+SUMIF(AUX_2d_pais!$A$2:$A$27000,'5.1'!$A61&'5.1'!K$3&2,AUX_2d_pais!$J$2:$J$27000)/1000 -> 0 | L61: =+SUMIF(AUX_2d_pais!$A$2:$A$27000,'5.1'!$A61&'5.1'!L$3&2,AUX_2d_pais!$J$2:$J$27000)/1000 -> 0 | M61: =+SUMIF(AUX_2d_pais!$A$2:$A$27000,'5.1'!$A61&'5.1'!M$3&2,AUX_2d_pais!$J$2:$J$27000)/1000 -> 0 | N61: =+SUMIF(AUX_2d_pais!$A$2:$A$27000,'5.1'!$A61&'5.1'!N$3&2,AUX_2d_pais!$J$2:$J$27000)/1000 -> 0 | O61: 0 | P61: 0 | Q61: 0 | S61: =G61-INDEX($C61:$G61,1,aux!$AL$1) -> 0 | T61: 0 | U61: =+IF(INDEX($C61:$G61,1,aux!$AL$1)>0,(G61/INDEX($C61:$G61,1,aux!$AL$1))^(1/($G$3-INDEX($C$3:$G$3,1,aux!$AL$1)))-1,"n.d.") -> n.d. | V61: =IF(INDEX($C61:$G61,1,aux!$AL$1)>0,(G61-INDEX($C61:$G61,1,aux!$AL$1))/INDEX($C61:$G61,1,aux!$AL$1),"n.d.") -> n.d. | X61: =N61-INDEX($J61:$N61,1,aux!$AL$1) -> 0 | Y61: 0 | Z61: =+IF(INDEX($J61:$N61,1,aux!$AL$1)>0,(N61/INDEX($J61:$N61,1,aux!$AL$1))^(1/($N$3-INDEX($J$3:$N$3,1,aux!$AL$1)))-1,"n.d.") -> n.d. | AA61: =IF(INDEX($J61:$N61,1,aux!$AL$1)>0,(N61-INDEX($J61:$N61,1,aux!$AL$1))/INDEX($J61:$N61,1,aux!$AL$1),"n.d.") -> n.d. | AC61: 0 | BS61: =+MATCH('5.1'!A61,AUX_2d_pais!$G$2:$G$20001,0) -> 
A62: 0322 | B62: Congo, República Democrática do | C62: =+SUMIF(AUX_2d_pais!$A$2:$A$27000,'5.1'!$A62&'5.1'!C$3&1,AUX_2d_pais!$J$2:$J$27000)/1000 -> 0 | D62: =+SUMIF(AUX_2d_pais!$A$2:$A$27000,'5.1'!$A62&'5.1'!D$3&1,AUX_2d_pais!$J$2:$J$27000)/1000 -> 0 | E62: =+SUMIF(AUX_2d_pais!$A$2:$A$27000,'5.1'!$A62&'5.1'!E$3&1,AUX_2d_pais!$J$2:$J$27000)/1000 -> 0 | F62: =+SUMIF(AUX_2d_pais!$A$2:$A$27000,'5.1'!$A62&'5.1'!F$3&1,AUX_2d_pais!$J$2:$J$27000)/1000 -> 0 | G62: =+SUMIF(AUX_2d_pais!$A$2:$A$27000,'5.1'!$A62&'5.1'!G$3&1,AUX_2d_pais!$J$2:$J$27000)/1000 -> 0 | H62: =SUM(C62:G62)/5 -> 0 | I62: 0 | J62: =+SUMIF(AUX_2d_pais!$A$2:$A$27000,'5.1'!$A62&'5.1'!J$3&2,AUX_2d_pais!$J$2:$J$27000)/1000 -> 0 | K62: =+SUMIF(AUX_2d_pais!$A$2:$A$27000,'5.1'!$A62&'5.1'!K$3&2,AUX_2d_pais!$J$2:$J$27000)/1000 -> 0 | L62: =+SUMIF(AUX_2d_pais!$A$2:$A$27000,'5.1'!$A62&'5.1'!L$3&2,AUX_2d_pais!$J$2:$J$27000)/1000 -> 0 | M62: =+SUMIF(AUX_2d_pais!$A$2:$A$27000,'5.1'!$A62&'5.1'!M$3&2,AUX_2d_pais!$J$2:$J$27000)/1000 -> 0 | N62: =+SUMIF(AUX_2d_pais!$A$2:$A$27000,'5.1'!$A62&'5.1'!N$3&2,AUX_2d_pais!$J$2:$J$27000)/1000 -> 0 | O62: =SUM(J62:N62)/5 -> 0 | P62: 0 | Q62: =O62-H62 -> 0 | S62: =G62-INDEX($C62:$G62,1,aux!$AL$1) -> 0 | T62: 0 | U62: =+IF(INDEX($C62:$G62,1,aux!$AL$1)>0,(G62/INDEX($C62:$G62,1,aux!$AL$1))^(1/($G$3-INDEX($C$3:$G$3,1,aux!$AL$1)))-1,"n.d.") -> n.d. | V62: =IF(INDEX($C62:$G62,1,aux!$AL$1)>0,(G62-INDEX($C62:$G62,1,aux!$AL$1))/INDEX($C62:$G62,1,aux!$AL$1),"n.d.") -> n.d. | X62: =N62-INDEX($J62:$N62,1,aux!$AL$1) -> 0 | Y62: 0 | Z62: =+IF(INDEX($J62:$N62,1,aux!$AL$1)>0,(N62/INDEX($J62:$N62,1,aux!$AL$1))^(1/($N$3-INDEX($J$3:$N$3,1,aux!$AL$1)))-1,"n.d.") -> n.d. | AA62: =IF(INDEX($J62:$N62,1,aux!$AL$1)>0,(N62-INDEX($J62:$N62,1,aux!$AL$1))/INDEX($J62:$N62,1,aux!$AL$1),"n.d.") -> n.d. | AC62: 0 | BS62: =+MATCH('5.1'!A62,AUX_2d_pais!$G$2:$G$20001,0) -> 
A63: 0837 | B63: Cook, Ilhas | C63: =+SUMIF(AUX_2d_pais!$A$2:$A$27000,'5.1'!$A63&'5.1'!C$3&1,AUX_2d_pais!$J$2:$J$27000)/1000 -> 0 | D63: =+SUMIF(AUX_2d_pais!$A$2:$A$27000,'5.1'!$A63&'5.1'!D$3&1,AUX_2d_pais!$J$2:$J$27000)/1000 -> 0 | E63: =+SUMIF(AUX_2d_pais!$A$2:$A$27000,'5.1'!$A63&'5.1'!E$3&1,AUX_2d_pais!$J$2:$J$27000)/1000 -> 0 | F63: =+SUMIF(AUX_2d_pais!$A$2:$A$27000,'5.1'!$A63&'5.1'!F$3&1,AUX_2d_pais!$J$2:$J$27000)/1000 -> 0 | G63: =+SUMIF(AUX_2d_pais!$A$2:$A$27000,'5.1'!$A63&'5.1'!G$3&1,AUX_2d_pais!$J$2:$J$27000)/1000 -> 0 | H63: 0 | I63: 0 | J63: =+SUMIF(AUX_2d_pais!$A$2:$A$27000,'5.1'!$A63&'5.1'!J$3&2,AUX_2d_pais!$J$2:$J$27000)/1000 -> 0 | K63: =+SUMIF(AUX_2d_pais!$A$2:$A$27000,'5.1'!$A63&'5.1'!K$3&2,AUX_2d_pais!$J$2:$J$27000)/1000 -> 0 | L63: =+SUMIF(AUX_2d_pais!$A$2:$A$27000,'5.1'!$A63&'5.1'!L$3&2,AUX_2d_pais!$J$2:$J$27000)/1000 -> 0 | M63: =+SUMIF(AUX_2d_pais!$A$2:$A$27000,'5.1'!$A63&'5.1'!M$3&2,AUX_2d_pais!$J$2:$J$27000)/1000 -> 0 | N63: =+SUMIF(AUX_2d_pais!$A$2:$A$27000,'5.1'!$A63&'5.1'!N$3&2,AUX_2d_pais!$J$2:$J$27000)/1000 -> 0 | O63: 0 | P63: 0 | Q63: 0 | S63: =G63-INDEX($C63:$G63,1,aux!$AL$1) -> 0 | T63: 0 | U63: =+IF(INDEX($C63:$G63,1,aux!$AL$1)>0,(G63/INDEX($C63:$G63,1,aux!$AL$1))^(1/($G$3-INDEX($C$3:$G$3,1,aux!$AL$1)))-1,"n.d.") -> n.d. | V63: =IF(INDEX($C63:$G63,1,aux!$AL$1)>0,(G63-INDEX($C63:$G63,1,aux!$AL$1))/INDEX($C63:$G63,1,aux!$AL$1),"n.d.") -> n.d. | X63: =N63-INDEX($J63:$N63,1,aux!$AL$1) -> 0 | Y63: 0 | Z63: =+IF(INDEX($J63:$N63,1,aux!$AL$1)>0,(N63/INDEX($J63:$N63,1,aux!$AL$1))^(1/($N$3-INDEX($J$3:$N$3,1,aux!$AL$1)))-1,"n.d.") -> n.d. | AA63: =IF(INDEX($J63:$N63,1,aux!$AL$1)>0,(N63-INDEX($J63:$N63,1,aux!$AL$1))/INDEX($J63:$N63,1,aux!$AL$1),"n.d.") -> n.d. | AC63: 0 | BS63: =+MATCH('5.1'!A63,AUX_2d_pais!$G$2:$G$20001,0) -> 
A64: 0728 | B64: Coreia, República da | C64: =+SUMIF(AUX_2d_pais!$A$2:$A$27000,'5.1'!$A64&'5.1'!C$3&1,AUX_2d_pais!$J$2:$J$27000)/1000 -> 0 | D64: =+SUMIF(AUX_2d_pais!$A$2:$A$27000,'5.1'!$A64&'5.1'!D$3&1,AUX_2d_pais!$J$2:$J$27000)/1000 -> 0 | E64: =+SUMIF(AUX_2d_pais!$A$2:$A$27000,'5.1'!$A64&'5.1'!E$3&1,AUX_2d_pais!$J$2:$J$27000)/1000 -> 0 | F64: =+SUMIF(AUX_2d_pais!$A$2:$A$27000,'5.1'!$A64&'5.1'!F$3&1,AUX_2d_pais!$J$2:$J$27000)/1000 -> 0 | G64: =+SUMIF(AUX_2d_pais!$A$2:$A$27000,'5.1'!$A64&'5.1'!G$3&1,AUX_2d_pais!$J$2:$J$27000)/1000 -> 0 | H64: 0 | I64: 0 | J64: =+SUMIF(AUX_2d_pais!$A$2:$A$27000,'5.1'!$A64&'5.1'!J$3&2,AUX_2d_pais!$J$2:$J$27000)/1000 -> 0 | K64: =+SUMIF(AUX_2d_pais!$A$2:$A$27000,'5.1'!$A64&'5.1'!K$3&2,AUX_2d_pais!$J$2:$J$27000)/1000 -> 0 | L64: =+SUMIF(AUX_2d_pais!$A$2:$A$27000,'5.1'!$A64&'5.1'!L$3&2,AUX_2d_pais!$J$2:$J$27000)/1000 -> 0 | M64: =+SUMIF(AUX_2d_pais!$A$2:$A$27000,'5.1'!$A64&'5.1'!M$3&2,AUX_2d_pais!$J$2:$J$27000)/1000 -> 0 | N64: =+SUMIF(AUX_2d_pais!$A$2:$A$27000,'5.1'!$A64&'5.1'!N$3&2,AUX_2d_pais!$J$2:$J$27000)/1000 -> 0 | O64: 0 | P64: 0 | Q64: 0 | S64: =G64-INDEX($C64:$G64,1,aux!$AL$1) -> 0 | T64: 0 | U64: =+IF(INDEX($C64:$G64,1,aux!$AL$1)>0,(G64/INDEX($C64:$G64,1,aux!$AL$1))^(1/($G$3-INDEX($C$3:$G$3,1,aux!$AL$1)))-1,"n.d.") -> n.d. | V64: =IF(INDEX($C64:$G64,1,aux!$AL$1)>0,(G64-INDEX($C64:$G64,1,aux!$AL$1))/INDEX($C64:$G64,1,aux!$AL$1),"n.d.") -> n.d. | X64: =N64-INDEX($J64:$N64,1,aux!$AL$1) -> 0 | Y64: 0 | Z64: =+IF(INDEX($J64:$N64,1,aux!$AL$1)>0,(N64/INDEX($J64:$N64,1,aux!$AL$1))^(1/($N$3-INDEX($J$3:$N$3,1,aux!$AL$1)))-1,"n.d.") -> n.d. | AA64: =IF(INDEX($J64:$N64,1,aux!$AL$1)>0,(N64-INDEX($J64:$N64,1,aux!$AL$1))/INDEX($J64:$N64,1,aux!$AL$1),"n.d.") -> n.d. | AC64: 0 | BS64: =+MATCH('5.1'!A64,AUX_2d_pais!$G$2:$G$20001,0) -> 
A65: 0724 | B65: Coreia, República Popular Democrática da | C65: =+SUMIF(AUX_2d_pais!$A$2:$A$27000,'5.1'!$A65&'5.1'!C$3&1,AUX_2d_pais!$J$2:$J$27000)/1000 -> 0 | D65: =+SUMIF(AUX_2d_pais!$A$2:$A$27000,'5.1'!$A65&'5.1'!D$3&1,AUX_2d_pais!$J$2:$J$27000)/1000 -> 0 | E65: =+SUMIF(AUX_2d_pais!$A$2:$A$27000,'5.1'!$A65&'5.1'!E$3&1,AUX_2d_pais!$J$2:$J$27000)/1000 -> 0 | F65: =+SUMIF(AUX_2d_pais!$A$2:$A$27000,'5.1'!$A65&'5.1'!F$3&1,AUX_2d_pais!$J$2:$J$27000)/1000 -> 0 | G65: =+SUMIF(AUX_2d_pais!$A$2:$A$27000,'5.1'!$A65&'5.1'!G$3&1,AUX_2d_pais!$J$2:$J$27000)/1000 -> 0 | H65: 0 | I65: 0 | J65: =+SUMIF(AUX_2d_pais!$A$2:$A$27000,'5.1'!$A65&'5.1'!J$3&2,AUX_2d_pais!$J$2:$J$27000)/1000 -> 0 | K65: =+SUMIF(AUX_2d_pais!$A$2:$A$27000,'5.1'!$A65&'5.1'!K$3&2,AUX_2d_pais!$J$2:$J$27000)/1000 -> 0 | L65: =+SUMIF(AUX_2d_pais!$A$2:$A$27000,'5.1'!$A65&'5.1'!L$3&2,AUX_2d_pais!$J$2:$J$27000)/1000 -> 0 | M65: =+SUMIF(AUX_2d_pais!$A$2:$A$27000,'5.1'!$A65&'5.1'!M$3&2,AUX_2d_pais!$J$2:$J$27000)/1000 -> 0 | N65: =+SUMIF(AUX_2d_pais!$A$2:$A$27000,'5.1'!$A65&'5.1'!N$3&2,AUX_2d_pais!$J$2:$J$27000)/1000 -> 0 | O65: 0 | P65: 0 | Q65: 0 | S65: =G65-INDEX($C65:$G65,1,aux!$AL$1) -> 0 | T65: 0 | U65: =+IF(INDEX($C65:$G65,1,aux!$AL$1)>0,(G65/INDEX($C65:$G65,1,aux!$AL$1))^(1/($G$3-INDEX($C$3:$G$3,1,aux!$AL$1)))-1,"n.d.") -> n.d. | V65: =IF(INDEX($C65:$G65,1,aux!$AL$1)>0,(G65-INDEX($C65:$G65,1,aux!$AL$1))/INDEX($C65:$G65,1,aux!$AL$1),"n.d.") -> n.d. | X65: =N65-INDEX($J65:$N65,1,aux!$AL$1) -> 0 | Y65: 0 | Z65: =+IF(INDEX($J65:$N65,1,aux!$AL$1)>0,(N65/INDEX($J65:$N65,1,aux!$AL$1))^(1/($N$3-INDEX($J$3:$N$3,1,aux!$AL$1)))-1,"n.d.") -> n.d. | AA65: =IF(INDEX($J65:$N65,1,aux!$AL$1)>0,(N65-INDEX($J65:$N65,1,aux!$AL$1))/INDEX($J65:$N65,1,aux!$AL$1),"n.d.") -> n.d. | AC65: 0 | BS65: =+MATCH('5.1'!A65,AUX_2d_pais!$G$2:$G$20001,0) -> 
A66: 0272 | B66: Costa do Marfim | C66: =+SUMIF(AUX_2d_pais!$A$2:$A$27000,'5.1'!$A66&'5.1'!C$3&1,AUX_2d_pais!$J$2:$J$27000)/1000 -> 0 | D66: =+SUMIF(AUX_2d_pais!$A$2:$A$27000,'5.1'!$A66&'5.1'!D$3&1,AUX_2d_pais!$J$2:$J$27000)/1000 -> 0 | E66: =+SUMIF(AUX_2d_pais!$A$2:$A$27000,'5.1'!$A66&'5.1'!E$3&1,AUX_2d_pais!$J$2:$J$27000)/1000 -> 0 | F66: =+SUMIF(AUX_2d_pais!$A$2:$A$27000,'5.1'!$A66&'5.1'!F$3&1,AUX_2d_pais!$J$2:$J$27000)/1000 -> 0 | G66: =+SUMIF(AUX_2d_pais!$A$2:$A$27000,'5.1'!$A66&'5.1'!G$3&1,AUX_2d_pais!$J$2:$J$27000)/1000 -> 0 | H66: 0 | I66: 0 | J66: =+SUMIF(AUX_2d_pais!$A$2:$A$27000,'5.1'!$A66&'5.1'!J$3&2,AUX_2d_pais!$J$2:$J$27000)/1000 -> 0 | K66: =+SUMIF(AUX_2d_pais!$A$2:$A$27000,'5.1'!$A66&'5.1'!K$3&2,AUX_2d_pais!$J$2:$J$27000)/1000 -> 0 | L66: =+SUMIF(AUX_2d_pais!$A$2:$A$27000,'5.1'!$A66&'5.1'!L$3&2,AUX_2d_pais!$J$2:$J$27000)/1000 -> 0 | M66: =+SUMIF(AUX_2d_pais!$A$2:$A$27000,'5.1'!$A66&'5.1'!M$3&2,AUX_2d_pais!$J$2:$J$27000)/1000 -> 0 | N66: =+SUMIF(AUX_2d_pais!$A$2:$A$27000,'5.1'!$A66&'5.1'!N$3&2,AUX_2d_pais!$J$2:$J$27000)/1000 -> 0 | O66: 0 | P66: 0 | Q66: 0 | S66: =G66-INDEX($C66:$G66,1,aux!$AL$1) -> 0 | T66: 0 | U66: =+IF(INDEX($C66:$G66,1,aux!$AL$1)>0,(G66/INDEX($C66:$G66,1,aux!$AL$1))^(1/($G$3-INDEX($C$3:$G$3,1,aux!$AL$1)))-1,"n.d.") -> n.d. | V66: =IF(INDEX($C66:$G66,1,aux!$AL$1)>0,(G66-INDEX($C66:$G66,1,aux!$AL$1))/INDEX($C66:$G66,1,aux!$AL$1),"n.d.") -> n.d. | X66: =N66-INDEX($J66:$N66,1,aux!$AL$1) -> 0 | Y66: 0 | Z66: =+IF(INDEX($J66:$N66,1,aux!$AL$1)>0,(N66/INDEX($J66:$N66,1,aux!$AL$1))^(1/($N$3-INDEX($J$3:$N$3,1,aux!$AL$1)))-1,"n.d.") -> n.d. | AA66: =IF(INDEX($J66:$N66,1,aux!$AL$1)>0,(N66-INDEX($J66:$N66,1,aux!$AL$1))/INDEX($J66:$N66,1,aux!$AL$1),"n.d.") -> n.d. | AC66: 0 | BS66: =+MATCH('5.1'!A66,AUX_2d_pais!$G$2:$G$20001,0) -> 
A67: 0436 | B67: Costa Rica | C67: =+SUMIF(AUX_2d_pais!$A$2:$A$27000,'5.1'!$A67&'5.1'!C$3&1,AUX_2d_pais!$J$2:$J$27000)/1000 -> 0 | D67: =+SUMIF(AUX_2d_pais!$A$2:$A$27000,'5.1'!$A67&'5.1'!D$3&1,AUX_2d_pais!$J$2:$J$27000)/1000 -> 0 | E67: =+SUMIF(AUX_2d_pais!$A$2:$A$27000,'5.1'!$A67&'5.1'!E$3&1,AUX_2d_pais!$J$2:$J$27000)/1000 -> 0 | F67: =+SUMIF(AUX_2d_pais!$A$2:$A$27000,'5.1'!$A67&'5.1'!F$3&1,AUX_2d_pais!$J$2:$J$27000)/1000 -> 0 | G67: =+SUMIF(AUX_2d_pais!$A$2:$A$27000,'5.1'!$A67&'5.1'!G$3&1,AUX_2d_pais!$J$2:$J$27000)/1000 -> 0 | H67: =SUM(C67:G67)/5 -> 0 | I67: 0 | J67: =+SUMIF(AUX_2d_pais!$A$2:$A$27000,'5.1'!$A67&'5.1'!J$3&2,AUX_2d_pais!$J$2:$J$27000)/1000 -> 0 | K67: =+SUMIF(AUX_2d_pais!$A$2:$A$27000,'5.1'!$A67&'5.1'!K$3&2,AUX_2d_pais!$J$2:$J$27000)/1000 -> 0 | L67: =+SUMIF(AUX_2d_pais!$A$2:$A$27000,'5.1'!$A67&'5.1'!L$3&2,AUX_2d_pais!$J$2:$J$27000)/1000 -> 0 | M67: =+SUMIF(AUX_2d_pais!$A$2:$A$27000,'5.1'!$A67&'5.1'!M$3&2,AUX_2d_pais!$J$2:$J$27000)/1000 -> 0 | N67: =+SUMIF(AUX_2d_pais!$A$2:$A$27000,'5.1'!$A67&'5.1'!N$3&2,AUX_2d_pais!$J$2:$J$27000)/1000 -> 0 | O67: =SUM(J67:N67)/5 -> 0 | P67: 0 | Q67: =O67-H67 -> 0 | S67: =G67-INDEX($C67:$G67,1,aux!$AL$1) -> 0 | T67: 0 | U67: =+IF(INDEX($C67:$G67,1,aux!$AL$1)>0,(G67/INDEX($C67:$G67,1,aux!$AL$1))^(1/($G$3-INDEX($C$3:$G$3,1,aux!$AL$1)))-1,"n.d.") -> n.d. | V67: =IF(INDEX($C67:$G67,1,aux!$AL$1)>0,(G67-INDEX($C67:$G67,1,aux!$AL$1))/INDEX($C67:$G67,1,aux!$AL$1),"n.d.") -> n.d. | X67: =N67-INDEX($J67:$N67,1,aux!$AL$1) -> 0 | Y67: 0 | Z67: =+IF(INDEX($J67:$N67,1,aux!$AL$1)>0,(N67/INDEX($J67:$N67,1,aux!$AL$1))^(1/($N$3-INDEX($J$3:$N$3,1,aux!$AL$1)))-1,"n.d.") -> n.d. | AA67: =IF(INDEX($J67:$N67,1,aux!$AL$1)>0,(N67-INDEX($J67:$N67,1,aux!$AL$1))/INDEX($J67:$N67,1,aux!$AL$1),"n.d.") -> n.d. | AC67: 0 | BS67: =+MATCH('5.1'!A67,AUX_2d_pais!$G$2:$G$20001,0) -> 
A68: 0092 | B68: Croácia | C68: =+SUMIF(AUX_2d_pais!$A$2:$A$27000,'5.1'!$A68&'5.1'!C$3&1,AUX_2d_pais!$J$2:$J$27000)/1000 -> 0 | D68: =+SUMIF(AUX_2d_pais!$A$2:$A$27000,'5.1'!$A68&'5.1'!D$3&1,AUX_2d_pais!$J$2:$J$27000)/1000 -> 0 | E68: =+SUMIF(AUX_2d_pais!$A$2:$A$27000,'5.1'!$A68&'5.1'!E$3&1,AUX_2d_pais!$J$2:$J$27000)/1000 -> 0 | F68: =+SUMIF(AUX_2d_pais!$A$2:$A$27000,'5.1'!$A68&'5.1'!F$3&1,AUX_2d_pais!$J$2:$J$27000)/1000 -> 0 | G68: =+SUMIF(AUX_2d_pais!$A$2:$A$27000,'5.1'!$A68&'5.1'!G$3&1,AUX_2d_pais!$J$2:$J$27000)/1000 -> 0 | H68: 0 | I68: =H68/$H$254 -> 0 | J68: =+SUMIF(AUX_2d_pais!$A$2:$A$27000,'5.1'!$A68&'5.1'!J$3&2,AUX_2d_pais!$J$2:$J$27000)/1000 -> 0 | K68: =+SUMIF(AUX_2d_pais!$A$2:$A$27000,'5.1'!$A68&'5.1'!K$3&2,AUX_2d_pais!$J$2:$J$27000)/1000 -> 0 | L68: =+SUMIF(AUX_2d_pais!$A$2:$A$27000,'5.1'!$A68&'5.1'!L$3&2,AUX_2d_pais!$J$2:$J$27000)/1000 -> 0 | M68: =+SUMIF(AUX_2d_pais!$A$2:$A$27000,'5.1'!$A68&'5.1'!M$3&2,AUX_2d_pais!$J$2:$J$27000)/1000 -> 0 | N68: =+SUMIF(AUX_2d_pais!$A$2:$A$27000,'5.1'!$A68&'5.1'!N$3&2,AUX_2d_pais!$J$2:$J$27000)/1000 -> 0 | O68: 0 | P68: =O68/$O$254 -> 0 | Q68: 0 | S68: =G68-INDEX($C68:$G68,1,aux!$AL$1) -> 0 | T68: =S68/$S$254 -> 0 | U68: =+IF(INDEX($C68:$G68,1,aux!$AL$1)>0,(G68/INDEX($C68:$G68,1,aux!$AL$1))^(1/($G$3-INDEX($C$3:$G$3,1,aux!$AL$1)))-1,"n.d.") -> n.d. | V68: =IF(INDEX($C68:$G68,1,aux!$AL$1)>0,(G68-INDEX($C68:$G68,1,aux!$AL$1))/INDEX($C68:$G68,1,aux!$AL$1),"n.d.") -> n.d. | X68: =N68-INDEX($J68:$N68,1,aux!$AL$1) -> 0 | Y68: =X68/$X$254 -> 0 | Z68: =+IF(INDEX($J68:$N68,1,aux!$AL$1)>0,(N68/INDEX($J68:$N68,1,aux!$AL$1))^(1/($N$3-INDEX($J$3:$N$3,1,aux!$AL$1)))-1,"n.d.") -> n.d. | AA68: =IF(INDEX($J68:$N68,1,aux!$AL$1)>0,(N68-INDEX($J68:$N68,1,aux!$AL$1))/INDEX($J68:$N68,1,aux!$AL$1),"n.d.") -> n.d. | AC68: =SUM(A68:Q68) -> 0 | BS68: =+MATCH('5.1'!A68,AUX_2d_pais!$G$2:$G$20001,0) -> 
A69: 0448 | B69: Cuba | C69: =+SUMIF(AUX_2d_pais!$A$2:$A$27000,'5.1'!$A69&'5.1'!C$3&1,AUX_2d_pais!$J$2:$J$27000)/1000 -> 0 | D69: =+SUMIF(AUX_2d_pais!$A$2:$A$27000,'5.1'!$A69&'5.1'!D$3&1,AUX_2d_pais!$J$2:$J$27000)/1000 -> 0 | E69: =+SUMIF(AUX_2d_pais!$A$2:$A$27000,'5.1'!$A69&'5.1'!E$3&1,AUX_2d_pais!$J$2:$J$27000)/1000 -> 0 | F69: =+SUMIF(AUX_2d_pais!$A$2:$A$27000,'5.1'!$A69&'5.1'!F$3&1,AUX_2d_pais!$J$2:$J$27000)/1000 -> 0 | G69: =+SUMIF(AUX_2d_pais!$A$2:$A$27000,'5.1'!$A69&'5.1'!G$3&1,AUX_2d_pais!$J$2:$J$27000)/1000 -> 0 | H69: 0 | I69: 0 | J69: =+SUMIF(AUX_2d_pais!$A$2:$A$27000,'5.1'!$A69&'5.1'!J$3&2,AUX_2d_pais!$J$2:$J$27000)/1000 -> 0 | K69: =+SUMIF(AUX_2d_pais!$A$2:$A$27000,'5.1'!$A69&'5.1'!K$3&2,AUX_2d_pais!$J$2:$J$27000)/1000 -> 0 | L69: =+SUMIF(AUX_2d_pais!$A$2:$A$27000,'5.1'!$A69&'5.1'!L$3&2,AUX_2d_pais!$J$2:$J$27000)/1000 -> 0 | M69: =+SUMIF(AUX_2d_pais!$A$2:$A$27000,'5.1'!$A69&'5.1'!M$3&2,AUX_2d_pais!$J$2:$J$27000)/1000 -> 0 | N69: =+SUMIF(AUX_2d_pais!$A$2:$A$27000,'5.1'!$A69&'5.1'!N$3&2,AUX_2d_pais!$J$2:$J$27000)/1000 -> 0 | O69: 0 | P69: 0 | Q69: 0 | S69: =G69-INDEX($C69:$G69,1,aux!$AL$1) -> 0 | T69: 0 | U69: =+IF(INDEX($C69:$G69,1,aux!$AL$1)>0,(G69/INDEX($C69:$G69,1,aux!$AL$1))^(1/($G$3-INDEX($C$3:$G$3,1,aux!$AL$1)))-1,"n.d.") -> n.d. | V69: =IF(INDEX($C69:$G69,1,aux!$AL$1)>0,(G69-INDEX($C69:$G69,1,aux!$AL$1))/INDEX($C69:$G69,1,aux!$AL$1),"n.d.") -> n.d. | X69: =N69-INDEX($J69:$N69,1,aux!$AL$1) -> 0 | Y69: 0 | Z69: =+IF(INDEX($J69:$N69,1,aux!$AL$1)>0,(N69/INDEX($J69:$N69,1,aux!$AL$1))^(1/($N$3-INDEX($J$3:$N$3,1,aux!$AL$1)))-1,"n.d.") -> n.d. | AA69: =IF(INDEX($J69:$N69,1,aux!$AL$1)>0,(N69-INDEX($J69:$N69,1,aux!$AL$1))/INDEX($J69:$N69,1,aux!$AL$1),"n.d.") -> n.d. | AC69: 0 | BS69: =+MATCH('5.1'!A69,AUX_2d_pais!$G$2:$G$20001,0) -> 
A70: 0475 | B70: Curaçau | C70: =+SUMIF(AUX_2d_pais!$A$2:$A$27000,'5.1'!$A70&'5.1'!C$3&1,AUX_2d_pais!$J$2:$J$27000)/1000 -> 0 | D70: =+SUMIF(AUX_2d_pais!$A$2:$A$27000,'5.1'!$A70&'5.1'!D$3&1,AUX_2d_pais!$J$2:$J$27000)/1000 -> 0 | E70: =+SUMIF(AUX_2d_pais!$A$2:$A$27000,'5.1'!$A70&'5.1'!E$3&1,AUX_2d_pais!$J$2:$J$27000)/1000 -> 0 | F70: =+SUMIF(AUX_2d_pais!$A$2:$A$27000,'5.1'!$A70&'5.1'!F$3&1,AUX_2d_pais!$J$2:$J$27000)/1000 -> 0 | G70: =+SUMIF(AUX_2d_pais!$A$2:$A$27000,'5.1'!$A70&'5.1'!G$3&1,AUX_2d_pais!$J$2:$J$27000)/1000 -> 0 | H70: 0 | I70: 0 | J70: =+SUMIF(AUX_2d_pais!$A$2:$A$27000,'5.1'!$A70&'5.1'!J$3&2,AUX_2d_pais!$J$2:$J$27000)/1000 -> 0 | K70: =+SUMIF(AUX_2d_pais!$A$2:$A$27000,'5.1'!$A70&'5.1'!K$3&2,AUX_2d_pais!$J$2:$J$27000)/1000 -> 0 | L70: =+SUMIF(AUX_2d_pais!$A$2:$A$27000,'5.1'!$A70&'5.1'!L$3&2,AUX_2d_pais!$J$2:$J$27000)/1000 -> 0 | M70: =+SUMIF(AUX_2d_pais!$A$2:$A$27000,'5.1'!$A70&'5.1'!M$3&2,AUX_2d_pais!$J$2:$J$27000)/1000 -> 0 | N70: =+SUMIF(AUX_2d_pais!$A$2:$A$27000,'5.1'!$A70&'5.1'!N$3&2,AUX_2d_pais!$J$2:$J$27000)/1000 -> 0 | O70: 0 | P70: 0 | Q70: 0 | S70: =G70-INDEX($C70:$G70,1,aux!$AL$1) -> 0 | T70: 0 | U70: =+IF(INDEX($C70:$G70,1,aux!$AL$1)>0,(G70/INDEX($C70:$G70,1,aux!$AL$1))^(1/($G$3-INDEX($C$3:$G$3,1,aux!$AL$1)))-1,"n.d.") -> n.d. | V70: =IF(INDEX($C70:$G70,1,aux!$AL$1)>0,(G70-INDEX($C70:$G70,1,aux!$AL$1))/INDEX($C70:$G70,1,aux!$AL$1),"n.d.") -> n.d. | X70: =N70-INDEX($J70:$N70,1,aux!$AL$1) -> 0 | Y70: 0 | Z70: =+IF(INDEX($J70:$N70,1,aux!$AL$1)>0,(N70/INDEX($J70:$N70,1,aux!$AL$1))^(1/($N$3-INDEX($J$3:$N$3,1,aux!$AL$1)))-1,"n.d.") -> n.d. | AA70: =IF(INDEX($J70:$N70,1,aux!$AL$1)>0,(N70-INDEX($J70:$N70,1,aux!$AL$1))/INDEX($J70:$N70,1,aux!$AL$1),"n.d.") -> n.d. | AC70: 0 | BS70: =+MATCH('5.1'!A70,AUX_2d_pais!$G$2:$G$20001,0) -> 
A71: 0008 | B71: Dinamarca | C71: =+SUMIF(AUX_2d_pais!$A$2:$A$27000,'5.1'!$A71&'5.1'!C$3&1,AUX_2d_pais!$J$2:$J$27000)/1000 -> 0 | D71: =+SUMIF(AUX_2d_pais!$A$2:$A$27000,'5.1'!$A71&'5.1'!D$3&1,AUX_2d_pais!$J$2:$J$27000)/1000 -> 0 | E71: =+SUMIF(AUX_2d_pais!$A$2:$A$27000,'5.1'!$A71&'5.1'!E$3&1,AUX_2d_pais!$J$2:$J$27000)/1000 -> 0 | F71: =+SUMIF(AUX_2d_pais!$A$2:$A$27000,'5.1'!$A71&'5.1'!F$3&1,AUX_2d_pais!$J$2:$J$27000)/1000 -> 0 | G71: =+SUMIF(AUX_2d_pais!$A$2:$A$27000,'5.1'!$A71&'5.1'!G$3&1,AUX_2d_pais!$J$2:$J$27000)/1000 -> 0 | H71: 0 | I71: 0 | J71: =+SUMIF(AUX_2d_pais!$A$2:$A$27000,'5.1'!$A71&'5.1'!J$3&2,AUX_2d_pais!$J$2:$J$27000)/1000 -> 0 | K71: =+SUMIF(AUX_2d_pais!$A$2:$A$27000,'5.1'!$A71&'5.1'!K$3&2,AUX_2d_pais!$J$2:$J$27000)/1000 -> 0 | L71: =+SUMIF(AUX_2d_pais!$A$2:$A$27000,'5.1'!$A71&'5.1'!L$3&2,AUX_2d_pais!$J$2:$J$27000)/1000 -> 0 | M71: =+SUMIF(AUX_2d_pais!$A$2:$A$27000,'5.1'!$A71&'5.1'!M$3&2,AUX_2d_pais!$J$2:$J$27000)/1000 -> 0 | N71: =+SUMIF(AUX_2d_pais!$A$2:$A$27000,'5.1'!$A71&'5.1'!N$3&2,AUX_2d_pais!$J$2:$J$27000)/1000 -> 0 | O71: 0 | P71: 0 | Q71: 0 | S71: =G71-INDEX($C71:$G71,1,aux!$AL$1) -> 0 | T71: 0 | U71: =+IF(INDEX($C71:$G71,1,aux!$AL$1)>0,(G71/INDEX($C71:$G71,1,aux!$AL$1))^(1/($G$3-INDEX($C$3:$G$3,1,aux!$AL$1)))-1,"n.d.") -> n.d. | V71: =IF(INDEX($C71:$G71,1,aux!$AL$1)>0,(G71-INDEX($C71:$G71,1,aux!$AL$1))/INDEX($C71:$G71,1,aux!$AL$1),"n.d.") -> n.d. | X71: =N71-INDEX($J71:$N71,1,aux!$AL$1) -> 0 | Y71: 0 | Z71: =+IF(INDEX($J71:$N71,1,aux!$AL$1)>0,(N71/INDEX($J71:$N71,1,aux!$AL$1))^(1/($N$3-INDEX($J$3:$N$3,1,aux!$AL$1)))-1,"n.d.") -> n.d. | AA71: =IF(INDEX($J71:$N71,1,aux!$AL$1)>0,(N71-INDEX($J71:$N71,1,aux!$AL$1))/INDEX($J71:$N71,1,aux!$AL$1),"n.d.") -> n.d. | AC71: 0 | BS71: =+MATCH('5.1'!A71,AUX_2d_pais!$G$2:$G$20001,0) -> 
A72: 0460 | B72: Domínica | C72: =+SUMIF(AUX_2d_pais!$A$2:$A$27000,'5.1'!$A72&'5.1'!C$3&1,AUX_2d_pais!$J$2:$J$27000)/1000 -> 0 | D72: =+SUMIF(AUX_2d_pais!$A$2:$A$27000,'5.1'!$A72&'5.1'!D$3&1,AUX_2d_pais!$J$2:$J$27000)/1000 -> 0 | E72: =+SUMIF(AUX_2d_pais!$A$2:$A$27000,'5.1'!$A72&'5.1'!E$3&1,AUX_2d_pais!$J$2:$J$27000)/1000 -> 0 | F72: =+SUMIF(AUX_2d_pais!$A$2:$A$27000,'5.1'!$A72&'5.1'!F$3&1,AUX_2d_pais!$J$2:$J$27000)/1000 -> 0 | G72: =+SUMIF(AUX_2d_pais!$A$2:$A$27000,'5.1'!$A72&'5.1'!G$3&1,AUX_2d_pais!$J$2:$J$27000)/1000 -> 0 | H72: 0 | I72: 0 | J72: =+SUMIF(AUX_2d_pais!$A$2:$A$27000,'5.1'!$A72&'5.1'!J$3&2,AUX_2d_pais!$J$2:$J$27000)/1000 -> 0 | K72: =+SUMIF(AUX_2d_pais!$A$2:$A$27000,'5.1'!$A72&'5.1'!K$3&2,AUX_2d_pais!$J$2:$J$27000)/1000 -> 0 | L72: =+SUMIF(AUX_2d_pais!$A$2:$A$27000,'5.1'!$A72&'5.1'!L$3&2,AUX_2d_pais!$J$2:$J$27000)/1000 -> 0 | M72: =+SUMIF(AUX_2d_pais!$A$2:$A$27000,'5.1'!$A72&'5.1'!M$3&2,AUX_2d_pais!$J$2:$J$27000)/1000 -> 0 | N72: =+SUMIF(AUX_2d_pais!$A$2:$A$27000,'5.1'!$A72&'5.1'!N$3&2,AUX_2d_pais!$J$2:$J$27000)/1000 -> 0 | O72: 0 | P72: 0 | Q72: 0 | S72: =G72-INDEX($C72:$G72,1,aux!$AL$1) -> 0 | T72: 0 | U72: =+IF(INDEX($C72:$G72,1,aux!$AL$1)>0,(G72/INDEX($C72:$G72,1,aux!$AL$1))^(1/($G$3-INDEX($C$3:$G$3,1,aux!$AL$1)))-1,"n.d.") -> n.d. | V72: =IF(INDEX($C72:$G72,1,aux!$AL$1)>0,(G72-INDEX($C72:$G72,1,aux!$AL$1))/INDEX($C72:$G72,1,aux!$AL$1),"n.d.") -> n.d. | X72: =N72-INDEX($J72:$N72,1,aux!$AL$1) -> 0 | Y72: 0 | Z72: =+IF(INDEX($J72:$N72,1,aux!$AL$1)>0,(N72/INDEX($J72:$N72,1,aux!$AL$1))^(1/($N$3-INDEX($J$3:$N$3,1,aux!$AL$1)))-1,"n.d.") -> n.d. | AA72: =IF(INDEX($J72:$N72,1,aux!$AL$1)>0,(N72-INDEX($J72:$N72,1,aux!$AL$1))/INDEX($J72:$N72,1,aux!$AL$1),"n.d.") -> n.d. | AC72: 0 | BS72: =+MATCH('5.1'!A72,AUX_2d_pais!$G$2:$G$20001,0) -> 
A73: 0456 | B73: Dominicana, República | C73: =+SUMIF(AUX_2d_pais!$A$2:$A$27000,'5.1'!$A73&'5.1'!C$3&1,AUX_2d_pais!$J$2:$J$27000)/1000 -> 0 | D73: =+SUMIF(AUX_2d_pais!$A$2:$A$27000,'5.1'!$A73&'5.1'!D$3&1,AUX_2d_pais!$J$2:$J$27000)/1000 -> 0 | E73: =+SUMIF(AUX_2d_pais!$A$2:$A$27000,'5.1'!$A73&'5.1'!E$3&1,AUX_2d_pais!$J$2:$J$27000)/1000 -> 0 | F73: =+SUMIF(AUX_2d_pais!$A$2:$A$27000,'5.1'!$A73&'5.1'!F$3&1,AUX_2d_pais!$J$2:$J$27000)/1000 -> 0 | G73: =+SUMIF(AUX_2d_pais!$A$2:$A$27000,'5.1'!$A73&'5.1'!G$3&1,AUX_2d_pais!$J$2:$J$27000)/1000 -> 0 | H73: 0 | I73: 0 | J73: =+SUMIF(AUX_2d_pais!$A$2:$A$27000,'5.1'!$A73&'5.1'!J$3&2,AUX_2d_pais!$J$2:$J$27000)/1000 -> 0 | K73: =+SUMIF(AUX_2d_pais!$A$2:$A$27000,'5.1'!$A73&'5.1'!K$3&2,AUX_2d_pais!$J$2:$J$27000)/1000 -> 0 | L73: =+SUMIF(AUX_2d_pais!$A$2:$A$27000,'5.1'!$A73&'5.1'!L$3&2,AUX_2d_pais!$J$2:$J$27000)/1000 -> 0 | M73: =+SUMIF(AUX_2d_pais!$A$2:$A$27000,'5.1'!$A73&'5.1'!M$3&2,AUX_2d_pais!$J$2:$J$27000)/1000 -> 0 | N73: =+SUMIF(AUX_2d_pais!$A$2:$A$27000,'5.1'!$A73&'5.1'!N$3&2,AUX_2d_pais!$J$2:$J$27000)/1000 -> 0 | O73: 0 | P73: 0 | Q73: 0 | S73: =G73-INDEX($C73:$G73,1,aux!$AL$1) -> 0 | T73: 0 | U73: =+IF(INDEX($C73:$G73,1,aux!$AL$1)>0,(G73/INDEX($C73:$G73,1,aux!$AL$1))^(1/($G$3-INDEX($C$3:$G$3,1,aux!$AL$1)))-1,"n.d.") -> n.d. | V73: =IF(INDEX($C73:$G73,1,aux!$AL$1)>0,(G73-INDEX($C73:$G73,1,aux!$AL$1))/INDEX($C73:$G73,1,aux!$AL$1),"n.d.") -> n.d. | X73: =N73-INDEX($J73:$N73,1,aux!$AL$1) -> 0 | Y73: 0 | Z73: =+IF(INDEX($J73:$N73,1,aux!$AL$1)>0,(N73/INDEX($J73:$N73,1,aux!$AL$1))^(1/($N$3-INDEX($J$3:$N$3,1,aux!$AL$1)))-1,"n.d.") -> n.d. | AA73: =IF(INDEX($J73:$N73,1,aux!$AL$1)>0,(N73-INDEX($J73:$N73,1,aux!$AL$1))/INDEX($J73:$N73,1,aux!$AL$1),"n.d.") -> n.d. | AC73: 0 | BS73: =+MATCH('5.1'!A73,AUX_2d_pais!$G$2:$G$20001,0) -> 
A74: 0220 | B74: Egito | C74: =+SUMIF(AUX_2d_pais!$A$2:$A$27000,'5.1'!$A74&'5.1'!C$3&1,AUX_2d_pais!$J$2:$J$27000)/1000 -> 0 | D74: =+SUMIF(AUX_2d_pais!$A$2:$A$27000,'5.1'!$A74&'5.1'!D$3&1,AUX_2d_pais!$J$2:$J$27000)/1000 -> 0 | E74: =+SUMIF(AUX_2d_pais!$A$2:$A$27000,'5.1'!$A74&'5.1'!E$3&1,AUX_2d_pais!$J$2:$J$27000)/1000 -> 0 | F74: =+SUMIF(AUX_2d_pais!$A$2:$A$27000,'5.1'!$A74&'5.1'!F$3&1,AUX_2d_pais!$J$2:$J$27000)/1000 -> 0 | G74: =+SUMIF(AUX_2d_pais!$A$2:$A$27000,'5.1'!$A74&'5.1'!G$3&1,AUX_2d_pais!$J$2:$J$27000)/1000 -> 0 | H74: 0 | I74: 0 | J74: =+SUMIF(AUX_2d_pais!$A$2:$A$27000,'5.1'!$A74&'5.1'!J$3&2,AUX_2d_pais!$J$2:$J$27000)/1000 -> 0 | K74: =+SUMIF(AUX_2d_pais!$A$2:$A$27000,'5.1'!$A74&'5.1'!K$3&2,AUX_2d_pais!$J$2:$J$27000)/1000 -> 0 | L74: =+SUMIF(AUX_2d_pais!$A$2:$A$27000,'5.1'!$A74&'5.1'!L$3&2,AUX_2d_pais!$J$2:$J$27000)/1000 -> 0 | M74: =+SUMIF(AUX_2d_pais!$A$2:$A$27000,'5.1'!$A74&'5.1'!M$3&2,AUX_2d_pais!$J$2:$J$27000)/1000 -> 0 | N74: =+SUMIF(AUX_2d_pais!$A$2:$A$27000,'5.1'!$A74&'5.1'!N$3&2,AUX_2d_pais!$J$2:$J$27000)/1000 -> 0 | O74: 0 | P74: 0 | Q74: 0 | S74: =G74-INDEX($C74:$G74,1,aux!$AL$1) -> 0 | T74: 0 | U74: =+IF(INDEX($C74:$G74,1,aux!$AL$1)>0,(G74/INDEX($C74:$G74,1,aux!$AL$1))^(1/($G$3-INDEX($C$3:$G$3,1,aux!$AL$1)))-1,"n.d.") -> n.d. | V74: =IF(INDEX($C74:$G74,1,aux!$AL$1)>0,(G74-INDEX($C74:$G74,1,aux!$AL$1))/INDEX($C74:$G74,1,aux!$AL$1),"n.d.") -> n.d. | X74: =N74-INDEX($J74:$N74,1,aux!$AL$1) -> 0 | Y74: 0 | Z74: =+IF(INDEX($J74:$N74,1,aux!$AL$1)>0,(N74/INDEX($J74:$N74,1,aux!$AL$1))^(1/($N$3-INDEX($J$3:$N$3,1,aux!$AL$1)))-1,"n.d.") -> n.d. | AA74: =IF(INDEX($J74:$N74,1,aux!$AL$1)>0,(N74-INDEX($J74:$N74,1,aux!$AL$1))/INDEX($J74:$N74,1,aux!$AL$1),"n.d.") -> n.d. | AC74: 0 | BS74: =+MATCH('5.1'!A74,AUX_2d_pais!$G$2:$G$20001,0) -> 
A75: 0428 | B75: El Salvador | C75: =+SUMIF(AUX_2d_pais!$A$2:$A$27000,'5.1'!$A75&'5.1'!C$3&1,AUX_2d_pais!$J$2:$J$27000)/1000 -> 0 | D75: =+SUMIF(AUX_2d_pais!$A$2:$A$27000,'5.1'!$A75&'5.1'!D$3&1,AUX_2d_pais!$J$2:$J$27000)/1000 -> 0 | E75: =+SUMIF(AUX_2d_pais!$A$2:$A$27000,'5.1'!$A75&'5.1'!E$3&1,AUX_2d_pais!$J$2:$J$27000)/1000 -> 0 | F75: =+SUMIF(AUX_2d_pais!$A$2:$A$27000,'5.1'!$A75&'5.1'!F$3&1,AUX_2d_pais!$J$2:$J$27000)/1000 -> 0 | G75: =+SUMIF(AUX_2d_pais!$A$2:$A$27000,'5.1'!$A75&'5.1'!G$3&1,AUX_2d_pais!$J$2:$J$27000)/1000 -> 0 | H75: 0 | I75: 0 | J75: =+SUMIF(AUX_2d_pais!$A$2:$A$27000,'5.1'!$A75&'5.1'!J$3&2,AUX_2d_pais!$J$2:$J$27000)/1000 -> 0 | K75: =+SUMIF(AUX_2d_pais!$A$2:$A$27000,'5.1'!$A75&'5.1'!K$3&2,AUX_2d_pais!$J$2:$J$27000)/1000 -> 0 | L75: =+SUMIF(AUX_2d_pais!$A$2:$A$27000,'5.1'!$A75&'5.1'!L$3&2,AUX_2d_pais!$J$2:$J$27000)/1000 -> 0 | M75: =+SUMIF(AUX_2d_pais!$A$2:$A$27000,'5.1'!$A75&'5.1'!M$3&2,AUX_2d_pais!$J$2:$J$27000)/1000 -> 0 | N75: =+SUMIF(AUX_2d_pais!$A$2:$A$27000,'5.1'!$A75&'5.1'!N$3&2,AUX_2d_pais!$J$2:$J$27000)/1000 -> 0 | O75: 0 | P75: 0 | Q75: 0 | S75: =G75-INDEX($C75:$G75,1,aux!$AL$1) -> 0 | T75: 0 | U75: =+IF(INDEX($C75:$G75,1,aux!$AL$1)>0,(G75/INDEX($C75:$G75,1,aux!$AL$1))^(1/($G$3-INDEX($C$3:$G$3,1,aux!$AL$1)))-1,"n.d.") -> n.d. | V75: =IF(INDEX($C75:$G75,1,aux!$AL$1)>0,(G75-INDEX($C75:$G75,1,aux!$AL$1))/INDEX($C75:$G75,1,aux!$AL$1),"n.d.") -> n.d. | X75: =N75-INDEX($J75:$N75,1,aux!$AL$1) -> 0 | Y75: 0 | Z75: =+IF(INDEX($J75:$N75,1,aux!$AL$1)>0,(N75/INDEX($J75:$N75,1,aux!$AL$1))^(1/($N$3-INDEX($J$3:$N$3,1,aux!$AL$1)))-1,"n.d.") -> n.d. | AA75: =IF(INDEX($J75:$N75,1,aux!$AL$1)>0,(N75-INDEX($J75:$N75,1,aux!$AL$1))/INDEX($J75:$N75,1,aux!$AL$1),"n.d.") -> n.d. | AC75: 0 | BS75: =+MATCH('5.1'!A75,AUX_2d_pais!$G$2:$G$20001,0) -> 
A76: 0647 | B76: Emirados Árabes Unidos | C76: =+SUMIF(AUX_2d_pais!$A$2:$A$27000,'5.1'!$A76&'5.1'!C$3&1,AUX_2d_pais!$J$2:$J$27000)/1000 -> 0 | D76: =+SUMIF(AUX_2d_pais!$A$2:$A$27000,'5.1'!$A76&'5.1'!D$3&1,AUX_2d_pais!$J$2:$J$27000)/1000 -> 0 | E76: =+SUMIF(AUX_2d_pais!$A$2:$A$27000,'5.1'!$A76&'5.1'!E$3&1,AUX_2d_pais!$J$2:$J$27000)/1000 -> 0 | F76: =+SUMIF(AUX_2d_pais!$A$2:$A$27000,'5.1'!$A76&'5.1'!F$3&1,AUX_2d_pais!$J$2:$J$27000)/1000 -> 0 | G76: =+SUMIF(AUX_2d_pais!$A$2:$A$27000,'5.1'!$A76&'5.1'!G$3&1,AUX_2d_pais!$J$2:$J$27000)/1000 -> 0 | H76: 0 | I76: 0 | J76: =+SUMIF(AUX_2d_pais!$A$2:$A$27000,'5.1'!$A76&'5.1'!J$3&2,AUX_2d_pais!$J$2:$J$27000)/1000 -> 0 | K76: =+SUMIF(AUX_2d_pais!$A$2:$A$27000,'5.1'!$A76&'5.1'!K$3&2,AUX_2d_pais!$J$2:$J$27000)/1000 -> 0 | L76: =+SUMIF(AUX_2d_pais!$A$2:$A$27000,'5.1'!$A76&'5.1'!L$3&2,AUX_2d_pais!$J$2:$J$27000)/1000 -> 0 | M76: =+SUMIF(AUX_2d_pais!$A$2:$A$27000,'5.1'!$A76&'5.1'!M$3&2,AUX_2d_pais!$J$2:$J$27000)/1000 -> 0 | N76: =+SUMIF(AUX_2d_pais!$A$2:$A$27000,'5.1'!$A76&'5.1'!N$3&2,AUX_2d_pais!$J$2:$J$27000)/1000 -> 0 | O76: 0 | P76: 0 | Q76: 0 | S76: =G76-INDEX($C76:$G76,1,aux!$AL$1) -> 0 | T76: 0 | U76: =+IF(INDEX($C76:$G76,1,aux!$AL$1)>0,(G76/INDEX($C76:$G76,1,aux!$AL$1))^(1/($G$3-INDEX($C$3:$G$3,1,aux!$AL$1)))-1,"n.d.") -> n.d. | V76: =IF(INDEX($C76:$G76,1,aux!$AL$1)>0,(G76-INDEX($C76:$G76,1,aux!$AL$1))/INDEX($C76:$G76,1,aux!$AL$1),"n.d.") -> n.d. | X76: =N76-INDEX($J76:$N76,1,aux!$AL$1) -> 0 | Y76: 0 | Z76: =+IF(INDEX($J76:$N76,1,aux!$AL$1)>0,(N76/INDEX($J76:$N76,1,aux!$AL$1))^(1/($N$3-INDEX($J$3:$N$3,1,aux!$AL$1)))-1,"n.d.") -> n.d. | AA76: =IF(INDEX($J76:$N76,1,aux!$AL$1)>0,(N76-INDEX($J76:$N76,1,aux!$AL$1))/INDEX($J76:$N76,1,aux!$AL$1),"n.d.") -> n.d. | AC76: 0 | BS76: =+MATCH('5.1'!A76,AUX_2d_pais!$G$2:$G$20001,0) -> 
A77: 0500 | B77: Equador | C77: =+SUMIF(AUX_2d_pais!$A$2:$A$27000,'5.1'!$A77&'5.1'!C$3&1,AUX_2d_pais!$J$2:$J$27000)/1000 -> 0 | D77: =+SUMIF(AUX_2d_pais!$A$2:$A$27000,'5.1'!$A77&'5.1'!D$3&1,AUX_2d_pais!$J$2:$J$27000)/1000 -> 0 | E77: =+SUMIF(AUX_2d_pais!$A$2:$A$27000,'5.1'!$A77&'5.1'!E$3&1,AUX_2d_pais!$J$2:$J$27000)/1000 -> 0 | F77: =+SUMIF(AUX_2d_pais!$A$2:$A$27000,'5.1'!$A77&'5.1'!F$3&1,AUX_2d_pais!$J$2:$J$27000)/1000 -> 0 | G77: =+SUMIF(AUX_2d_pais!$A$2:$A$27000,'5.1'!$A77&'5.1'!G$3&1,AUX_2d_pais!$J$2:$J$27000)/1000 -> 0 | H77: 0 | I77: 0 | J77: =+SUMIF(AUX_2d_pais!$A$2:$A$27000,'5.1'!$A77&'5.1'!J$3&2,AUX_2d_pais!$J$2:$J$27000)/1000 -> 0 | K77: =+SUMIF(AUX_2d_pais!$A$2:$A$27000,'5.1'!$A77&'5.1'!K$3&2,AUX_2d_pais!$J$2:$J$27000)/1000 -> 0 | L77: =+SUMIF(AUX_2d_pais!$A$2:$A$27000,'5.1'!$A77&'5.1'!L$3&2,AUX_2d_pais!$J$2:$J$27000)/1000 -> 0 | M77: =+SUMIF(AUX_2d_pais!$A$2:$A$27000,'5.1'!$A77&'5.1'!M$3&2,AUX_2d_pais!$J$2:$J$27000)/1000 -> 0 | N77: =+SUMIF(AUX_2d_pais!$A$2:$A$27000,'5.1'!$A77&'5.1'!N$3&2,AUX_2d_pais!$J$2:$J$27000)/1000 -> 0 | O77: 0 | P77: 0 | Q77: 0 | S77: =G77-INDEX($C77:$G77,1,aux!$AL$1) -> 0 | T77: 0 | U77: =+IF(INDEX($C77:$G77,1,aux!$AL$1)>0,(G77/INDEX($C77:$G77,1,aux!$AL$1))^(1/($G$3-INDEX($C$3:$G$3,1,aux!$AL$1)))-1,"n.d.") -> n.d. | V77: =IF(INDEX($C77:$G77,1,aux!$AL$1)>0,(G77-INDEX($C77:$G77,1,aux!$AL$1))/INDEX($C77:$G77,1,aux!$AL$1),"n.d.") -> n.d. | X77: =N77-INDEX($J77:$N77,1,aux!$AL$1) -> 0 | Y77: 0 | Z77: =+IF(INDEX($J77:$N77,1,aux!$AL$1)>0,(N77/INDEX($J77:$N77,1,aux!$AL$1))^(1/($N$3-INDEX($J$3:$N$3,1,aux!$AL$1)))-1,"n.d.") -> n.d. | AA77: =IF(INDEX($J77:$N77,1,aux!$AL$1)>0,(N77-INDEX($J77:$N77,1,aux!$AL$1))/INDEX($J77:$N77,1,aux!$AL$1),"n.d.") -> n.d. | AC77: 0 | BS77: =+MATCH('5.1'!A77,AUX_2d_pais!$G$2:$G$20001,0) -> 
A78: 0336 | B78: Eritreia | C78: =+SUMIF(AUX_2d_pais!$A$2:$A$27000,'5.1'!$A78&'5.1'!C$3&1,AUX_2d_pais!$J$2:$J$27000)/1000 -> 0 | D78: =+SUMIF(AUX_2d_pais!$A$2:$A$27000,'5.1'!$A78&'5.1'!D$3&1,AUX_2d_pais!$J$2:$J$27000)/1000 -> 0 | E78: =+SUMIF(AUX_2d_pais!$A$2:$A$27000,'5.1'!$A78&'5.1'!E$3&1,AUX_2d_pais!$J$2:$J$27000)/1000 -> 0 | F78: =+SUMIF(AUX_2d_pais!$A$2:$A$27000,'5.1'!$A78&'5.1'!F$3&1,AUX_2d_pais!$J$2:$J$27000)/1000 -> 0 | G78: =+SUMIF(AUX_2d_pais!$A$2:$A$27000,'5.1'!$A78&'5.1'!G$3&1,AUX_2d_pais!$J$2:$J$27000)/1000 -> 0 | H78: 0 | I78: 0 | J78: =+SUMIF(AUX_2d_pais!$A$2:$A$27000,'5.1'!$A78&'5.1'!J$3&2,AUX_2d_pais!$J$2:$J$27000)/1000 -> 0 | K78: =+SUMIF(AUX_2d_pais!$A$2:$A$27000,'5.1'!$A78&'5.1'!K$3&2,AUX_2d_pais!$J$2:$J$27000)/1000 -> 0 | L78: =+SUMIF(AUX_2d_pais!$A$2:$A$27000,'5.1'!$A78&'5.1'!L$3&2,AUX_2d_pais!$J$2:$J$27000)/1000 -> 0 | M78: =+SUMIF(AUX_2d_pais!$A$2:$A$27000,'5.1'!$A78&'5.1'!M$3&2,AUX_2d_pais!$J$2:$J$27000)/1000 -> 0 | N78: =+SUMIF(AUX_2d_pais!$A$2:$A$27000,'5.1'!$A78&'5.1'!N$3&2,AUX_2d_pais!$J$2:$J$27000)/1000 -> 0 | O78: 0 | P78: 0 | Q78: 0 | S78: =G78-INDEX($C78:$G78,1,aux!$AL$1) -> 0 | T78: 0 | U78: =+IF(INDEX($C78:$G78,1,aux!$AL$1)>0,(G78/INDEX($C78:$G78,1,aux!$AL$1))^(1/($G$3-INDEX($C$3:$G$3,1,aux!$AL$1)))-1,"n.d.") -> n.d. | V78: =IF(INDEX($C78:$G78,1,aux!$AL$1)>0,(G78-INDEX($C78:$G78,1,aux!$AL$1))/INDEX($C78:$G78,1,aux!$AL$1),"n.d.") -> n.d. | X78: =N78-INDEX($J78:$N78,1,aux!$AL$1) -> 0 | Y78: 0 | Z78: =+IF(INDEX($J78:$N78,1,aux!$AL$1)>0,(N78/INDEX($J78:$N78,1,aux!$AL$1))^(1/($N$3-INDEX($J$3:$N$3,1,aux!$AL$1)))-1,"n.d.") -> n.d. | AA78: =IF(INDEX($J78:$N78,1,aux!$AL$1)>0,(N78-INDEX($J78:$N78,1,aux!$AL$1))/INDEX($J78:$N78,1,aux!$AL$1),"n.d.") -> n.d. | AC78: 0 | BS78: =+MATCH('5.1'!A78,AUX_2d_pais!$G$2:$G$20001,0) -> 
A79: 0063 | B79: Eslováquia | C79: =+SUMIF(AUX_2d_pais!$A$2:$A$27000,'5.1'!$A79&'5.1'!C$3&1,AUX_2d_pais!$J$2:$J$27000)/1000 -> 0 | D79: =+SUMIF(AUX_2d_pais!$A$2:$A$27000,'5.1'!$A79&'5.1'!D$3&1,AUX_2d_pais!$J$2:$J$27000)/1000 -> 0 | E79: =+SUMIF(AUX_2d_pais!$A$2:$A$27000,'5.1'!$A79&'5.1'!E$3&1,AUX_2d_pais!$J$2:$J$27000)/1000 -> 0 | F79: =+SUMIF(AUX_2d_pais!$A$2:$A$27000,'5.1'!$A79&'5.1'!F$3&1,AUX_2d_pais!$J$2:$J$27000)/1000 -> 0 | G79: =+SUMIF(AUX_2d_pais!$A$2:$A$27000,'5.1'!$A79&'5.1'!G$3&1,AUX_2d_pais!$J$2:$J$27000)/1000 -> 0 | H79: 0 | I79: 0 | J79: =+SUMIF(AUX_2d_pais!$A$2:$A$27000,'5.1'!$A79&'5.1'!J$3&2,AUX_2d_pais!$J$2:$J$27000)/1000 -> 0 | K79: =+SUMIF(AUX_2d_pais!$A$2:$A$27000,'5.1'!$A79&'5.1'!K$3&2,AUX_2d_pais!$J$2:$J$27000)/1000 -> 0 | L79: =+SUMIF(AUX_2d_pais!$A$2:$A$27000,'5.1'!$A79&'5.1'!L$3&2,AUX_2d_pais!$J$2:$J$27000)/1000 -> 0 | M79: =+SUMIF(AUX_2d_pais!$A$2:$A$27000,'5.1'!$A79&'5.1'!M$3&2,AUX_2d_pais!$J$2:$J$27000)/1000 -> 0 | N79: =+SUMIF(AUX_2d_pais!$A$2:$A$27000,'5.1'!$A79&'5.1'!N$3&2,AUX_2d_pais!$J$2:$J$27000)/1000 -> 0 | O79: 0 | P79: 0 | Q79: 0 | S79: =G79-INDEX($C79:$G79,1,aux!$AL$1) -> 0 | T79: 0 | U79: =+IF(INDEX($C79:$G79,1,aux!$AL$1)>0,(G79/INDEX($C79:$G79,1,aux!$AL$1))^(1/($G$3-INDEX($C$3:$G$3,1,aux!$AL$1)))-1,"n.d.") -> n.d. | V79: =IF(INDEX($C79:$G79,1,aux!$AL$1)>0,(G79-INDEX($C79:$G79,1,aux!$AL$1))/INDEX($C79:$G79,1,aux!$AL$1),"n.d.") -> n.d. | X79: =N79-INDEX($J79:$N79,1,aux!$AL$1) -> 0 | Y79: 0 | Z79: =+IF(INDEX($J79:$N79,1,aux!$AL$1)>0,(N79/INDEX($J79:$N79,1,aux!$AL$1))^(1/($N$3-INDEX($J$3:$N$3,1,aux!$AL$1)))-1,"n.d.") -> n.d. | AA79: =IF(INDEX($J79:$N79,1,aux!$AL$1)>0,(N79-INDEX($J79:$N79,1,aux!$AL$1))/INDEX($J79:$N79,1,aux!$AL$1),"n.d.") -> n.d. | AC79: 0 | BS79: =+MATCH('5.1'!A79,AUX_2d_pais!$G$2:$G$20001,0) -> 
A80: 0091 | B80: Eslovénia | C80: =+SUMIF(AUX_2d_pais!$A$2:$A$27000,'5.1'!$A80&'5.1'!C$3&1,AUX_2d_pais!$J$2:$J$27000)/1000 -> 0 | D80: =+SUMIF(AUX_2d_pais!$A$2:$A$27000,'5.1'!$A80&'5.1'!D$3&1,AUX_2d_pais!$J$2:$J$27000)/1000 -> 0 | E80: =+SUMIF(AUX_2d_pais!$A$2:$A$27000,'5.1'!$A80&'5.1'!E$3&1,AUX_2d_pais!$J$2:$J$27000)/1000 -> 0 | F80: =+SUMIF(AUX_2d_pais!$A$2:$A$27000,'5.1'!$A80&'5.1'!F$3&1,AUX_2d_pais!$J$2:$J$27000)/1000 -> 0 | G80: =+SUMIF(AUX_2d_pais!$A$2:$A$27000,'5.1'!$A80&'5.1'!G$3&1,AUX_2d_pais!$J$2:$J$27000)/1000 -> 0 | H80: 0 | I80: 0 | J80: =+SUMIF(AUX_2d_pais!$A$2:$A$27000,'5.1'!$A80&'5.1'!J$3&2,AUX_2d_pais!$J$2:$J$27000)/1000 -> 0 | K80: =+SUMIF(AUX_2d_pais!$A$2:$A$27000,'5.1'!$A80&'5.1'!K$3&2,AUX_2d_pais!$J$2:$J$27000)/1000 -> 0 | L80: =+SUMIF(AUX_2d_pais!$A$2:$A$27000,'5.1'!$A80&'5.1'!L$3&2,AUX_2d_pais!$J$2:$J$27000)/1000 -> 0 | M80: =+SUMIF(AUX_2d_pais!$A$2:$A$27000,'5.1'!$A80&'5.1'!M$3&2,AUX_2d_pais!$J$2:$J$27000)/1000 -> 0 | N80: =+SUMIF(AUX_2d_pais!$A$2:$A$27000,'5.1'!$A80&'5.1'!N$3&2,AUX_2d_pais!$J$2:$J$27000)/1000 -> 0 | O80: 0 | P80: 0 | Q80: 0 | S80: =G80-INDEX($C80:$G80,1,aux!$AL$1) -> 0 | T80: 0 | U80: =+IF(INDEX($C80:$G80,1,aux!$AL$1)>0,(G80/INDEX($C80:$G80,1,aux!$AL$1))^(1/($G$3-INDEX($C$3:$G$3,1,aux!$AL$1)))-1,"n.d.") -> n.d. | V80: =IF(INDEX($C80:$G80,1,aux!$AL$1)>0,(G80-INDEX($C80:$G80,1,aux!$AL$1))/INDEX($C80:$G80,1,aux!$AL$1),"n.d.") -> n.d. | X80: =N80-INDEX($J80:$N80,1,aux!$AL$1) -> 0 | Y80: 0 | Z80: =+IF(INDEX($J80:$N80,1,aux!$AL$1)>0,(N80/INDEX($J80:$N80,1,aux!$AL$1))^(1/($N$3-INDEX($J$3:$N$3,1,aux!$AL$1)))-1,"n.d.") -> n.d. | AA80: =IF(INDEX($J80:$N80,1,aux!$AL$1)>0,(N80-INDEX($J80:$N80,1,aux!$AL$1))/INDEX($J80:$N80,1,aux!$AL$1),"n.d.") -> n.d. | AC80: 0 | BS80: =+MATCH('5.1'!A80,AUX_2d_pais!$G$2:$G$20001,0) -> 
A81: 0011 | B81: Espanha | C81: =+SUMIF(AUX_2d_pais!$A$2:$A$27000,'5.1'!$A81&'5.1'!C$3&1,AUX_2d_pais!$J$2:$J$27000)/1000 -> 0 | D81: =+SUMIF(AUX_2d_pais!$A$2:$A$27000,'5.1'!$A81&'5.1'!D$3&1,AUX_2d_pais!$J$2:$J$27000)/1000 -> 0 | E81: =+SUMIF(AUX_2d_pais!$A$2:$A$27000,'5.1'!$A81&'5.1'!E$3&1,AUX_2d_pais!$J$2:$J$27000)/1000 -> 0 | F81: =+SUMIF(AUX_2d_pais!$A$2:$A$27000,'5.1'!$A81&'5.1'!F$3&1,AUX_2d_pais!$J$2:$J$27000)/1000 -> 0 | G81: =+SUMIF(AUX_2d_pais!$A$2:$A$27000,'5.1'!$A81&'5.1'!G$3&1,AUX_2d_pais!$J$2:$J$27000)/1000 -> 0 | H81: 0 | I81: 0 | J81: =+SUMIF(AUX_2d_pais!$A$2:$A$27000,'5.1'!$A81&'5.1'!J$3&2,AUX_2d_pais!$J$2:$J$27000)/1000 -> 0 | K81: =+SUMIF(AUX_2d_pais!$A$2:$A$27000,'5.1'!$A81&'5.1'!K$3&2,AUX_2d_pais!$J$2:$J$27000)/1000 -> 0 | L81: =+SUMIF(AUX_2d_pais!$A$2:$A$27000,'5.1'!$A81&'5.1'!L$3&2,AUX_2d_pais!$J$2:$J$27000)/1000 -> 0 | M81: =+SUMIF(AUX_2d_pais!$A$2:$A$27000,'5.1'!$A81&'5.1'!M$3&2,AUX_2d_pais!$J$2:$J$27000)/1000 -> 0 | N81: =+SUMIF(AUX_2d_pais!$A$2:$A$27000,'5.1'!$A81&'5.1'!N$3&2,AUX_2d_pais!$J$2:$J$27000)/1000 -> 0 | O81: 0 | P81: 0 | Q81: 0 | S81: =G81-INDEX($C81:$G81,1,aux!$AL$1) -> 0 | T81: 0 | U81: =+IF(INDEX($C81:$G81,1,aux!$AL$1)>0,(G81/INDEX($C81:$G81,1,aux!$AL$1))^(1/($G$3-INDEX($C$3:$G$3,1,aux!$AL$1)))-1,"n.d.") -> n.d. | V81: =IF(INDEX($C81:$G81,1,aux!$AL$1)>0,(G81-INDEX($C81:$G81,1,aux!$AL$1))/INDEX($C81:$G81,1,aux!$AL$1),"n.d.") -> n.d. | X81: =N81-INDEX($J81:$N81,1,aux!$AL$1) -> 0 | Y81: 0 | Z81: =+IF(INDEX($J81:$N81,1,aux!$AL$1)>0,(N81/INDEX($J81:$N81,1,aux!$AL$1))^(1/($N$3-INDEX($J$3:$N$3,1,aux!$AL$1)))-1,"n.d.") -> n.d. | AA81: =IF(INDEX($J81:$N81,1,aux!$AL$1)>0,(N81-INDEX($J81:$N81,1,aux!$AL$1))/INDEX($J81:$N81,1,aux!$AL$1),"n.d.") -> n.d. | AC81: 0 | BS81: =+MATCH('5.1'!A81,AUX_2d_pais!$G$2:$G$20001,0) -> 
A82: 0400 | B82: Estados Unidos | C82: =+SUMIF(AUX_2d_pais!$A$2:$A$27000,'5.1'!$A82&'5.1'!C$3&1,AUX_2d_pais!$J$2:$J$27000)/1000 -> 0 | D82: =+SUMIF(AUX_2d_pais!$A$2:$A$27000,'5.1'!$A82&'5.1'!D$3&1,AUX_2d_pais!$J$2:$J$27000)/1000 -> 0 | E82: =+SUMIF(AUX_2d_pais!$A$2:$A$27000,'5.1'!$A82&'5.1'!E$3&1,AUX_2d_pais!$J$2:$J$27000)/1000 -> 0 | F82: =+SUMIF(AUX_2d_pais!$A$2:$A$27000,'5.1'!$A82&'5.1'!F$3&1,AUX_2d_pais!$J$2:$J$27000)/1000 -> 0 | G82: =+SUMIF(AUX_2d_pais!$A$2:$A$27000,'5.1'!$A82&'5.1'!G$3&1,AUX_2d_pais!$J$2:$J$27000)/1000 -> 0 | H82: 0 | I82: 0 | J82: =+SUMIF(AUX_2d_pais!$A$2:$A$27000,'5.1'!$A82&'5.1'!J$3&2,AUX_2d_pais!$J$2:$J$27000)/1000 -> 0 | K82: =+SUMIF(AUX_2d_pais!$A$2:$A$27000,'5.1'!$A82&'5.1'!K$3&2,AUX_2d_pais!$J$2:$J$27000)/1000 -> 0 | L82: =+SUMIF(AUX_2d_pais!$A$2:$A$27000,'5.1'!$A82&'5.1'!L$3&2,AUX_2d_pais!$J$2:$J$27000)/1000 -> 0 | M82: =+SUMIF(AUX_2d_pais!$A$2:$A$27000,'5.1'!$A82&'5.1'!M$3&2,AUX_2d_pais!$J$2:$J$27000)/1000 -> 0 | N82: =+SUMIF(AUX_2d_pais!$A$2:$A$27000,'5.1'!$A82&'5.1'!N$3&2,AUX_2d_pais!$J$2:$J$27000)/1000 -> 0 | O82: 0 | P82: 0 | Q82: 0 | S82: =G82-INDEX($C82:$G82,1,aux!$AL$1) -> 0 | T82: 0 | U82: =+IF(INDEX($C82:$G82,1,aux!$AL$1)>0,(G82/INDEX($C82:$G82,1,aux!$AL$1))^(1/($G$3-INDEX($C$3:$G$3,1,aux!$AL$1)))-1,"n.d.") -> n.d. | V82: =IF(INDEX($C82:$G82,1,aux!$AL$1)>0,(G82-INDEX($C82:$G82,1,aux!$AL$1))/INDEX($C82:$G82,1,aux!$AL$1),"n.d.") -> n.d. | X82: =N82-INDEX($J82:$N82,1,aux!$AL$1) -> 0 | Y82: 0 | Z82: =+IF(INDEX($J82:$N82,1,aux!$AL$1)>0,(N82/INDEX($J82:$N82,1,aux!$AL$1))^(1/($N$3-INDEX($J$3:$N$3,1,aux!$AL$1)))-1,"n.d.") -> n.d. | AA82: =IF(INDEX($J82:$N82,1,aux!$AL$1)>0,(N82-INDEX($J82:$N82,1,aux!$AL$1))/INDEX($J82:$N82,1,aux!$AL$1),"n.d.") -> n.d. | AC82: 0 | BS82: =+MATCH('5.1'!A82,AUX_2d_pais!$G$2:$G$20001,0) -> 
A83: 0053 | B83: Estónia | C83: =+SUMIF(AUX_2d_pais!$A$2:$A$27000,'5.1'!$A83&'5.1'!C$3&1,AUX_2d_pais!$J$2:$J$27000)/1000 -> 0 | D83: =+SUMIF(AUX_2d_pais!$A$2:$A$27000,'5.1'!$A83&'5.1'!D$3&1,AUX_2d_pais!$J$2:$J$27000)/1000 -> 0 | E83: =+SUMIF(AUX_2d_pais!$A$2:$A$27000,'5.1'!$A83&'5.1'!E$3&1,AUX_2d_pais!$J$2:$J$27000)/1000 -> 0 | F83: =+SUMIF(AUX_2d_pais!$A$2:$A$27000,'5.1'!$A83&'5.1'!F$3&1,AUX_2d_pais!$J$2:$J$27000)/1000 -> 0 | G83: =+SUMIF(AUX_2d_pais!$A$2:$A$27000,'5.1'!$A83&'5.1'!G$3&1,AUX_2d_pais!$J$2:$J$27000)/1000 -> 0 | H83: 0 | I83: 0 | J83: =+SUMIF(AUX_2d_pais!$A$2:$A$27000,'5.1'!$A83&'5.1'!J$3&2,AUX_2d_pais!$J$2:$J$27000)/1000 -> 0 | K83: =+SUMIF(AUX_2d_pais!$A$2:$A$27000,'5.1'!$A83&'5.1'!K$3&2,AUX_2d_pais!$J$2:$J$27000)/1000 -> 0 | L83: =+SUMIF(AUX_2d_pais!$A$2:$A$27000,'5.1'!$A83&'5.1'!L$3&2,AUX_2d_pais!$J$2:$J$27000)/1000 -> 0 | M83: =+SUMIF(AUX_2d_pais!$A$2:$A$27000,'5.1'!$A83&'5.1'!M$3&2,AUX_2d_pais!$J$2:$J$27000)/1000 -> 0 | N83: =+SUMIF(AUX_2d_pais!$A$2:$A$27000,'5.1'!$A83&'5.1'!N$3&2,AUX_2d_pais!$J$2:$J$27000)/1000 -> 0 | O83: 0 | P83: 0 | Q83: 0 | S83: =G83-INDEX($C83:$G83,1,aux!$AL$1) -> 0 | T83: 0 | U83: =+IF(INDEX($C83:$G83,1,aux!$AL$1)>0,(G83/INDEX($C83:$G83,1,aux!$AL$1))^(1/($G$3-INDEX($C$3:$G$3,1,aux!$AL$1)))-1,"n.d.") -> n.d. | V83: =IF(INDEX($C83:$G83,1,aux!$AL$1)>0,(G83-INDEX($C83:$G83,1,aux!$AL$1))/INDEX($C83:$G83,1,aux!$AL$1),"n.d.") -> n.d. | X83: =N83-INDEX($J83:$N83,1,aux!$AL$1) -> 0 | Y83: 0 | Z83: =+IF(INDEX($J83:$N83,1,aux!$AL$1)>0,(N83/INDEX($J83:$N83,1,aux!$AL$1))^(1/($N$3-INDEX($J$3:$N$3,1,aux!$AL$1)))-1,"n.d.") -> n.d. | AA83: =IF(INDEX($J83:$N83,1,aux!$AL$1)>0,(N83-INDEX($J83:$N83,1,aux!$AL$1))/INDEX($J83:$N83,1,aux!$AL$1),"n.d.") -> n.d. | AC83: 0 | BS83: =+MATCH('5.1'!A83,AUX_2d_pais!$G$2:$G$20001,0) -> 
A84: 0334 | B84: Etiópia | C84: =+SUMIF(AUX_2d_pais!$A$2:$A$27000,'5.1'!$A84&'5.1'!C$3&1,AUX_2d_pais!$J$2:$J$27000)/1000 -> 0 | D84: =+SUMIF(AUX_2d_pais!$A$2:$A$27000,'5.1'!$A84&'5.1'!D$3&1,AUX_2d_pais!$J$2:$J$27000)/1000 -> 0 | E84: =+SUMIF(AUX_2d_pais!$A$2:$A$27000,'5.1'!$A84&'5.1'!E$3&1,AUX_2d_pais!$J$2:$J$27000)/1000 -> 0 | F84: =+SUMIF(AUX_2d_pais!$A$2:$A$27000,'5.1'!$A84&'5.1'!F$3&1,AUX_2d_pais!$J$2:$J$27000)/1000 -> 0 | G84: =+SUMIF(AUX_2d_pais!$A$2:$A$27000,'5.1'!$A84&'5.1'!G$3&1,AUX_2d_pais!$J$2:$J$27000)/1000 -> 0 | H84: 0 | I84: 0 | J84: =+SUMIF(AUX_2d_pais!$A$2:$A$27000,'5.1'!$A84&'5.1'!J$3&2,AUX_2d_pais!$J$2:$J$27000)/1000 -> 0 | K84: =+SUMIF(AUX_2d_pais!$A$2:$A$27000,'5.1'!$A84&'5.1'!K$3&2,AUX_2d_pais!$J$2:$J$27000)/1000 -> 0 | L84: =+SUMIF(AUX_2d_pais!$A$2:$A$27000,'5.1'!$A84&'5.1'!L$3&2,AUX_2d_pais!$J$2:$J$27000)/1000 -> 0 | M84: =+SUMIF(AUX_2d_pais!$A$2:$A$27000,'5.1'!$A84&'5.1'!M$3&2,AUX_2d_pais!$J$2:$J$27000)/1000 -> 0 | N84: =+SUMIF(AUX_2d_pais!$A$2:$A$27000,'5.1'!$A84&'5.1'!N$3&2,AUX_2d_pais!$J$2:$J$27000)/1000 -> 0 | O84: 0 | P84: 0 | Q84: 0 | S84: =G84-INDEX($C84:$G84,1,aux!$AL$1) -> 0 | T84: 0 | U84: =+IF(INDEX($C84:$G84,1,aux!$AL$1)>0,(G84/INDEX($C84:$G84,1,aux!$AL$1))^(1/($G$3-INDEX($C$3:$G$3,1,aux!$AL$1)))-1,"n.d.") -> n.d. | V84: =IF(INDEX($C84:$G84,1,aux!$AL$1)>0,(G84-INDEX($C84:$G84,1,aux!$AL$1))/INDEX($C84:$G84,1,aux!$AL$1),"n.d.") -> n.d. | X84: =N84-INDEX($J84:$N84,1,aux!$AL$1) -> 0 | Y84: 0 | Z84: =+IF(INDEX($J84:$N84,1,aux!$AL$1)>0,(N84/INDEX($J84:$N84,1,aux!$AL$1))^(1/($N$3-INDEX($J$3:$N$3,1,aux!$AL$1)))-1,"n.d.") -> n.d. | AA84: =IF(INDEX($J84:$N84,1,aux!$AL$1)>0,(N84-INDEX($J84:$N84,1,aux!$AL$1))/INDEX($J84:$N84,1,aux!$AL$1),"n.d.") -> n.d. | AC84: 0 | BS84: =+MATCH('5.1'!A84,AUX_2d_pais!$G$2:$G$20001,0) -> 
A85: 0529 | B85: Falkland Ilhas (Malvinas) | C85: =+SUMIF(AUX_2d_pais!$A$2:$A$27000,'5.1'!$A85&'5.1'!C$3&1,AUX_2d_pais!$J$2:$J$27000)/1000 -> 0 | D85: =+SUMIF(AUX_2d_pais!$A$2:$A$27000,'5.1'!$A85&'5.1'!D$3&1,AUX_2d_pais!$J$2:$J$27000)/1000 -> 0 | E85: =+SUMIF(AUX_2d_pais!$A$2:$A$27000,'5.1'!$A85&'5.1'!E$3&1,AUX_2d_pais!$J$2:$J$27000)/1000 -> 0 | F85: =+SUMIF(AUX_2d_pais!$A$2:$A$27000,'5.1'!$A85&'5.1'!F$3&1,AUX_2d_pais!$J$2:$J$27000)/1000 -> 0 | G85: =+SUMIF(AUX_2d_pais!$A$2:$A$27000,'5.1'!$A85&'5.1'!G$3&1,AUX_2d_pais!$J$2:$J$27000)/1000 -> 0 | H85: 0 | I85: 0 | J85: =+SUMIF(AUX_2d_pais!$A$2:$A$27000,'5.1'!$A85&'5.1'!J$3&2,AUX_2d_pais!$J$2:$J$27000)/1000 -> 0 | K85: =+SUMIF(AUX_2d_pais!$A$2:$A$27000,'5.1'!$A85&'5.1'!K$3&2,AUX_2d_pais!$J$2:$J$27000)/1000 -> 0 | L85: =+SUMIF(AUX_2d_pais!$A$2:$A$27000,'5.1'!$A85&'5.1'!L$3&2,AUX_2d_pais!$J$2:$J$27000)/1000 -> 0 | M85: =+SUMIF(AUX_2d_pais!$A$2:$A$27000,'5.1'!$A85&'5.1'!M$3&2,AUX_2d_pais!$J$2:$J$27000)/1000 -> 0 | N85: =+SUMIF(AUX_2d_pais!$A$2:$A$27000,'5.1'!$A85&'5.1'!N$3&2,AUX_2d_pais!$J$2:$J$27000)/1000 -> 0 | O85: 0 | P85: 0 | Q85: 0 | S85: =G85-INDEX($C85:$G85,1,aux!$AL$1) -> 0 | T85: 0 | U85: =+IF(INDEX($C85:$G85,1,aux!$AL$1)>0,(G85/INDEX($C85:$G85,1,aux!$AL$1))^(1/($G$3-INDEX($C$3:$G$3,1,aux!$AL$1)))-1,"n.d.") -> n.d. | V85: =IF(INDEX($C85:$G85,1,aux!$AL$1)>0,(G85-INDEX($C85:$G85,1,aux!$AL$1))/INDEX($C85:$G85,1,aux!$AL$1),"n.d.") -> n.d. | X85: =N85-INDEX($J85:$N85,1,aux!$AL$1) -> 0 | Y85: 0 | Z85: =+IF(INDEX($J85:$N85,1,aux!$AL$1)>0,(N85/INDEX($J85:$N85,1,aux!$AL$1))^(1/($N$3-INDEX($J$3:$N$3,1,aux!$AL$1)))-1,"n.d.") -> n.d. | AA85: =IF(INDEX($J85:$N85,1,aux!$AL$1)>0,(N85-INDEX($J85:$N85,1,aux!$AL$1))/INDEX($J85:$N85,1,aux!$AL$1),"n.d.") -> n.d. | AC85: 0 | BS85: =+MATCH('5.1'!A85,AUX_2d_pais!$G$2:$G$20001,0) -> 
A86: 0041 | B86: Faroé, Ilhas | C86: =+SUMIF(AUX_2d_pais!$A$2:$A$27000,'5.1'!$A86&'5.1'!C$3&1,AUX_2d_pais!$J$2:$J$27000)/1000 -> 0 | D86: =+SUMIF(AUX_2d_pais!$A$2:$A$27000,'5.1'!$A86&'5.1'!D$3&1,AUX_2d_pais!$J$2:$J$27000)/1000 -> 0 | E86: =+SUMIF(AUX_2d_pais!$A$2:$A$27000,'5.1'!$A86&'5.1'!E$3&1,AUX_2d_pais!$J$2:$J$27000)/1000 -> 0 | F86: =+SUMIF(AUX_2d_pais!$A$2:$A$27000,'5.1'!$A86&'5.1'!F$3&1,AUX_2d_pais!$J$2:$J$27000)/1000 -> 0 | G86: =+SUMIF(AUX_2d_pais!$A$2:$A$27000,'5.1'!$A86&'5.1'!G$3&1,AUX_2d_pais!$J$2:$J$27000)/1000 -> 0 | H86: 0 | I86: 0 | J86: =+SUMIF(AUX_2d_pais!$A$2:$A$27000,'5.1'!$A86&'5.1'!J$3&2,AUX_2d_pais!$J$2:$J$27000)/1000 -> 0 | K86: =+SUMIF(AUX_2d_pais!$A$2:$A$27000,'5.1'!$A86&'5.1'!K$3&2,AUX_2d_pais!$J$2:$J$27000)/1000 -> 0 | L86: =+SUMIF(AUX_2d_pais!$A$2:$A$27000,'5.1'!$A86&'5.1'!L$3&2,AUX_2d_pais!$J$2:$J$27000)/1000 -> 0 | M86: =+SUMIF(AUX_2d_pais!$A$2:$A$27000,'5.1'!$A86&'5.1'!M$3&2,AUX_2d_pais!$J$2:$J$27000)/1000 -> 0 | N86: =+SUMIF(AUX_2d_pais!$A$2:$A$27000,'5.1'!$A86&'5.1'!N$3&2,AUX_2d_pais!$J$2:$J$27000)/1000 -> 0 | O86: 0 | P86: 0 | Q86: 0 | S86: =G86-INDEX($C86:$G86,1,aux!$AL$1) -> 0 | T86: 0 | U86: =+IF(INDEX($C86:$G86,1,aux!$AL$1)>0,(G86/INDEX($C86:$G86,1,aux!$AL$1))^(1/($G$3-INDEX($C$3:$G$3,1,aux!$AL$1)))-1,"n.d.") -> n.d. | V86: =IF(INDEX($C86:$G86,1,aux!$AL$1)>0,(G86-INDEX($C86:$G86,1,aux!$AL$1))/INDEX($C86:$G86,1,aux!$AL$1),"n.d.") -> n.d. | X86: =N86-INDEX($J86:$N86,1,aux!$AL$1) -> 0 | Y86: 0 | Z86: =+IF(INDEX($J86:$N86,1,aux!$AL$1)>0,(N86/INDEX($J86:$N86,1,aux!$AL$1))^(1/($N$3-INDEX($J$3:$N$3,1,aux!$AL$1)))-1,"n.d.") -> n.d. | AA86: =IF(INDEX($J86:$N86,1,aux!$AL$1)>0,(N86-INDEX($J86:$N86,1,aux!$AL$1))/INDEX($J86:$N86,1,aux!$AL$1),"n.d.") -> n.d. | AC86: 0 | BS86: =+MATCH('5.1'!A86,AUX_2d_pais!$G$2:$G$20001,0) -> 
A87: 0815 | B87: Fiji, Ilhas | C87: =+SUMIF(AUX_2d_pais!$A$2:$A$27000,'5.1'!$A87&'5.1'!C$3&1,AUX_2d_pais!$J$2:$J$27000)/1000 -> 0 | D87: =+SUMIF(AUX_2d_pais!$A$2:$A$27000,'5.1'!$A87&'5.1'!D$3&1,AUX_2d_pais!$J$2:$J$27000)/1000 -> 0 | E87: =+SUMIF(AUX_2d_pais!$A$2:$A$27000,'5.1'!$A87&'5.1'!E$3&1,AUX_2d_pais!$J$2:$J$27000)/1000 -> 0 | F87: =+SUMIF(AUX_2d_pais!$A$2:$A$27000,'5.1'!$A87&'5.1'!F$3&1,AUX_2d_pais!$J$2:$J$27000)/1000 -> 0 | G87: =+SUMIF(AUX_2d_pais!$A$2:$A$27000,'5.1'!$A87&'5.1'!G$3&1,AUX_2d_pais!$J$2:$J$27000)/1000 -> 0 | H87: 0 | I87: 0 | J87: =+SUMIF(AUX_2d_pais!$A$2:$A$27000,'5.1'!$A87&'5.1'!J$3&2,AUX_2d_pais!$J$2:$J$27000)/1000 -> 0 | K87: =+SUMIF(AUX_2d_pais!$A$2:$A$27000,'5.1'!$A87&'5.1'!K$3&2,AUX_2d_pais!$J$2:$J$27000)/1000 -> 0 | L87: =+SUMIF(AUX_2d_pais!$A$2:$A$27000,'5.1'!$A87&'5.1'!L$3&2,AUX_2d_pais!$J$2:$J$27000)/1000 -> 0 | M87: =+SUMIF(AUX_2d_pais!$A$2:$A$27000,'5.1'!$A87&'5.1'!M$3&2,AUX_2d_pais!$J$2:$J$27000)/1000 -> 0 | N87: =+SUMIF(AUX_2d_pais!$A$2:$A$27000,'5.1'!$A87&'5.1'!N$3&2,AUX_2d_pais!$J$2:$J$27000)/1000 -> 0 | O87: 0 | P87: 0 | Q87: 0 | S87: =G87-INDEX($C87:$G87,1,aux!$AL$1) -> 0 | T87: 0 | U87: =+IF(INDEX($C87:$G87,1,aux!$AL$1)>0,(G87/INDEX($C87:$G87,1,aux!$AL$1))^(1/($G$3-INDEX($C$3:$G$3,1,aux!$AL$1)))-1,"n.d.") -> n.d. | V87: =IF(INDEX($C87:$G87,1,aux!$AL$1)>0,(G87-INDEX($C87:$G87,1,aux!$AL$1))/INDEX($C87:$G87,1,aux!$AL$1),"n.d.") -> n.d. | X87: =N87-INDEX($J87:$N87,1,aux!$AL$1) -> 0 | Y87: 0 | Z87: =+IF(INDEX($J87:$N87,1,aux!$AL$1)>0,(N87/INDEX($J87:$N87,1,aux!$AL$1))^(1/($N$3-INDEX($J$3:$N$3,1,aux!$AL$1)))-1,"n.d.") -> n.d. | AA87: =IF(INDEX($J87:$N87,1,aux!$AL$1)>0,(N87-INDEX($J87:$N87,1,aux!$AL$1))/INDEX($J87:$N87,1,aux!$AL$1),"n.d.") -> n.d. | AC87: 0 | BS87: =+MATCH('5.1'!A87,AUX_2d_pais!$G$2:$G$20001,0) -> 
A88: 0708 | B88: Filipinas | C88: =+SUMIF(AUX_2d_pais!$A$2:$A$27000,'5.1'!$A88&'5.1'!C$3&1,AUX_2d_pais!$J$2:$J$27000)/1000 -> 0 | D88: =+SUMIF(AUX_2d_pais!$A$2:$A$27000,'5.1'!$A88&'5.1'!D$3&1,AUX_2d_pais!$J$2:$J$27000)/1000 -> 0 | E88: =+SUMIF(AUX_2d_pais!$A$2:$A$27000,'5.1'!$A88&'5.1'!E$3&1,AUX_2d_pais!$J$2:$J$27000)/1000 -> 0 | F88: =+SUMIF(AUX_2d_pais!$A$2:$A$27000,'5.1'!$A88&'5.1'!F$3&1,AUX_2d_pais!$J$2:$J$27000)/1000 -> 0 | G88: =+SUMIF(AUX_2d_pais!$A$2:$A$27000,'5.1'!$A88&'5.1'!G$3&1,AUX_2d_pais!$J$2:$J$27000)/1000 -> 0 | H88: 0 | I88: 0 | J88: =+SUMIF(AUX_2d_pais!$A$2:$A$27000,'5.1'!$A88&'5.1'!J$3&2,AUX_2d_pais!$J$2:$J$27000)/1000 -> 0 | K88: =+SUMIF(AUX_2d_pais!$A$2:$A$27000,'5.1'!$A88&'5.1'!K$3&2,AUX_2d_pais!$J$2:$J$27000)/1000 -> 0 | L88: =+SUMIF(AUX_2d_pais!$A$2:$A$27000,'5.1'!$A88&'5.1'!L$3&2,AUX_2d_pais!$J$2:$J$27000)/1000 -> 0 | M88: =+SUMIF(AUX_2d_pais!$A$2:$A$27000,'5.1'!$A88&'5.1'!M$3&2,AUX_2d_pais!$J$2:$J$27000)/1000 -> 0 | N88: =+SUMIF(AUX_2d_pais!$A$2:$A$27000,'5.1'!$A88&'5.1'!N$3&2,AUX_2d_pais!$J$2:$J$27000)/1000 -> 0 | O88: 0 | P88: 0 | Q88: 0 | S88: =G88-INDEX($C88:$G88,1,aux!$AL$1) -> 0 | T88: 0 | U88: =+IF(INDEX($C88:$G88,1,aux!$AL$1)>0,(G88/INDEX($C88:$G88,1,aux!$AL$1))^(1/($G$3-INDEX($C$3:$G$3,1,aux!$AL$1)))-1,"n.d.") -> n.d. | V88: =IF(INDEX($C88:$G88,1,aux!$AL$1)>0,(G88-INDEX($C88:$G88,1,aux!$AL$1))/INDEX($C88:$G88,1,aux!$AL$1),"n.d.") -> n.d. | X88: =N88-INDEX($J88:$N88,1,aux!$AL$1) -> 0 | Y88: 0 | Z88: =+IF(INDEX($J88:$N88,1,aux!$AL$1)>0,(N88/INDEX($J88:$N88,1,aux!$AL$1))^(1/($N$3-INDEX($J$3:$N$3,1,aux!$AL$1)))-1,"n.d.") -> n.d. | AA88: =IF(INDEX($J88:$N88,1,aux!$AL$1)>0,(N88-INDEX($J88:$N88,1,aux!$AL$1))/INDEX($J88:$N88,1,aux!$AL$1),"n.d.") -> n.d. | AC88: 0 | BS88: =+MATCH('5.1'!A88,AUX_2d_pais!$G$2:$G$20001,0) -> 
A89: 0032 | B89: Finlândia | C89: =+SUMIF(AUX_2d_pais!$A$2:$A$27000,'5.1'!$A89&'5.1'!C$3&1,AUX_2d_pais!$J$2:$J$27000)/1000 -> 0 | D89: =+SUMIF(AUX_2d_pais!$A$2:$A$27000,'5.1'!$A89&'5.1'!D$3&1,AUX_2d_pais!$J$2:$J$27000)/1000 -> 0 | E89: =+SUMIF(AUX_2d_pais!$A$2:$A$27000,'5.1'!$A89&'5.1'!E$3&1,AUX_2d_pais!$J$2:$J$27000)/1000 -> 0 | F89: =+SUMIF(AUX_2d_pais!$A$2:$A$27000,'5.1'!$A89&'5.1'!F$3&1,AUX_2d_pais!$J$2:$J$27000)/1000 -> 0 | G89: =+SUMIF(AUX_2d_pais!$A$2:$A$27000,'5.1'!$A89&'5.1'!G$3&1,AUX_2d_pais!$J$2:$J$27000)/1000 -> 0 | H89: 0 | I89: 0 | J89: =+SUMIF(AUX_2d_pais!$A$2:$A$27000,'5.1'!$A89&'5.1'!J$3&2,AUX_2d_pais!$J$2:$J$27000)/1000 -> 0 | K89: =+SUMIF(AUX_2d_pais!$A$2:$A$27000,'5.1'!$A89&'5.1'!K$3&2,AUX_2d_pais!$J$2:$J$27000)/1000 -> 0 | L89: =+SUMIF(AUX_2d_pais!$A$2:$A$27000,'5.1'!$A89&'5.1'!L$3&2,AUX_2d_pais!$J$2:$J$27000)/1000 -> 0 | M89: =+SUMIF(AUX_2d_pais!$A$2:$A$27000,'5.1'!$A89&'5.1'!M$3&2,AUX_2d_pais!$J$2:$J$27000)/1000 -> 0 | N89: =+SUMIF(AUX_2d_pais!$A$2:$A$27000,'5.1'!$A89&'5.1'!N$3&2,AUX_2d_pais!$J$2:$J$27000)/1000 -> 0 | O89: 0 | P89: 0 | Q89: 0 | S89: =G89-INDEX($C89:$G89,1,aux!$AL$1) -> 0 | T89: 0 | U89: =+IF(INDEX($C89:$G89,1,aux!$AL$1)>0,(G89/INDEX($C89:$G89,1,aux!$AL$1))^(1/($G$3-INDEX($C$3:$G$3,1,aux!$AL$1)))-1,"n.d.") -> n.d. | V89: =IF(INDEX($C89:$G89,1,aux!$AL$1)>0,(G89-INDEX($C89:$G89,1,aux!$AL$1))/INDEX($C89:$G89,1,aux!$AL$1),"n.d.") -> n.d. | X89: =N89-INDEX($J89:$N89,1,aux!$AL$1) -> 0 | Y89: 0 | Z89: =+IF(INDEX($J89:$N89,1,aux!$AL$1)>0,(N89/INDEX($J89:$N89,1,aux!$AL$1))^(1/($N$3-INDEX($J$3:$N$3,1,aux!$AL$1)))-1,"n.d.") -> n.d. | AA89: =IF(INDEX($J89:$N89,1,aux!$AL$1)>0,(N89-INDEX($J89:$N89,1,aux!$AL$1))/INDEX($J89:$N89,1,aux!$AL$1),"n.d.") -> n.d. | AC89: 0 | BS89: =+MATCH('5.1'!A89,AUX_2d_pais!$G$2:$G$20001,0) -> 
A90: 0001 | B90: França | C90: =+SUMIF(AUX_2d_pais!$A$2:$A$27000,'5.1'!$A90&'5.1'!C$3&1,AUX_2d_pais!$J$2:$J$27000)/1000 -> 0 | D90: =+SUMIF(AUX_2d_pais!$A$2:$A$27000,'5.1'!$A90&'5.1'!D$3&1,AUX_2d_pais!$J$2:$J$27000)/1000 -> 0 | E90: =+SUMIF(AUX_2d_pais!$A$2:$A$27000,'5.1'!$A90&'5.1'!E$3&1,AUX_2d_pais!$J$2:$J$27000)/1000 -> 0 | F90: =+SUMIF(AUX_2d_pais!$A$2:$A$27000,'5.1'!$A90&'5.1'!F$3&1,AUX_2d_pais!$J$2:$J$27000)/1000 -> 0 | G90: =+SUMIF(AUX_2d_pais!$A$2:$A$27000,'5.1'!$A90&'5.1'!G$3&1,AUX_2d_pais!$J$2:$J$27000)/1000 -> 0 | H90: 0 | I90: 0 | J90: =+SUMIF(AUX_2d_pais!$A$2:$A$27000,'5.1'!$A90&'5.1'!J$3&2,AUX_2d_pais!$J$2:$J$27000)/1000 -> 0 | K90: =+SUMIF(AUX_2d_pais!$A$2:$A$27000,'5.1'!$A90&'5.1'!K$3&2,AUX_2d_pais!$J$2:$J$27000)/1000 -> 0 | L90: =+SUMIF(AUX_2d_pais!$A$2:$A$27000,'5.1'!$A90&'5.1'!L$3&2,AUX_2d_pais!$J$2:$J$27000)/1000 -> 0 | M90: =+SUMIF(AUX_2d_pais!$A$2:$A$27000,'5.1'!$A90&'5.1'!M$3&2,AUX_2d_pais!$J$2:$J$27000)/1000 -> 0 | N90: =+SUMIF(AUX_2d_pais!$A$2:$A$27000,'5.1'!$A90&'5.1'!N$3&2,AUX_2d_pais!$J$2:$J$27000)/1000 -> 0 | O90: 0 | P90: 0 | Q90: 0 | S90: =G90-INDEX($C90:$G90,1,aux!$AL$1) -> 0 | T90: 0 | U90: =+IF(INDEX($C90:$G90,1,aux!$AL$1)>0,(G90/INDEX($C90:$G90,1,aux!$AL$1))^(1/($G$3-INDEX($C$3:$G$3,1,aux!$AL$1)))-1,"n.d.") -> n.d. | V90: =IF(INDEX($C90:$G90,1,aux!$AL$1)>0,(G90-INDEX($C90:$G90,1,aux!$AL$1))/INDEX($C90:$G90,1,aux!$AL$1),"n.d.") -> n.d. | X90: =N90-INDEX($J90:$N90,1,aux!$AL$1) -> 0 | Y90: 0 | Z90: =+IF(INDEX($J90:$N90,1,aux!$AL$1)>0,(N90/INDEX($J90:$N90,1,aux!$AL$1))^(1/($N$3-INDEX($J$3:$N$3,1,aux!$AL$1)))-1,"n.d.") -> n.d. | AA90: =IF(INDEX($J90:$N90,1,aux!$AL$1)>0,(N90-INDEX($J90:$N90,1,aux!$AL$1))/INDEX($J90:$N90,1,aux!$AL$1),"n.d.") -> n.d. | AC90: 0 | BS90: =+MATCH('5.1'!A90,AUX_2d_pais!$G$2:$G$20001,0) -> 
A91: 0314 | B91: Gabão | C91: =+SUMIF(AUX_2d_pais!$A$2:$A$27000,'5.1'!$A91&'5.1'!C$3&1,AUX_2d_pais!$J$2:$J$27000)/1000 -> 0 | D91: =+SUMIF(AUX_2d_pais!$A$2:$A$27000,'5.1'!$A91&'5.1'!D$3&1,AUX_2d_pais!$J$2:$J$27000)/1000 -> 0 | E91: =+SUMIF(AUX_2d_pais!$A$2:$A$27000,'5.1'!$A91&'5.1'!E$3&1,AUX_2d_pais!$J$2:$J$27000)/1000 -> 0 | F91: =+SUMIF(AUX_2d_pais!$A$2:$A$27000,'5.1'!$A91&'5.1'!F$3&1,AUX_2d_pais!$J$2:$J$27000)/1000 -> 0 | G91: =+SUMIF(AUX_2d_pais!$A$2:$A$27000,'5.1'!$A91&'5.1'!G$3&1,AUX_2d_pais!$J$2:$J$27000)/1000 -> 0 | H91: 0 | I91: 0 | J91: =+SUMIF(AUX_2d_pais!$A$2:$A$27000,'5.1'!$A91&'5.1'!J$3&2,AUX_2d_pais!$J$2:$J$27000)/1000 -> 0 | K91: =+SUMIF(AUX_2d_pais!$A$2:$A$27000,'5.1'!$A91&'5.1'!K$3&2,AUX_2d_pais!$J$2:$J$27000)/1000 -> 0 | L91: =+SUMIF(AUX_2d_pais!$A$2:$A$27000,'5.1'!$A91&'5.1'!L$3&2,AUX_2d_pais!$J$2:$J$27000)/1000 -> 0 | M91: =+SUMIF(AUX_2d_pais!$A$2:$A$27000,'5.1'!$A91&'5.1'!M$3&2,AUX_2d_pais!$J$2:$J$27000)/1000 -> 0 | N91: =+SUMIF(AUX_2d_pais!$A$2:$A$27000,'5.1'!$A91&'5.1'!N$3&2,AUX_2d_pais!$J$2:$J$27000)/1000 -> 0 | O91: 0 | P91: 0 | Q91: 0 | S91: =G91-INDEX($C91:$G91,1,aux!$AL$1) -> 0 | T91: 0 | U91: =+IF(INDEX($C91:$G91,1,aux!$AL$1)>0,(G91/INDEX($C91:$G91,1,aux!$AL$1))^(1/($G$3-INDEX($C$3:$G$3,1,aux!$AL$1)))-1,"n.d.") -> n.d. | V91: =IF(INDEX($C91:$G91,1,aux!$AL$1)>0,(G91-INDEX($C91:$G91,1,aux!$AL$1))/INDEX($C91:$G91,1,aux!$AL$1),"n.d.") -> n.d. | X91: =N91-INDEX($J91:$N91,1,aux!$AL$1) -> 0 | Y91: 0 | Z91: =+IF(INDEX($J91:$N91,1,aux!$AL$1)>0,(N91/INDEX($J91:$N91,1,aux!$AL$1))^(1/($N$3-INDEX($J$3:$N$3,1,aux!$AL$1)))-1,"n.d.") -> n.d. | AA91: =IF(INDEX($J91:$N91,1,aux!$AL$1)>0,(N91-INDEX($J91:$N91,1,aux!$AL$1))/INDEX($J91:$N91,1,aux!$AL$1),"n.d.") -> n.d. | AC91: 0 | BS91: =+MATCH('5.1'!A91,AUX_2d_pais!$G$2:$G$20001,0) -> 
A92: 0252 | B92: Gâmbia | C92: =+SUMIF(AUX_2d_pais!$A$2:$A$27000,'5.1'!$A92&'5.1'!C$3&1,AUX_2d_pais!$J$2:$J$27000)/1000 -> 0 | D92: =+SUMIF(AUX_2d_pais!$A$2:$A$27000,'5.1'!$A92&'5.1'!D$3&1,AUX_2d_pais!$J$2:$J$27000)/1000 -> 0 | E92: =+SUMIF(AUX_2d_pais!$A$2:$A$27000,'5.1'!$A92&'5.1'!E$3&1,AUX_2d_pais!$J$2:$J$27000)/1000 -> 0 | F92: =+SUMIF(AUX_2d_pais!$A$2:$A$27000,'5.1'!$A92&'5.1'!F$3&1,AUX_2d_pais!$J$2:$J$27000)/1000 -> 0 | G92: =+SUMIF(AUX_2d_pais!$A$2:$A$27000,'5.1'!$A92&'5.1'!G$3&1,AUX_2d_pais!$J$2:$J$27000)/1000 -> 0 | H92: 0 | I92: 0 | J92: =+SUMIF(AUX_2d_pais!$A$2:$A$27000,'5.1'!$A92&'5.1'!J$3&2,AUX_2d_pais!$J$2:$J$27000)/1000 -> 0 | K92: =+SUMIF(AUX_2d_pais!$A$2:$A$27000,'5.1'!$A92&'5.1'!K$3&2,AUX_2d_pais!$J$2:$J$27000)/1000 -> 0 | L92: =+SUMIF(AUX_2d_pais!$A$2:$A$27000,'5.1'!$A92&'5.1'!L$3&2,AUX_2d_pais!$J$2:$J$27000)/1000 -> 0 | M92: =+SUMIF(AUX_2d_pais!$A$2:$A$27000,'5.1'!$A92&'5.1'!M$3&2,AUX_2d_pais!$J$2:$J$27000)/1000 -> 0 | N92: =+SUMIF(AUX_2d_pais!$A$2:$A$27000,'5.1'!$A92&'5.1'!N$3&2,AUX_2d_pais!$J$2:$J$27000)/1000 -> 0 | O92: 0 | P92: 0 | Q92: 0 | S92: =G92-INDEX($C92:$G92,1,aux!$AL$1) -> 0 | T92: 0 | U92: =+IF(INDEX($C92:$G92,1,aux!$AL$1)>0,(G92/INDEX($C92:$G92,1,aux!$AL$1))^(1/($G$3-INDEX($C$3:$G$3,1,aux!$AL$1)))-1,"n.d.") -> n.d. | V92: =IF(INDEX($C92:$G92,1,aux!$AL$1)>0,(G92-INDEX($C92:$G92,1,aux!$AL$1))/INDEX($C92:$G92,1,aux!$AL$1),"n.d.") -> n.d. | X92: =N92-INDEX($J92:$N92,1,aux!$AL$1) -> 0 | Y92: 0 | Z92: =+IF(INDEX($J92:$N92,1,aux!$AL$1)>0,(N92/INDEX($J92:$N92,1,aux!$AL$1))^(1/($N$3-INDEX($J$3:$N$3,1,aux!$AL$1)))-1,"n.d.") -> n.d. | AA92: =IF(INDEX($J92:$N92,1,aux!$AL$1)>0,(N92-INDEX($J92:$N92,1,aux!$AL$1))/INDEX($J92:$N92,1,aux!$AL$1),"n.d.") -> n.d. | AC92: 0 | BS92: =+MATCH('5.1'!A92,AUX_2d_pais!$G$2:$G$20001,0) -> 
